Workbook

Sheet Input
B2: INPUTS | AR2: CLICK THE BUTTON
D4: Input Name and Compensation | P4: Input Age and Retirement Parameters | AE4: Input Contributions to Current Plans
D6: First Name | I6: John | P6: Start Year for Analysis | U6: 2012 | AE6: Contribution Method | AI6: % of Compensation
D7: Last Name | I7: Smith | P7: Age | AF7: % of Comp if used | AI7: 0.15
D8: Salary | I8: 0 | P8: Retirement Age | AF8: $ Amount if used
D9: Bonus (if deferrable) | I9: 0 | P9: # of Benefit Payments
D10: Compensation Growth Rate | I10: 0 | P10: Expected Investment Return
B14: RESULTS - CURRENT PROGRAMS
P16: =TEXT(StartYr,"0")&" Contrib's" -> 2015 Contrib's | T16: Annual After Tax Retirement Income | V16: Values from Last Set of Inputs
D19: Your Target Contribution (based on Inputs) | P19: =IF(OR(TargetMethod1=1,TargetMethod2=1),'Individual Calculations '!R13,'Individual Calculations '!I13+'Individual Calculations '!J13+'Individual Calculations '!O13) -> 0
D20: Step 1: Contribute to 403(b) to Maximize Match | P20: =IF(OR(TargetMethod1=1,TargetMethod2=1),'Individual Calculations '!S13+'Individual Calculations '!T13,'Individual Calculations '!I13+'Individual Calculations '!J13) -> 0 | T20: =-ROUND('Individual Calculations '!AD5,-2) -> 0 | V20: =Variables!E40 -> 41200
D21: Step 2: Contribute Remaining Target to 457(b) - to IRS Limit | P21: =IF(OR(TargetMethod1=1,TargetMethod2=1),'Individual Calculations '!W13,'Individual Calculations '!O13) -> 0 | T21: =-ROUND('Individual Calculations '!AS5,-2) -> 0 | V21: =Variables!E41 -> 20600
D22: Step 3: Excluded Contributions Invested After-Tax | P22: =P19-P20-P21 -> 0 | T22: =-ROUND('Individual Calculations '!BA4,-2) -> 0 | V22: =Variables!E42 -> 63800
E23: Your Total Contributions | P23: =SUM(P20:Q22) -> 0 | T23: =SUM(T20:U22) -> 0 | V23: =Variables!E43 -> 125600
D24: Employer Match on 403(b) Contribution | P24: =IF(OR(TargetMethod1=1,TargetMethod2=1),'Individual Calculations '!U13,'Individual Calculations '!K13) -> 0 | T24: =-ROUND('Individual Calculations '!AK5,-2) -> 0 | V24: =Variables!E44 -> 34100
E25: TOTAL | P25: =P20+P21+P22+P24 -> 0 | T25: =T20+T21+T22+T24 -> 0 | V25: =Variables!E45 -> 159700
S27: Pretax Equivalent==> | T27: =ROUND(T25/(1-Variables!G22),-2) -> 0 | V27: =Variables!E47 -> 266200
S28: As a % of Final Income==> | T28: =IF('Individual Calculations '!G4=0,0,T27/'Individual Calculations '!G4) -> 0 | V28: =Variables!E48 -> 0.3519791198
BD32: Last Age on Exhibits | BF32: 90
BD33: Set Rows | BE33: ="<="&TEXT((SetLastAge),"0") -> <=90 | BF33: SetRows
BF35: =-AnnRet403bAT-AnnRet403bERMatchAT -> 0 | BG35: =-AnnRet457bAT -> 0 | BH35: =-AnnRetATSavingsAT -> 0
BF36: 403(b) Plan | BG36: 457(b) Plan | BH36: After Tax Savings
BD37: 1 | BE37: =RetAge -> 65 | BF37: =IF($BD37<=BenPmtsYears,BF$35,0) -> 0 | BG37: 0 | BH37: 0 | BJ37: =StartYr -> 2015 | BK37: CheckChg1
BD38: =BD37+1 -> 2 | BF38: 0 | BG38: 0 | BH38: 0 | BJ38: =Age -> 45 | BK38: CheckChg2
BD39: =BD38+1 -> 3 | BF39: 0 | BG39: 0 | BH39: 0 | BJ39: =RetAge -> 65 | BK39: CheckChg3
BD40: 4 | BF40: 0 | BG40: 0 | BH40: 0 | BJ40: =BenPmtsYears -> 20 | BK40: CheckChg4
BD41: 5 | BF41: 0 | BG41: 0 | BH41: 0 | BJ41: =AcctBalGrowthNum -> 2 | BK41: CheckChg5
BD42: 6 | BE42: =BE37+5 -> 70 | BF42: 0 | BG42: 0 | BH42: 0
BD43: 7 | BF43: 0 | BG43: 0 | BH43: 0
BD44: 8 | BF44: 0 | BG44: 0 | BH44: 0
BD45: 9 | BF45: 0 | BG45: 0 | BH45: 0
BD46: 10 | BF46: 0 | BG46: 0 | BH46: 0
BD47: 11 | BE47: =BE42+5 -> 75 | BF47: 0 | BG47: 0 | BH47: 0
BD48: 12 | BF48: 0 | BG48: 0 | BH48: 0
BD49: 13 | BF49: 0 | BG49: 0 | BH49: 0
BD50: 14 | BF50: 0 | BG50: 0 | BH50: 0
BD51: 15 | BF51: 0 | BG51: 0 | BH51: 0
BD52: 16 | BE52: =BE47+5 -> 80 | BF52: 0 | BG52: 0 | BH52: 0
BD53: 17 | BF53: 0 | BG53: 0 | BH53: 0
BD54: 18 | BF54: 0 | BG54: 0 | BH54: 0
BD55: 19 | BF55: 0 | BG55: 0 | BH55: 0
BD56: 20 | BE56: =BE52+4 -> 84 | BF56: 0 | BG56: 0 | BH56: 0

Sheet ESP Contributions
B2: THE EXECUTIVE SECURITY PLAN
C4: Put explanatory text here:
D5: - Contributions to the 403(b) should be maximized: account grows pretax, is protected from creditors, and receives a 50% match from the employer
D6: - Contributions to the 457(b) are pretax, but are subject to the claims of creditors in the event of bankruptcy - contributions to ESP are not subject to claims of creditors. While after tax, the tax restoration loan from
D7: employer mimics pretax savings, potentially generating a comparable after tax retirement income
D8: - After tax contributions can be redirected to the ESP, and because of the tax restoration loan from the employer, would potentially generate greater after tax retirement income
D10: - The ESP also provides a death benefit which may be available without medical underwriting, with certain limitations
B14: MODEL YOUR CONTRIBUTIONS to the EXECUTIVE SECURITY PLAN (ESP)
R22: After Tax Retirement Income | AA22: ESP Provides the Following Death Benefit
C23: Redirect Contributions to Executive Security Plan | H23: =TEXT(StartYr,"0")&" Contrib's" -> 2015 Contrib's | M23: Amount to Redirect to ESP | R23: Before Redirection | T23: After Redirection | V23: % Chng
C26: Option 1: 457(b) Plan | H26: =Input!P21 -> 0 | M26: 0 | R26: =-ROUND(AnnRetRedirected457bAT,-2) -> 0 | T26: =ROUND(IF(RedirectedContribs=0,0,Redirected457b/RedirectedContribs*'Individual Calculations '!CL5),-2) -> 0 | V26: =IF(R26=0,0,(T26-R26)/R26) -> 0
C27: Option 2: After Tax Savings | H27: =Input!P22 -> 0 | M27: =H27 -> 0 | R27: =-ROUND(AnnRetRedirectedATSavingsAT,-2) -> 0 | T27: =ROUND(IF(RedirectedContribs=0,0,RedirectedAT/RedirectedContribs*'Individual Calculations '!CL5),-2) -> 0 | V27: =IF(R27=0,0,(T27-R27)/R27) -> 0
M28: =SUM(M26:N27) -> 0 | R28: =R26+R27 -> 0 | T28: =T26+T27 -> 0 | V28: =IF(R28=0,0,(T28-R28)/R28) -> 0

Sheet Inputs Allowed (hidden)
A1: =VLOOKUP(AgeNum,$B$4:$C$29,2,FALSE) -> 45 | B1: Age | E1: =VLOOKUP(RetAgeNum,$F$4:$G$6,2,FALSE) -> 65 | F1: RetAge | L1: =VLOOKUP(StartYrNum,$M$4:$N$13,2,FALSE) -> 2015 | M1: StartYr | P1: =VLOOKUP(BenPmtsYearsNum,$Q$4:$R$5,2,FALSE) -> 20 | Q1: BenPmtsYears | T1: =VLOOKUP(AcctBalGrowthNum,$U$4:$V$6,2,FALSE) -> 0.06 | U1: AcctBalGrowth
A2: 16 | B2: AgeNum | E2: 2 | F2: RetAgeNum | L2: 5 | M2: StartYrNum | P2: 2 | Q2: BenPmtsYearsNum | T2: 2 | U2: AcctBalGrowthNum
A3: =VLOOKUP(MAX(A4:A29),$A$4:$B$29,2,FALSE) -> 26 | B3: AgeAllowed | E3: 3 | F3: RetAgeAllowed | I3: =VLOOKUP(100,I4:J70,2,FALSE) -> 35 | J3: DeathAgeAllow | L3: =VLOOKUP(2020,L4:M13,2,FALSE) -> 10 | M3: StartYrAllowed | P3: =VLOOKUP(20,P4:Q13,2,FALSE) -> 2 | Q3: BenPmtsAllowed | T3: =VLOOKUP(0.07,T4:U6,2,FALSE) -> 3 | U3: InvRetAllowed | X3: 3 | Y3: ContribStratAllowed | AA3: 1 | AB3: 29600
A4: 30 | B4: 1 | C4: =A4 -> 30 | E4: 60 | F4: 1 | G4: =E4 -> 60 | I4: =RetAge+1 -> 66 | J4: 1 | L4: 2011 | M4: 1 | N4: =L4 -> 2011 | P4: 10 | Q4: 1 | R4: =P4 -> 10 | T4: 0.05 | U4: 1 | V4: =T4 -> 0.05 | X4: % of Compensation | Y4: 1 | AA4: 2 | AB4: 14800
A5: =A4+1 -> 31 | B5: =B4+1 -> 2 | C5: =A5 -> 31 | E5: 65 | F5: =F4+1 -> 2 | G5: =E5 -> 65 | I5: =I4+1 -> 67 | J5: =J4+1 -> 2 | L5: =L4+1 -> 2012 | M5: =M4+1 -> 2 | N5: =L5 -> 2012 | P5: 20 | Q5: =Q4+1 -> 2 | R5: =P5 -> 20 | T5: 0.06 | U5: =U4+1 -> 2 | V5: =T5 -> 0.06 | X5: Flat Dollar Amount | Y5: =Y4+1 -> 2 | AA5: 3 | AB5: 69400
A6: =A5+1 -> 32 | B6: 3 | C6: 32 | E6: 70 | F6: =F5+1 -> 3 | G6: =E6 -> 70 | I6: 68 | J6: 3 | L6: 2013 | M6: 3 | N6: 2013 | T6: 0.07 | U6: =U5+1 -> 3 | V6: =T6 -> 0.07 | X6: Maximize IRS Limits | Y6: =Y5+1 -> 3 | AA6: 4 | AB6: 113800
A7: 33 | B7: 4 | C7: 33 | I7: 69 | J7: 4 | L7: 2014 | M7: 4 | N7: 2014 | AA7: 5 | AB7: 24700
A8: 34 | B8: 5 | C8: 34 | I8: 70 | J8: 5 | L8: 2015 | M8: 5 | N8: 2015 | AA8: 6 | AB8: 138500
A9: 35 | B9: 6 | C9: 35 | I9: 71 | J9: 6 | L9: 2016 | M9: 6 | N9: 2016
A10: 36 | B10: 7 | C10: 36 | I10: 72 | J10: 7 | L10: 2017 | M10: 7 | N10: 2017
A11: 37 | B11: 8 | C11: 37 | I11: 73 | J11: 8 | L11: 2018 | M11: 8 | N11: 2018
A12: 38 | B12: 9 | C12: 38 | I12: 74 | J12: 9 | L12: 2019 | M12: 9 | N12: 2019
A13: 39 | B13: 10 | C13: 39 | I13: 75 | J13: 10 | L13: 2020 | M13: 10 | N13: 2020
A14: 40 | B14: 11 | C14: 40 | I14: 76 | J14: 11
A15: 41 | B15: 12 | C15: 41 | I15: 77 | J15: 12
A16: 42 | B16: 13 | C16: 42 | I16: 78 | J16: 13
A17: 43 | B17: 14 | C17: 43 | I17: 79 | J17: 14
A18: 44 | B18: 15 | C18: 44 | I18: 80 | J18: 15
A19: 45 | B19: 16 | C19: 45 | I19: 81 | J19: 16
A20: 46 | B20: 17 | C20: 46 | I20: 82 | J20: 17
A21: 47 | B21: 18 | C21: 47 | I21: 83 | J21: 18
A22: =A21+1 -> 48 | B22: 19 | C22: 48 | I22: 84 | J22: 19
A23: 49 | B23: 20 | C23: 49 | I23: 85 | J23: 20
A24: 50 | B24: 21 | C24: 50 | I24: 86 | J24: 21
A25: 51 | B25: 22 | C25: 51 | I25: 87 | J25: 22
A26: 52 | B26: 23 | C26: 52 | I26: 88 | J26: 23
A27: 53 | B27: 24 | C27: 53 | I27: 89 | J27: 24
A28: 54 | B28: 25 | C28: 54 | I28: 90 | J28: 25
A29: 55 | B29: 26 | C29: 55 | I29: 91 | J29: 26
I30: 92 | J30: 27
I31: 93 | J31: 28
I32: 94 | J32: 29
I33: 95 | J33: 30
I34: 96 | J34: 31
I35: 97 | J35: 32
I36: 98 | J36: 33
I37: =I36+1 -> 99 | J37: =J36+1 -> 34
I38: 100 | J38: 35
I39: 101 | J39: 36
I40: 102 | J40: 37
I41: 103 | J41: 38
I42: 104 | J42: 39
I43: 105 | J43: 40
I44: 106 | J44: 41
I45: 107 | J45: 42
I46: 108 | J46: 43
I47: 109 | J47: 44
I48: 110 | J48: 45
I49: 111 | J49: 46
I50: 112 | J50: 47
I51: 113 | J51: 48
I52: 114 | J52: 49
I53: 115 | J53: 50
I54: 116 | J54: 51
I55: 117 | J55: 52
I56: 118 | J56: 53
I57: 119 | J57: 54
I58: 120 | J58: 55
I59: 121 | J59: 56
I60: 122 | J60: 57
I61: 123 | J61: 58
I62: 124 | J62: 59
I63: 125 | J63: 60
I64: 126 | J64: 61
I65: 127 | J65: 62
I66: 128 | J66: 63
I67: 129 | J67: 64
I68: 130 | J68: 65
I69: 131 | J69: 66
I70: 132 | J70: 67

Sheet Variables (hidden)
B1: Switches | G1: 1 | H1: ESP - Var Prem | I1: 45 - Lincoln - Taxes - PSP Contributions tax at a flat rate - 40%
B2: First Illustration to Use (without SD) | C2: 1 | D2: IllusUsed | G2: 2 | H2: SD - Var Prem | I2: 45 - Lincoln - Taxes -ESD Contributions = Plan
B3: Second Illustration to Use (with SD) | C3: 2 | D3: IllusUsed2 | G3: 3 | H3: ESP - Lvl Prem | I3: 45 - Lincoln - PSP Contributions 30k
B4: Select Tax Table | C4: 1 | D4: TaxRates, 1=Flat,2=Fluctuating | G4: 4 | H4: SD - Lvl Prem | I4: 45 - Lincoln - Taxes -ESD Contributions = Plan based on 30k
B5: Social Security Growth Rate | C5: 0.03 | D5: SSBenGrowth
B6: IRS Comp Limit Growth Rate | C6: 0.03 | D6: IRSCompLimitGrowth
B7: Section 415 Limit Index Growth | C7: 0.03 | D7: Section415LimitGrowth
B8: IRS Comp Limit Index Growth | C8: 0.03 | D8: IRS401kLimitGrowth
B9: Funding - Life Insurance Information/Data
B10: Crediting Rate | C10: 0.07 | D10: PolicyRate
B11: Policy Name | C11: =Illustrations!A11 -> Lincoln National - Variable UL | D11: PolicyName
B12: Entity Information/Data
B13: Entity Name | C13: Genesis | D13: EntityName
B16: Catch-up Age | G16: 50
B17: Blended Tax Rate - Mutual Funds | G17: 0.3
B18: Corporate Tax Rate | G18: 0
B19: Pretax Cost of Money (for NPV and Split Dollar Purposes | G19: 0.04 | H19: CostOfMoney
B20: Comp = Sal(1) or Sal+Bon(2) | G20: 2
B21: Matching ER Contribution (403b) | G21: 0.5
B22: Individual Tax Rate | G22: 0.4
B23: Death Age (> Ret Age) | G23: =MAX(85,RetAge+BenPmtsYears) -> 85
B26: =IF(ContribMethod='Inputs Allowed'!X4,1,0) -> 1 | C26: % of Compensation
B27: =IF(ContribMethod='Inputs Allowed'!X5,1,0) -> 0 | C27: Flat Dollar Amount
B28: =IF(ContribMethod='Inputs Allowed'!X6,1,0) -> 0 | C28: Maximize IRS Limits
C32: =" Age "&TEXT(Age,"0") -> Age 45 | D32: =VLOOKUP(Age,'Individual Calculations '!$CK$13:$CN$88,4,FALSE)/1000 -> 0 | E32: InitialDB
C33: =" Age "&TEXT(RetAge-1,"0") -> Age 64 | D33: =VLOOKUP(RetAge-1,'Individual Calculations '!$CK$13:$CN$88,4,FALSE)/1000 -> 0 | E33: RetDB
C34: =" Age "&TEXT(Death_Age,"0")&" [w/ RetInc]" -> Age 85 [w/ RetInc] | D34: =VLOOKUP(Death_Age,'Individual Calculations '!$CK$13:$CN$88,4,FALSE)/1000 -> 0 | E34: DeathDB
C35: =" Age "&TEXT(Death_Age,"0")&" [w/out RetInc]" -> Age 85 [w/out RetInc] | D35: =RetDB*1.9 -> 0 | E35: DeathDBwRetInc
E38: Previous Value | H38: Previous Value | I38: Current Value
B39: Your Target Contribution (based on Inputs)
B40: Step 1: Contribute to 403(b) to Maximize Match | E40: 41200 | H40: 41200 | I40: =Input!T20 -> 0
B41: Step 2: Contribute Remaining Target to 457(b) - to IRS Limit | E41: 20600 | H41: 20600 | I41: =Input!T21 -> 0
B42: Step 3: Excluded Contributions Invested After-Tax | E42: 63800 | H42: 63800 | I42: =Input!T22 -> 0
C43: Your Total Contributions | E43: 125600 | H43: 125600 | I43: =Input!T23 -> 0
B44: Employer Match on 403(b) Contribution | E44: 34100 | H44: 34100 | I44: =Input!T24 -> 0
C45: TOTAL | E45: 159700 | H45: 159700 | I45: =Input!T25 -> 0
E47: 266200 | H47: 266200 | I47: =Input!T27 -> 0
E48: 0.3519791198 | H48: 0.3519791198 | I48: =Input!T28 -> 0

Sheet Individual Calculations (hidden)
AC2: Balance at Retirement | AD2: =INDEX(AF13:AF88,RetAge-1-Age+1) -> 0 | AJ2: Balance at Retirement | AK2: =INDEX(AM13:AM88,RetAge-1-Age+1) -> 0 | AR2: Balance at Retirement | AS2: =INDEX(AU13:AU88,RetAge-1-Age+1) -> 0 | AZ2: Balance at Retirement | BA2: =INDEX(BC13:BC88,RetAge-1-Age+1) -> 0 | BH2: Balance at Retirement | BI2: =INDEX(BK13:BK88,RetAge-1-Age+1) -> 0 | BO2: Balance at Retirement | BP2: =INDEX(BR13:BR88,RetAge-1-Age+1) -> 0 | CQ2: Pretax COM | CR2: =CostOfMoney -> 0.04
AC3: Years for Ret. Benefit | AD3: =RetDistYrs -> 20 | AJ3: Years for Ret. Benefit | AK3: =RetDistYrs -> 20 | AR3: Years for Ret. Benefit | AS3: =RetDistYrs -> 20 | AZ3: Years for Ret. Benefit | BA3: =RetDistYrs -> 20 | BH3: Years for Ret. Benefit | BI3: =RetDistYrs -> 20 | BO3: Years for Ret. Benefit | BP3: =RetDistYrs -> 20 | CK3: Loan Repayment + Ret Benefit | CL3: =VLOOKUP(RetAge,$CK$13:$CN$88,2,FALSE) -> 0 | CQ3: Corporate Tax Rate | CR3: =Corp_Tax_Rate -> 0
F4: Final Income==> | G4: =VLOOKUP(RetAge-1,$C$13:$G$88,5,FALSE) -> 0 | AC4: Annual Ret. Benefit | AD4: =PMT(AcctBalGrowth,AD3,AD2,,1) -> 0 | AE4: AnnRet403b | AJ4: Annual Ret. Benefit | AK4: =PMT(AcctBalGrowth,AK3,AK2,,1) -> 0 | AL4: AnnRet403bERMatch | AR4: Annual Ret. Benefit | AS4: =PMT(AcctBalGrowth,AS3,AS2,,1) -> 0 | AT4: AnnRet457b | AZ4: Annual Ret. Benefit | BA4: =PMT(AcctBalGrowth*(1-EEBlendedTaxRate),BA3,BA2,,1) -> 0 | BB4: AnnRetATSavingsAT | BH4: Annual Ret. Benefit | BI4: =PMT(AcctBalGrowth,BI3,BI2,,1) -> 0 | BJ4: AnnRetRedirected457b | BO4: Annual Ret. Benefit | BP4: =PMT(AcctBalGrowth*(1-EEBlendedTaxRate),BP3,BP2,,1) -> 0 | BQ4: AnnRetRedirectedATSavingsAT | CK4: Loan Repayment | CL4: =CL3-CL5 -> 0 | CQ4: After Tax COM | CR4: =CR2*(1-$CR$3) -> 0.04
AC5: Avg Annual AT | AD5: =SUM(AD13:AD88)/AD3 -> 0 | AE5: AnnRet403bAT | AJ5: Avg Annual AT | AK5: =SUM(AK13:AK88)/AK3 -> 0 | AL5: AnnRet403bERMatchAT | AR5: Avg Annual AT | AS5: =SUM(AS13:AS88)/AS3 -> 0 | AT5: AnnRet457bAT | BH5: Avg Annual AT | BI5: =SUM(BI13:BI88)/BI3 -> 0 | BJ5: AnnRetRedirected457bAT | CK5: Ret Benefit | CL5: =VLOOKUP(RetAge+1,$CK$13:$CN$88,2,FALSE) -> 0 | CQ5: NPV Cost | CR5: =NPV(CR4,CR13:CR88) -> 0 | CU5: NPV Cost | CV5: =NPV($CR$4,CV13:CV88) -> 0 | CY5: NPV Benefit | CZ5: =NPV($CR$4,CZ13:CZ88) -> 0
AP6: =IF(MAX(AO13:AO88)=0,AP13,VLOOKUP(MAX(AO13:AO88),AO13:AP88,2,FALSE)) -> 0 | AQ6: <==Minimum Contribution | AX6: =IF(MAX(AW13:AW88)=0,AX13,VLOOKUP(MAX(AW13:AW88),AW13:AX88,2,FALSE)) -> 0 | AY6: <==Minimum Contribution | BF6: =IF(MAX(BE13:BE88)=0,BF13,VLOOKUP(MAX(BE13:BE88),BE13:BF88,2,FALSE)) -> 0 | BG6: <==Minimum Contribution | BM6: =IF(MAX(BL13:BL88)=0,BM13,VLOOKUP(MAX(BL13:BL88),BL13:BM88,2,FALSE)) -> 0 | BN6: <==Minimum Contribution | CU6: As % of Comp | CV6: =CR5/CV5 ->  | CY6: Ben to Cost Ratio | CZ6: =CZ5/-CR5 -> 
AA7: =SUM(AA13:AA88)/(RetAge-Age) -> 0 | AB7: <==Average Contrib over Working Career | AH7: =SUM(AH13:AH88)/(RetAge-Age) -> 0 | AI7: <==Average Contrib over Working Career | AP7: =SUM(AP13:AP88)/(RetAge-Age) -> 0 | AQ7: <==Average Contrib over Working Career | AX7: =SUM(AX13:AX88)/(RetAge-Age) -> 0 | AY7: <==Average Contrib over Working Career | BF7: =SUM(BF13:BF88)/(RetAge-Age) -> 0 | BG7: <==Average Contrib over Working Career | BM7: =SUM(BM13:BM88)/(RetAge-Age) -> 0 | BN7: <==Average Contrib over Working Career
E8: -1 | F8: =E8+-1 -> -2 | G8: =F8+-1 -> -3 | I8: =G8-1 -> -4 | J8: =I8+-1 -> -5 | K8: -6 | L8: -7 | M8: -8 | N8: -9 | O8: -10 | P8: -11 | R8: =P8-1 -> -12 | S8: =R8-1 -> -13 | T8: =S8-1 -> -14 | U8: -15 | V8: -16 | W8: -17 | X8: -18 | Y8: -19 | AA8: =Y8-1 -> -20 | AB8: =AA8-1 -> -21 | AC8: =AB8-1 -> -22 | AD8: =AC8-1 -> -23 | AE8: =AD8-1 -> -24 | AF8: =AE8-1 -> -25 | AH8: =AF8-1 -> -26 | AI8: =AH8-1 -> -27 | AJ8: =AI8-1 -> -28 | AK8: =AJ8-1 -> -29 | AL8: =AK8-1 -> -30 | AM8: =AL8-1 -> -31 | AP8: =AM8-1 -> -32 | AQ8: =AP8-1 -> -33 | AR8: =AQ8-1 -> -34 | AS8: =AR8-1 -> -35 | AT8: =AS8-1 -> -36 | AU8: =AT8-1 -> -37 | AX8: =AU8-1 -> -38 | AY8: =AX8-1 -> -39 | AZ8: =AY8-1 -> -40 | BA8: =AZ8-1 -> -41 | BB8: =BA8-1 -> -42 | BC8: =BB8-1 -> -43 | BF8: =BC8-1 -> -44 | BG8: =BF8-1 -> -45 | BH8: =BG8-1 -> -46 | BI8: =BH8-1 -> -47 | BJ8: =BI8-1 -> -48 | BK8: =BJ8-1 -> -49 | BM8: =BK8-1 -> -50 | BN8: =BM8-1 -> -51 | BO8: =BN8-1 -> -52 | BP8: =BO8-1 -> -53 | BQ8: =BP8-1 -> -54 | BR8: =BQ8-1 -> -55 | BT8: =BR8-1 -> -56 | BU8: =BT8-1 -> -57 | BV8: =BU8-1 -> -58 | BW8: =BV8-1 -> -59 | BX8: =BW8-1 -> -60 | BY8: =BX8-1 -> -61 | CA8: =BY8-1 -> -62 | CB8: =CA8-1 -> -63 | CC8: =CB8-1 -> -64 | CD8: =CC8-1 -> -65 | CF8: =CD8-1 -> -66 | CG8: =CF8-1 -> -67 | CH8: =CG8-1 -> -68 | CI8: =CH8-1 -> -69 | CK8: =CI8-1 -> -70 | CL8: =CK8-1 -> -71 | CM8: =CL8-1 -> -72 | CN8: =CM8-1 -> -73 | CP8: =CN8-1 -> -74 | CQ8: =CP8-1 -> -75 | CR8: -76 | CT8: =CR8-1 -> -77 | CU8: =CT8-1 -> -78 | CV8: =CU8-1 -> -79 | CX8: =CV8-1 -> -80 | CY8: =CX8-1 -> -81 | CZ8: =CY8-1 -> -82
E9: Compensation | I9: Contribution based on Maximum Allowable | R9: Contribution based on Target % or $ Amount | AA9: 403(b) - Executive Contributions Including Catch-Up | AH9: 403(b) - Employer Match | AP9: 457(b) - Executive Contributions | AX9: Excluded Contributions - After Tax Savings | BF9: Redirected 457(b) Contribs | BM9: Redirected After Tax Savings | BT9: Executive Security Plan with Tax Restoration Loan from Plan Sponsor | CP9: Executive Security Plan without Tax Restoration
I11: 403(b) | O11: 457(b) | P11: Total | S11: 403(b) | W11: 457(b) | X11: Result
B12: Year | C12: Age | E12: Salary | F12: Bonus | G12: ="Benefit Comp " &IF(CompDefinition=1,"(Salary)","(Sal+Bon)") -> Benefit Comp (Sal+Bon) | I12: Exec Contrib | J12: Age 50 Catch-Up | K12: Hospital Match | L12: Total Before IRS Limit Check | M12: IRS Limit on Contribs | N12: Total Annual 403(b) Contribs | O12: Exec Contrib | P12: Total Contribs | R12: ="Target Contrib"&IF(TargetMethod1=1," ("&TEXT(TargetContribPercent,"0.0%")&")",IF(TargetMethod2=1," ("&TEXT(TargetContribDollarAmt,"$0,000")&")","")) -> Target Contrib (15.0%) | S12: Exec Contrib | T12: Age 50 Catch-Up | U12: Hospital Match | V12: Total Annual 403(b) Contribs | W12: Exec Contrib | X12: Total Contribs to Hospital Plans | Y12: Excluded Amount | AA12: Exec Contrib (Incl Catch-Up) | AB12: Annual Ret. Benefit | AC12: Tax Rates Used | AD12: A/T Annual Ret. Benefit | AE12: ="Investment Earnings at " &TEXT(AcctBalGrowth,"0.00%") -> Investment Earnings at 6.00% | AF12: EOY | AH12: ER Match | AI12: Annual Ret. Benefit | AJ12: Tax Rates Used | AK12: A/T Annual Ret. Benefit | AL12: ="Investment Earnings at " &TEXT(AcctBalGrowth,"0.00%") -> Investment Earnings at 6.00% | AM12: EOY | AO12: Min Chk | AP12: Exec Contribs | AQ12: Annual Ret. Benefit | AR12: Tax Rates Used | AS12: A/T Annual Ret. Benefit | AT12: ="Investment Earnings at " &TEXT(AcctBalGrowth,"0.00%") -> Investment Earnings at 6.00% | AU12: EOY | AW12: Min Chk | AX12: Excluded Contribs | AY12: Tax Rates Used | AZ12: After Tax Savings | BA12: Annual Ret. Benefit | BB12: ="Investment Earnings @ "&TEXT(AcctBalGrowth,"0.00%")& " ("&TEXT(AcctBalGrowth*(1-EEBlendedTaxRate),"0.00%")& " After Tax)" -> Investment Earnings @ 6.00% (4.20% After Tax) | BC12: EOY | BF12: Exec Contribs | BG12: Annual Ret. Benefit | BH12: Tax Rates Used | BI12: A/T Annual Ret. Benefit | BJ12: ="Investment Earnings at " &TEXT(AcctBalGrowth,"0.00%") -> Investment Earnings at 6.00% | BK12: EOY | BM12: Excluded Contribs | BN12: Tax Rates Used | BO12: After Tax Savings | BP12: Annual Ret. Benefit | BQ12: ="Investment Earnings @ "&TEXT(AcctBalGrowth,"0.00%")& " ("&TEXT(AcctBalGrowth*(1-EEBlendedTaxRate),"0.00%")& " After Tax)" -> Investment Earnings @ 6.00% (4.20% After Tax) | BR12: EOY | BT12: Redirected Contribs | BU12: Income Tax Rate | BV12: Income Tax | BW12: Participant's After Tax Premium | BX12: Hospital Premium Loan | BY12: Total Premium | CA12: Cum Hospital Loan | CB12: Loan Interest Rate | CC12: Participant's Imputed Interest Cost | CD12: Participant's Tax Cost on Imputed Interest | CF12: Distribution to Repay Hospital Loan | CG12: Participant Retirement Benefit & Dth Benefit | CH12: Participant's Cash Value | CI12: Participant's Death Benefit | CK12: Age | CL12: Net After-Tax Insurance Outlay | CM12: Net Cash Value | CN12: Net Death Benefit | CP12: Annual Split Dollar Loan | CQ12: Repayment | CR12: Cash Flow | CT12: Exec's Comp | CU12: Tax Deduction | CV12: After Tax Exec's Comp | CX12: Exec's After Tax Benefit Before Redirect | CY12: Exec's After Tax Benefit Before Redirect | CZ12: Increased Benefit
A13: 1 | B13: =StartYr -> 2015 | C13: =Age -> 45 | E13: =Salary -> 0 | F13: =Bonus -> 0 | G13: =IF(CompDefinition=1,E13,E13+F13) -> 0 | I13: =IF($C13>=RetAge,0,VLOOKUP($B13,Tables!$A$10:$T$126,18,FALSE)) -> 18000 | J13: =IF($C13>=RetAge,0,IF(C13<CatchupAge,0,VLOOKUP($B13,Tables!$A$10:$T$126,20,FALSE))) -> 0 | K13: =IF($C13>=RetAge,0,(I13+J13)*MachtingERCont) -> 9000 | L13: =SUM(I13:K13) -> 27000 | M13: =IF($C13>=RetAge,0,VLOOKUP($B13,Tables!$A$10:$T$126,16,FALSE)) -> 53000 | N13: =MIN(L13:M13) -> 27000 | O13: =IF($C13>=RetAge,0,VLOOKUP($B13,Tables!$A$10:$T$126,18,FALSE)) -> 18000 | P13: =N13+O13 -> 45000 | R13: =IF($C13>=RetAge,0,IF(TargetMethod1=1,TargetContribPercent*G13,IF(TargetMethod2=1,TargetContribDollarAmt,0))) -> 0 | S13: =MIN($R13,I13) -> 0 | T13: =MIN($R13-S13,J13) -> 0 | U13: =IF($C13>=RetAge,0,(S13+T13)*MachtingERCont) -> 0 | V13: =SUM(S13:U13) -> 0 | W13: =MIN(R13-S13-T13,O13) -> 0 | X13: =V13+W13 -> 0 | Y13: =MAX(0,R13-S13-T13-W13) -> 0 | AA13: =IF(TargetMethod3=1,I13+J13,S13+T13) -> 0 | AB13: =IF($C13<RetAge,0,IF($C13<RetAge+RetDistYrs,AnnRet403b,0)) -> 0 | AC13: =CHOOSE(TaxRates,Tables!Z56,Tables!AA56) -> 0.4 | AD13: =AB13*(1-AC13) -> 0 | AE13: =(AA13+AB13)*AcctBalGrowth -> 0 | AF13: =AA13+AB13+AE13 -> 0 | AH13: =IF(TargetMethod3=1,K13,U13) -> 0 | AI13: =IF($C13<RetAge,0,IF($C13<RetAge+RetDistYrs,AnnRet403bERMatch,0)) -> 0 | AJ13: =CHOOSE(TaxRates,Tables!Z56,Tables!AA56) -> 0.4 | AK13: =AI13*(1-AJ13) -> 0 | AL13: =(AH13+AI13)*AcctBalGrowth -> 0 | AM13: =AH13+AI13+AL13 -> 0 | AO13: 0 | AP13: =IF(TargetMethod3=1,O13,W13) -> 0 | AQ13: =IF($C13<RetAge,0,IF($C13<RetAge+RetDistYrs,AnnRet457b,0)) -> 0 | AR13: =CHOOSE(TaxRates,Tables!Z56,Tables!AA56) -> 0.4 | AS13: =AQ13*(1-AR13) -> 0 | AT13: =(AP13+AQ13)*AcctBalGrowth -> 0 | AU13: =AP13+AQ13+AT13 -> 0 | AW13: 0 | AX13: =IF(TargetMethod3=1,0,Y13) -> 0 | AY13: =CHOOSE(TaxRates,Tables!Z56,Tables!AA56) -> 0.4 | AZ13: =AX13*(1-AY13) -> 0 | BA13: =IF($C13<RetAge,0,IF($C13<RetAge+RetDistYrs,AnnRetATSavingsAT,0)) -> 0 | BB13: =(AZ13+BA13)*AcctBalGrowth*(1-EEBlendedTaxRate) -> 0 | BC13: =AZ13+BA13+BB13 -> 0 | BF13: =IF($C13>=RetAge,0,Redirected457b) -> 0 | BG13: =IF($C13<RetAge,0,IF($C13<RetAge+RetDistYrs,AnnRetRedirected457b,0)) -> 0 | BH13: =CHOOSE(TaxRates,Tables!Z56,Tables!AA56) -> 0.4 | BI13: =BG13*(1-BH13) -> 0 | BJ13: =(BF13+BG13)*AcctBalGrowth -> 0 | BK13: =BF13+BG13+BJ13 -> 0 | BM13: =IF($C13>=RetAge,0,RedirectedAT) -> 0 | BN13: =CHOOSE(TaxRates,Tables!Z56,Tables!AA56) -> 0.4 | BO13: =BM13*(1-BN13) -> 0 | BP13: =IF($C13<RetAge,0,IF($C13<RetAge+RetDistYrs,AnnRetRedirectedATSavingsAT,0)) -> 0 | BQ13: =(BO13+BP13)*AcctBalGrowth*(1-EEBlendedTaxRate) -> 0 | BR13: =BO13+BP13+BQ13 -> 0 | BT13: =IF($C13>=RetAge,0,RedirectedContribs) -> 0 | BU13: =CHOOSE(TaxRates,Tables!Z56,Tables!AA56) -> 0.4 | BV13: =-BT13*BU13 -> 0 | BW13: =BT13+BV13 -> 0 | BX13: =-BV13 -> 0 | BY13: =BW13+BX13 -> 0 | CA13: =BX13 -> 0 | CB13: 0.0059 | CC13: =CB13*CA13 -> 0 | CD13: =CC13*-BU13 -> 0 | CF13: =IF(C13=RetAge,$CL$4,0) -> 0 | CG13: =IF(CL13>0,CL13-CF13,0)+IF($C13=Death_Age,CN13,0) -> 0 | CH13: =IF(C13<Death_Age,CM13-CA13,0) -> 0 | CI13: =IF(C13<Death_Age,CN13-CA13,0) -> 0 | CK13: ='Illustration Modelling'!K16 -> 45 | CL13: ='Illustration Modelling'!M16 -> 0 | CM13: ='Illustration Modelling'!O16 -> 0 | CN13: ='Illustration Modelling'!P16 -> 0 | CP13: =-BX13 -> 0 | CQ13: =CF13 -> 0 | CR13: =CP13+CQ13 -> 0 | CT13: =G13 -> 0 | CU13: =Corp_Tax_Rate -> 0 | CV13: =CT13*(1-CU13) -> 0 | CX13: =-(BI13+BP13) -> 0 | CY13: =CG13 -> 0 | CZ13: =CY13-CX13 -> 0
A14: =A13+1 -> 2 | B14: 2016 | C14: 46 | E14: =IF($C14>=RetAge,0,E13*(1+CompGrowthRate)) -> 0 | F14: =IF($C14>=RetAge,0,F13*(1+CompGrowthRate)) -> 0 | G14: 0 | I14: =IF($C14>=RetAge,0,VLOOKUP($B14,Tables!$A$10:$T$126,18,FALSE)) -> 18500 | J14: =IF($C14>=RetAge,0,IF(C14<CatchupAge,0,VLOOKUP($B14,Tables!$A$10:$T$126,20,FALSE))) -> 0 | K14: 9250 | L14: =SUM(I14:K14) -> 27750 | M14: =IF($C14>=RetAge,0,VLOOKUP($B14,Tables!$A$10:$T$126,16,FALSE)) -> 54000 | N14: =MIN(L14:M14) -> 27750 | O14: =IF($C14>=RetAge,0,VLOOKUP($B14,Tables!$A$10:$T$126,18,FALSE)) -> 18500 | P14: =N14+O14 -> 46250 | R14: 0 | S14: =MIN($R14,I14) -> 0 | T14: =MIN($R14-S14,J14) -> 0 | U14: 0 | V14: =SUM(S14:U14) -> 0 | W14: =MIN(R14-S14-T14,O14) -> 0 | X14: =V14+W14 -> 0 | Y14: =MAX(0,R14-S14-T14-W14) -> 0 | AA14: 0 | AB14: 0 | AC14: =CHOOSE(TaxRates,Tables!Z57,Tables!AA57) -> 0.4 | AD14: =AB14*(1-AC14) -> 0 | AE14: =(AA14+AB14+AF13)*AcctBalGrowth -> 0 | AF14: =AA14+AB14+AE14+AF13 -> 0 | AH14: 0 | AI14: 0 | AJ14: =CHOOSE(TaxRates,Tables!Z57,Tables!AA57) -> 0.4 | AK14: =AI14*(1-AJ14) -> 0 | AL14: =(AH14+AI14+AM13)*AcctBalGrowth -> 0 | AM14: =AH14+AI14+AL14+AM13 -> 0 | AO14: =IF(C14>=RetAge,0,IF(AP14<MIN($AP$13:AP13),MAX($AO$13:AO13)+1,0)) -> 0 | AP14: 0 | AQ14: 0 | AR14: =CHOOSE(TaxRates,Tables!Z57,Tables!AA57) -> 0.4 | AS14: =AQ14*(1-AR14) -> 0 | AT14: =(AP14+AQ14+AU13)*AcctBalGrowth -> 0 | AU14: =AP14+AQ14+AT14+AU13 -> 0 | AW14: =IF(C14>=RetAge,0,IF(AX14<MIN($AX$13:AX13),MAX($AW$13:AW13)+1,0)) -> 0 | AX14: 0 | AY14: =CHOOSE(TaxRates,Tables!Z57,Tables!AA57) -> 0.4 | AZ14: =AX14*(1-AY14) -> 0 | BA14: 0 | BB14: =(AZ14+BA14+BC13)*AcctBalGrowth*(1-EEBlendedTaxRate) -> 0 | BC14: =AZ14+BA14+BB14+BC13 -> 0 | BF14: 0 | BG14: 0 | BH14: =CHOOSE(TaxRates,Tables!Z57,Tables!AA57) -> 0.4 | BI14: =BG14*(1-BH14) -> 0 | BJ14: =(BF14+BG14+BK13)*AcctBalGrowth -> 0 | BK14: =BF14+BG14+BJ14+BK13 -> 0 | BM14: 0 | BN14: =CHOOSE(TaxRates,Tables!Z57,Tables!AA57) -> 0.4 | BO14: =BM14*(1-BN14) -> 0 | BP14: 0 | BQ14: =(BO14+BP14+BR13)*AcctBalGrowth*(1-EEBlendedTaxRate) -> 0 | BR14: =BO14+BP14+BQ14+BR13 -> 0 | BT14: 0 | BU14: =CHOOSE(TaxRates,Tables!Z57,Tables!AA57) -> 0.4 | BV14: =-BT14*BU14 -> 0 | BW14: =BT14+BV14 -> 0 | BX14: =-BV14 -> 0 | BY14: =BW14+BX14 -> 0 | CA14: =CA13+BX14-CF14 -> 0 | CB14: =MIN(0.025,CB13+0.01) -> 0.0159 | CC14: =CB14*CA14 -> 0 | CD14: =CC14*-BU14 -> 0 | CF14: 0 | CG14: 0 | CH14: 0 | CI14: 0 | CK14: ='Illustration Modelling'!K17 -> 46 | CL14: ='Illustration Modelling'!M17 -> 0 | CM14: ='Illustration Modelling'!O17 -> 0 | CN14: ='Illustration Modelling'!P17 -> 0 | CP14: =-BX14 -> 0 | CQ14: =CF14 -> 0 | CR14: =CP14+CQ14 -> 0 | CT14: =G14 -> 0 | CU14: 0 | CV14: =CT14*(1-CU14) -> 0 | CX14: =-(BI14+BP14) -> 0 | CY14: =CG14 -> 0 | CZ14: =CY14-CX14 -> 0
A15: 3 | B15: 2017 | C15: 47 | E15: 0 | F15: 0 | G15: 0 | I15: =IF($C15>=RetAge,0,VLOOKUP($B15,Tables!$A$10:$T$126,18,FALSE)) -> 19000 | J15: =IF($C15>=RetAge,0,IF(C15<CatchupAge,0,VLOOKUP($B15,Tables!$A$10:$T$126,20,FALSE))) -> 0 | K15: 9500 | L15: 28500 | M15: =IF($C15>=RetAge,0,VLOOKUP($B15,Tables!$A$10:$T$126,16,FALSE)) -> 56000 | N15: 28500 | O15: =IF($C15>=RetAge,0,VLOOKUP($B15,Tables!$A$10:$T$126,18,FALSE)) -> 19000 | P15: 47500 | R15: 0 | S15: 0 | T15: 0 | U15: 0 | V15: 0 | W15: 0 | X15: 0 | Y15: 0 | AA15: 0 | AB15: 0 | AC15: =CHOOSE(TaxRates,Tables!Z58,Tables!AA58) -> 0.4 | AD15: 0 | AE15: 0 | AF15: =AA15+AB15+AE15+AF14 -> 0 | AH15: 0 | AI15: 0 | AJ15: =CHOOSE(TaxRates,Tables!Z58,Tables!AA58) -> 0.4 | AK15: 0 | AL15: 0 | AM15: =AH15+AI15+AL15+AM14 -> 0 | AO15: =IF(C15>=RetAge,0,IF(AP15<MIN($AP$13:AP14),MAX($AO$13:AO14)+1,0)) -> 0 | AP15: 0 | AQ15: 0 | AR15: =CHOOSE(TaxRates,Tables!Z58,Tables!AA58) -> 0.4 | AS15: 0 | AT15: 0 | AU15: =AP15+AQ15+AT15+AU14 -> 0 | AW15: =IF(C15>=RetAge,0,IF(AX15<MIN($AX$13:AX14),MAX($AW$13:AW14)+1,0)) -> 0 | AX15: 0 | AY15: =CHOOSE(TaxRates,Tables!Z58,Tables!AA58) -> 0.4 | AZ15: 0 | BA15: 0 | BB15: 0 | BC15: =AZ15+BA15+BB15+BC14 -> 0 | BF15: 0 | BG15: 0 | BH15: =CHOOSE(TaxRates,Tables!Z58,Tables!AA58) -> 0.4 | BI15: 0 | BJ15: 0 | BK15: =BF15+BG15+BJ15+BK14 -> 0 | BM15: 0 | BN15: =CHOOSE(TaxRates,Tables!Z58,Tables!AA58) -> 0.4 | BO15: 0 | BP15: 0 | BQ15: 0 | BR15: =BO15+BP15+BQ15+BR14 -> 0 | BT15: 0 | BU15: =CHOOSE(TaxRates,Tables!Z58,Tables!AA58) -> 0.4 | BV15: 0 | BW15: 0 | BX15: 0 | BY15: 0 | CA15: =CA14+BX15-CF15 -> 0 | CB15: =MIN(0.025,CB14+0.01) -> 0.025 | CC15: 0 | CD15: 0 | CF15: 0 | CG15: 0 | CH15: 0 | CI15: 0 | CK15: ='Illustration Modelling'!K18 -> 47 | CL15: ='Illustration Modelling'!M18 -> 0 | CM15: ='Illustration Modelling'!O18 -> 0 | CN15: ='Illustration Modelling'!P18 -> 0 | CP15: 0 | CQ15: 0 | CR15: 0 | CT15: 0 | CU15: 0 | CV15: 0 | CX15: 0 | CY15: 0 | CZ15: 0
A16: 4 | B16: 2018 | C16: 48 | E16: 0 | F16: 0 | G16: 0 | I16: =IF($C16>=RetAge,0,VLOOKUP($B16,Tables!$A$10:$T$126,18,FALSE)) -> 19500 | J16: =IF($C16>=RetAge,0,IF(C16<CatchupAge,0,VLOOKUP($B16,Tables!$A$10:$T$126,20,FALSE))) -> 0 | K16: 9750 | L16: 29250 | M16: =IF($C16>=RetAge,0,VLOOKUP($B16,Tables!$A$10:$T$126,16,FALSE)) -> 57000 | N16: 29250 | O16: =IF($C16>=RetAge,0,VLOOKUP($B16,Tables!$A$10:$T$126,18,FALSE)) -> 19500 | P16: 48750 | R16: 0 | S16: 0 | T16: 0 | U16: 0 | V16: 0 | W16: 0 | X16: 0 | Y16: 0 | AA16: 0 | AB16: 0 | AC16: =CHOOSE(TaxRates,Tables!Z59,Tables!AA59) -> 0.4 | AD16: 0 | AE16: 0 | AF16: 0 | AH16: 0 | AI16: 0 | AJ16: =CHOOSE(TaxRates,Tables!Z59,Tables!AA59) -> 0.4 | AK16: 0 | AL16: 0 | AM16: 0 | AO16: =IF(C16>=RetAge,0,IF(AP16<MIN($AP$13:AP15),MAX($AO$13:AO15)+1,0)) -> 0 | AP16: 0 | AQ16: 0 | AR16: =CHOOSE(TaxRates,Tables!Z59,Tables!AA59) -> 0.4 | AS16: 0 | AT16: 0 | AU16: 0 | AW16: =IF(C16>=RetAge,0,IF(AX16<MIN($AX$13:AX15),MAX($AW$13:AW15)+1,0)) -> 0 | AX16: 0 | AY16: =CHOOSE(TaxRates,Tables!Z59,Tables!AA59) -> 0.4 | AZ16: 0 | BA16: 0 | BB16: 0 | BC16: 0 | BF16: 0 | BG16: 0 | BH16: =CHOOSE(TaxRates,Tables!Z59,Tables!AA59) -> 0.4 | BI16: 0 | BJ16: 0 | BK16: 0 | BM16: 0 | BN16: =CHOOSE(TaxRates,Tables!Z59,Tables!AA59) -> 0.4 | BO16: 0 | BP16: 0 | BQ16: 0 | BR16: 0 | BT16: 0 | BU16: =CHOOSE(TaxRates,Tables!Z59,Tables!AA59) -> 0.4 | BV16: 0 | BW16: 0 | BX16: 0 | BY16: 0 | CA16: 0 | CB16: 0.025 | CC16: 0 | CD16: 0 | CF16: 0 | CG16: 0 | CH16: 0 | CI16: 0 | CK16: ='Illustration Modelling'!K19 -> 48 | CL16: ='Illustration Modelling'!M19 -> 0 | CM16: ='Illustration Modelling'!O19 -> 0 | CN16: ='Illustration Modelling'!P19 -> 0 | CP16: 0 | CQ16: 0 | CR16: 0 | CT16: 0 | CU16: 0 | CV16: 0 | CX16: 0 | CY16: 0 | CZ16: 0
A17: 5 | B17: 2019 | C17: 49 | E17: 0 | F17: 0 | G17: 0 | I17: =IF($C17>=RetAge,0,VLOOKUP($B17,Tables!$A$10:$T$126,18,FALSE)) -> 20000 | J17: =IF($C17>=RetAge,0,IF(C17<CatchupAge,0,VLOOKUP($B17,Tables!$A$10:$T$126,20,FALSE))) -> 0 | K17: 10000 | L17: 30000 | M17: =IF($C17>=RetAge,0,VLOOKUP($B17,Tables!$A$10:$T$126,16,FALSE)) -> 59000 | N17: 30000 | O17: =IF($C17>=RetAge,0,VLOOKUP($B17,Tables!$A$10:$T$126,18,FALSE)) -> 20000 | P17: 50000 | R17: 0 | S17: 0 | T17: 0 | U17: 0 | V17: 0 | W17: 0 | X17: 0 | Y17: 0 | AA17: 0 | AB17: 0 | AC17: =CHOOSE(TaxRates,Tables!Z60,Tables!AA60) -> 0.4 | AD17: 0 | AE17: 0 | AF17: 0 | AH17: 0 | AI17: 0 | AJ17: =CHOOSE(TaxRates,Tables!Z60,Tables!AA60) -> 0.4 | AK17: 0 | AL17: 0 | AM17: 0 | AO17: =IF(C17>=RetAge,0,IF(AP17<MIN($AP$13:AP16),MAX($AO$13:AO16)+1,0)) -> 0 | AP17: 0 | AQ17: 0 | AR17: =CHOOSE(TaxRates,Tables!Z60,Tables!AA60) -> 0.4 | AS17: 0 | AT17: 0 | AU17: 0 | AW17: =IF(C17>=RetAge,0,IF(AX17<MIN($AX$13:AX16),MAX($AW$13:AW16)+1,0)) -> 0 | AX17: 0 | AY17: =CHOOSE(TaxRates,Tables!Z60,Tables!AA60) -> 0.4 | AZ17: 0 | BA17: 0 | BB17: 0 | BC17: 0 | BF17: 0 | BG17: 0 | BH17: =CHOOSE(TaxRates,Tables!Z60,Tables!AA60) -> 0.4 | BI17: 0 | BJ17: 0 | BK17: 0 | BM17: 0 | BN17: =CHOOSE(TaxRates,Tables!Z60,Tables!AA60) -> 0.4 | BO17: 0 | BP17: 0 | BQ17: 0 | BR17: 0 | BT17: 0 | BU17: =CHOOSE(TaxRates,Tables!Z60,Tables!AA60) -> 0.4 | BV17: 0 | BW17: 0 | BX17: 0 | BY17: 0 | CA17: 0 | CB17: 0.025 | CC17: 0 | CD17: 0 | CF17: 0 | CG17: 0 | CH17: 0 | CI17: 0 | CK17: ='Illustration Modelling'!K20 -> 49 | CL17: ='Illustration Modelling'!M20 -> 0 | CM17: ='Illustration Modelling'!O20 -> 0 | CN17: ='Illustration Modelling'!P20 -> 0 | CP17: 0 | CQ17: 0 | CR17: 0 | CT17: 0 | CU17: 0 | CV17: 0 | CX17: 0 | CY17: 0 | CZ17: 0
A18: 6 | B18: 2020 | C18: 50 | E18: 0 | F18: 0 | G18: 0 | I18: =IF($C18>=RetAge,0,VLOOKUP($B18,Tables!$A$10:$T$126,18,FALSE)) -> 20500 | J18: =IF($C18>=RetAge,0,IF(C18<CatchupAge,0,VLOOKUP($B18,Tables!$A$10:$T$126,20,FALSE))) -> 6500 | K18: 13500 | L18: 40500 | M18: =IF($C18>=RetAge,0,VLOOKUP($B18,Tables!$A$10:$T$126,16,FALSE)) -> 61000 | N18: 40500 | O18: =IF($C18>=RetAge,0,VLOOKUP($B18,Tables!$A$10:$T$126,18,FALSE)) -> 20500 | P18: 61000 | R18: 0 | S18: 0 | T18: 0 | U18: 0 | V18: 0 | W18: 0 | X18: 0 | Y18: 0 | AA18: 0 | AB18: 0 | AC18: =CHOOSE(TaxRates,Tables!Z61,Tables!AA61) -> 0.4 | AD18: 0 | AE18: 0 | AF18: 0 | AH18: 0 | AI18: 0 | AJ18: =CHOOSE(TaxRates,Tables!Z61,Tables!AA61) -> 0.4 | AK18: 0 | AL18: 0 | AM18: 0 | AO18: =IF(C18>=RetAge,0,IF(AP18<MIN($AP$13:AP17),MAX($AO$13:AO17)+1,0)) -> 0 | AP18: 0 | AQ18: 0 | AR18: =CHOOSE(TaxRates,Tables!Z61,Tables!AA61) -> 0.4 | AS18: 0 | AT18: 0 | AU18: 0 | AW18: =IF(C18>=RetAge,0,IF(AX18<MIN($AX$13:AX17),MAX($AW$13:AW17)+1,0)) -> 0 | AX18: 0 | AY18: =CHOOSE(TaxRates,Tables!Z61,Tables!AA61) -> 0.4 | AZ18: 0 | BA18: 0 | BB18: 0 | BC18: 0 | BF18: 0 | BG18: 0 | BH18: =CHOOSE(TaxRates,Tables!Z61,Tables!AA61) -> 0.4 | BI18: 0 | BJ18: 0 | BK18: 0 | BM18: 0 | BN18: =CHOOSE(TaxRates,Tables!Z61,Tables!AA61) -> 0.4 | BO18: 0 | BP18: 0 | BQ18: 0 | BR18: 0 | BT18: 0 | BU18: =CHOOSE(TaxRates,Tables!Z61,Tables!AA61) -> 0.4 | BV18: 0 | BW18: 0 | BX18: 0 | BY18: 0 | CA18: 0 | CB18: 0.025 | CC18: 0 | CD18: 0 | CF18: 0 | CG18: 0 | CH18: 0 | CI18: 0 | CK18: ='Illustration Modelling'!K21 -> 50 | CL18: ='Illustration Modelling'!M21 -> 0 | CM18: ='Illustration Modelling'!O21 -> 0 | CN18: ='Illustration Modelling'!P21 -> 0 | CP18: 0 | CQ18: 0 | CR18: 0 | CT18: 0 | CU18: 0 | CV18: 0 | CX18: 0 | CY18: 0 | CZ18: 0
A19: 7 | B19: 2021 | C19: 51 | E19: 0 | F19: 0 | G19: 0 | I19: =IF($C19>=RetAge,0,VLOOKUP($B19,Tables!$A$10:$T$126,18,FALSE)) -> 21000 | J19: =IF($C19>=RetAge,0,IF(C19<CatchupAge,0,VLOOKUP($B19,Tables!$A$10:$T$126,20,FALSE))) -> 7000 | K19: 14000 | L19: 42000 | M19: =IF($C19>=RetAge,0,VLOOKUP($B19,Tables!$A$10:$T$126,16,FALSE)) -> 63000 | N19: 42000 | O19: =IF($C19>=RetAge,0,VLOOKUP($B19,Tables!$A$10:$T$126,18,FALSE)) -> 21000 | P19: 63000 | R19: 0 | S19: 0 | T19: 0 | U19: 0 | V19: 0 | W19: 0 | X19: 0 | Y19: 0 | AA19: 0 | AB19: 0 | AC19: =CHOOSE(TaxRates,Tables!Z62,Tables!AA62) -> 0.4 | AD19: 0 | AE19: 0 | AF19: 0 | AH19: 0 | AI19: 0 | AJ19: =CHOOSE(TaxRates,Tables!Z62,Tables!AA62) -> 0.4 | AK19: 0 | AL19: 0 | AM19: 0 | AO19: =IF(C19>=RetAge,0,IF(AP19<MIN($AP$13:AP18),MAX($AO$13:AO18)+1,0)) -> 0 | AP19: 0 | AQ19: 0 | AR19: =CHOOSE(TaxRates,Tables!Z62,Tables!AA62) -> 0.4 | AS19: 0 | AT19: 0 | AU19: 0 | AW19: =IF(C19>=RetAge,0,IF(AX19<MIN($AX$13:AX18),MAX($AW$13:AW18)+1,0)) -> 0 | AX19: 0 | AY19: =CHOOSE(TaxRates,Tables!Z62,Tables!AA62) -> 0.4 | AZ19: 0 | BA19: 0 | BB19: 0 | BC19: 0 | BF19: 0 | BG19: 0 | BH19: =CHOOSE(TaxRates,Tables!Z62,Tables!AA62) -> 0.4 | BI19: 0 | BJ19: 0 | BK19: 0 | BM19: 0 | BN19: =CHOOSE(TaxRates,Tables!Z62,Tables!AA62) -> 0.4 | BO19: 0 | BP19: 0 | BQ19: 0 | BR19: 0 | BT19: 0 | BU19: =CHOOSE(TaxRates,Tables!Z62,Tables!AA62) -> 0.4 | BV19: 0 | BW19: 0 | BX19: 0 | BY19: 0 | CA19: 0 | CB19: 0.025 | CC19: 0 | CD19: 0 | CF19: 0 | CG19: 0 | CH19: 0 | CI19: 0 | CK19: ='Illustration Modelling'!K22 -> 51 | CL19: ='Illustration Modelling'!M22 -> 0 | CM19: ='Illustration Modelling'!O22 -> 0 | CN19: ='Illustration Modelling'!P22 -> 0 | CP19: 0 | CQ19: 0 | CR19: 0 | CT19: 0 | CU19: 0 | CV19: 0 | CX19: 0 | CY19: 0 | CZ19: 0
A20: 8 | B20: 2022 | C20: 52 | E20: 0 | F20: 0 | G20: 0 | I20: =IF($C20>=RetAge,0,VLOOKUP($B20,Tables!$A$10:$T$126,18,FALSE)) -> 22000 | J20: =IF($C20>=RetAge,0,IF(C20<CatchupAge,0,VLOOKUP($B20,Tables!$A$10:$T$126,20,FALSE))) -> 7000 | K20: 14500 | L20: 43500 | M20: =IF($C20>=RetAge,0,VLOOKUP($B20,Tables!$A$10:$T$126,16,FALSE)) -> 65000 | N20: 43500 | O20: =IF($C20>=RetAge,0,VLOOKUP($B20,Tables!$A$10:$T$126,18,FALSE)) -> 22000 | P20: 65500 | R20: 0 | S20: 0 | T20: 0 | U20: 0 | V20: 0 | W20: 0 | X20: 0 | Y20: 0 | AA20: 0 | AB20: 0 | AC20: =CHOOSE(TaxRates,Tables!Z63,Tables!AA63) -> 0.4 | AD20: 0 | AE20: 0 | AF20: 0 | AH20: 0 | AI20: 0 | AJ20: =CHOOSE(TaxRates,Tables!Z63,Tables!AA63) -> 0.4 | AK20: 0 | AL20: 0 | AM20: 0 | AO20: =IF(C20>=RetAge,0,IF(AP20<MIN($AP$13:AP19),MAX($AO$13:AO19)+1,0)) -> 0 | AP20: 0 | AQ20: 0 | AR20: =CHOOSE(TaxRates,Tables!Z63,Tables!AA63) -> 0.4 | AS20: 0 | AT20: 0 | AU20: 0 | AW20: =IF(C20>=RetAge,0,IF(AX20<MIN($AX$13:AX19),MAX($AW$13:AW19)+1,0)) -> 0 | AX20: 0 | AY20: =CHOOSE(TaxRates,Tables!Z63,Tables!AA63) -> 0.4 | AZ20: 0 | BA20: 0 | BB20: 0 | BC20: 0 | BF20: 0 | BG20: 0 | BH20: =CHOOSE(TaxRates,Tables!Z63,Tables!AA63) -> 0.4 | BI20: 0 | BJ20: 0 | BK20: 0 | BM20: 0 | BN20: =CHOOSE(TaxRates,Tables!Z63,Tables!AA63) -> 0.4 | BO20: 0 | BP20: 0 | BQ20: 0 | BR20: 0 | BT20: 0 | BU20: =CHOOSE(TaxRates,Tables!Z63,Tables!AA63) -> 0.4 | BV20: 0 | BW20: 0 | BX20: 0 | BY20: 0 | CA20: 0 | CB20: 0.025 | CC20: 0 | CD20: 0 | CF20: 0 | CG20: 0 | CH20: 0 | CI20: 0 | CK20: ='Illustration Modelling'!K23 -> 52 | CL20: ='Illustration Modelling'!M23 -> 0 | CM20: ='Illustration Modelling'!O23 -> 0 | CN20: ='Illustration Modelling'!P23 -> 0 | CP20: 0 | CQ20: 0 | CR20: 0 | CT20: 0 | CU20: 0 | CV20: 0 | CX20: 0 | CY20: 0 | CZ20: 0
A21: 9 | B21: 2023 | C21: 53 | E21: 0 | F21: 0 | G21: 0 | I21: =IF($C21>=RetAge,0,VLOOKUP($B21,Tables!$A$10:$T$126,18,FALSE)) -> 22500 | J21: =IF($C21>=RetAge,0,IF(C21<CatchupAge,0,VLOOKUP($B21,Tables!$A$10:$T$126,20,FALSE))) -> 7500 | K21: 15000 | L21: 45000 | M21: =IF($C21>=RetAge,0,VLOOKUP($B21,Tables!$A$10:$T$126,16,FALSE)) -> 67000 | N21: 45000 | O21: =IF($C21>=RetAge,0,VLOOKUP($B21,Tables!$A$10:$T$126,18,FALSE)) -> 22500 | P21: 67500 | R21: 0 | S21: 0 | T21: 0 | U21: 0 | V21: 0 | W21: 0 | X21: 0 | Y21: 0 | AA21: 0 | AB21: 0 | AC21: =CHOOSE(TaxRates,Tables!Z64,Tables!AA64) -> 0.4 | AD21: 0 | AE21: 0 | AF21: 0 | AH21: 0 | AI21: 0 | AJ21: =CHOOSE(TaxRates,Tables!Z64,Tables!AA64) -> 0.4 | AK21: 0 | AL21: 0 | AM21: 0 | AO21: =IF(C21>=RetAge,0,IF(AP21<MIN($AP$13:AP20),MAX($AO$13:AO20)+1,0)) -> 0 | AP21: 0 | AQ21: 0 | AR21: =CHOOSE(TaxRates,Tables!Z64,Tables!AA64) -> 0.4 | AS21: 0 | AT21: 0 | AU21: 0 | AW21: =IF(C21>=RetAge,0,IF(AX21<MIN($AX$13:AX20),MAX($AW$13:AW20)+1,0)) -> 0 | AX21: 0 | AY21: =CHOOSE(TaxRates,Tables!Z64,Tables!AA64) -> 0.4 | AZ21: 0 | BA21: 0 | BB21: 0 | BC21: 0 | BF21: 0 | BG21: 0 | BH21: =CHOOSE(TaxRates,Tables!Z64,Tables!AA64) -> 0.4 | BI21: 0 | BJ21: 0 | BK21: 0 | BM21: 0 | BN21: =CHOOSE(TaxRates,Tables!Z64,Tables!AA64) -> 0.4 | BO21: 0 | BP21: 0 | BQ21: 0 | BR21: 0 | BT21: 0 | BU21: =CHOOSE(TaxRates,Tables!Z64,Tables!AA64) -> 0.4 | BV21: 0 | BW21: 0 | BX21: 0 | BY21: 0 | CA21: 0 | CB21: 0.025 | CC21: 0 | CD21: 0 | CF21: 0 | CG21: 0 | CH21: 0 | CI21: 0 | CK21: ='Illustration Modelling'!K24 -> 53 | CL21: ='Illustration Modelling'!M24 -> 0 | CM21: ='Illustration Modelling'!O24 -> 0 | CN21: ='Illustration Modelling'!P24 -> 0 | CP21: 0 | CQ21: 0 | CR21: 0 | CT21: 0 | CU21: 0 | CV21: 0 | CX21: 0 | CY21: 0 | CZ21: 0
A22: 10 | B22: 2024 | C22: 54 | E22: 0 | F22: 0 | G22: 0 | I22: =IF($C22>=RetAge,0,VLOOKUP($B22,Tables!$A$10:$T$126,18,FALSE)) -> 23000 | J22: =IF($C22>=RetAge,0,IF(C22<CatchupAge,0,VLOOKUP($B22,Tables!$A$10:$T$126,20,FALSE))) -> 7500 | K22: 15250 | L22: 45750 | M22: =IF($C22>=RetAge,0,VLOOKUP($B22,Tables!$A$10:$T$126,16,FALSE)) -> 69000 | N22: 45750 | O22: =IF($C22>=RetAge,0,VLOOKUP($B22,Tables!$A$10:$T$126,18,FALSE)) -> 23000 | P22: 68750 | R22: 0 | S22: 0 | T22: 0 | U22: 0 | V22: 0 | W22: 0 | X22: 0 | Y22: 0 | AA22: 0 | AB22: 0 | AC22: =CHOOSE(TaxRates,Tables!Z65,Tables!AA65) -> 0.4 | AD22: 0 | AE22: 0 | AF22: 0 | AH22: 0 | AI22: 0 | AJ22: =CHOOSE(TaxRates,Tables!Z65,Tables!AA65) -> 0.4 | AK22: 0 | AL22: 0 | AM22: 0 | AO22: =IF(C22>=RetAge,0,IF(AP22<MIN($AP$13:AP21),MAX($AO$13:AO21)+1,0)) -> 0 | AP22: 0 | AQ22: 0 | AR22: =CHOOSE(TaxRates,Tables!Z65,Tables!AA65) -> 0.4 | AS22: 0 | AT22: 0 | AU22: 0 | AW22: =IF(C22>=RetAge,0,IF(AX22<MIN($AX$13:AX21),MAX($AW$13:AW21)+1,0)) -> 0 | AX22: 0 | AY22: =CHOOSE(TaxRates,Tables!Z65,Tables!AA65) -> 0.4 | AZ22: 0 | BA22: 0 | BB22: 0 | BC22: 0 | BF22: 0 | BG22: 0 | BH22: =CHOOSE(TaxRates,Tables!Z65,Tables!AA65) -> 0.4 | BI22: 0 | BJ22: 0 | BK22: 0 | BM22: 0 | BN22: =CHOOSE(TaxRates,Tables!Z65,Tables!AA65) -> 0.4 | BO22: 0 | BP22: 0 | BQ22: 0 | BR22: 0 | BT22: 0 | BU22: =CHOOSE(TaxRates,Tables!Z65,Tables!AA65) -> 0.4 | BV22: 0 | BW22: 0 | BX22: 0 | BY22: 0 | CA22: 0 | CB22: 0.025 | CC22: 0 | CD22: 0 | CF22: 0 | CG22: 0 | CH22: 0 | CI22: 0 | CK22: ='Illustration Modelling'!K25 -> 54 | CL22: ='Illustration Modelling'!M25 -> 0 | CM22: ='Illustration Modelling'!O25 -> 0 | CN22: ='Illustration Modelling'!P25 -> 0 | CP22: 0 | CQ22: 0 | CR22: 0 | CT22: 0 | CU22: 0 | CV22: 0 | CX22: 0 | CY22: 0 | CZ22: 0
A23: 11 | B23: 2025 | C23: 55 | E23: 0 | F23: 0 | G23: 0 | I23: =IF($C23>=RetAge,0,VLOOKUP($B23,Tables!$A$10:$T$126,18,FALSE)) -> 24000 | J23: =IF($C23>=RetAge,0,IF(C23<CatchupAge,0,VLOOKUP($B23,Tables!$A$10:$T$126,20,FALSE))) -> 8000 | K23: 16000 | L23: 48000 | M23: =IF($C23>=RetAge,0,VLOOKUP($B23,Tables!$A$10:$T$126,16,FALSE)) -> 71000 | N23: 48000 | O23: =IF($C23>=RetAge,0,VLOOKUP($B23,Tables!$A$10:$T$126,18,FALSE)) -> 24000 | P23: 72000 | R23: 0 | S23: 0 | T23: 0 | U23: 0 | V23: 0 | W23: 0 | X23: 0 | Y23: 0 | AA23: 0 | AB23: 0 | AC23: =CHOOSE(TaxRates,Tables!Z66,Tables!AA66) -> 0.4 | AD23: 0 | AE23: 0 | AF23: 0 | AH23: 0 | AI23: 0 | AJ23: =CHOOSE(TaxRates,Tables!Z66,Tables!AA66) -> 0.4 | AK23: 0 | AL23: 0 | AM23: 0 | AO23: =IF(C23>=RetAge,0,IF(AP23<MIN($AP$13:AP22),MAX($AO$13:AO22)+1,0)) -> 0 | AP23: 0 | AQ23: 0 | AR23: =CHOOSE(TaxRates,Tables!Z66,Tables!AA66) -> 0.4 | AS23: 0 | AT23: 0 | AU23: 0 | AW23: =IF(C23>=RetAge,0,IF(AX23<MIN($AX$13:AX22),MAX($AW$13:AW22)+1,0)) -> 0 | AX23: 0 | AY23: =CHOOSE(TaxRates,Tables!Z66,Tables!AA66) -> 0.4 | AZ23: 0 | BA23: 0 | BB23: 0 | BC23: 0 | BF23: 0 | BG23: 0 | BH23: =CHOOSE(TaxRates,Tables!Z66,Tables!AA66) -> 0.4 | BI23: 0 | BJ23: 0 | BK23: 0 | BM23: 0 | BN23: =CHOOSE(TaxRates,Tables!Z66,Tables!AA66) -> 0.4 | BO23: 0 | BP23: 0 | BQ23: 0 | BR23: 0 | BT23: 0 | BU23: =CHOOSE(TaxRates,Tables!Z66,Tables!AA66) -> 0.4 | BV23: 0 | BW23: 0 | BX23: 0 | BY23: 0 | CA23: 0 | CB23: 0.025 | CC23: 0 | CD23: 0 | CF23: 0 | CG23: 0 | CH23: 0 | CI23: 0 | CK23: ='Illustration Modelling'!K26 -> 55 | CL23: ='Illustration Modelling'!M26 -> 0 | CM23: ='Illustration Modelling'!O26 -> 0 | CN23: ='Illustration Modelling'!P26 -> 0 | CP23: 0 | CQ23: 0 | CR23: 0 | CT23: 0 | CU23: 0 | CV23: 0 | CX23: 0 | CY23: 0 | CZ23: 0
A24: 12 | B24: 2026 | C24: 56 | E24: 0 | F24: 0 | G24: 0 | I24: =IF($C24>=RetAge,0,VLOOKUP($B24,Tables!$A$10:$T$126,18,FALSE)) -> 24500 | J24: =IF($C24>=RetAge,0,IF(C24<CatchupAge,0,VLOOKUP($B24,Tables!$A$10:$T$126,20,FALSE))) -> 8000 | K24: 16250 | L24: 48750 | M24: =IF($C24>=RetAge,0,VLOOKUP($B24,Tables!$A$10:$T$126,16,FALSE)) -> 73000 | N24: 48750 | O24: =IF($C24>=RetAge,0,VLOOKUP($B24,Tables!$A$10:$T$126,18,FALSE)) -> 24500 | P24: 73250 | R24: 0 | S24: 0 | T24: 0 | U24: 0 | V24: 0 | W24: 0 | X24: 0 | Y24: 0 | AA24: 0 | AB24: 0 | AC24: =CHOOSE(TaxRates,Tables!Z67,Tables!AA67) -> 0.4 | AD24: 0 | AE24: 0 | AF24: 0 | AH24: 0 | AI24: 0 | AJ24: =CHOOSE(TaxRates,Tables!Z67,Tables!AA67) -> 0.4 | AK24: 0 | AL24: 0 | AM24: 0 | AO24: =IF(C24>=RetAge,0,IF(AP24<MIN($AP$13:AP23),MAX($AO$13:AO23)+1,0)) -> 0 | AP24: 0 | AQ24: 0 | AR24: =CHOOSE(TaxRates,Tables!Z67,Tables!AA67) -> 0.4 | AS24: 0 | AT24: 0 | AU24: 0 | AW24: =IF(C24>=RetAge,0,IF(AX24<MIN($AX$13:AX23),MAX($AW$13:AW23)+1,0)) -> 0 | AX24: 0 | AY24: =CHOOSE(TaxRates,Tables!Z67,Tables!AA67) -> 0.4 | AZ24: 0 | BA24: 0 | BB24: 0 | BC24: 0 | BF24: 0 | BG24: 0 | BH24: =CHOOSE(TaxRates,Tables!Z67,Tables!AA67) -> 0.4 | BI24: 0 | BJ24: 0 | BK24: 0 | BM24: 0 | BN24: =CHOOSE(TaxRates,Tables!Z67,Tables!AA67) -> 0.4 | BO24: 0 | BP24: 0 | BQ24: 0 | BR24: 0 | BT24: 0 | BU24: =CHOOSE(TaxRates,Tables!Z67,Tables!AA67) -> 0.4 | BV24: 0 | BW24: 0 | BX24: 0 | BY24: 0 | CA24: 0 | CB24: 0.025 | CC24: 0 | CD24: 0 | CF24: 0 | CG24: 0 | CH24: 0 | CI24: 0 | CK24: ='Illustration Modelling'!K27 -> 56 | CL24: ='Illustration Modelling'!M27 -> 0 | CM24: ='Illustration Modelling'!O27 -> 0 | CN24: ='Illustration Modelling'!P27 -> 0 | CP24: 0 | CQ24: 0 | CR24: 0 | CT24: 0 | CU24: 0 | CV24: 0 | CX24: 0 | CY24: 0 | CZ24: 0
A25: 13 | B25: 2027 | C25: 57 | E25: 0 | F25: 0 | G25: 0 | I25: =IF($C25>=RetAge,0,VLOOKUP($B25,Tables!$A$10:$T$126,18,FALSE)) -> 25500 | J25: =IF($C25>=RetAge,0,IF(C25<CatchupAge,0,VLOOKUP($B25,Tables!$A$10:$T$126,20,FALSE))) -> 8500 | K25: 17000 | L25: 51000 | M25: =IF($C25>=RetAge,0,VLOOKUP($B25,Tables!$A$10:$T$126,16,FALSE)) -> 75000 | N25: 51000 | O25: =IF($C25>=RetAge,0,VLOOKUP($B25,Tables!$A$10:$T$126,18,FALSE)) -> 25500 | P25: 76500 | R25: 0 | S25: 0 | T25: 0 | U25: 0 | V25: 0 | W25: 0 | X25: 0 | Y25: 0 | AA25: 0 | AB25: 0 | AC25: =CHOOSE(TaxRates,Tables!Z68,Tables!AA68) -> 0.4 | AD25: 0 | AE25: 0 | AF25: 0 | AH25: 0 | AI25: 0 | AJ25: =CHOOSE(TaxRates,Tables!Z68,Tables!AA68) -> 0.4 | AK25: 0 | AL25: 0 | AM25: 0 | AO25: =IF(C25>=RetAge,0,IF(AP25<MIN($AP$13:AP24),MAX($AO$13:AO24)+1,0)) -> 0 | AP25: 0 | AQ25: 0 | AR25: =CHOOSE(TaxRates,Tables!Z68,Tables!AA68) -> 0.4 | AS25: 0 | AT25: 0 | AU25: 0 | AW25: =IF(C25>=RetAge,0,IF(AX25<MIN($AX$13:AX24),MAX($AW$13:AW24)+1,0)) -> 0 | AX25: 0 | AY25: =CHOOSE(TaxRates,Tables!Z68,Tables!AA68) -> 0.4 | AZ25: 0 | BA25: 0 | BB25: 0 | BC25: 0 | BF25: 0 | BG25: 0 | BH25: =CHOOSE(TaxRates,Tables!Z68,Tables!AA68) -> 0.4 | BI25: 0 | BJ25: 0 | BK25: 0 | BM25: 0 | BN25: =CHOOSE(TaxRates,Tables!Z68,Tables!AA68) -> 0.4 | BO25: 0 | BP25: 0 | BQ25: 0 | BR25: 0 | BT25: 0 | BU25: =CHOOSE(TaxRates,Tables!Z68,Tables!AA68) -> 0.4 | BV25: 0 | BW25: 0 | BX25: 0 | BY25: 0 | CA25: 0 | CB25: 0.025 | CC25: 0 | CD25: 0 | CF25: 0 | CG25: 0 | CH25: 0 | CI25: 0 | CK25: ='Illustration Modelling'!K28 -> 57 | CL25: ='Illustration Modelling'!M28 -> 0 | CM25: ='Illustration Modelling'!O28 -> 0 | CN25: ='Illustration Modelling'!P28 -> 0 | CP25: 0 | CQ25: 0 | CR25: 0 | CT25: 0 | CU25: 0 | CV25: 0 | CX25: 0 | CY25: 0 | CZ25: 0
A26: 14 | B26: 2028 | C26: 58 | E26: 0 | F26: 0 | G26: 0 | I26: =IF($C26>=RetAge,0,VLOOKUP($B26,Tables!$A$10:$T$126,18,FALSE)) -> 26000 | J26: =IF($C26>=RetAge,0,IF(C26<CatchupAge,0,VLOOKUP($B26,Tables!$A$10:$T$126,20,FALSE))) -> 8500 | K26: 17250 | L26: 51750 | M26: =IF($C26>=RetAge,0,VLOOKUP($B26,Tables!$A$10:$T$126,16,FALSE)) -> 77000 | N26: 51750 | O26: =IF($C26>=RetAge,0,VLOOKUP($B26,Tables!$A$10:$T$126,18,FALSE)) -> 26000 | P26: 77750 | R26: 0 | S26: 0 | T26: 0 | U26: 0 | V26: 0 | W26: 0 | X26: 0 | Y26: 0 | AA26: 0 | AB26: 0 | AC26: =CHOOSE(TaxRates,Tables!Z69,Tables!AA69) -> 0.4 | AD26: 0 | AE26: 0 | AF26: 0 | AH26: 0 | AI26: 0 | AJ26: =CHOOSE(TaxRates,Tables!Z69,Tables!AA69) -> 0.4 | AK26: 0 | AL26: 0 | AM26: 0 | AO26: =IF(C26>=RetAge,0,IF(AP26<MIN($AP$13:AP25),MAX($AO$13:AO25)+1,0)) -> 0 | AP26: 0 | AQ26: 0 | AR26: =CHOOSE(TaxRates,Tables!Z69,Tables!AA69) -> 0.4 | AS26: 0 | AT26: 0 | AU26: 0 | AW26: =IF(C26>=RetAge,0,IF(AX26<MIN($AX$13:AX25),MAX($AW$13:AW25)+1,0)) -> 0 | AX26: 0 | AY26: =CHOOSE(TaxRates,Tables!Z69,Tables!AA69) -> 0.4 | AZ26: 0 | BA26: 0 | BB26: 0 | BC26: 0 | BF26: 0 | BG26: 0 | BH26: =CHOOSE(TaxRates,Tables!Z69,Tables!AA69) -> 0.4 | BI26: 0 | BJ26: 0 | BK26: 0 | BM26: 0 | BN26: =CHOOSE(TaxRates,Tables!Z69,Tables!AA69) -> 0.4 | BO26: 0 | BP26: 0 | BQ26: 0 | BR26: 0 | BT26: 0 | BU26: =CHOOSE(TaxRates,Tables!Z69,Tables!AA69) -> 0.4 | BV26: 0 | BW26: 0 | BX26: 0 | BY26: 0 | CA26: 0 | CB26: 0.025 | CC26: 0 | CD26: 0 | CF26: 0 | CG26: 0 | CH26: 0 | CI26: 0 | CK26: ='Illustration Modelling'!K29 -> 58 | CL26: ='Illustration Modelling'!M29 -> 0 | CM26: ='Illustration Modelling'!O29 -> 0 | CN26: ='Illustration Modelling'!P29 -> 0 | CP26: 0 | CQ26: 0 | CR26: 0 | CT26: 0 | CU26: 0 | CV26: 0 | CX26: 0 | CY26: 0 | CZ26: 0
A27: 15 | B27: 2029 | C27: 59 | E27: 0 | F27: 0 | G27: 0 | I27: =IF($C27>=RetAge,0,VLOOKUP($B27,Tables!$A$10:$T$126,18,FALSE)) -> 27000 | J27: =IF($C27>=RetAge,0,IF(C27<CatchupAge,0,VLOOKUP($B27,Tables!$A$10:$T$126,20,FALSE))) -> 9000 | K27: 18000 | L27: 54000 | M27: =IF($C27>=RetAge,0,VLOOKUP($B27,Tables!$A$10:$T$126,16,FALSE)) -> 80000 | N27: 54000 | O27: =IF($C27>=RetAge,0,VLOOKUP($B27,Tables!$A$10:$T$126,18,FALSE)) -> 27000 | P27: 81000 | R27: 0 | S27: 0 | T27: 0 | U27: 0 | V27: 0 | W27: 0 | X27: 0 | Y27: 0 | AA27: 0 | AB27: 0 | AC27: =CHOOSE(TaxRates,Tables!Z70,Tables!AA70) -> 0.4 | AD27: 0 | AE27: 0 | AF27: 0 | AH27: 0 | AI27: 0 | AJ27: =CHOOSE(TaxRates,Tables!Z70,Tables!AA70) -> 0.4 | AK27: 0 | AL27: 0 | AM27: 0 | AO27: =IF(C27>=RetAge,0,IF(AP27<MIN($AP$13:AP26),MAX($AO$13:AO26)+1,0)) -> 0 | AP27: 0 | AQ27: 0 | AR27: =CHOOSE(TaxRates,Tables!Z70,Tables!AA70) -> 0.4 | AS27: 0 | AT27: 0 | AU27: 0 | AW27: =IF(C27>=RetAge,0,IF(AX27<MIN($AX$13:AX26),MAX($AW$13:AW26)+1,0)) -> 0 | AX27: 0 | AY27: =CHOOSE(TaxRates,Tables!Z70,Tables!AA70) -> 0.4 | AZ27: 0 | BA27: 0 | BB27: 0 | BC27: 0 | BF27: 0 | BG27: 0 | BH27: =CHOOSE(TaxRates,Tables!Z70,Tables!AA70) -> 0.4 | BI27: 0 | BJ27: 0 | BK27: 0 | BM27: 0 | BN27: =CHOOSE(TaxRates,Tables!Z70,Tables!AA70) -> 0.4 | BO27: 0 | BP27: 0 | BQ27: 0 | BR27: 0 | BT27: 0 | BU27: =CHOOSE(TaxRates,Tables!Z70,Tables!AA70) -> 0.4 | BV27: 0 | BW27: 0 | BX27: 0 | BY27: 0 | CA27: 0 | CB27: 0.025 | CC27: 0 | CD27: 0 | CF27: 0 | CG27: 0 | CH27: 0 | CI27: 0 | CK27: ='Illustration Modelling'!K30 -> 59 | CL27: ='Illustration Modelling'!M30 -> 0 | CM27: ='Illustration Modelling'!O30 -> 0 | CN27: ='Illustration Modelling'!P30 -> 0 | CP27: 0 | CQ27: 0 | CR27: 0 | CT27: 0 | CU27: 0 | CV27: 0 | CX27: 0 | CY27: 0 | CZ27: 0
A28: 16 | B28: 2030 | C28: 60 | E28: 0 | F28: 0 | G28: 0 | I28: =IF($C28>=RetAge,0,VLOOKUP($B28,Tables!$A$10:$T$126,18,FALSE)) -> 28000 | J28: =IF($C28>=RetAge,0,IF(C28<CatchupAge,0,VLOOKUP($B28,Tables!$A$10:$T$126,20,FALSE))) -> 9000 | K28: 18500 | L28: 55500 | M28: =IF($C28>=RetAge,0,VLOOKUP($B28,Tables!$A$10:$T$126,16,FALSE)) -> 82000 | N28: 55500 | O28: =IF($C28>=RetAge,0,VLOOKUP($B28,Tables!$A$10:$T$126,18,FALSE)) -> 28000 | P28: 83500 | R28: 0 | S28: 0 | T28: 0 | U28: 0 | V28: 0 | W28: 0 | X28: 0 | Y28: 0 | AA28: 0 | AB28: 0 | AC28: =CHOOSE(TaxRates,Tables!Z71,Tables!AA71) -> 0.4 | AD28: 0 | AE28: 0 | AF28: 0 | AH28: 0 | AI28: 0 | AJ28: =CHOOSE(TaxRates,Tables!Z71,Tables!AA71) -> 0.4 | AK28: 0 | AL28: 0 | AM28: 0 | AO28: =IF(C28>=RetAge,0,IF(AP28<MIN($AP$13:AP27),MAX($AO$13:AO27)+1,0)) -> 0 | AP28: 0 | AQ28: 0 | AR28: =CHOOSE(TaxRates,Tables!Z71,Tables!AA71) -> 0.4 | AS28: 0 | AT28: 0 | AU28: 0 | AW28: =IF(C28>=RetAge,0,IF(AX28<MIN($AX$13:AX27),MAX($AW$13:AW27)+1,0)) -> 0 | AX28: 0 | AY28: =CHOOSE(TaxRates,Tables!Z71,Tables!AA71) -> 0.4 | AZ28: 0 | BA28: 0 | BB28: 0 | BC28: 0 | BF28: 0 | BG28: 0 | BH28: =CHOOSE(TaxRates,Tables!Z71,Tables!AA71) -> 0.4 | BI28: 0 | BJ28: 0 | BK28: 0 | BM28: 0 | BN28: =CHOOSE(TaxRates,Tables!Z71,Tables!AA71) -> 0.4 | BO28: 0 | BP28: 0 | BQ28: 0 | BR28: 0 | BT28: 0 | BU28: =CHOOSE(TaxRates,Tables!Z71,Tables!AA71) -> 0.4 | BV28: 0 | BW28: 0 | BX28: 0 | BY28: 0 | CA28: 0 | CB28: 0.025 | CC28: 0 | CD28: 0 | CF28: 0 | CG28: 0 | CH28: 0 | CI28: 0 | CK28: ='Illustration Modelling'!K31 -> 60 | CL28: ='Illustration Modelling'!M31 -> 0 | CM28: ='Illustration Modelling'!O31 -> 0 | CN28: ='Illustration Modelling'!P31 -> 0 | CP28: 0 | CQ28: 0 | CR28: 0 | CT28: 0 | CU28: 0 | CV28: 0 | CX28: 0 | CY28: 0 | CZ28: 0
A29: 17 | B29: 2031 | C29: 61 | E29: 0 | F29: 0 | G29: 0 | I29: =IF($C29>=RetAge,0,VLOOKUP($B29,Tables!$A$10:$T$126,18,FALSE)) -> 28500 | J29: =IF($C29>=RetAge,0,IF(C29<CatchupAge,0,VLOOKUP($B29,Tables!$A$10:$T$126,20,FALSE))) -> 9500 | K29: 19000 | L29: 57000 | M29: =IF($C29>=RetAge,0,VLOOKUP($B29,Tables!$A$10:$T$126,16,FALSE)) -> 85000 | N29: 57000 | O29: =IF($C29>=RetAge,0,VLOOKUP($B29,Tables!$A$10:$T$126,18,FALSE)) -> 28500 | P29: 85500 | R29: 0 | S29: 0 | T29: 0 | U29: 0 | V29: 0 | W29: 0 | X29: 0 | Y29: 0 | AA29: 0 | AB29: 0 | AC29: =CHOOSE(TaxRates,Tables!Z72,Tables!AA72) -> 0.4 | AD29: 0 | AE29: 0 | AF29: 0 | AH29: 0 | AI29: 0 | AJ29: =CHOOSE(TaxRates,Tables!Z72,Tables!AA72) -> 0.4 | AK29: 0 | AL29: 0 | AM29: 0 | AO29: =IF(C29>=RetAge,0,IF(AP29<MIN($AP$13:AP28),MAX($AO$13:AO28)+1,0)) -> 0 | AP29: 0 | AQ29: 0 | AR29: =CHOOSE(TaxRates,Tables!Z72,Tables!AA72) -> 0.4 | AS29: 0 | AT29: 0 | AU29: 0 | AW29: =IF(C29>=RetAge,0,IF(AX29<MIN($AX$13:AX28),MAX($AW$13:AW28)+1,0)) -> 0 | AX29: 0 | AY29: =CHOOSE(TaxRates,Tables!Z72,Tables!AA72) -> 0.4 | AZ29: 0 | BA29: 0 | BB29: 0 | BC29: 0 | BF29: 0 | BG29: 0 | BH29: =CHOOSE(TaxRates,Tables!Z72,Tables!AA72) -> 0.4 | BI29: 0 | BJ29: 0 | BK29: 0 | BM29: 0 | BN29: =CHOOSE(TaxRates,Tables!Z72,Tables!AA72) -> 0.4 | BO29: 0 | BP29: 0 | BQ29: 0 | BR29: 0 | BT29: 0 | BU29: =CHOOSE(TaxRates,Tables!Z72,Tables!AA72) -> 0.4 | BV29: 0 | BW29: 0 | BX29: 0 | BY29: 0 | CA29: 0 | CB29: 0.025 | CC29: 0 | CD29: 0 | CF29: 0 | CG29: 0 | CH29: 0 | CI29: 0 | CK29: ='Illustration Modelling'!K32 -> 61 | CL29: ='Illustration Modelling'!M32 -> 0 | CM29: ='Illustration Modelling'!O32 -> 0 | CN29: ='Illustration Modelling'!P32 -> 0 | CP29: 0 | CQ29: 0 | CR29: 0 | CT29: 0 | CU29: 0 | CV29: 0 | CX29: 0 | CY29: 0 | CZ29: 0
A30: =A29+1 -> 18 | B30: 2032 | C30: 62 | E30: 0 | F30: 0 | G30: 0 | I30: =IF($C30>=RetAge,0,VLOOKUP($B30,Tables!$A$10:$T$126,18,FALSE)) -> 29500 | J30: =IF($C30>=RetAge,0,IF(C30<CatchupAge,0,VLOOKUP($B30,Tables!$A$10:$T$126,20,FALSE))) -> 9500 | K30: 19500 | L30: 58500 | M30: =IF($C30>=RetAge,0,VLOOKUP($B30,Tables!$A$10:$T$126,16,FALSE)) -> 87000 | N30: 58500 | O30: =IF($C30>=RetAge,0,VLOOKUP($B30,Tables!$A$10:$T$126,18,FALSE)) -> 29500 | P30: 88000 | R30: 0 | S30: 0 | T30: 0 | U30: 0 | V30: 0 | W30: 0 | X30: 0 | Y30: 0 | AA30: 0 | AB30: 0 | AC30: =CHOOSE(TaxRates,Tables!Z73,Tables!AA73) -> 0.4 | AD30: 0 | AE30: 0 | AF30: 0 | AH30: 0 | AI30: 0 | AJ30: =CHOOSE(TaxRates,Tables!Z73,Tables!AA73) -> 0.4 | AK30: 0 | AL30: 0 | AM30: 0 | AO30: =IF(C30>=RetAge,0,IF(AP30<MIN($AP$13:AP29),MAX($AO$13:AO29)+1,0)) -> 0 | AP30: 0 | AQ30: 0 | AR30: =CHOOSE(TaxRates,Tables!Z73,Tables!AA73) -> 0.4 | AS30: 0 | AT30: 0 | AU30: 0 | AW30: =IF(C30>=RetAge,0,IF(AX30<MIN($AX$13:AX29),MAX($AW$13:AW29)+1,0)) -> 0 | AX30: 0 | AY30: =CHOOSE(TaxRates,Tables!Z73,Tables!AA73) -> 0.4 | AZ30: 0 | BA30: 0 | BB30: 0 | BC30: 0 | BF30: 0 | BG30: 0 | BH30: =CHOOSE(TaxRates,Tables!Z73,Tables!AA73) -> 0.4 | BI30: 0 | BJ30: 0 | BK30: 0 | BM30: 0 | BN30: =CHOOSE(TaxRates,Tables!Z73,Tables!AA73) -> 0.4 | BO30: 0 | BP30: 0 | BQ30: 0 | BR30: 0 | BT30: 0 | BU30: =CHOOSE(TaxRates,Tables!Z73,Tables!AA73) -> 0.4 | BV30: 0 | BW30: 0 | BX30: 0 | BY30: 0 | CA30: 0 | CB30: 0.025 | CC30: 0 | CD30: 0 | CF30: 0 | CG30: 0 | CH30: 0 | CI30: 0 | CK30: ='Illustration Modelling'!K33 -> 62 | CL30: ='Illustration Modelling'!M33 -> 0 | CM30: ='Illustration Modelling'!O33 -> 0 | CN30: ='Illustration Modelling'!P33 -> 0 | CP30: 0 | CQ30: 0 | CR30: 0 | CT30: 0 | CU30: 0 | CV30: 0 | CX30: 0 | CY30: 0 | CZ30: 0
A31: 19 | B31: 2033 | C31: 63 | E31: 0 | F31: 0 | G31: 0 | I31: =IF($C31>=RetAge,0,VLOOKUP($B31,Tables!$A$10:$T$126,18,FALSE)) -> 30500 | J31: =IF($C31>=RetAge,0,IF(C31<CatchupAge,0,VLOOKUP($B31,Tables!$A$10:$T$126,20,FALSE))) -> 10000 | K31: 20250 | L31: 60750 | M31: =IF($C31>=RetAge,0,VLOOKUP($B31,Tables!$A$10:$T$126,16,FALSE)) -> 90000 | N31: 60750 | O31: =IF($C31>=RetAge,0,VLOOKUP($B31,Tables!$A$10:$T$126,18,FALSE)) -> 30500 | P31: 91250 | R31: 0 | S31: 0 | T31: 0 | U31: 0 | V31: 0 | W31: 0 | X31: 0 | Y31: 0 | AA31: 0 | AB31: 0 | AC31: =CHOOSE(TaxRates,Tables!Z74,Tables!AA74) -> 0.4 | AD31: 0 | AE31: 0 | AF31: 0 | AH31: 0 | AI31: 0 | AJ31: =CHOOSE(TaxRates,Tables!Z74,Tables!AA74) -> 0.4 | AK31: 0 | AL31: 0 | AM31: 0 | AO31: =IF(C31>=RetAge,0,IF(AP31<MIN($AP$13:AP30),MAX($AO$13:AO30)+1,0)) -> 0 | AP31: 0 | AQ31: 0 | AR31: =CHOOSE(TaxRates,Tables!Z74,Tables!AA74) -> 0.4 | AS31: 0 | AT31: 0 | AU31: 0 | AW31: =IF(C31>=RetAge,0,IF(AX31<MIN($AX$13:AX30),MAX($AW$13:AW30)+1,0)) -> 0 | AX31: 0 | AY31: =CHOOSE(TaxRates,Tables!Z74,Tables!AA74) -> 0.4 | AZ31: 0 | BA31: 0 | BB31: 0 | BC31: 0 | BF31: 0 | BG31: 0 | BH31: =CHOOSE(TaxRates,Tables!Z74,Tables!AA74) -> 0.4 | BI31: 0 | BJ31: 0 | BK31: 0 | BM31: 0 | BN31: =CHOOSE(TaxRates,Tables!Z74,Tables!AA74) -> 0.4 | BO31: 0 | BP31: 0 | BQ31: 0 | BR31: 0 | BT31: 0 | BU31: =CHOOSE(TaxRates,Tables!Z74,Tables!AA74) -> 0.4 | BV31: 0 | BW31: 0 | BX31: 0 | BY31: 0 | CA31: 0 | CB31: 0.025 | CC31: 0 | CD31: 0 | CF31: 0 | CG31: 0 | CH31: 0 | CI31: 0 | CK31: ='Illustration Modelling'!K34 -> 63 | CL31: ='Illustration Modelling'!M34 -> 0 | CM31: ='Illustration Modelling'!O34 -> 0 | CN31: ='Illustration Modelling'!P34 -> 0 | CP31: 0 | CQ31: 0 | CR31: 0 | CT31: 0 | CU31: 0 | CV31: 0 | CX31: 0 | CY31: 0 | CZ31: 0
A32: 20 | B32: 2034 | C32: 64 | E32: 0 | F32: 0 | G32: 0 | I32: =IF($C32>=RetAge,0,VLOOKUP($B32,Tables!$A$10:$T$126,18,FALSE)) -> 31500 | J32: =IF($C32>=RetAge,0,IF(C32<CatchupAge,0,VLOOKUP($B32,Tables!$A$10:$T$126,20,FALSE))) -> 10500 | K32: 21000 | L32: 63000 | M32: =IF($C32>=RetAge,0,VLOOKUP($B32,Tables!$A$10:$T$126,16,FALSE)) -> 92000 | N32: 63000 | O32: =IF($C32>=RetAge,0,VLOOKUP($B32,Tables!$A$10:$T$126,18,FALSE)) -> 31500 | P32: 94500 | R32: 0 | S32: 0 | T32: 0 | U32: 0 | V32: 0 | W32: 0 | X32: 0 | Y32: 0 | AA32: 0 | AB32: 0 | AC32: =CHOOSE(TaxRates,Tables!Z75,Tables!AA75) -> 0.4 | AD32: 0 | AE32: 0 | AF32: 0 | AH32: 0 | AI32: 0 | AJ32: =CHOOSE(TaxRates,Tables!Z75,Tables!AA75) -> 0.4 | AK32: 0 | AL32: 0 | AM32: 0 | AO32: =IF(C32>=RetAge,0,IF(AP32<MIN($AP$13:AP31),MAX($AO$13:AO31)+1,0)) -> 0 | AP32: 0 | AQ32: 0 | AR32: =CHOOSE(TaxRates,Tables!Z75,Tables!AA75) -> 0.4 | AS32: 0 | AT32: 0 | AU32: 0 | AW32: =IF(C32>=RetAge,0,IF(AX32<MIN($AX$13:AX31),MAX($AW$13:AW31)+1,0)) -> 0 | AX32: 0 | AY32: =CHOOSE(TaxRates,Tables!Z75,Tables!AA75) -> 0.4 | AZ32: 0 | BA32: 0 | BB32: 0 | BC32: 0 | BF32: 0 | BG32: 0 | BH32: =CHOOSE(TaxRates,Tables!Z75,Tables!AA75) -> 0.4 | BI32: 0 | BJ32: 0 | BK32: 0 | BM32: 0 | BN32: =CHOOSE(TaxRates,Tables!Z75,Tables!AA75) -> 0.4 | BO32: 0 | BP32: 0 | BQ32: 0 | BR32: 0 | BT32: 0 | BU32: =CHOOSE(TaxRates,Tables!Z75,Tables!AA75) -> 0.4 | BV32: 0 | BW32: 0 | BX32: 0 | BY32: 0 | CA32: 0 | CB32: 0.025 | CC32: 0 | CD32: 0 | CF32: 0 | CG32: 0 | CH32: 0 | CI32: 0 | CK32: ='Illustration Modelling'!K35 -> 64 | CL32: ='Illustration Modelling'!M35 -> 0 | CM32: ='Illustration Modelling'!O35 -> 0 | CN32: ='Illustration Modelling'!P35 -> 0 | CP32: 0 | CQ32: 0 | CR32: 0 | CT32: 0 | CU32: 0 | CV32: 0 | CX32: 0 | CY32: 0 | CZ32: 0
A33: 21 | B33: 2035 | C33: 65 | E33: 0 | F33: 0 | G33: 0 | I33: =IF($C33>=RetAge,0,VLOOKUP($B33,Tables!$A$10:$T$126,18,FALSE)) -> 0 | J33: =IF($C33>=RetAge,0,IF(C33<CatchupAge,0,VLOOKUP($B33,Tables!$A$10:$T$126,20,FALSE))) -> 0 | K33: 0 | L33: 0 | M33: =IF($C33>=RetAge,0,VLOOKUP($B33,Tables!$A$10:$T$126,16,FALSE)) -> 0 | N33: 0 | O33: =IF($C33>=RetAge,0,VLOOKUP($B33,Tables!$A$10:$T$126,18,FALSE)) -> 0 | P33: 0 | R33: 0 | S33: 0 | T33: 0 | U33: 0 | V33: 0 | W33: 0 | X33: 0 | Y33: 0 | AA33: 0 | AB33: 0 | AC33: =CHOOSE(TaxRates,Tables!Z76,Tables!AA76) -> 0.4 | AD33: 0 | AE33: 0 | AF33: 0 | AH33: 0 | AI33: 0 | AJ33: =CHOOSE(TaxRates,Tables!Z76,Tables!AA76) -> 0.4 | AK33: 0 | AL33: 0 | AM33: 0 | AO33: =IF(C33>=RetAge,0,IF(AP33<MIN($AP$13:AP32),MAX($AO$13:AO32)+1,0)) -> 0 | AP33: 0 | AQ33: 0 | AR33: =CHOOSE(TaxRates,Tables!Z76,Tables!AA76) -> 0.4 | AS33: 0 | AT33: 0 | AU33: 0 | AW33: =IF(C33>=RetAge,0,IF(AX33<MIN($AX$13:AX32),MAX($AW$13:AW32)+1,0)) -> 0 | AX33: 0 | AY33: =CHOOSE(TaxRates,Tables!Z76,Tables!AA76) -> 0.4 | AZ33: 0 | BA33: 0 | BB33: 0 | BC33: 0 | BF33: 0 | BG33: 0 | BH33: =CHOOSE(TaxRates,Tables!Z76,Tables!AA76) -> 0.4 | BI33: 0 | BJ33: 0 | BK33: 0 | BM33: 0 | BN33: =CHOOSE(TaxRates,Tables!Z76,Tables!AA76) -> 0.4 | BO33: 0 | BP33: 0 | BQ33: 0 | BR33: 0 | BT33: 0 | BU33: =CHOOSE(TaxRates,Tables!Z76,Tables!AA76) -> 0.4 | BV33: 0 | BW33: 0 | BX33: 0 | BY33: 0 | CA33: 0 | CB33: 0.025 | CC33: 0 | CD33: 0 | CF33: 0 | CG33: 0 | CH33: 0 | CI33: 0 | CK33: ='Illustration Modelling'!K36 -> 65 | CL33: ='Illustration Modelling'!M36 -> 0 | CM33: ='Illustration Modelling'!O36 -> 0 | CN33: ='Illustration Modelling'!P36 -> 0 | CP33: 0 | CQ33: 0 | CR33: 0 | CT33: 0 | CU33: 0 | CV33: 0 | CX33: 0 | CY33: 0 | CZ33: 0 | DA33: =RetAge -> 65
A34: 22 | B34: 2036 | C34: 66 | E34: 0 | F34: 0 | G34: 0 | I34: =IF($C34>=RetAge,0,VLOOKUP($B34,Tables!$A$10:$T$126,18,FALSE)) -> 0 | J34: =IF($C34>=RetAge,0,IF(C34<CatchupAge,0,VLOOKUP($B34,Tables!$A$10:$T$126,20,FALSE))) -> 0 | K34: 0 | L34: 0 | M34: =IF($C34>=RetAge,0,VLOOKUP($B34,Tables!$A$10:$T$126,16,FALSE)) -> 0 | N34: 0 | O34: =IF($C34>=RetAge,0,VLOOKUP($B34,Tables!$A$10:$T$126,18,FALSE)) -> 0 | P34: 0 | R34: 0 | S34: 0 | T34: 0 | U34: 0 | V34: 0 | W34: 0 | X34: 0 | Y34: 0 | AA34: 0 | AB34: 0 | AC34: =CHOOSE(TaxRates,Tables!Z77,Tables!AA77) -> 0.4 | AD34: 0 | AE34: 0 | AF34: 0 | AH34: 0 | AI34: 0 | AJ34: =CHOOSE(TaxRates,Tables!Z77,Tables!AA77) -> 0.4 | AK34: 0 | AL34: 0 | AM34: 0 | AO34: =IF(C34>=RetAge,0,IF(AP34<MIN($AP$13:AP33),MAX($AO$13:AO33)+1,0)) -> 0 | AP34: 0 | AQ34: 0 | AR34: =CHOOSE(TaxRates,Tables!Z77,Tables!AA77) -> 0.4 | AS34: 0 | AT34: 0 | AU34: 0 | AW34: =IF(C34>=RetAge,0,IF(AX34<MIN($AX$13:AX33),MAX($AW$13:AW33)+1,0)) -> 0 | AX34: 0 | AY34: =CHOOSE(TaxRates,Tables!Z77,Tables!AA77) -> 0.4 | AZ34: 0 | BA34: 0 | BB34: 0 | BC34: 0 | BF34: 0 | BG34: 0 | BH34: =CHOOSE(TaxRates,Tables!Z77,Tables!AA77) -> 0.4 | BI34: 0 | BJ34: 0 | BK34: 0 | BM34: 0 | BN34: =CHOOSE(TaxRates,Tables!Z77,Tables!AA77) -> 0.4 | BO34: 0 | BP34: 0 | BQ34: 0 | BR34: 0 | BT34: 0 | BU34: =CHOOSE(TaxRates,Tables!Z77,Tables!AA77) -> 0.4 | BV34: 0 | BW34: 0 | BX34: 0 | BY34: 0 | CA34: 0 | CB34: 0.025 | CC34: 0 | CD34: 0 | CF34: 0 | CG34: 0 | CH34: 0 | CI34: 0 | CK34: ='Illustration Modelling'!K37 -> 66 | CL34: ='Illustration Modelling'!M37 -> 0 | CM34: ='Illustration Modelling'!O37 -> 0 | CN34: ='Illustration Modelling'!P37 -> 0 | CP34: 0 | CQ34: 0 | CR34: 0 | CT34: 0 | CU34: 0 | CV34: 0 | CX34: 0 | CY34: 0 | CZ34: 0
A35: 23 | B35: 2037 | C35: 67 | E35: 0 | F35: 0 | G35: 0 | I35: =IF($C35>=RetAge,0,VLOOKUP($B35,Tables!$A$10:$T$126,18,FALSE)) -> 0 | J35: =IF($C35>=RetAge,0,IF(C35<CatchupAge,0,VLOOKUP($B35,Tables!$A$10:$T$126,20,FALSE))) -> 0 | K35: 0 | L35: 0 | M35: =IF($C35>=RetAge,0,VLOOKUP($B35,Tables!$A$10:$T$126,16,FALSE)) -> 0 | N35: 0 | O35: =IF($C35>=RetAge,0,VLOOKUP($B35,Tables!$A$10:$T$126,18,FALSE)) -> 0 | P35: 0 | R35: 0 | S35: 0 | T35: 0 | U35: 0 | V35: 0 | W35: 0 | X35: 0 | Y35: 0 | AA35: 0 | AB35: 0 | AC35: =CHOOSE(TaxRates,Tables!Z78,Tables!AA78) -> 0.4 | AD35: 0 | AE35: 0 | AF35: 0 | AH35: 0 | AI35: 0 | AJ35: =CHOOSE(TaxRates,Tables!Z78,Tables!AA78) -> 0.4 | AK35: 0 | AL35: 0 | AM35: 0 | AO35: =IF(C35>=RetAge,0,IF(AP35<MIN($AP$13:AP34),MAX($AO$13:AO34)+1,0)) -> 0 | AP35: 0 | AQ35: 0 | AR35: =CHOOSE(TaxRates,Tables!Z78,Tables!AA78) -> 0.4 | AS35: 0 | AT35: 0 | AU35: 0 | AW35: =IF(C35>=RetAge,0,IF(AX35<MIN($AX$13:AX34),MAX($AW$13:AW34)+1,0)) -> 0 | AX35: 0 | AY35: =CHOOSE(TaxRates,Tables!Z78,Tables!AA78) -> 0.4 | AZ35: 0 | BA35: 0 | BB35: 0 | BC35: 0 | BF35: 0 | BG35: 0 | BH35: =CHOOSE(TaxRates,Tables!Z78,Tables!AA78) -> 0.4 | BI35: 0 | BJ35: 0 | BK35: 0 | BM35: 0 | BN35: =CHOOSE(TaxRates,Tables!Z78,Tables!AA78) -> 0.4 | BO35: 0 | BP35: 0 | BQ35: 0 | BR35: 0 | BT35: 0 | BU35: =CHOOSE(TaxRates,Tables!Z78,Tables!AA78) -> 0.4 | BV35: 0 | BW35: 0 | BX35: 0 | BY35: 0 | CA35: 0 | CB35: 0.025 | CC35: 0 | CD35: 0 | CF35: 0 | CG35: 0 | CH35: 0 | CI35: 0 | CK35: ='Illustration Modelling'!K38 -> 67 | CL35: ='Illustration Modelling'!M38 -> 0 | CM35: ='Illustration Modelling'!O38 -> 0 | CN35: ='Illustration Modelling'!P38 -> 0 | CP35: 0 | CQ35: 0 | CR35: 0 | CT35: 0 | CU35: 0 | CV35: 0 | CX35: 0 | CY35: 0 | CZ35: 0
A36: 24 | B36: 2038 | C36: 68 | E36: 0 | F36: 0 | G36: 0 | I36: =IF($C36>=RetAge,0,VLOOKUP($B36,Tables!$A$10:$T$126,18,FALSE)) -> 0 | J36: =IF($C36>=RetAge,0,IF(C36<CatchupAge,0,VLOOKUP($B36,Tables!$A$10:$T$126,20,FALSE))) -> 0 | K36: 0 | L36: 0 | M36: =IF($C36>=RetAge,0,VLOOKUP($B36,Tables!$A$10:$T$126,16,FALSE)) -> 0 | N36: 0 | O36: =IF($C36>=RetAge,0,VLOOKUP($B36,Tables!$A$10:$T$126,18,FALSE)) -> 0 | P36: 0 | R36: 0 | S36: 0 | T36: 0 | U36: 0 | V36: 0 | W36: 0 | X36: 0 | Y36: 0 | AA36: 0 | AB36: 0 | AC36: =CHOOSE(TaxRates,Tables!Z79,Tables!AA79) -> 0.4 | AD36: 0 | AE36: 0 | AF36: 0 | AH36: 0 | AI36: 0 | AJ36: =CHOOSE(TaxRates,Tables!Z79,Tables!AA79) -> 0.4 | AK36: 0 | AL36: 0 | AM36: 0 | AO36: =IF(C36>=RetAge,0,IF(AP36<MIN($AP$13:AP35),MAX($AO$13:AO35)+1,0)) -> 0 | AP36: 0 | AQ36: 0 | AR36: =CHOOSE(TaxRates,Tables!Z79,Tables!AA79) -> 0.4 | AS36: 0 | AT36: 0 | AU36: 0 | AW36: =IF(C36>=RetAge,0,IF(AX36<MIN($AX$13:AX35),MAX($AW$13:AW35)+1,0)) -> 0 | AX36: 0 | AY36: =CHOOSE(TaxRates,Tables!Z79,Tables!AA79) -> 0.4 | AZ36: 0 | BA36: 0 | BB36: 0 | BC36: 0 | BF36: 0 | BG36: 0 | BH36: =CHOOSE(TaxRates,Tables!Z79,Tables!AA79) -> 0.4 | BI36: 0 | BJ36: 0 | BK36: 0 | BM36: 0 | BN36: =CHOOSE(TaxRates,Tables!Z79,Tables!AA79) -> 0.4 | BO36: 0 | BP36: 0 | BQ36: 0 | BR36: 0 | BT36: 0 | BU36: =CHOOSE(TaxRates,Tables!Z79,Tables!AA79) -> 0.4 | BV36: 0 | BW36: 0 | BX36: 0 | BY36: 0 | CA36: 0 | CB36: 0.025 | CC36: 0 | CD36: 0 | CF36: 0 | CG36: 0 | CH36: 0 | CI36: 0 | CK36: ='Illustration Modelling'!K39 -> 68 | CL36: ='Illustration Modelling'!M39 -> 0 | CM36: ='Illustration Modelling'!O39 -> 0 | CN36: ='Illustration Modelling'!P39 -> 0 | CP36: 0 | CQ36: 0 | CR36: 0 | CT36: 0 | CU36: 0 | CV36: 0 | CX36: 0 | CY36: 0 | CZ36: 0
A37: 25 | B37: 2039 | C37: 69 | E37: 0 | F37: 0 | G37: 0 | I37: =IF($C37>=RetAge,0,VLOOKUP($B37,Tables!$A$10:$T$126,18,FALSE)) -> 0 | J37: =IF($C37>=RetAge,0,IF(C37<CatchupAge,0,VLOOKUP($B37,Tables!$A$10:$T$126,20,FALSE))) -> 0 | K37: 0 | L37: 0 | M37: =IF($C37>=RetAge,0,VLOOKUP($B37,Tables!$A$10:$T$126,16,FALSE)) -> 0 | N37: 0 | O37: =IF($C37>=RetAge,0,VLOOKUP($B37,Tables!$A$10:$T$126,18,FALSE)) -> 0 | P37: 0 | R37: 0 | S37: 0 | T37: 0 | U37: 0 | V37: 0 | W37: 0 | X37: 0 | Y37: 0 | AA37: 0 | AB37: 0 | AC37: =CHOOSE(TaxRates,Tables!Z80,Tables!AA80) -> 0.4 | AD37: 0 | AE37: 0 | AF37: 0 | AH37: 0 | AI37: 0 | AJ37: =CHOOSE(TaxRates,Tables!Z80,Tables!AA80) -> 0.4 | AK37: 0 | AL37: 0 | AM37: 0 | AO37: =IF(C37>=RetAge,0,IF(AP37<MIN($AP$13:AP36),MAX($AO$13:AO36)+1,0)) -> 0 | AP37: 0 | AQ37: 0 | AR37: =CHOOSE(TaxRates,Tables!Z80,Tables!AA80) -> 0.4 | AS37: 0 | AT37: 0 | AU37: 0 | AW37: =IF(C37>=RetAge,0,IF(AX37<MIN($AX$13:AX36),MAX($AW$13:AW36)+1,0)) -> 0 | AX37: 0 | AY37: =CHOOSE(TaxRates,Tables!Z80,Tables!AA80) -> 0.4 | AZ37: 0 | BA37: 0 | BB37: 0 | BC37: 0 | BF37: 0 | BG37: 0 | BH37: =CHOOSE(TaxRates,Tables!Z80,Tables!AA80) -> 0.4 | BI37: 0 | BJ37: 0 | BK37: 0 | BM37: 0 | BN37: =CHOOSE(TaxRates,Tables!Z80,Tables!AA80) -> 0.4 | BO37: 0 | BP37: 0 | BQ37: 0 | BR37: 0 | BT37: 0 | BU37: =CHOOSE(TaxRates,Tables!Z80,Tables!AA80) -> 0.4 | BV37: 0 | BW37: 0 | BX37: 0 | BY37: 0 | CA37: 0 | CB37: 0.025 | CC37: 0 | CD37: 0 | CF37: 0 | CG37: 0 | CH37: 0 | CI37: 0 | CK37: ='Illustration Modelling'!K40 -> 69 | CL37: ='Illustration Modelling'!M40 -> 0 | CM37: ='Illustration Modelling'!O40 -> 0 | CN37: ='Illustration Modelling'!P40 -> 0 | CP37: 0 | CQ37: 0 | CR37: 0 | CT37: 0 | CU37: 0 | CV37: 0 | CX37: 0 | CY37: 0 | CZ37: 0
A38: 26 | B38: 2040 | C38: 70 | E38: 0 | F38: 0 | G38: 0 | I38: =IF($C38>=RetAge,0,VLOOKUP($B38,Tables!$A$10:$T$126,18,FALSE)) -> 0 | J38: =IF($C38>=RetAge,0,IF(C38<CatchupAge,0,VLOOKUP($B38,Tables!$A$10:$T$126,20,FALSE))) -> 0 | K38: 0 | L38: 0 | M38: =IF($C38>=RetAge,0,VLOOKUP($B38,Tables!$A$10:$T$126,16,FALSE)) -> 0 | N38: 0 | O38: =IF($C38>=RetAge,0,VLOOKUP($B38,Tables!$A$10:$T$126,18,FALSE)) -> 0 | P38: 0 | R38: 0 | S38: 0 | T38: 0 | U38: 0 | V38: 0 | W38: 0 | X38: 0 | Y38: 0 | AA38: 0 | AB38: 0 | AC38: =CHOOSE(TaxRates,Tables!Z81,Tables!AA81) -> 0.4 | AD38: 0 | AE38: 0 | AF38: 0 | AH38: 0 | AI38: 0 | AJ38: =CHOOSE(TaxRates,Tables!Z81,Tables!AA81) -> 0.4 | AK38: 0 | AL38: 0 | AM38: 0 | AO38: =IF(C38>=RetAge,0,IF(AP38<MIN($AP$13:AP37),MAX($AO$13:AO37)+1,0)) -> 0 | AP38: 0 | AQ38: 0 | AR38: =CHOOSE(TaxRates,Tables!Z81,Tables!AA81) -> 0.4 | AS38: 0 | AT38: 0 | AU38: 0 | AW38: =IF(C38>=RetAge,0,IF(AX38<MIN($AX$13:AX37),MAX($AW$13:AW37)+1,0)) -> 0 | AX38: 0 | AY38: =CHOOSE(TaxRates,Tables!Z81,Tables!AA81) -> 0.4 | AZ38: 0 | BA38: 0 | BB38: 0 | BC38: 0 | BF38: 0 | BG38: 0 | BH38: =CHOOSE(TaxRates,Tables!Z81,Tables!AA81) -> 0.4 | BI38: 0 | BJ38: 0 | BK38: 0 | BM38: 0 | BN38: =CHOOSE(TaxRates,Tables!Z81,Tables!AA81) -> 0.4 | BO38: 0 | BP38: 0 | BQ38: 0 | BR38: 0 | BT38: 0 | BU38: =CHOOSE(TaxRates,Tables!Z81,Tables!AA81) -> 0.4 | BV38: 0 | BW38: 0 | BX38: 0 | BY38: 0 | CA38: 0 | CB38: 0.025 | CC38: 0 | CD38: 0 | CF38: 0 | CG38: 0 | CH38: 0 | CI38: 0 | CK38: ='Illustration Modelling'!K41 -> 70 | CL38: ='Illustration Modelling'!M41 -> 0 | CM38: ='Illustration Modelling'!O41 -> 0 | CN38: ='Illustration Modelling'!P41 -> 0 | CP38: 0 | CQ38: 0 | CR38: 0 | CT38: 0 | CU38: 0 | CV38: 0 | CX38: 0 | CY38: 0 | CZ38: 0
A39: 27 | B39: 2041 | C39: 71 | E39: 0 | F39: 0 | G39: 0 | I39: =IF($C39>=RetAge,0,VLOOKUP($B39,Tables!$A$10:$T$126,18,FALSE)) -> 0 | J39: =IF($C39>=RetAge,0,IF(C39<CatchupAge,0,VLOOKUP($B39,Tables!$A$10:$T$126,20,FALSE))) -> 0 | K39: 0 | L39: 0 | M39: =IF($C39>=RetAge,0,VLOOKUP($B39,Tables!$A$10:$T$126,16,FALSE)) -> 0 | N39: 0 | O39: =IF($C39>=RetAge,0,VLOOKUP($B39,Tables!$A$10:$T$126,18,FALSE)) -> 0 | P39: 0 | R39: 0 | S39: 0 | T39: 0 | U39: 0 | V39: 0 | W39: 0 | X39: 0 | Y39: 0 | AA39: 0 | AB39: 0 | AC39: =CHOOSE(TaxRates,Tables!Z82,Tables!AA82) -> 0.4 | AD39: 0 | AE39: 0 | AF39: 0 | AH39: 0 | AI39: 0 | AJ39: =CHOOSE(TaxRates,Tables!Z82,Tables!AA82) -> 0.4 | AK39: 0 | AL39: 0 | AM39: 0 | AO39: =IF(C39>=RetAge,0,IF(AP39<MIN($AP$13:AP38),MAX($AO$13:AO38)+1,0)) -> 0 | AP39: 0 | AQ39: 0 | AR39: =CHOOSE(TaxRates,Tables!Z82,Tables!AA82) -> 0.4 | AS39: 0 | AT39: 0 | AU39: 0 | AW39: =IF(C39>=RetAge,0,IF(AX39<MIN($AX$13:AX38),MAX($AW$13:AW38)+1,0)) -> 0 | AX39: 0 | AY39: =CHOOSE(TaxRates,Tables!Z82,Tables!AA82) -> 0.4 | AZ39: 0 | BA39: 0 | BB39: 0 | BC39: 0 | BF39: 0 | BG39: 0 | BH39: =CHOOSE(TaxRates,Tables!Z82,Tables!AA82) -> 0.4 | BI39: 0 | BJ39: 0 | BK39: 0 | BM39: 0 | BN39: =CHOOSE(TaxRates,Tables!Z82,Tables!AA82) -> 0.4 | BO39: 0 | BP39: 0 | BQ39: 0 | BR39: 0 | BT39: 0 | BU39: =CHOOSE(TaxRates,Tables!Z82,Tables!AA82) -> 0.4 | BV39: 0 | BW39: 0 | BX39: 0 | BY39: 0 | CA39: 0 | CB39: 0.025 | CC39: 0 | CD39: 0 | CF39: 0 | CG39: 0 | CH39: 0 | CI39: 0 | CK39: ='Illustration Modelling'!K42 -> 71 | CL39: ='Illustration Modelling'!M42 -> 0 | CM39: ='Illustration Modelling'!O42 -> 0 | CN39: ='Illustration Modelling'!P42 -> 0 | CP39: 0 | CQ39: 0 | CR39: 0 | CT39: 0 | CU39: 0 | CV39: 0 | CX39: 0 | CY39: 0 | CZ39: 0
A40: 28 | B40: 2042 | C40: 72 | E40: 0 | F40: 0 | G40: 0 | I40: =IF($C40>=RetAge,0,VLOOKUP($B40,Tables!$A$10:$T$126,18,FALSE)) -> 0 | J40: =IF($C40>=RetAge,0,IF(C40<CatchupAge,0,VLOOKUP($B40,Tables!$A$10:$T$126,20,FALSE))) -> 0 | K40: 0 | L40: 0 | M40: =IF($C40>=RetAge,0,VLOOKUP($B40,Tables!$A$10:$T$126,16,FALSE)) -> 0 | N40: 0 | O40: =IF($C40>=RetAge,0,VLOOKUP($B40,Tables!$A$10:$T$126,18,FALSE)) -> 0 | P40: 0 | R40: 0 | S40: 0 | T40: 0 | U40: 0 | V40: 0 | W40: 0 | X40: 0 | Y40: 0 | AA40: 0 | AB40: 0 | AC40: =CHOOSE(TaxRates,Tables!Z83,Tables!AA83) -> 0.4 | AD40: 0 | AE40: 0 | AF40: 0 | AH40: 0 | AI40: 0 | AJ40: =CHOOSE(TaxRates,Tables!Z83,Tables!AA83) -> 0.4 | AK40: 0 | AL40: 0 | AM40: 0 | AO40: =IF(C40>=RetAge,0,IF(AP40<MIN($AP$13:AP39),MAX($AO$13:AO39)+1,0)) -> 0 | AP40: 0 | AQ40: 0 | AR40: =CHOOSE(TaxRates,Tables!Z83,Tables!AA83) -> 0.4 | AS40: 0 | AT40: 0 | AU40: 0 | AW40: =IF(C40>=RetAge,0,IF(AX40<MIN($AX$13:AX39),MAX($AW$13:AW39)+1,0)) -> 0 | AX40: 0 | AY40: =CHOOSE(TaxRates,Tables!Z83,Tables!AA83) -> 0.4 | AZ40: 0 | BA40: 0 | BB40: 0 | BC40: 0 | BF40: 0 | BG40: 0 | BH40: =CHOOSE(TaxRates,Tables!Z83,Tables!AA83) -> 0.4 | BI40: 0 | BJ40: 0 | BK40: 0 | BM40: 0 | BN40: =CHOOSE(TaxRates,Tables!Z83,Tables!AA83) -> 0.4 | BO40: 0 | BP40: 0 | BQ40: 0 | BR40: 0 | BT40: 0 | BU40: =CHOOSE(TaxRates,Tables!Z83,Tables!AA83) -> 0.4 | BV40: 0 | BW40: 0 | BX40: 0 | BY40: 0 | CA40: 0 | CB40: 0.025 | CC40: 0 | CD40: 0 | CF40: 0 | CG40: 0 | CH40: 0 | CI40: 0 | CK40: ='Illustration Modelling'!K43 -> 72 | CL40: ='Illustration Modelling'!M43 -> 0 | CM40: ='Illustration Modelling'!O43 -> 0 | CN40: ='Illustration Modelling'!P43 -> 0 | CP40: 0 | CQ40: 0 | CR40: 0 | CT40: 0 | CU40: 0 | CV40: 0 | CX40: 0 | CY40: 0 | CZ40: 0
A41: 29 | B41: 2043 | C41: 73 | E41: 0 | F41: 0 | G41: 0 | I41: =IF($C41>=RetAge,0,VLOOKUP($B41,Tables!$A$10:$T$126,18,FALSE)) -> 0 | J41: =IF($C41>=RetAge,0,IF(C41<CatchupAge,0,VLOOKUP($B41,Tables!$A$10:$T$126,20,FALSE))) -> 0 | K41: 0 | L41: 0 | M41: =IF($C41>=RetAge,0,VLOOKUP($B41,Tables!$A$10:$T$126,16,FALSE)) -> 0 | N41: 0 | O41: =IF($C41>=RetAge,0,VLOOKUP($B41,Tables!$A$10:$T$126,18,FALSE)) -> 0 | P41: 0 | R41: 0 | S41: 0 | T41: 0 | U41: 0 | V41: 0 | W41: 0 | X41: 0 | Y41: 0 | AA41: 0 | AB41: 0 | AC41: =CHOOSE(TaxRates,Tables!Z84,Tables!AA84) -> 0.4 | AD41: 0 | AE41: 0 | AF41: 0 | AH41: 0 | AI41: 0 | AJ41: =CHOOSE(TaxRates,Tables!Z84,Tables!AA84) -> 0.4 | AK41: 0 | AL41: 0 | AM41: 0 | AO41: =IF(C41>=RetAge,0,IF(AP41<MIN($AP$13:AP40),MAX($AO$13:AO40)+1,0)) -> 0 | AP41: 0 | AQ41: 0 | AR41: =CHOOSE(TaxRates,Tables!Z84,Tables!AA84) -> 0.4 | AS41: 0 | AT41: 0 | AU41: 0 | AW41: =IF(C41>=RetAge,0,IF(AX41<MIN($AX$13:AX40),MAX($AW$13:AW40)+1,0)) -> 0 | AX41: 0 | AY41: =CHOOSE(TaxRates,Tables!Z84,Tables!AA84) -> 0.4 | AZ41: 0 | BA41: 0 | BB41: 0 | BC41: 0 | BF41: 0 | BG41: 0 | BH41: =CHOOSE(TaxRates,Tables!Z84,Tables!AA84) -> 0.4 | BI41: 0 | BJ41: 0 | BK41: 0 | BM41: 0 | BN41: =CHOOSE(TaxRates,Tables!Z84,Tables!AA84) -> 0.4 | BO41: 0 | BP41: 0 | BQ41: 0 | BR41: 0 | BT41: 0 | BU41: =CHOOSE(TaxRates,Tables!Z84,Tables!AA84) -> 0.4 | BV41: 0 | BW41: 0 | BX41: 0 | BY41: 0 | CA41: 0 | CB41: 0.025 | CC41: 0 | CD41: 0 | CF41: 0 | CG41: 0 | CH41: 0 | CI41: 0 | CK41: ='Illustration Modelling'!K44 -> 73 | CL41: ='Illustration Modelling'!M44 -> 0 | CM41: ='Illustration Modelling'!O44 -> 0 | CN41: ='Illustration Modelling'!P44 -> 0 | CP41: 0 | CQ41: 0 | CR41: 0 | CT41: 0 | CU41: 0 | CV41: 0 | CX41: 0 | CY41: 0 | CZ41: 0
A42: 30 | B42: 2044 | C42: 74 | E42: 0 | F42: 0 | G42: 0 | I42: =IF($C42>=RetAge,0,VLOOKUP($B42,Tables!$A$10:$T$126,18,FALSE)) -> 0 | J42: =IF($C42>=RetAge,0,IF(C42<CatchupAge,0,VLOOKUP($B42,Tables!$A$10:$T$126,20,FALSE))) -> 0 | K42: 0 | L42: 0 | M42: =IF($C42>=RetAge,0,VLOOKUP($B42,Tables!$A$10:$T$126,16,FALSE)) -> 0 | N42: 0 | O42: =IF($C42>=RetAge,0,VLOOKUP($B42,Tables!$A$10:$T$126,18,FALSE)) -> 0 | P42: 0 | R42: 0 | S42: 0 | T42: 0 | U42: 0 | V42: 0 | W42: 0 | X42: 0 | Y42: 0 | AA42: 0 | AB42: 0 | AC42: =CHOOSE(TaxRates,Tables!Z85,Tables!AA85) -> 0.4 | AD42: 0 | AE42: 0 | AF42: 0 | AH42: 0 | AI42: 0 | AJ42: =CHOOSE(TaxRates,Tables!Z85,Tables!AA85) -> 0.4 | AK42: 0 | AL42: 0 | AM42: 0 | AO42: =IF(C42>=RetAge,0,IF(AP42<MIN($AP$13:AP41),MAX($AO$13:AO41)+1,0)) -> 0 | AP42: 0 | AQ42: 0 | AR42: =CHOOSE(TaxRates,Tables!Z85,Tables!AA85) -> 0.4 | AS42: 0 | AT42: 0 | AU42: 0 | AW42: =IF(C42>=RetAge,0,IF(AX42<MIN($AX$13:AX41),MAX($AW$13:AW41)+1,0)) -> 0 | AX42: 0 | AY42: =CHOOSE(TaxRates,Tables!Z85,Tables!AA85) -> 0.4 | AZ42: 0 | BA42: 0 | BB42: 0 | BC42: 0 | BF42: 0 | BG42: 0 | BH42: =CHOOSE(TaxRates,Tables!Z85,Tables!AA85) -> 0.4 | BI42: 0 | BJ42: 0 | BK42: 0 | BM42: 0 | BN42: =CHOOSE(TaxRates,Tables!Z85,Tables!AA85) -> 0.4 | BO42: 0 | BP42: 0 | BQ42: 0 | BR42: 0 | BT42: 0 | BU42: =CHOOSE(TaxRates,Tables!Z85,Tables!AA85) -> 0.4 | BV42: 0 | BW42: 0 | BX42: 0 | BY42: 0 | CA42: 0 | CB42: 0.025 | CC42: 0 | CD42: 0 | CF42: 0 | CG42: 0 | CH42: 0 | CI42: 0 | CK42: ='Illustration Modelling'!K45 -> 74 | CL42: ='Illustration Modelling'!M45 -> 0 | CM42: ='Illustration Modelling'!O45 -> 0 | CN42: ='Illustration Modelling'!P45 -> 0 | CP42: 0 | CQ42: 0 | CR42: 0 | CT42: 0 | CU42: 0 | CV42: 0 | CX42: 0 | CY42: 0 | CZ42: 0
A43: 31 | B43: 2045 | C43: 75 | E43: 0 | F43: 0 | G43: 0 | I43: =IF($C43>=RetAge,0,VLOOKUP($B43,Tables!$A$10:$T$126,18,FALSE)) -> 0 | J43: =IF($C43>=RetAge,0,IF(C43<CatchupAge,0,VLOOKUP($B43,Tables!$A$10:$T$126,20,FALSE))) -> 0 | K43: 0 | L43: 0 | M43: =IF($C43>=RetAge,0,VLOOKUP($B43,Tables!$A$10:$T$126,16,FALSE)) -> 0 | N43: 0 | O43: =IF($C43>=RetAge,0,VLOOKUP($B43,Tables!$A$10:$T$126,18,FALSE)) -> 0 | P43: 0 | R43: 0 | S43: 0 | T43: 0 | U43: 0 | V43: 0 | W43: 0 | X43: 0 | Y43: 0 | AA43: 0 | AB43: 0 | AC43: =CHOOSE(TaxRates,Tables!Z86,Tables!AA86) -> 0.4 | AD43: 0 | AE43: 0 | AF43: 0 | AH43: 0 | AI43: 0 | AJ43: =CHOOSE(TaxRates,Tables!Z86,Tables!AA86) -> 0.4 | AK43: 0 | AL43: 0 | AM43: 0 | AO43: =IF(C43>=RetAge,0,IF(AP43<MIN($AP$13:AP42),MAX($AO$13:AO42)+1,0)) -> 0 | AP43: 0 | AQ43: 0 | AR43: =CHOOSE(TaxRates,Tables!Z86,Tables!AA86) -> 0.4 | AS43: 0 | AT43: 0 | AU43: 0 | AW43: =IF(C43>=RetAge,0,IF(AX43<MIN($AX$13:AX42),MAX($AW$13:AW42)+1,0)) -> 0 | AX43: 0 | AY43: =CHOOSE(TaxRates,Tables!Z86,Tables!AA86) -> 0.4 | AZ43: 0 | BA43: 0 | BB43: 0 | BC43: 0 | BF43: 0 | BG43: 0 | BH43: =CHOOSE(TaxRates,Tables!Z86,Tables!AA86) -> 0.4 | BI43: 0 | BJ43: 0 | BK43: 0 | BM43: 0 | BN43: =CHOOSE(TaxRates,Tables!Z86,Tables!AA86) -> 0.4 | BO43: 0 | BP43: 0 | BQ43: 0 | BR43: 0 | BT43: 0 | BU43: =CHOOSE(TaxRates,Tables!Z86,Tables!AA86) -> 0.4 | BV43: 0 | BW43: 0 | BX43: 0 | BY43: 0 | CA43: 0 | CB43: 0.025 | CC43: 0 | CD43: 0 | CF43: 0 | CG43: 0 | CH43: 0 | CI43: 0 | CK43: ='Illustration Modelling'!K46 -> 75 | CL43: ='Illustration Modelling'!M46 -> 0 | CM43: ='Illustration Modelling'!O46 -> 0 | CN43: ='Illustration Modelling'!P46 -> 0 | CP43: 0 | CQ43: 0 | CR43: 0 | CT43: 0 | CU43: 0 | CV43: 0 | CX43: 0 | CY43: 0 | CZ43: 0
A44: 32 | B44: 2046 | C44: 76 | E44: 0 | F44: 0 | G44: 0 | I44: =IF($C44>=RetAge,0,VLOOKUP($B44,Tables!$A$10:$T$126,18,FALSE)) -> 0 | J44: =IF($C44>=RetAge,0,IF(C44<CatchupAge,0,VLOOKUP($B44,Tables!$A$10:$T$126,20,FALSE))) -> 0 | K44: 0 | L44: 0 | M44: =IF($C44>=RetAge,0,VLOOKUP($B44,Tables!$A$10:$T$126,16,FALSE)) -> 0 | N44: 0 | O44: =IF($C44>=RetAge,0,VLOOKUP($B44,Tables!$A$10:$T$126,18,FALSE)) -> 0 | P44: 0 | R44: 0 | S44: 0 | T44: 0 | U44: 0 | V44: 0 | W44: 0 | X44: 0 | Y44: 0 | AA44: 0 | AB44: 0 | AC44: =CHOOSE(TaxRates,Tables!Z87,Tables!AA87) -> 0.4 | AD44: 0 | AE44: 0 | AF44: 0 | AH44: 0 | AI44: 0 | AJ44: =CHOOSE(TaxRates,Tables!Z87,Tables!AA87) -> 0.4 | AK44: 0 | AL44: 0 | AM44: 0 | AO44: =IF(C44>=RetAge,0,IF(AP44<MIN($AP$13:AP43),MAX($AO$13:AO43)+1,0)) -> 0 | AP44: 0 | AQ44: 0 | AR44: =CHOOSE(TaxRates,Tables!Z87,Tables!AA87) -> 0.4 | AS44: 0 | AT44: 0 | AU44: 0 | AW44: =IF(C44>=RetAge,0,IF(AX44<MIN($AX$13:AX43),MAX($AW$13:AW43)+1,0)) -> 0 | AX44: 0 | AY44: =CHOOSE(TaxRates,Tables!Z87,Tables!AA87) -> 0.4 | AZ44: 0 | BA44: 0 | BB44: 0 | BC44: 0 | BF44: 0 | BG44: 0 | BH44: =CHOOSE(TaxRates,Tables!Z87,Tables!AA87) -> 0.4 | BI44: 0 | BJ44: 0 | BK44: 0 | BM44: 0 | BN44: =CHOOSE(TaxRates,Tables!Z87,Tables!AA87) -> 0.4 | BO44: 0 | BP44: 0 | BQ44: 0 | BR44: 0 | BT44: 0 | BU44: =CHOOSE(TaxRates,Tables!Z87,Tables!AA87) -> 0.4 | BV44: 0 | BW44: 0 | BX44: 0 | BY44: 0 | CA44: 0 | CB44: 0.025 | CC44: 0 | CD44: 0 | CF44: 0 | CG44: 0 | CH44: 0 | CI44: 0 | CK44: ='Illustration Modelling'!K47 -> 76 | CL44: ='Illustration Modelling'!M47 -> 0 | CM44: ='Illustration Modelling'!O47 -> 0 | CN44: ='Illustration Modelling'!P47 -> 0 | CP44: 0 | CQ44: 0 | CR44: 0 | CT44: 0 | CU44: 0 | CV44: 0 | CX44: 0 | CY44: 0 | CZ44: 0
A45: 33 | B45: 2047 | C45: 77 | E45: 0 | F45: 0 | G45: 0 | I45: =IF($C45>=RetAge,0,VLOOKUP($B45,Tables!$A$10:$T$126,18,FALSE)) -> 0 | J45: =IF($C45>=RetAge,0,IF(C45<CatchupAge,0,VLOOKUP($B45,Tables!$A$10:$T$126,20,FALSE))) -> 0 | K45: =IF($C45>=RetAge,0,(I45+J45)*MachtingERCont) -> 0 | L45: 0 | M45: =IF($C45>=RetAge,0,VLOOKUP($B45,Tables!$A$10:$T$126,16,FALSE)) -> 0 | N45: 0 | O45: =IF($C45>=RetAge,0,VLOOKUP($B45,Tables!$A$10:$T$126,18,FALSE)) -> 0 | P45: 0 | R45: =IF($C45>=RetAge,0,IF(TargetMethod1=1,TargetContribPercent*G45,IF(TargetMethod2=1,TargetContribDollarAmt,0))) -> 0 | S45: 0 | T45: 0 | U45: =IF($C45>=RetAge,0,(S45+T45)*MachtingERCont) -> 0 | V45: 0 | W45: 0 | X45: 0 | Y45: 0 | AA45: =IF(TargetMethod3=1,I45+J45,S45+T45) -> 0 | AB45: =IF($C45<RetAge,0,IF($C45<RetAge+RetDistYrs,AnnRet403b,0)) -> 0 | AC45: =CHOOSE(TaxRates,Tables!Z88,Tables!AA88) -> 0.4 | AD45: 0 | AE45: 0 | AF45: 0 | AH45: =IF(TargetMethod3=1,K45,U45) -> 0 | AI45: =IF($C45<RetAge,0,IF($C45<RetAge+RetDistYrs,AnnRet403bERMatch,0)) -> 0 | AJ45: =CHOOSE(TaxRates,Tables!Z88,Tables!AA88) -> 0.4 | AK45: 0 | AL45: 0 | AM45: 0 | AO45: =IF(C45>=RetAge,0,IF(AP45<MIN($AP$13:AP44),MAX($AO$13:AO44)+1,0)) -> 0 | AP45: =IF(TargetMethod3=1,O45,W45) -> 0 | AQ45: =IF($C45<RetAge,0,IF($C45<RetAge+RetDistYrs,AnnRet457b,0)) -> 0 | AR45: =CHOOSE(TaxRates,Tables!Z88,Tables!AA88) -> 0.4 | AS45: 0 | AT45: 0 | AU45: 0 | AW45: =IF(C45>=RetAge,0,IF(AX45<MIN($AX$13:AX44),MAX($AW$13:AW44)+1,0)) -> 0 | AX45: =IF(TargetMethod3=1,0,Y45) -> 0 | AY45: =CHOOSE(TaxRates,Tables!Z88,Tables!AA88) -> 0.4 | AZ45: 0 | BA45: =IF($C45<RetAge,0,IF($C45<RetAge+RetDistYrs,AnnRetATSavingsAT,0)) -> 0 | BB45: 0 | BC45: 0 | BF45: =IF($C45>=RetAge,0,Redirected457b) -> 0 | BG45: =IF($C45<RetAge,0,IF($C45<RetAge+RetDistYrs,AnnRetRedirected457b,0)) -> 0 | BH45: =CHOOSE(TaxRates,Tables!Z88,Tables!AA88) -> 0.4 | BI45: 0 | BJ45: 0 | BK45: 0 | BM45: =IF($C45>=RetAge,0,RedirectedAT) -> 0 | BN45: =CHOOSE(TaxRates,Tables!Z88,Tables!AA88) -> 0.4 | BO45: 0 | BP45: =IF($C45<RetAge,0,IF($C45<RetAge+RetDistYrs,AnnRetRedirectedATSavingsAT,0)) -> 0 | BQ45: 0 | BR45: 0 | BT45: =IF($C45>=RetAge,0,RedirectedContribs) -> 0 | BU45: =CHOOSE(TaxRates,Tables!Z88,Tables!AA88) -> 0.4 | BV45: 0 | BW45: 0 | BX45: 0 | BY45: 0 | CA45: 0 | CB45: 0.025 | CC45: 0 | CD45: 0 | CF45: =IF(C45=RetAge,$CL$4,0) -> 0 | CG45: =IF(CL45>0,CL45-CF45,0)+IF($C45=Death_Age,CN45,0) -> 0 | CH45: =IF(C45<Death_Age,CM45-CA45,0) -> 0 | CI45: =IF(C45<Death_Age,CN45-CA45,0) -> 0 | CK45: ='Illustration Modelling'!K48 -> 77 | CL45: ='Illustration Modelling'!M48 -> 0 | CM45: ='Illustration Modelling'!O48 -> 0 | CN45: ='Illustration Modelling'!P48 -> 0 | CP45: 0 | CQ45: 0 | CR45: 0 | CT45: 0 | CU45: =Corp_Tax_Rate -> 0 | CV45: 0 | CX45: 0 | CY45: 0 | CZ45: 0
A46: =A45+1 -> 34 | B46: 2048 | C46: 78 | E46: =IF($C46>=RetAge,0,E45*(1+CompGrowthRate)) -> 0 | F46: =IF($C46>=RetAge,0,F45*(1+CompGrowthRate)) -> 0 | G46: 0 | I46: =IF($C46>=RetAge,0,VLOOKUP($B46,Tables!$A$10:$T$126,18,FALSE)) -> 0 | J46: =IF($C46>=RetAge,0,IF(C46<CatchupAge,0,VLOOKUP($B46,Tables!$A$10:$T$126,20,FALSE))) -> 0 | K46: 0 | L46: 0 | M46: =IF($C46>=RetAge,0,VLOOKUP($B46,Tables!$A$10:$T$126,16,FALSE)) -> 0 | N46: 0 | O46: =IF($C46>=RetAge,0,VLOOKUP($B46,Tables!$A$10:$T$126,18,FALSE)) -> 0 | P46: 0 | R46: 0 | S46: 0 | T46: 0 | U46: 0 | V46: 0 | W46: 0 | X46: 0 | Y46: 0 | AA46: 0 | AB46: 0 | AC46: =CHOOSE(TaxRates,Tables!Z89,Tables!AA89) -> 0.4 | AD46: 0 | AE46: =(AA46+AB46+AF45)*AcctBalGrowth -> 0 | AF46: 0 | AH46: 0 | AI46: 0 | AJ46: =CHOOSE(TaxRates,Tables!Z89,Tables!AA89) -> 0.4 | AK46: 0 | AL46: =(AH46+AI46+AM45)*AcctBalGrowth -> 0 | AM46: 0 | AO46: =IF(C46>=RetAge,0,IF(AP46<MIN($AP$13:AP45),MAX($AO$13:AO45)+1,0)) -> 0 | AP46: 0 | AQ46: 0 | AR46: =CHOOSE(TaxRates,Tables!Z89,Tables!AA89) -> 0.4 | AS46: 0 | AT46: =(AP46+AQ46+AU45)*AcctBalGrowth -> 0 | AU46: 0 | AW46: =IF(C46>=RetAge,0,IF(AX46<MIN($AX$13:AX45),MAX($AW$13:AW45)+1,0)) -> 0 | AX46: 0 | AY46: =CHOOSE(TaxRates,Tables!Z89,Tables!AA89) -> 0.4 | AZ46: 0 | BA46: 0 | BB46: =(AZ46+BA46+BC45)*AcctBalGrowth*(1-EEBlendedTaxRate) -> 0 | BC46: 0 | BF46: 0 | BG46: 0 | BH46: =CHOOSE(TaxRates,Tables!Z89,Tables!AA89) -> 0.4 | BI46: 0 | BJ46: 0 | BK46: 0 | BM46: 0 | BN46: =CHOOSE(TaxRates,Tables!Z89,Tables!AA89) -> 0.4 | BO46: 0 | BP46: 0 | BQ46: 0 | BR46: 0 | BT46: 0 | BU46: =CHOOSE(TaxRates,Tables!Z89,Tables!AA89) -> 0.4 | BV46: 0 | BW46: 0 | BX46: 0 | BY46: 0 | CA46: 0 | CB46: 0.025 | CC46: 0 | CD46: 0 | CF46: 0 | CG46: 0 | CH46: 0 | CI46: 0 | CK46: ='Illustration Modelling'!K49 -> 78 | CL46: ='Illustration Modelling'!M49 -> 0 | CM46: ='Illustration Modelling'!O49 -> 0 | CN46: ='Illustration Modelling'!P49 -> 0 | CP46: 0 | CQ46: 0 | CR46: 0 | CT46: 0 | CU46: 0 | CV46: 0 | CX46: 0 | CY46: 0 | CZ46: 0
A47: 35 | B47: 2049 | C47: 79 | E47: 0 | F47: 0 | G47: 0 | I47: =IF($C47>=RetAge,0,VLOOKUP($B47,Tables!$A$10:$T$126,18,FALSE)) -> 0 | J47: =IF($C47>=RetAge,0,IF(C47<CatchupAge,0,VLOOKUP($B47,Tables!$A$10:$T$126,20,FALSE))) -> 0 | K47: 0 | L47: 0 | M47: =IF($C47>=RetAge,0,VLOOKUP($B47,Tables!$A$10:$T$126,16,FALSE)) -> 0 | N47: 0 | O47: =IF($C47>=RetAge,0,VLOOKUP($B47,Tables!$A$10:$T$126,18,FALSE)) -> 0 | P47: 0 | R47: 0 | S47: 0 | T47: 0 | U47: 0 | V47: 0 | W47: 0 | X47: 0 | Y47: 0 | AA47: 0 | AB47: 0 | AC47: =CHOOSE(TaxRates,Tables!Z90,Tables!AA90) -> 0.4 | AD47: 0 | AE47: 0 | AF47: 0 | AH47: 0 | AI47: 0 | AJ47: =CHOOSE(TaxRates,Tables!Z90,Tables!AA90) -> 0.4 | AK47: 0 | AL47: 0 | AM47: 0 | AO47: =IF(C47>=RetAge,0,IF(AP47<MIN($AP$13:AP46),MAX($AO$13:AO46)+1,0)) -> 0 | AP47: 0 | AQ47: 0 | AR47: =CHOOSE(TaxRates,Tables!Z90,Tables!AA90) -> 0.4 | AS47: 0 | AT47: 0 | AU47: 0 | AW47: =IF(C47>=RetAge,0,IF(AX47<MIN($AX$13:AX46),MAX($AW$13:AW46)+1,0)) -> 0 | AX47: 0 | AY47: =CHOOSE(TaxRates,Tables!Z90,Tables!AA90) -> 0.4 | AZ47: 0 | BA47: 0 | BB47: 0 | BC47: 0 | BF47: 0 | BG47: 0 | BH47: =CHOOSE(TaxRates,Tables!Z90,Tables!AA90) -> 0.4 | BI47: 0 | BJ47: 0 | BK47: 0 | BM47: 0 | BN47: =CHOOSE(TaxRates,Tables!Z90,Tables!AA90) -> 0.4 | BO47: 0 | BP47: 0 | BQ47: 0 | BR47: 0 | BT47: 0 | BU47: =CHOOSE(TaxRates,Tables!Z90,Tables!AA90) -> 0.4 | BV47: 0 | BW47: 0 | BX47: 0 | BY47: 0 | CA47: 0 | CB47: 0.025 | CC47: 0 | CD47: 0 | CF47: 0 | CG47: 0 | CH47: 0 | CI47: 0 | CK47: ='Illustration Modelling'!K50 -> 79 | CL47: ='Illustration Modelling'!M50 -> 0 | CM47: ='Illustration Modelling'!O50 -> 0 | CN47: ='Illustration Modelling'!P50 -> 0 | CP47: 0 | CQ47: 0 | CR47: 0 | CT47: 0 | CU47: 0 | CV47: 0 | CX47: 0 | CY47: 0 | CZ47: 0
A48: 36 | B48: 2050 | C48: 80 | E48: 0 | F48: 0 | G48: 0 | I48: =IF($C48>=RetAge,0,VLOOKUP($B48,Tables!$A$10:$T$126,18,FALSE)) -> 0 | J48: =IF($C48>=RetAge,0,IF(C48<CatchupAge,0,VLOOKUP($B48,Tables!$A$10:$T$126,20,FALSE))) -> 0 | K48: 0 | L48: 0 | M48: =IF($C48>=RetAge,0,VLOOKUP($B48,Tables!$A$10:$T$126,16,FALSE)) -> 0 | N48: 0 | O48: =IF($C48>=RetAge,0,VLOOKUP($B48,Tables!$A$10:$T$126,18,FALSE)) -> 0 | P48: 0 | R48: 0 | S48: 0 | T48: 0 | U48: 0 | V48: 0 | W48: 0 | X48: 0 | Y48: 0 | AA48: 0 | AB48: 0 | AC48: =CHOOSE(TaxRates,Tables!Z91,Tables!AA91) -> 0.4 | AD48: 0 | AE48: 0 | AF48: 0 | AH48: 0 | AI48: 0 | AJ48: =CHOOSE(TaxRates,Tables!Z91,Tables!AA91) -> 0.4 | AK48: 0 | AL48: 0 | AM48: 0 | AO48: =IF(C48>=RetAge,0,IF(AP48<MIN($AP$13:AP47),MAX($AO$13:AO47)+1,0)) -> 0 | AP48: 0 | AQ48: 0 | AR48: =CHOOSE(TaxRates,Tables!Z91,Tables!AA91) -> 0.4 | AS48: 0 | AT48: 0 | AU48: 0 | AW48: =IF(C48>=RetAge,0,IF(AX48<MIN($AX$13:AX47),MAX($AW$13:AW47)+1,0)) -> 0 | AX48: 0 | AY48: =CHOOSE(TaxRates,Tables!Z91,Tables!AA91) -> 0.4 | AZ48: 0 | BA48: 0 | BB48: 0 | BC48: 0 | BF48: 0 | BG48: 0 | BH48: =CHOOSE(TaxRates,Tables!Z91,Tables!AA91) -> 0.4 | BI48: 0 | BJ48: 0 | BK48: 0 | BM48: 0 | BN48: =CHOOSE(TaxRates,Tables!Z91,Tables!AA91) -> 0.4 | BO48: 0 | BP48: 0 | BQ48: 0 | BR48: 0 | BT48: 0 | BU48: =CHOOSE(TaxRates,Tables!Z91,Tables!AA91) -> 0.4 | BV48: 0 | BW48: 0 | BX48: 0 | BY48: 0 | CA48: 0 | CB48: 0.025 | CC48: 0 | CD48: 0 | CF48: 0 | CG48: 0 | CH48: 0 | CI48: 0 | CK48: ='Illustration Modelling'!K51 -> 80 | CL48: ='Illustration Modelling'!M51 -> 0 | CM48: ='Illustration Modelling'!O51 -> 0 | CN48: ='Illustration Modelling'!P51 -> 0 | CP48: 0 | CQ48: 0 | CR48: 0 | CT48: 0 | CU48: 0 | CV48: 0 | CX48: 0 | CY48: 0 | CZ48: 0
A49: 37 | B49: 2051 | C49: 81 | E49: 0 | F49: 0 | G49: 0 | I49: =IF($C49>=RetAge,0,VLOOKUP($B49,Tables!$A$10:$T$126,18,FALSE)) -> 0 | J49: =IF($C49>=RetAge,0,IF(C49<CatchupAge,0,VLOOKUP($B49,Tables!$A$10:$T$126,20,FALSE))) -> 0 | K49: 0 | L49: 0 | M49: =IF($C49>=RetAge,0,VLOOKUP($B49,Tables!$A$10:$T$126,16,FALSE)) -> 0 | N49: 0 | O49: =IF($C49>=RetAge,0,VLOOKUP($B49,Tables!$A$10:$T$126,18,FALSE)) -> 0 | P49: 0 | R49: 0 | S49: 0 | T49: 0 | U49: 0 | V49: 0 | W49: 0 | X49: 0 | Y49: 0 | AA49: 0 | AB49: 0 | AC49: =CHOOSE(TaxRates,Tables!Z92,Tables!AA92) -> 0.4 | AD49: 0 | AE49: 0 | AF49: 0 | AH49: 0 | AI49: 0 | AJ49: =CHOOSE(TaxRates,Tables!Z92,Tables!AA92) -> 0.4 | AK49: 0 | AL49: 0 | AM49: 0 | AO49: =IF(C49>=RetAge,0,IF(AP49<MIN($AP$13:AP48),MAX($AO$13:AO48)+1,0)) -> 0 | AP49: 0 | AQ49: 0 | AR49: =CHOOSE(TaxRates,Tables!Z92,Tables!AA92) -> 0.4 | AS49: 0 | AT49: 0 | AU49: 0 | AW49: =IF(C49>=RetAge,0,IF(AX49<MIN($AX$13:AX48),MAX($AW$13:AW48)+1,0)) -> 0 | AX49: 0 | AY49: =CHOOSE(TaxRates,Tables!Z92,Tables!AA92) -> 0.4 | AZ49: 0 | BA49: 0 | BB49: 0 | BC49: 0 | BF49: 0 | BG49: 0 | BH49: =CHOOSE(TaxRates,Tables!Z92,Tables!AA92) -> 0.4 | BI49: 0 | BJ49: 0 | BK49: 0 | BM49: 0 | BN49: =CHOOSE(TaxRates,Tables!Z92,Tables!AA92) -> 0.4 | BO49: 0 | BP49: 0 | BQ49: 0 | BR49: 0 | BT49: 0 | BU49: =CHOOSE(TaxRates,Tables!Z92,Tables!AA92) -> 0.4 | BV49: 0 | BW49: 0 | BX49: 0 | BY49: 0 | CA49: 0 | CB49: 0.025 | CC49: 0 | CD49: 0 | CF49: 0 | CG49: 0 | CH49: 0 | CI49: 0 | CK49: ='Illustration Modelling'!K52 -> 81 | CL49: ='Illustration Modelling'!M52 -> 0 | CM49: ='Illustration Modelling'!O52 -> 0 | CN49: ='Illustration Modelling'!P52 -> 0 | CP49: 0 | CQ49: 0 | CR49: 0 | CT49: 0 | CU49: 0 | CV49: 0 | CX49: 0 | CY49: 0 | CZ49: 0
A50: 38 | B50: 2052 | C50: 82 | E50: 0 | F50: 0 | G50: 0 | I50: =IF($C50>=RetAge,0,VLOOKUP($B50,Tables!$A$10:$T$126,18,FALSE)) -> 0 | J50: =IF($C50>=RetAge,0,IF(C50<CatchupAge,0,VLOOKUP($B50,Tables!$A$10:$T$126,20,FALSE))) -> 0 | K50: 0 | L50: 0 | M50: =IF($C50>=RetAge,0,VLOOKUP($B50,Tables!$A$10:$T$126,16,FALSE)) -> 0 | N50: 0 | O50: =IF($C50>=RetAge,0,VLOOKUP($B50,Tables!$A$10:$T$126,18,FALSE)) -> 0 | P50: 0 | R50: 0 | S50: 0 | T50: 0 | U50: 0 | V50: 0 | W50: 0 | X50: 0 | Y50: 0 | AA50: 0 | AB50: 0 | AC50: =CHOOSE(TaxRates,Tables!Z93,Tables!AA93) -> 0.4 | AD50: 0 | AE50: 0 | AF50: 0 | AH50: 0 | AI50: 0 | AJ50: =CHOOSE(TaxRates,Tables!Z93,Tables!AA93) -> 0.4 | AK50: 0 | AL50: 0 | AM50: 0 | AO50: =IF(C50>=RetAge,0,IF(AP50<MIN($AP$13:AP49),MAX($AO$13:AO49)+1,0)) -> 0 | AP50: 0 | AQ50: 0 | AR50: =CHOOSE(TaxRates,Tables!Z93,Tables!AA93) -> 0.4 | AS50: 0 | AT50: 0 | AU50: 0 | AW50: =IF(C50>=RetAge,0,IF(AX50<MIN($AX$13:AX49),MAX($AW$13:AW49)+1,0)) -> 0 | AX50: 0 | AY50: =CHOOSE(TaxRates,Tables!Z93,Tables!AA93) -> 0.4 | AZ50: 0 | BA50: 0 | BB50: 0 | BC50: 0 | BF50: 0 | BG50: 0 | BH50: =CHOOSE(TaxRates,Tables!Z93,Tables!AA93) -> 0.4 | BI50: 0 | BJ50: 0 | BK50: 0 | BM50: 0 | BN50: =CHOOSE(TaxRates,Tables!Z93,Tables!AA93) -> 0.4 | BO50: 0 | BP50: 0 | BQ50: 0 | BR50: 0 | BT50: 0 | BU50: =CHOOSE(TaxRates,Tables!Z93,Tables!AA93) -> 0.4 | BV50: 0 | BW50: 0 | BX50: 0 | BY50: 0 | CA50: 0 | CB50: 0.025 | CC50: 0 | CD50: 0 | CF50: 0 | CG50: 0 | CH50: 0 | CI50: 0 | CK50: ='Illustration Modelling'!K53 -> 82 | CL50: ='Illustration Modelling'!M53 -> 0 | CM50: ='Illustration Modelling'!O53 -> 0 | CN50: ='Illustration Modelling'!P53 -> 0 | CP50: 0 | CQ50: 0 | CR50: 0 | CT50: 0 | CU50: 0 | CV50: 0 | CX50: 0 | CY50: 0 | CZ50: 0
A51: 39 | B51: 2053 | C51: 83 | E51: 0 | F51: 0 | G51: 0 | I51: =IF($C51>=RetAge,0,VLOOKUP($B51,Tables!$A$10:$T$126,18,FALSE)) -> 0 | J51: =IF($C51>=RetAge,0,IF(C51<CatchupAge,0,VLOOKUP($B51,Tables!$A$10:$T$126,20,FALSE))) -> 0 | K51: 0 | L51: 0 | M51: =IF($C51>=RetAge,0,VLOOKUP($B51,Tables!$A$10:$T$126,16,FALSE)) -> 0 | N51: 0 | O51: =IF($C51>=RetAge,0,VLOOKUP($B51,Tables!$A$10:$T$126,18,FALSE)) -> 0 | P51: 0 | R51: 0 | S51: 0 | T51: 0 | U51: 0 | V51: 0 | W51: 0 | X51: 0 | Y51: 0 | AA51: 0 | AB51: 0 | AC51: =CHOOSE(TaxRates,Tables!Z94,Tables!AA94) -> 0.4 | AD51: 0 | AE51: 0 | AF51: 0 | AH51: 0 | AI51: 0 | AJ51: =CHOOSE(TaxRates,Tables!Z94,Tables!AA94) -> 0.4 | AK51: 0 | AL51: 0 | AM51: 0 | AO51: =IF(C51>=RetAge,0,IF(AP51<MIN($AP$13:AP50),MAX($AO$13:AO50)+1,0)) -> 0 | AP51: 0 | AQ51: 0 | AR51: =CHOOSE(TaxRates,Tables!Z94,Tables!AA94) -> 0.4 | AS51: 0 | AT51: 0 | AU51: 0 | AW51: =IF(C51>=RetAge,0,IF(AX51<MIN($AX$13:AX50),MAX($AW$13:AW50)+1,0)) -> 0 | AX51: 0 | AY51: =CHOOSE(TaxRates,Tables!Z94,Tables!AA94) -> 0.4 | AZ51: 0 | BA51: 0 | BB51: 0 | BC51: 0 | BF51: 0 | BG51: 0 | BH51: =CHOOSE(TaxRates,Tables!Z94,Tables!AA94) -> 0.4 | BI51: 0 | BJ51: 0 | BK51: 0 | BM51: 0 | BN51: =CHOOSE(TaxRates,Tables!Z94,Tables!AA94) -> 0.4 | BO51: 0 | BP51: 0 | BQ51: 0 | BR51: 0 | BT51: 0 | BU51: =CHOOSE(TaxRates,Tables!Z94,Tables!AA94) -> 0.4 | BV51: 0 | BW51: 0 | BX51: 0 | BY51: 0 | CA51: 0 | CB51: 0.025 | CC51: 0 | CD51: 0 | CF51: 0 | CG51: 0 | CH51: 0 | CI51: 0 | CK51: ='Illustration Modelling'!K54 -> 83 | CL51: ='Illustration Modelling'!M54 -> 0 | CM51: ='Illustration Modelling'!O54 -> 0 | CN51: ='Illustration Modelling'!P54 -> 0 | CP51: 0 | CQ51: 0 | CR51: 0 | CT51: 0 | CU51: 0 | CV51: 0 | CX51: 0 | CY51: 0 | CZ51: 0
A52: 40 | B52: 2054 | C52: 84 | E52: 0 | F52: 0 | G52: 0 | I52: =IF($C52>=RetAge,0,VLOOKUP($B52,Tables!$A$10:$T$126,18,FALSE)) -> 0 | J52: =IF($C52>=RetAge,0,IF(C52<CatchupAge,0,VLOOKUP($B52,Tables!$A$10:$T$126,20,FALSE))) -> 0 | K52: 0 | L52: 0 | M52: =IF($C52>=RetAge,0,VLOOKUP($B52,Tables!$A$10:$T$126,16,FALSE)) -> 0 | N52: 0 | O52: =IF($C52>=RetAge,0,VLOOKUP($B52,Tables!$A$10:$T$126,18,FALSE)) -> 0 | P52: 0 | R52: 0 | S52: 0 | T52: 0 | U52: 0 | V52: 0 | W52: 0 | X52: 0 | Y52: 0 | AA52: 0 | AB52: 0 | AC52: =CHOOSE(TaxRates,Tables!Z95,Tables!AA95) -> 0.4 | AD52: 0 | AE52: 0 | AF52: 0 | AH52: 0 | AI52: 0 | AJ52: =CHOOSE(TaxRates,Tables!Z95,Tables!AA95) -> 0.4 | AK52: 0 | AL52: 0 | AM52: 0 | AO52: =IF(C52>=RetAge,0,IF(AP52<MIN($AP$13:AP51),MAX($AO$13:AO51)+1,0)) -> 0 | AP52: 0 | AQ52: 0 | AR52: =CHOOSE(TaxRates,Tables!Z95,Tables!AA95) -> 0.4 | AS52: 0 | AT52: 0 | AU52: 0 | AW52: =IF(C52>=RetAge,0,IF(AX52<MIN($AX$13:AX51),MAX($AW$13:AW51)+1,0)) -> 0 | AX52: 0 | AY52: =CHOOSE(TaxRates,Tables!Z95,Tables!AA95) -> 0.4 | AZ52: 0 | BA52: 0 | BB52: 0 | BC52: 0 | BF52: 0 | BG52: 0 | BH52: =CHOOSE(TaxRates,Tables!Z95,Tables!AA95) -> 0.4 | BI52: 0 | BJ52: 0 | BK52: 0 | BM52: 0 | BN52: =CHOOSE(TaxRates,Tables!Z95,Tables!AA95) -> 0.4 | BO52: 0 | BP52: 0 | BQ52: 0 | BR52: 0 | BT52: 0 | BU52: =CHOOSE(TaxRates,Tables!Z95,Tables!AA95) -> 0.4 | BV52: 0 | BW52: 0 | BX52: 0 | BY52: 0 | CA52: 0 | CB52: 0.025 | CC52: 0 | CD52: 0 | CF52: 0 | CG52: 0 | CH52: 0 | CI52: 0 | CK52: ='Illustration Modelling'!K55 -> 84 | CL52: ='Illustration Modelling'!M55 -> 0 | CM52: ='Illustration Modelling'!O55 -> 0 | CN52: ='Illustration Modelling'!P55 -> 0 | CP52: 0 | CQ52: 0 | CR52: 0 | CT52: 0 | CU52: 0 | CV52: 0 | CX52: 0 | CY52: 0 | CZ52: 0
A53: 41 | B53: 2055 | C53: 85 | E53: 0 | F53: 0 | G53: 0 | I53: =IF($C53>=RetAge,0,VLOOKUP($B53,Tables!$A$10:$T$126,18,FALSE)) -> 0 | J53: =IF($C53>=RetAge,0,IF(C53<CatchupAge,0,VLOOKUP($B53,Tables!$A$10:$T$126,20,FALSE))) -> 0 | K53: 0 | L53: 0 | M53: =IF($C53>=RetAge,0,VLOOKUP($B53,Tables!$A$10:$T$126,16,FALSE)) -> 0 | N53: 0 | O53: =IF($C53>=RetAge,0,VLOOKUP($B53,Tables!$A$10:$T$126,18,FALSE)) -> 0 | P53: 0 | R53: 0 | S53: 0 | T53: 0 | U53: 0 | V53: 0 | W53: 0 | X53: 0 | Y53: 0 | AA53: 0 | AB53: 0 | AC53: =CHOOSE(TaxRates,Tables!Z96,Tables!AA96) -> 0.4 | AD53: 0 | AE53: 0 | AF53: 0 | AH53: 0 | AI53: 0 | AJ53: =CHOOSE(TaxRates,Tables!Z96,Tables!AA96) -> 0.4 | AK53: 0 | AL53: 0 | AM53: 0 | AO53: =IF(C53>=RetAge,0,IF(AP53<MIN($AP$13:AP52),MAX($AO$13:AO52)+1,0)) -> 0 | AP53: 0 | AQ53: 0 | AR53: =CHOOSE(TaxRates,Tables!Z96,Tables!AA96) -> 0.4 | AS53: 0 | AT53: 0 | AU53: 0 | AW53: =IF(C53>=RetAge,0,IF(AX53<MIN($AX$13:AX52),MAX($AW$13:AW52)+1,0)) -> 0 | AX53: 0 | AY53: =CHOOSE(TaxRates,Tables!Z96,Tables!AA96) -> 0.4 | AZ53: 0 | BA53: 0 | BB53: 0 | BC53: 0 | BF53: 0 | BG53: 0 | BH53: =CHOOSE(TaxRates,Tables!Z96,Tables!AA96) -> 0.4 | BI53: 0 | BJ53: 0 | BK53: 0 | BM53: 0 | BN53: =CHOOSE(TaxRates,Tables!Z96,Tables!AA96) -> 0.4 | BO53: 0 | BP53: 0 | BQ53: 0 | BR53: 0 | BT53: 0 | BU53: =CHOOSE(TaxRates,Tables!Z96,Tables!AA96) -> 0.4 | BV53: 0 | BW53: 0 | BX53: 0 | BY53: 0 | CA53: 0 | CB53: 0.025 | CC53: 0 | CD53: 0 | CF53: 0 | CG53: 0 | CH53: 0 | CI53: 0 | CK53: ='Illustration Modelling'!K56 -> 85 | CL53: ='Illustration Modelling'!M56 -> 0 | CM53: ='Illustration Modelling'!O56 -> 0 | CN53: ='Illustration Modelling'!P56 -> 0 | CP53: 0 | CQ53: 0 | CR53: 0 | CT53: 0 | CU53: 0 | CV53: 0 | CX53: 0 | CY53: 0 | CZ53: 0
A54: 42 | B54: 2056 | C54: 86 | E54: 0 | F54: 0 | G54: 0 | I54: =IF($C54>=RetAge,0,VLOOKUP($B54,Tables!$A$10:$T$126,18,FALSE)) -> 0 | J54: =IF($C54>=RetAge,0,IF(C54<CatchupAge,0,VLOOKUP($B54,Tables!$A$10:$T$126,20,FALSE))) -> 0 | K54: 0 | L54: 0 | M54: =IF($C54>=RetAge,0,VLOOKUP($B54,Tables!$A$10:$T$126,16,FALSE)) -> 0 | N54: 0 | O54: =IF($C54>=RetAge,0,VLOOKUP($B54,Tables!$A$10:$T$126,18,FALSE)) -> 0 | P54: 0 | R54: 0 | S54: 0 | T54: 0 | U54: 0 | V54: 0 | W54: 0 | X54: 0 | Y54: 0 | AA54: 0 | AB54: 0 | AC54: =CHOOSE(TaxRates,Tables!Z97,Tables!AA97) -> 0.4 | AD54: 0 | AE54: 0 | AF54: 0 | AH54: 0 | AI54: 0 | AJ54: =CHOOSE(TaxRates,Tables!Z97,Tables!AA97) -> 0.4 | AK54: 0 | AL54: 0 | AM54: 0 | AO54: =IF(C54>=RetAge,0,IF(AP54<MIN($AP$13:AP53),MAX($AO$13:AO53)+1,0)) -> 0 | AP54: 0 | AQ54: 0 | AR54: =CHOOSE(TaxRates,Tables!Z97,Tables!AA97) -> 0.4 | AS54: 0 | AT54: 0 | AU54: 0 | AW54: =IF(C54>=RetAge,0,IF(AX54<MIN($AX$13:AX53),MAX($AW$13:AW53)+1,0)) -> 0 | AX54: 0 | AY54: =CHOOSE(TaxRates,Tables!Z97,Tables!AA97) -> 0.4 | AZ54: 0 | BA54: 0 | BB54: 0 | BC54: 0 | BF54: 0 | BG54: 0 | BH54: =CHOOSE(TaxRates,Tables!Z97,Tables!AA97) -> 0.4 | BI54: 0 | BJ54: 0 | BK54: 0 | BM54: 0 | BN54: =CHOOSE(TaxRates,Tables!Z97,Tables!AA97) -> 0.4 | BO54: 0 | BP54: 0 | BQ54: 0 | BR54: 0 | BT54: 0 | BU54: =CHOOSE(TaxRates,Tables!Z97,Tables!AA97) -> 0.4 | BV54: 0 | BW54: 0 | BX54: 0 | BY54: 0 | CA54: 0 | CB54: 0.025 | CC54: 0 | CD54: 0 | CF54: 0 | CG54: 0 | CH54: 0 | CI54: 0 | CK54: ='Illustration Modelling'!K57 -> 86 | CL54: ='Illustration Modelling'!M57 -> 0 | CM54: ='Illustration Modelling'!O57 -> 0 | CN54: ='Illustration Modelling'!P57 -> 0 | CP54: 0 | CQ54: 0 | CR54: 0 | CT54: 0 | CU54: 0 | CV54: 0 | CX54: 0 | CY54: 0 | CZ54: 0
A55: 43 | B55: 2057 | C55: 87 | E55: 0 | F55: 0 | G55: 0 | I55: =IF($C55>=RetAge,0,VLOOKUP($B55,Tables!$A$10:$T$126,18,FALSE)) -> 0 | J55: =IF($C55>=RetAge,0,IF(C55<CatchupAge,0,VLOOKUP($B55,Tables!$A$10:$T$126,20,FALSE))) -> 0 | K55: 0 | L55: 0 | M55: =IF($C55>=RetAge,0,VLOOKUP($B55,Tables!$A$10:$T$126,16,FALSE)) -> 0 | N55: 0 | O55: =IF($C55>=RetAge,0,VLOOKUP($B55,Tables!$A$10:$T$126,18,FALSE)) -> 0 | P55: 0 | R55: 0 | S55: 0 | T55: 0 | U55: 0 | V55: 0 | W55: 0 | X55: 0 | Y55: 0 | AA55: 0 | AB55: 0 | AC55: =CHOOSE(TaxRates,Tables!Z98,Tables!AA98) -> 0.4 | AD55: 0 | AE55: 0 | AF55: 0 | AH55: 0 | AI55: 0 | AJ55: =CHOOSE(TaxRates,Tables!Z98,Tables!AA98) -> 0.4 | AK55: 0 | AL55: 0 | AM55: 0 | AO55: =IF(C55>=RetAge,0,IF(AP55<MIN($AP$13:AP54),MAX($AO$13:AO54)+1,0)) -> 0 | AP55: 0 | AQ55: 0 | AR55: =CHOOSE(TaxRates,Tables!Z98,Tables!AA98) -> 0.4 | AS55: 0 | AT55: 0 | AU55: 0 | AW55: =IF(C55>=RetAge,0,IF(AX55<MIN($AX$13:AX54),MAX($AW$13:AW54)+1,0)) -> 0 | AX55: 0 | AY55: =CHOOSE(TaxRates,Tables!Z98,Tables!AA98) -> 0.4 | AZ55: 0 | BA55: 0 | BB55: 0 | BC55: 0 | BF55: 0 | BG55: 0 | BH55: =CHOOSE(TaxRates,Tables!Z98,Tables!AA98) -> 0.4 | BI55: 0 | BJ55: 0 | BK55: 0 | BM55: 0 | BN55: =CHOOSE(TaxRates,Tables!Z98,Tables!AA98) -> 0.4 | BO55: 0 | BP55: 0 | BQ55: 0 | BR55: 0 | BT55: 0 | BU55: =CHOOSE(TaxRates,Tables!Z98,Tables!AA98) -> 0.4 | BV55: 0 | BW55: 0 | BX55: 0 | BY55: 0 | CA55: 0 | CB55: 0.025 | CC55: 0 | CD55: 0 | CF55: 0 | CG55: 0 | CH55: 0 | CI55: 0 | CK55: ='Illustration Modelling'!K58 -> 87 | CL55: ='Illustration Modelling'!M58 -> 0 | CM55: ='Illustration Modelling'!O58 -> 0 | CN55: ='Illustration Modelling'!P58 -> 0 | CP55: 0 | CQ55: 0 | CR55: 0 | CT55: 0 | CU55: 0 | CV55: 0 | CX55: 0 | CY55: 0 | CZ55: 0
A56: 44 | B56: 2058 | C56: 88 | E56: 0 | F56: 0 | G56: 0 | I56: =IF($C56>=RetAge,0,VLOOKUP($B56,Tables!$A$10:$T$126,18,FALSE)) -> 0 | J56: =IF($C56>=RetAge,0,IF(C56<CatchupAge,0,VLOOKUP($B56,Tables!$A$10:$T$126,20,FALSE))) -> 0 | K56: 0 | L56: 0 | M56: =IF($C56>=RetAge,0,VLOOKUP($B56,Tables!$A$10:$T$126,16,FALSE)) -> 0 | N56: 0 | O56: =IF($C56>=RetAge,0,VLOOKUP($B56,Tables!$A$10:$T$126,18,FALSE)) -> 0 | P56: 0 | R56: 0 | S56: 0 | T56: 0 | U56: 0 | V56: 0 | W56: 0 | X56: 0 | Y56: 0 | AA56: 0 | AB56: 0 | AC56: =CHOOSE(TaxRates,Tables!Z99,Tables!AA99) -> 0.4 | AD56: 0 | AE56: 0 | AF56: 0 | AH56: 0 | AI56: 0 | AJ56: =CHOOSE(TaxRates,Tables!Z99,Tables!AA99) -> 0.4 | AK56: 0 | AL56: 0 | AM56: 0 | AO56: =IF(C56>=RetAge,0,IF(AP56<MIN($AP$13:AP55),MAX($AO$13:AO55)+1,0)) -> 0 | AP56: 0 | AQ56: 0 | AR56: =CHOOSE(TaxRates,Tables!Z99,Tables!AA99) -> 0.4 | AS56: 0 | AT56: 0 | AU56: 0 | AW56: =IF(C56>=RetAge,0,IF(AX56<MIN($AX$13:AX55),MAX($AW$13:AW55)+1,0)) -> 0 | AX56: 0 | AY56: =CHOOSE(TaxRates,Tables!Z99,Tables!AA99) -> 0.4 | AZ56: 0 | BA56: 0 | BB56: 0 | BC56: 0 | BF56: 0 | BG56: 0 | BH56: =CHOOSE(TaxRates,Tables!Z99,Tables!AA99) -> 0.4 | BI56: 0 | BJ56: 0 | BK56: 0 | BM56: 0 | BN56: =CHOOSE(TaxRates,Tables!Z99,Tables!AA99) -> 0.4 | BO56: 0 | BP56: 0 | BQ56: 0 | BR56: 0 | BT56: 0 | BU56: =CHOOSE(TaxRates,Tables!Z99,Tables!AA99) -> 0.4 | BV56: 0 | BW56: 0 | BX56: 0 | BY56: 0 | CA56: 0 | CB56: 0.025 | CC56: 0 | CD56: 0 | CF56: 0 | CG56: 0 | CH56: 0 | CI56: 0 | CK56: ='Illustration Modelling'!K59 -> 88 | CL56: ='Illustration Modelling'!M59 -> 0 | CM56: ='Illustration Modelling'!O59 -> 0 | CN56: ='Illustration Modelling'!P59 -> 0 | CP56: 0 | CQ56: 0 | CR56: 0 | CT56: 0 | CU56: 0 | CV56: 0 | CX56: 0 | CY56: 0 | CZ56: 0
A57: 45 | B57: 2059 | C57: 89 | E57: 0 | F57: 0 | G57: 0 | I57: =IF($C57>=RetAge,0,VLOOKUP($B57,Tables!$A$10:$T$126,18,FALSE)) -> 0 | J57: =IF($C57>=RetAge,0,IF(C57<CatchupAge,0,VLOOKUP($B57,Tables!$A$10:$T$126,20,FALSE))) -> 0 | K57: 0 | L57: 0 | M57: =IF($C57>=RetAge,0,VLOOKUP($B57,Tables!$A$10:$T$126,16,FALSE)) -> 0 | N57: 0 | O57: =IF($C57>=RetAge,0,VLOOKUP($B57,Tables!$A$10:$T$126,18,FALSE)) -> 0 | P57: 0 | R57: 0 | S57: 0 | T57: 0 | U57: 0 | V57: 0 | W57: 0 | X57: 0 | Y57: 0 | AA57: 0 | AB57: 0 | AC57: =CHOOSE(TaxRates,Tables!Z100,Tables!AA100) -> 0.4 | AD57: 0 | AE57: 0 | AF57: 0 | AH57: 0 | AI57: 0 | AJ57: =CHOOSE(TaxRates,Tables!Z100,Tables!AA100) -> 0.4 | AK57: 0 | AL57: 0 | AM57: 0 | AO57: =IF(C57>=RetAge,0,IF(AP57<MIN($AP$13:AP56),MAX($AO$13:AO56)+1,0)) -> 0 | AP57: 0 | AQ57: 0 | AR57: =CHOOSE(TaxRates,Tables!Z100,Tables!AA100) -> 0.4 | AS57: 0 | AT57: 0 | AU57: 0 | AW57: =IF(C57>=RetAge,0,IF(AX57<MIN($AX$13:AX56),MAX($AW$13:AW56)+1,0)) -> 0 | AX57: 0 | AY57: =CHOOSE(TaxRates,Tables!Z100,Tables!AA100) -> 0.4 | AZ57: 0 | BA57: 0 | BB57: 0 | BC57: 0 | BF57: 0 | BG57: 0 | BH57: =CHOOSE(TaxRates,Tables!Z100,Tables!AA100) -> 0.4 | BI57: 0 | BJ57: 0 | BK57: 0 | BM57: 0 | BN57: =CHOOSE(TaxRates,Tables!Z100,Tables!AA100) -> 0.4 | BO57: 0 | BP57: 0 | BQ57: 0 | BR57: 0 | BT57: 0 | BU57: =CHOOSE(TaxRates,Tables!Z100,Tables!AA100) -> 0.4 | BV57: 0 | BW57: 0 | BX57: 0 | BY57: 0 | CA57: 0 | CB57: 0.025 | CC57: 0 | CD57: 0 | CF57: 0 | CG57: 0 | CH57: 0 | CI57: 0 | CK57: ='Illustration Modelling'!K60 -> 89 | CL57: ='Illustration Modelling'!M60 -> 0 | CM57: ='Illustration Modelling'!O60 -> 0 | CN57: ='Illustration Modelling'!P60 -> 0 | CP57: 0 | CQ57: 0 | CR57: 0 | CT57: 0 | CU57: 0 | CV57: 0 | CX57: 0 | CY57: 0 | CZ57: 0
A58: 46 | B58: 2060 | C58: 90 | E58: 0 | F58: 0 | G58: 0 | I58: =IF($C58>=RetAge,0,VLOOKUP($B58,Tables!$A$10:$T$126,18,FALSE)) -> 0 | J58: =IF($C58>=RetAge,0,IF(C58<CatchupAge,0,VLOOKUP($B58,Tables!$A$10:$T$126,20,FALSE))) -> 0 | K58: 0 | L58: 0 | M58: =IF($C58>=RetAge,0,VLOOKUP($B58,Tables!$A$10:$T$126,16,FALSE)) -> 0 | N58: 0 | O58: =IF($C58>=RetAge,0,VLOOKUP($B58,Tables!$A$10:$T$126,18,FALSE)) -> 0 | P58: 0 | R58: 0 | S58: 0 | T58: 0 | U58: 0 | V58: 0 | W58: 0 | X58: 0 | Y58: 0 | AA58: 0 | AB58: 0 | AC58: =CHOOSE(TaxRates,Tables!Z101,Tables!AA101) -> 0.4 | AD58: 0 | AE58: 0 | AF58: 0 | AH58: 0 | AI58: 0 | AJ58: =CHOOSE(TaxRates,Tables!Z101,Tables!AA101) -> 0.4 | AK58: 0 | AL58: 0 | AM58: 0 | AO58: =IF(C58>=RetAge,0,IF(AP58<MIN($AP$13:AP57),MAX($AO$13:AO57)+1,0)) -> 0 | AP58: 0 | AQ58: 0 | AR58: =CHOOSE(TaxRates,Tables!Z101,Tables!AA101) -> 0.4 | AS58: 0 | AT58: 0 | AU58: 0 | AW58: =IF(C58>=RetAge,0,IF(AX58<MIN($AX$13:AX57),MAX($AW$13:AW57)+1,0)) -> 0 | AX58: 0 | AY58: =CHOOSE(TaxRates,Tables!Z101,Tables!AA101) -> 0.4 | AZ58: 0 | BA58: 0 | BB58: 0 | BC58: 0 | BF58: 0 | BG58: 0 | BH58: =CHOOSE(TaxRates,Tables!Z101,Tables!AA101) -> 0.4 | BI58: 0 | BJ58: 0 | BK58: 0 | BM58: 0 | BN58: =CHOOSE(TaxRates,Tables!Z101,Tables!AA101) -> 0.4 | BO58: 0 | BP58: 0 | BQ58: 0 | BR58: 0 | BT58: 0 | BU58: =CHOOSE(TaxRates,Tables!Z101,Tables!AA101) -> 0.4 | BV58: 0 | BW58: 0 | BX58: 0 | BY58: 0 | CA58: 0 | CB58: 0.025 | CC58: 0 | CD58: 0 | CF58: 0 | CG58: 0 | CH58: 0 | CI58: 0 | CK58: ='Illustration Modelling'!K61 -> 90 | CL58: ='Illustration Modelling'!M61 -> 0 | CM58: ='Illustration Modelling'!O61 -> 0 | CN58: ='Illustration Modelling'!P61 -> 0 | CP58: 0 | CQ58: 0 | CR58: 0 | CT58: 0 | CU58: 0 | CV58: 0 | CX58: 0 | CY58: 0 | CZ58: 0
A59: 47 | B59: 2061 | C59: 91 | E59: 0 | F59: 0 | G59: 0 | I59: =IF($C59>=RetAge,0,VLOOKUP($B59,Tables!$A$10:$T$126,18,FALSE)) -> 0 | J59: =IF($C59>=RetAge,0,IF(C59<CatchupAge,0,VLOOKUP($B59,Tables!$A$10:$T$126,20,FALSE))) -> 0 | K59: 0 | L59: 0 | M59: =IF($C59>=RetAge,0,VLOOKUP($B59,Tables!$A$10:$T$126,16,FALSE)) -> 0 | N59: 0 | O59: =IF($C59>=RetAge,0,VLOOKUP($B59,Tables!$A$10:$T$126,18,FALSE)) -> 0 | P59: 0 | R59: 0 | S59: 0 | T59: 0 | U59: 0 | V59: 0 | W59: 0 | X59: 0 | Y59: 0 | AA59: 0 | AB59: 0 | AC59: =CHOOSE(TaxRates,Tables!Z102,Tables!AA102) -> 0.4 | AD59: 0 | AE59: 0 | AF59: 0 | AH59: 0 | AI59: 0 | AJ59: =CHOOSE(TaxRates,Tables!Z102,Tables!AA102) -> 0.4 | AK59: 0 | AL59: 0 | AM59: 0 | AO59: =IF(C59>=RetAge,0,IF(AP59<MIN($AP$13:AP58),MAX($AO$13:AO58)+1,0)) -> 0 | AP59: 0 | AQ59: 0 | AR59: =CHOOSE(TaxRates,Tables!Z102,Tables!AA102) -> 0.4 | AS59: 0 | AT59: 0 | AU59: 0 | AW59: =IF(C59>=RetAge,0,IF(AX59<MIN($AX$13:AX58),MAX($AW$13:AW58)+1,0)) -> 0 | AX59: 0 | AY59: =CHOOSE(TaxRates,Tables!Z102,Tables!AA102) -> 0.4 | AZ59: 0 | BA59: 0 | BB59: 0 | BC59: 0 | BF59: 0 | BG59: 0 | BH59: =CHOOSE(TaxRates,Tables!Z102,Tables!AA102) -> 0.4 | BI59: 0 | BJ59: 0 | BK59: 0 | BM59: 0 | BN59: =CHOOSE(TaxRates,Tables!Z102,Tables!AA102) -> 0.4 | BO59: 0 | BP59: 0 | BQ59: 0 | BR59: 0 | BT59: 0 | BU59: =CHOOSE(TaxRates,Tables!Z102,Tables!AA102) -> 0.4 | BV59: 0 | BW59: 0 | BX59: 0 | BY59: 0 | CA59: 0 | CB59: 0.025 | CC59: 0 | CD59: 0 | CF59: 0 | CG59: 0 | CH59: 0 | CI59: 0 | CK59: ='Illustration Modelling'!K62 -> 91 | CL59: ='Illustration Modelling'!M62 -> 0 | CM59: ='Illustration Modelling'!O62 -> 0 | CN59: ='Illustration Modelling'!P62 -> 0 | CP59: 0 | CQ59: 0 | CR59: 0 | CT59: 0 | CU59: 0 | CV59: 0 | CX59: 0 | CY59: 0 | CZ59: 0
A60: 48 | B60: 2062 | C60: 92 | E60: 0 | F60: 0 | G60: 0 | I60: =IF($C60>=RetAge,0,VLOOKUP($B60,Tables!$A$10:$T$126,18,FALSE)) -> 0 | J60: =IF($C60>=RetAge,0,IF(C60<CatchupAge,0,VLOOKUP($B60,Tables!$A$10:$T$126,20,FALSE))) -> 0 | K60: 0 | L60: 0 | M60: =IF($C60>=RetAge,0,VLOOKUP($B60,Tables!$A$10:$T$126,16,FALSE)) -> 0 | N60: 0 | O60: =IF($C60>=RetAge,0,VLOOKUP($B60,Tables!$A$10:$T$126,18,FALSE)) -> 0 | P60: 0 | R60: 0 | S60: 0 | T60: 0 | U60: 0 | V60: 0 | W60: 0 | X60: 0 | Y60: 0 | AA60: 0 | AB60: 0 | AC60: =CHOOSE(TaxRates,Tables!Z103,Tables!AA103) -> 0.4 | AD60: 0 | AE60: 0 | AF60: 0 | AH60: 0 | AI60: 0 | AJ60: =CHOOSE(TaxRates,Tables!Z103,Tables!AA103) -> 0.4 | AK60: 0 | AL60: 0 | AM60: 0 | AO60: =IF(C60>=RetAge,0,IF(AP60<MIN($AP$13:AP59),MAX($AO$13:AO59)+1,0)) -> 0 | AP60: 0 | AQ60: 0 | AR60: =CHOOSE(TaxRates,Tables!Z103,Tables!AA103) -> 0.4 | AS60: 0 | AT60: 0 | AU60: 0 | AW60: =IF(C60>=RetAge,0,IF(AX60<MIN($AX$13:AX59),MAX($AW$13:AW59)+1,0)) -> 0 | AX60: 0 | AY60: =CHOOSE(TaxRates,Tables!Z103,Tables!AA103) -> 0.4 | AZ60: 0 | BA60: 0 | BB60: 0 | BC60: 0 | BF60: 0 | BG60: 0 | BH60: =CHOOSE(TaxRates,Tables!Z103,Tables!AA103) -> 0.4 | BI60: 0 | BJ60: 0 | BK60: 0 | BM60: 0 | BN60: =CHOOSE(TaxRates,Tables!Z103,Tables!AA103) -> 0.4 | BO60: 0 | BP60: 0 | BQ60: 0 | BR60: 0 | BT60: 0 | BU60: =CHOOSE(TaxRates,Tables!Z103,Tables!AA103) -> 0.4 | BV60: 0 | BW60: 0 | BX60: 0 | BY60: 0 | CA60: 0 | CB60: 0.025 | CC60: 0 | CD60: 0 | CF60: 0 | CG60: 0 | CH60: 0 | CI60: 0 | CK60: ='Illustration Modelling'!K63 -> 92 | CL60: ='Illustration Modelling'!M63 -> 0 | CM60: ='Illustration Modelling'!O63 -> 0 | CN60: ='Illustration Modelling'!P63 -> 0 | CP60: 0 | CQ60: 0 | CR60: 0 | CT60: 0 | CU60: 0 | CV60: 0 | CX60: 0 | CY60: 0 | CZ60: 0
A61: 49 | B61: 2063 | C61: 93 | E61: 0 | F61: 0 | G61: 0 | I61: =IF($C61>=RetAge,0,VLOOKUP($B61,Tables!$A$10:$T$126,18,FALSE)) -> 0 | J61: =IF($C61>=RetAge,0,IF(C61<CatchupAge,0,VLOOKUP($B61,Tables!$A$10:$T$126,20,FALSE))) -> 0 | K61: 0 | L61: 0 | M61: =IF($C61>=RetAge,0,VLOOKUP($B61,Tables!$A$10:$T$126,16,FALSE)) -> 0 | N61: 0 | O61: =IF($C61>=RetAge,0,VLOOKUP($B61,Tables!$A$10:$T$126,18,FALSE)) -> 0 | P61: 0 | R61: 0 | S61: 0 | T61: 0 | U61: 0 | V61: 0 | W61: 0 | X61: 0 | Y61: 0 | AA61: 0 | AB61: 0 | AC61: =CHOOSE(TaxRates,Tables!Z104,Tables!AA104) -> 0.4 | AD61: 0 | AE61: 0 | AF61: 0 | AH61: 0 | AI61: 0 | AJ61: =CHOOSE(TaxRates,Tables!Z104,Tables!AA104) -> 0.4 | AK61: 0 | AL61: 0 | AM61: 0 | AO61: =IF(C61>=RetAge,0,IF(AP61<MIN($AP$13:AP60),MAX($AO$13:AO60)+1,0)) -> 0 | AP61: 0 | AQ61: 0 | AR61: =CHOOSE(TaxRates,Tables!Z104,Tables!AA104) -> 0.4 | AS61: 0 | AT61: 0 | AU61: 0 | AW61: =IF(C61>=RetAge,0,IF(AX61<MIN($AX$13:AX60),MAX($AW$13:AW60)+1,0)) -> 0 | AX61: 0 | AY61: =CHOOSE(TaxRates,Tables!Z104,Tables!AA104) -> 0.4 | AZ61: 0 | BA61: 0 | BB61: 0 | BC61: 0 | BF61: 0 | BG61: 0 | BH61: =CHOOSE(TaxRates,Tables!Z104,Tables!AA104) -> 0.4 | BI61: 0 | BJ61: 0 | BK61: 0 | BM61: 0 | BN61: =CHOOSE(TaxRates,Tables!Z104,Tables!AA104) -> 0.4 | BO61: 0 | BP61: 0 | BQ61: 0 | BR61: 0 | BT61: 0 | BU61: =CHOOSE(TaxRates,Tables!Z104,Tables!AA104) -> 0.4 | BV61: 0 | BW61: 0 | BX61: 0 | BY61: 0 | CA61: 0 | CB61: 0.025 | CC61: 0 | CD61: 0 | CF61: 0 | CG61: 0 | CH61: 0 | CI61: 0 | CK61: ='Illustration Modelling'!K64 -> 93 | CL61: ='Illustration Modelling'!M64 -> 0 | CM61: ='Illustration Modelling'!O64 -> 0 | CN61: ='Illustration Modelling'!P64 -> 0 | CP61: 0 | CQ61: 0 | CR61: 0 | CT61: 0 | CU61: 0 | CV61: 0 | CX61: 0 | CY61: 0 | CZ61: 0
A62: =A61+1 -> 50 | B62: 2064 | C62: 94 | E62: 0 | F62: 0 | G62: 0 | I62: =IF($C62>=RetAge,0,VLOOKUP($B62,Tables!$A$10:$T$126,18,FALSE)) -> 0 | J62: =IF($C62>=RetAge,0,IF(C62<CatchupAge,0,VLOOKUP($B62,Tables!$A$10:$T$126,20,FALSE))) -> 0 | K62: 0 | L62: 0 | M62: =IF($C62>=RetAge,0,VLOOKUP($B62,Tables!$A$10:$T$126,16,FALSE)) -> 0 | N62: 0 | O62: =IF($C62>=RetAge,0,VLOOKUP($B62,Tables!$A$10:$T$126,18,FALSE)) -> 0 | P62: 0 | R62: 0 | S62: 0 | T62: 0 | U62: 0 | V62: 0 | W62: 0 | X62: 0 | Y62: 0 | AA62: 0 | AB62: 0 | AC62: =CHOOSE(TaxRates,Tables!Z105,Tables!AA105) -> 0.4 | AD62: 0 | AE62: 0 | AF62: 0 | AH62: 0 | AI62: 0 | AJ62: =CHOOSE(TaxRates,Tables!Z105,Tables!AA105) -> 0.4 | AK62: 0 | AL62: 0 | AM62: 0 | AO62: =IF(C62>=RetAge,0,IF(AP62<MIN($AP$13:AP61),MAX($AO$13:AO61)+1,0)) -> 0 | AP62: 0 | AQ62: 0 | AR62: =CHOOSE(TaxRates,Tables!Z105,Tables!AA105) -> 0.4 | AS62: 0 | AT62: 0 | AU62: 0 | AW62: =IF(C62>=RetAge,0,IF(AX62<MIN($AX$13:AX61),MAX($AW$13:AW61)+1,0)) -> 0 | AX62: 0 | AY62: =CHOOSE(TaxRates,Tables!Z105,Tables!AA105) -> 0.4 | AZ62: 0 | BA62: 0 | BB62: 0 | BC62: 0 | BF62: 0 | BG62: 0 | BH62: =CHOOSE(TaxRates,Tables!Z105,Tables!AA105) -> 0.4 | BI62: 0 | BJ62: 0 | BK62: 0 | BM62: 0 | BN62: =CHOOSE(TaxRates,Tables!Z105,Tables!AA105) -> 0.4 | BO62: 0 | BP62: 0 | BQ62: 0 | BR62: 0 | BT62: 0 | BU62: =CHOOSE(TaxRates,Tables!Z105,Tables!AA105) -> 0.4 | BV62: 0 | BW62: 0 | BX62: 0 | BY62: 0 | CA62: 0 | CB62: 0.025 | CC62: 0 | CD62: 0 | CF62: 0 | CG62: 0 | CH62: 0 | CI62: 0 | CK62: ='Illustration Modelling'!K65 -> 94 | CL62: ='Illustration Modelling'!M65 -> 0 | CM62: ='Illustration Modelling'!O65 -> 0 | CN62: ='Illustration Modelling'!P65 -> 0 | CP62: 0 | CQ62: 0 | CR62: 0 | CT62: 0 | CU62: 0 | CV62: 0 | CX62: 0 | CY62: 0 | CZ62: 0
A63: 51 | B63: 2065 | C63: 95 | E63: 0 | F63: 0 | G63: 0 | I63: =IF($C63>=RetAge,0,VLOOKUP($B63,Tables!$A$10:$T$126,18,FALSE)) -> 0 | J63: =IF($C63>=RetAge,0,IF(C63<CatchupAge,0,VLOOKUP($B63,Tables!$A$10:$T$126,20,FALSE))) -> 0 | K63: 0 | L63: 0 | M63: =IF($C63>=RetAge,0,VLOOKUP($B63,Tables!$A$10:$T$126,16,FALSE)) -> 0 | N63: 0 | O63: =IF($C63>=RetAge,0,VLOOKUP($B63,Tables!$A$10:$T$126,18,FALSE)) -> 0 | P63: 0 | R63: 0 | S63: 0 | T63: 0 | U63: 0 | V63: 0 | W63: 0 | X63: 0 | Y63: 0 | AA63: 0 | AB63: 0 | AC63: =CHOOSE(TaxRates,Tables!Z106,Tables!AA106) -> 0.4 | AD63: 0 | AE63: 0 | AF63: 0 | AH63: 0 | AI63: 0 | AJ63: =CHOOSE(TaxRates,Tables!Z106,Tables!AA106) -> 0.4 | AK63: 0 | AL63: 0 | AM63: 0 | AO63: =IF(C63>=RetAge,0,IF(AP63<MIN($AP$13:AP62),MAX($AO$13:AO62)+1,0)) -> 0 | AP63: 0 | AQ63: 0 | AR63: =CHOOSE(TaxRates,Tables!Z106,Tables!AA106) -> 0.4 | AS63: 0 | AT63: 0 | AU63: 0 | AW63: =IF(C63>=RetAge,0,IF(AX63<MIN($AX$13:AX62),MAX($AW$13:AW62)+1,0)) -> 0 | AX63: 0 | AY63: =CHOOSE(TaxRates,Tables!Z106,Tables!AA106) -> 0.4 | AZ63: 0 | BA63: 0 | BB63: 0 | BC63: 0 | BF63: 0 | BG63: 0 | BH63: =CHOOSE(TaxRates,Tables!Z106,Tables!AA106) -> 0.4 | BI63: 0 | BJ63: 0 | BK63: 0 | BM63: 0 | BN63: =CHOOSE(TaxRates,Tables!Z106,Tables!AA106) -> 0.4 | BO63: 0 | BP63: 0 | BQ63: 0 | BR63: 0 | BT63: 0 | BU63: =CHOOSE(TaxRates,Tables!Z106,Tables!AA106) -> 0.4 | BV63: 0 | BW63: 0 | BX63: 0 | BY63: 0 | CA63: 0 | CB63: 0.025 | CC63: 0 | CD63: 0 | CF63: 0 | CG63: 0 | CH63: 0 | CI63: 0 | CK63: ='Illustration Modelling'!K66 -> 95 | CL63: ='Illustration Modelling'!M66 -> 0 | CM63: ='Illustration Modelling'!O66 -> 0 | CN63: ='Illustration Modelling'!P66 -> 0 | CP63: 0 | CQ63: 0 | CR63: 0 | CT63: 0 | CU63: 0 | CV63: 0 | CX63: 0 | CY63: 0 | CZ63: 0
A64: 52 | B64: 2066 | C64: 96 | E64: 0 | F64: 0 | G64: 0 | I64: =IF($C64>=RetAge,0,VLOOKUP($B64,Tables!$A$10:$T$126,18,FALSE)) -> 0 | J64: =IF($C64>=RetAge,0,IF(C64<CatchupAge,0,VLOOKUP($B64,Tables!$A$10:$T$126,20,FALSE))) -> 0 | K64: 0 | L64: 0 | M64: =IF($C64>=RetAge,0,VLOOKUP($B64,Tables!$A$10:$T$126,16,FALSE)) -> 0 | N64: 0 | O64: =IF($C64>=RetAge,0,VLOOKUP($B64,Tables!$A$10:$T$126,18,FALSE)) -> 0 | P64: 0 | R64: 0 | S64: 0 | T64: 0 | U64: 0 | V64: 0 | W64: 0 | X64: 0 | Y64: 0 | AA64: 0 | AB64: 0 | AC64: =CHOOSE(TaxRates,Tables!Z107,Tables!AA107) -> 0.4 | AD64: 0 | AE64: 0 | AF64: 0 | AH64: 0 | AI64: 0 | AJ64: =CHOOSE(TaxRates,Tables!Z107,Tables!AA107) -> 0.4 | AK64: 0 | AL64: 0 | AM64: 0 | AO64: =IF(C64>=RetAge,0,IF(AP64<MIN($AP$13:AP63),MAX($AO$13:AO63)+1,0)) -> 0 | AP64: 0 | AQ64: 0 | AR64: =CHOOSE(TaxRates,Tables!Z107,Tables!AA107) -> 0.4 | AS64: 0 | AT64: 0 | AU64: 0 | AW64: =IF(C64>=RetAge,0,IF(AX64<MIN($AX$13:AX63),MAX($AW$13:AW63)+1,0)) -> 0 | AX64: 0 | AY64: =CHOOSE(TaxRates,Tables!Z107,Tables!AA107) -> 0.4 | AZ64: 0 | BA64: 0 | BB64: 0 | BC64: 0 | BF64: 0 | BG64: 0 | BH64: =CHOOSE(TaxRates,Tables!Z107,Tables!AA107) -> 0.4 | BI64: 0 | BJ64: 0 | BK64: 0 | BM64: 0 | BN64: =CHOOSE(TaxRates,Tables!Z107,Tables!AA107) -> 0.4 | BO64: 0 | BP64: 0 | BQ64: 0 | BR64: 0 | BT64: 0 | BU64: =CHOOSE(TaxRates,Tables!Z107,Tables!AA107) -> 0.4 | BV64: 0 | BW64: 0 | BX64: 0 | BY64: 0 | CA64: 0 | CB64: 0.025 | CC64: 0 | CD64: 0 | CF64: 0 | CG64: 0 | CH64: 0 | CI64: 0 | CK64: ='Illustration Modelling'!K67 -> 96 | CL64: ='Illustration Modelling'!M67 -> 0 | CM64: ='Illustration Modelling'!O67 -> 0 | CN64: ='Illustration Modelling'!P67 -> 0 | CP64: 0 | CQ64: 0 | CR64: 0 | CT64: 0 | CU64: 0 | CV64: 0 | CX64: 0 | CY64: 0 | CZ64: 0
A65: 53 | B65: 2067 | C65: 97 | E65: 0 | F65: 0 | G65: 0 | I65: =IF($C65>=RetAge,0,VLOOKUP($B65,Tables!$A$10:$T$126,18,FALSE)) -> 0 | J65: =IF($C65>=RetAge,0,IF(C65<CatchupAge,0,VLOOKUP($B65,Tables!$A$10:$T$126,20,FALSE))) -> 0 | K65: 0 | L65: 0 | M65: =IF($C65>=RetAge,0,VLOOKUP($B65,Tables!$A$10:$T$126,16,FALSE)) -> 0 | N65: 0 | O65: =IF($C65>=RetAge,0,VLOOKUP($B65,Tables!$A$10:$T$126,18,FALSE)) -> 0 | P65: 0 | R65: 0 | S65: 0 | T65: 0 | U65: 0 | V65: 0 | W65: 0 | X65: 0 | Y65: 0 | AA65: 0 | AB65: 0 | AC65: =CHOOSE(TaxRates,Tables!Z108,Tables!AA108) -> 0.4 | AD65: 0 | AE65: 0 | AF65: 0 | AH65: 0 | AI65: 0 | AJ65: =CHOOSE(TaxRates,Tables!Z108,Tables!AA108) -> 0.4 | AK65: 0 | AL65: 0 | AM65: 0 | AO65: =IF(C65>=RetAge,0,IF(AP65<MIN($AP$13:AP64),MAX($AO$13:AO64)+1,0)) -> 0 | AP65: 0 | AQ65: 0 | AR65: =CHOOSE(TaxRates,Tables!Z108,Tables!AA108) -> 0.4 | AS65: 0 | AT65: 0 | AU65: 0 | AW65: =IF(C65>=RetAge,0,IF(AX65<MIN($AX$13:AX64),MAX($AW$13:AW64)+1,0)) -> 0 | AX65: 0 | AY65: =CHOOSE(TaxRates,Tables!Z108,Tables!AA108) -> 0.4 | AZ65: 0 | BA65: 0 | BB65: 0 | BC65: 0 | BF65: 0 | BG65: 0 | BH65: =CHOOSE(TaxRates,Tables!Z108,Tables!AA108) -> 0.4 | BI65: 0 | BJ65: 0 | BK65: 0 | BM65: 0 | BN65: =CHOOSE(TaxRates,Tables!Z108,Tables!AA108) -> 0.4 | BO65: 0 | BP65: 0 | BQ65: 0 | BR65: 0 | BT65: 0 | BU65: =CHOOSE(TaxRates,Tables!Z108,Tables!AA108) -> 0.4 | BV65: 0 | BW65: 0 | BX65: 0 | BY65: 0 | CA65: 0 | CB65: 0.025 | CC65: 0 | CD65: 0 | CF65: 0 | CG65: 0 | CH65: 0 | CI65: 0 | CK65: ='Illustration Modelling'!K68 -> 97 | CL65: ='Illustration Modelling'!M68 -> 0 | CM65: ='Illustration Modelling'!O68 -> 0 | CN65: ='Illustration Modelling'!P68 -> 0 | CP65: 0 | CQ65: 0 | CR65: 0 | CT65: 0 | CU65: 0 | CV65: 0 | CX65: 0 | CY65: 0 | CZ65: 0
A66: 54 | B66: 2068 | C66: 98 | E66: 0 | F66: 0 | G66: 0 | I66: =IF($C66>=RetAge,0,VLOOKUP($B66,Tables!$A$10:$T$126,18,FALSE)) -> 0 | J66: =IF($C66>=RetAge,0,IF(C66<CatchupAge,0,VLOOKUP($B66,Tables!$A$10:$T$126,20,FALSE))) -> 0 | K66: 0 | L66: 0 | M66: =IF($C66>=RetAge,0,VLOOKUP($B66,Tables!$A$10:$T$126,16,FALSE)) -> 0 | N66: 0 | O66: =IF($C66>=RetAge,0,VLOOKUP($B66,Tables!$A$10:$T$126,18,FALSE)) -> 0 | P66: 0 | R66: 0 | S66: 0 | T66: 0 | U66: 0 | V66: 0 | W66: 0 | X66: 0 | Y66: 0 | AA66: 0 | AB66: 0 | AC66: =CHOOSE(TaxRates,Tables!Z109,Tables!AA109) -> 0.4 | AD66: 0 | AE66: 0 | AF66: 0 | AH66: 0 | AI66: 0 | AJ66: =CHOOSE(TaxRates,Tables!Z109,Tables!AA109) -> 0.4 | AK66: 0 | AL66: 0 | AM66: 0 | AO66: =IF(C66>=RetAge,0,IF(AP66<MIN($AP$13:AP65),MAX($AO$13:AO65)+1,0)) -> 0 | AP66: 0 | AQ66: 0 | AR66: =CHOOSE(TaxRates,Tables!Z109,Tables!AA109) -> 0.4 | AS66: 0 | AT66: 0 | AU66: 0 | AW66: =IF(C66>=RetAge,0,IF(AX66<MIN($AX$13:AX65),MAX($AW$13:AW65)+1,0)) -> 0 | AX66: 0 | AY66: =CHOOSE(TaxRates,Tables!Z109,Tables!AA109) -> 0.4 | AZ66: 0 | BA66: 0 | BB66: 0 | BC66: 0 | BF66: 0 | BG66: 0 | BH66: =CHOOSE(TaxRates,Tables!Z109,Tables!AA109) -> 0.4 | BI66: 0 | BJ66: 0 | BK66: 0 | BM66: 0 | BN66: =CHOOSE(TaxRates,Tables!Z109,Tables!AA109) -> 0.4 | BO66: 0 | BP66: 0 | BQ66: 0 | BR66: 0 | BT66: 0 | BU66: =CHOOSE(TaxRates,Tables!Z109,Tables!AA109) -> 0.4 | BV66: 0 | BW66: 0 | BX66: 0 | BY66: 0 | CA66: 0 | CB66: 0.025 | CC66: 0 | CD66: 0 | CF66: 0 | CG66: 0 | CH66: 0 | CI66: 0 | CK66: ='Illustration Modelling'!K69 -> 98 | CL66: ='Illustration Modelling'!M69 -> 0 | CM66: ='Illustration Modelling'!O69 -> 0 | CN66: ='Illustration Modelling'!P69 -> 0 | CP66: 0 | CQ66: 0 | CR66: 0 | CT66: 0 | CU66: 0 | CV66: 0 | CX66: 0 | CY66: 0 | CZ66: 0
A67: 55 | B67: 2069 | C67: 99 | E67: 0 | F67: 0 | G67: 0 | I67: =IF($C67>=RetAge,0,VLOOKUP($B67,Tables!$A$10:$T$126,18,FALSE)) -> 0 | J67: =IF($C67>=RetAge,0,IF(C67<CatchupAge,0,VLOOKUP($B67,Tables!$A$10:$T$126,20,FALSE))) -> 0 | K67: 0 | L67: 0 | M67: =IF($C67>=RetAge,0,VLOOKUP($B67,Tables!$A$10:$T$126,16,FALSE)) -> 0 | N67: 0 | O67: =IF($C67>=RetAge,0,VLOOKUP($B67,Tables!$A$10:$T$126,18,FALSE)) -> 0 | P67: 0 | R67: 0 | S67: 0 | T67: 0 | U67: 0 | V67: 0 | W67: 0 | X67: 0 | Y67: 0 | AA67: 0 | AB67: 0 | AC67: =CHOOSE(TaxRates,Tables!Z110,Tables!AA110) -> 0.4 | AD67: 0 | AE67: 0 | AF67: 0 | AH67: 0 | AI67: 0 | AJ67: =CHOOSE(TaxRates,Tables!Z110,Tables!AA110) -> 0.4 | AK67: 0 | AL67: 0 | AM67: 0 | AO67: =IF(C67>=RetAge,0,IF(AP67<MIN($AP$13:AP66),MAX($AO$13:AO66)+1,0)) -> 0 | AP67: 0 | AQ67: 0 | AR67: =CHOOSE(TaxRates,Tables!Z110,Tables!AA110) -> 0.4 | AS67: 0 | AT67: 0 | AU67: 0 | AW67: =IF(C67>=RetAge,0,IF(AX67<MIN($AX$13:AX66),MAX($AW$13:AW66)+1,0)) -> 0 | AX67: 0 | AY67: =CHOOSE(TaxRates,Tables!Z110,Tables!AA110) -> 0.4 | AZ67: 0 | BA67: 0 | BB67: 0 | BC67: 0 | BF67: 0 | BG67: 0 | BH67: =CHOOSE(TaxRates,Tables!Z110,Tables!AA110) -> 0.4 | BI67: 0 | BJ67: 0 | BK67: 0 | BM67: 0 | BN67: =CHOOSE(TaxRates,Tables!Z110,Tables!AA110) -> 0.4 | BO67: 0 | BP67: 0 | BQ67: 0 | BR67: 0 | BT67: 0 | BU67: =CHOOSE(TaxRates,Tables!Z110,Tables!AA110) -> 0.4 | BV67: 0 | BW67: 0 | BX67: 0 | BY67: 0 | CA67: 0 | CB67: 0.025 | CC67: 0 | CD67: 0 | CF67: 0 | CG67: 0 | CH67: 0 | CI67: 0 | CK67: ='Illustration Modelling'!K70 -> 99 | CL67: ='Illustration Modelling'!M70 -> 0 | CM67: ='Illustration Modelling'!O70 -> 0 | CN67: ='Illustration Modelling'!P70 -> 0 | CP67: 0 | CQ67: 0 | CR67: 0 | CT67: 0 | CU67: 0 | CV67: 0 | CX67: 0 | CY67: 0 | CZ67: 0
A68: 56 | B68: 2070 | C68: 100 | E68: 0 | F68: 0 | G68: 0 | I68: =IF($C68>=RetAge,0,VLOOKUP($B68,Tables!$A$10:$T$126,18,FALSE)) -> 0 | J68: =IF($C68>=RetAge,0,IF(C68<CatchupAge,0,VLOOKUP($B68,Tables!$A$10:$T$126,20,FALSE))) -> 0 | K68: 0 | L68: 0 | M68: =IF($C68>=RetAge,0,VLOOKUP($B68,Tables!$A$10:$T$126,16,FALSE)) -> 0 | N68: 0 | O68: =IF($C68>=RetAge,0,VLOOKUP($B68,Tables!$A$10:$T$126,18,FALSE)) -> 0 | P68: 0 | R68: 0 | S68: 0 | T68: 0 | U68: 0 | V68: 0 | W68: 0 | X68: 0 | Y68: 0 | AA68: 0 | AB68: 0 | AC68: =CHOOSE(TaxRates,Tables!Z111,Tables!AA111) -> 0.4 | AD68: 0 | AE68: 0 | AF68: 0 | AH68: 0 | AI68: 0 | AJ68: =CHOOSE(TaxRates,Tables!Z111,Tables!AA111) -> 0.4 | AK68: 0 | AL68: 0 | AM68: 0 | AO68: =IF(C68>=RetAge,0,IF(AP68<MIN($AP$13:AP67),MAX($AO$13:AO67)+1,0)) -> 0 | AP68: 0 | AQ68: 0 | AR68: =CHOOSE(TaxRates,Tables!Z111,Tables!AA111) -> 0.4 | AS68: 0 | AT68: 0 | AU68: 0 | AW68: =IF(C68>=RetAge,0,IF(AX68<MIN($AX$13:AX67),MAX($AW$13:AW67)+1,0)) -> 0 | AX68: 0 | AY68: =CHOOSE(TaxRates,Tables!Z111,Tables!AA111) -> 0.4 | AZ68: 0 | BA68: 0 | BB68: 0 | BC68: 0 | BF68: 0 | BG68: 0 | BH68: =CHOOSE(TaxRates,Tables!Z111,Tables!AA111) -> 0.4 | BI68: 0 | BJ68: 0 | BK68: 0 | BM68: 0 | BN68: =CHOOSE(TaxRates,Tables!Z111,Tables!AA111) -> 0.4 | BO68: 0 | BP68: 0 | BQ68: 0 | BR68: 0 | BT68: 0 | BU68: =CHOOSE(TaxRates,Tables!Z111,Tables!AA111) -> 0.4 | BV68: 0 | BW68: 0 | BX68: 0 | BY68: 0 | CA68: 0 | CB68: 0.025 | CC68: 0 | CD68: 0 | CF68: 0 | CG68: 0 | CH68: 0 | CI68: 0 | CK68: ='Illustration Modelling'!K71 -> 100 | CL68: ='Illustration Modelling'!M71 -> 0 | CM68: ='Illustration Modelling'!O71 -> 0 | CN68: ='Illustration Modelling'!P71 -> 0 | CP68: 0 | CQ68: 0 | CR68: 0 | CT68: 0 | CU68: 0 | CV68: 0 | CX68: 0 | CY68: 0 | CZ68: 0
A69: 57 | B69: 2071 | C69: 101 | E69: 0 | F69: 0 | G69: 0 | I69: =IF($C69>=RetAge,0,VLOOKUP($B69,Tables!$A$10:$T$126,18,FALSE)) -> 0 | J69: =IF($C69>=RetAge,0,IF(C69<CatchupAge,0,VLOOKUP($B69,Tables!$A$10:$T$126,20,FALSE))) -> 0 | K69: 0 | L69: 0 | M69: =IF($C69>=RetAge,0,VLOOKUP($B69,Tables!$A$10:$T$126,16,FALSE)) -> 0 | N69: 0 | O69: =IF($C69>=RetAge,0,VLOOKUP($B69,Tables!$A$10:$T$126,18,FALSE)) -> 0 | P69: 0 | R69: 0 | S69: 0 | T69: 0 | U69: 0 | V69: 0 | W69: 0 | X69: 0 | Y69: 0 | AA69: 0 | AB69: 0 | AC69: =CHOOSE(TaxRates,Tables!Z112,Tables!AA112) -> 0.4 | AD69: 0 | AE69: 0 | AF69: 0 | AH69: 0 | AI69: 0 | AJ69: =CHOOSE(TaxRates,Tables!Z112,Tables!AA112) -> 0.4 | AK69: 0 | AL69: 0 | AM69: 0 | AO69: =IF(C69>=RetAge,0,IF(AP69<MIN($AP$13:AP68),MAX($AO$13:AO68)+1,0)) -> 0 | AP69: 0 | AQ69: 0 | AR69: =CHOOSE(TaxRates,Tables!Z112,Tables!AA112) -> 0.4 | AS69: 0 | AT69: 0 | AU69: 0 | AW69: =IF(C69>=RetAge,0,IF(AX69<MIN($AX$13:AX68),MAX($AW$13:AW68)+1,0)) -> 0 | AX69: 0 | AY69: =CHOOSE(TaxRates,Tables!Z112,Tables!AA112) -> 0.4 | AZ69: 0 | BA69: 0 | BB69: 0 | BC69: 0 | BF69: 0 | BG69: 0 | BH69: =CHOOSE(TaxRates,Tables!Z112,Tables!AA112) -> 0.4 | BI69: 0 | BJ69: 0 | BK69: 0 | BM69: 0 | BN69: =CHOOSE(TaxRates,Tables!Z112,Tables!AA112) -> 0.4 | BO69: 0 | BP69: 0 | BQ69: 0 | BR69: 0 | BT69: 0 | BU69: =CHOOSE(TaxRates,Tables!Z112,Tables!AA112) -> 0.4 | BV69: 0 | BW69: 0 | BX69: 0 | BY69: 0 | CA69: 0 | CB69: 0.025 | CC69: 0 | CD69: 0 | CF69: 0 | CG69: 0 | CH69: 0 | CI69: 0 | CK69: ='Illustration Modelling'!K72 -> 101 | CL69: ='Illustration Modelling'!M72 -> 0 | CM69: ='Illustration Modelling'!O72 -> 0 | CN69: ='Illustration Modelling'!P72 -> 0 | CP69: 0 | CQ69: 0 | CR69: 0 | CT69: 0 | CU69: 0 | CV69: 0 | CX69: 0 | CY69: 0 | CZ69: 0
A70: 58 | B70: 2072 | C70: 102 | E70: 0 | F70: 0 | G70: 0 | I70: =IF($C70>=RetAge,0,VLOOKUP($B70,Tables!$A$10:$T$126,18,FALSE)) -> 0 | J70: =IF($C70>=RetAge,0,IF(C70<CatchupAge,0,VLOOKUP($B70,Tables!$A$10:$T$126,20,FALSE))) -> 0 | K70: 0 | L70: 0 | M70: =IF($C70>=RetAge,0,VLOOKUP($B70,Tables!$A$10:$T$126,16,FALSE)) -> 0 | N70: 0 | O70: =IF($C70>=RetAge,0,VLOOKUP($B70,Tables!$A$10:$T$126,18,FALSE)) -> 0 | P70: 0 | R70: 0 | S70: 0 | T70: 0 | U70: 0 | V70: 0 | W70: 0 | X70: 0 | Y70: 0 | AA70: 0 | AB70: 0 | AC70: =CHOOSE(TaxRates,Tables!Z113,Tables!AA113) -> 0.4 | AD70: 0 | AE70: 0 | AF70: 0 | AH70: 0 | AI70: 0 | AJ70: =CHOOSE(TaxRates,Tables!Z113,Tables!AA113) -> 0.4 | AK70: 0 | AL70: 0 | AM70: 0 | AO70: =IF(C70>=RetAge,0,IF(AP70<MIN($AP$13:AP69),MAX($AO$13:AO69)+1,0)) -> 0 | AP70: 0 | AQ70: 0 | AR70: =CHOOSE(TaxRates,Tables!Z113,Tables!AA113) -> 0.4 | AS70: 0 | AT70: 0 | AU70: 0 | AW70: =IF(C70>=RetAge,0,IF(AX70<MIN($AX$13:AX69),MAX($AW$13:AW69)+1,0)) -> 0 | AX70: 0 | AY70: =CHOOSE(TaxRates,Tables!Z113,Tables!AA113) -> 0.4 | AZ70: 0 | BA70: 0 | BB70: 0 | BC70: 0 | BF70: 0 | BG70: 0 | BH70: =CHOOSE(TaxRates,Tables!Z113,Tables!AA113) -> 0.4 | BI70: 0 | BJ70: 0 | BK70: 0 | BM70: 0 | BN70: =CHOOSE(TaxRates,Tables!Z113,Tables!AA113) -> 0.4 | BO70: 0 | BP70: 0 | BQ70: 0 | BR70: 0 | BT70: 0 | BU70: =CHOOSE(TaxRates,Tables!Z113,Tables!AA113) -> 0.4 | BV70: 0 | BW70: 0 | BX70: 0 | BY70: 0 | CA70: 0 | CB70: 0.025 | CC70: 0 | CD70: 0 | CF70: 0 | CG70: 0 | CH70: 0 | CI70: 0 | CK70: ='Illustration Modelling'!K73 -> 102 | CL70: ='Illustration Modelling'!M73 -> 0 | CM70: ='Illustration Modelling'!O73 -> 0 | CN70: ='Illustration Modelling'!P73 -> 0 | CP70: 0 | CQ70: 0 | CR70: 0 | CT70: 0 | CU70: 0 | CV70: 0 | CX70: 0 | CY70: 0 | CZ70: 0
A71: 59 | B71: 2073 | C71: 103 | E71: 0 | F71: 0 | G71: 0 | I71: =IF($C71>=RetAge,0,VLOOKUP($B71,Tables!$A$10:$T$126,18,FALSE)) -> 0 | J71: =IF($C71>=RetAge,0,IF(C71<CatchupAge,0,VLOOKUP($B71,Tables!$A$10:$T$126,20,FALSE))) -> 0 | K71: 0 | L71: 0 | M71: =IF($C71>=RetAge,0,VLOOKUP($B71,Tables!$A$10:$T$126,16,FALSE)) -> 0 | N71: 0 | O71: =IF($C71>=RetAge,0,VLOOKUP($B71,Tables!$A$10:$T$126,18,FALSE)) -> 0 | P71: 0 | R71: 0 | S71: 0 | T71: 0 | U71: 0 | V71: 0 | W71: 0 | X71: 0 | Y71: 0 | AA71: 0 | AB71: 0 | AC71: =CHOOSE(TaxRates,Tables!Z114,Tables!AA114) -> 0.4 | AD71: 0 | AE71: 0 | AF71: 0 | AH71: 0 | AI71: 0 | AJ71: =CHOOSE(TaxRates,Tables!Z114,Tables!AA114) -> 0.4 | AK71: 0 | AL71: 0 | AM71: 0 | AO71: =IF(C71>=RetAge,0,IF(AP71<MIN($AP$13:AP70),MAX($AO$13:AO70)+1,0)) -> 0 | AP71: 0 | AQ71: 0 | AR71: =CHOOSE(TaxRates,Tables!Z114,Tables!AA114) -> 0.4 | AS71: 0 | AT71: 0 | AU71: 0 | AW71: =IF(C71>=RetAge,0,IF(AX71<MIN($AX$13:AX70),MAX($AW$13:AW70)+1,0)) -> 0 | AX71: 0 | AY71: =CHOOSE(TaxRates,Tables!Z114,Tables!AA114) -> 0.4 | AZ71: 0 | BA71: 0 | BB71: 0 | BC71: 0 | BF71: 0 | BG71: 0 | BH71: =CHOOSE(TaxRates,Tables!Z114,Tables!AA114) -> 0.4 | BI71: 0 | BJ71: 0 | BK71: 0 | BM71: 0 | BN71: =CHOOSE(TaxRates,Tables!Z114,Tables!AA114) -> 0.4 | BO71: 0 | BP71: 0 | BQ71: 0 | BR71: 0 | BT71: 0 | BU71: =CHOOSE(TaxRates,Tables!Z114,Tables!AA114) -> 0.4 | BV71: 0 | BW71: 0 | BX71: 0 | BY71: 0 | CA71: 0 | CB71: 0.025 | CC71: 0 | CD71: 0 | CF71: 0 | CG71: 0 | CH71: 0 | CI71: 0 | CK71: ='Illustration Modelling'!K74 -> 103 | CL71: ='Illustration Modelling'!M74 -> 0 | CM71: ='Illustration Modelling'!O74 -> 0 | CN71: ='Illustration Modelling'!P74 -> 0 | CP71: 0 | CQ71: 0 | CR71: 0 | CT71: 0 | CU71: 0 | CV71: 0 | CX71: 0 | CY71: 0 | CZ71: 0
A72: 60 | B72: 2074 | C72: 104 | E72: 0 | F72: 0 | G72: 0 | I72: =IF($C72>=RetAge,0,VLOOKUP($B72,Tables!$A$10:$T$126,18,FALSE)) -> 0 | J72: =IF($C72>=RetAge,0,IF(C72<CatchupAge,0,VLOOKUP($B72,Tables!$A$10:$T$126,20,FALSE))) -> 0 | K72: 0 | L72: 0 | M72: =IF($C72>=RetAge,0,VLOOKUP($B72,Tables!$A$10:$T$126,16,FALSE)) -> 0 | N72: 0 | O72: =IF($C72>=RetAge,0,VLOOKUP($B72,Tables!$A$10:$T$126,18,FALSE)) -> 0 | P72: 0 | R72: 0 | S72: 0 | T72: 0 | U72: 0 | V72: 0 | W72: 0 | X72: 0 | Y72: 0 | AA72: 0 | AB72: 0 | AC72: =CHOOSE(TaxRates,Tables!Z115,Tables!AA115) -> 0.4 | AD72: 0 | AE72: 0 | AF72: 0 | AH72: 0 | AI72: 0 | AJ72: =CHOOSE(TaxRates,Tables!Z115,Tables!AA115) -> 0.4 | AK72: 0 | AL72: 0 | AM72: 0 | AO72: =IF(C72>=RetAge,0,IF(AP72<MIN($AP$13:AP71),MAX($AO$13:AO71)+1,0)) -> 0 | AP72: 0 | AQ72: 0 | AR72: =CHOOSE(TaxRates,Tables!Z115,Tables!AA115) -> 0.4 | AS72: 0 | AT72: 0 | AU72: 0 | AW72: =IF(C72>=RetAge,0,IF(AX72<MIN($AX$13:AX71),MAX($AW$13:AW71)+1,0)) -> 0 | AX72: 0 | AY72: =CHOOSE(TaxRates,Tables!Z115,Tables!AA115) -> 0.4 | AZ72: 0 | BA72: 0 | BB72: 0 | BC72: 0 | BF72: 0 | BG72: 0 | BH72: =CHOOSE(TaxRates,Tables!Z115,Tables!AA115) -> 0.4 | BI72: 0 | BJ72: 0 | BK72: 0 | BM72: 0 | BN72: =CHOOSE(TaxRates,Tables!Z115,Tables!AA115) -> 0.4 | BO72: 0 | BP72: 0 | BQ72: 0 | BR72: 0 | BT72: 0 | BU72: =CHOOSE(TaxRates,Tables!Z115,Tables!AA115) -> 0.4 | BV72: 0 | BW72: 0 | BX72: 0 | BY72: 0 | CA72: 0 | CB72: 0.025 | CC72: 0 | CD72: 0 | CF72: 0 | CG72: 0 | CH72: 0 | CI72: 0 | CK72: ='Illustration Modelling'!K75 -> 104 | CL72: ='Illustration Modelling'!M75 -> 0 | CM72: ='Illustration Modelling'!O75 -> 0 | CN72: ='Illustration Modelling'!P75 -> 0 | CP72: 0 | CQ72: 0 | CR72: 0 | CT72: 0 | CU72: 0 | CV72: 0 | CX72: 0 | CY72: 0 | CZ72: 0
A73: 61 | B73: 2075 | C73: 105 | E73: 0 | F73: 0 | G73: 0 | I73: =IF($C73>=RetAge,0,VLOOKUP($B73,Tables!$A$10:$T$126,18,FALSE)) -> 0 | J73: =IF($C73>=RetAge,0,IF(C73<CatchupAge,0,VLOOKUP($B73,Tables!$A$10:$T$126,20,FALSE))) -> 0 | K73: 0 | L73: 0 | M73: =IF($C73>=RetAge,0,VLOOKUP($B73,Tables!$A$10:$T$126,16,FALSE)) -> 0 | N73: 0 | O73: =IF($C73>=RetAge,0,VLOOKUP($B73,Tables!$A$10:$T$126,18,FALSE)) -> 0 | P73: 0 | R73: 0 | S73: 0 | T73: 0 | U73: 0 | V73: 0 | W73: 0 | X73: 0 | Y73: 0 | AA73: 0 | AB73: 0 | AC73: =CHOOSE(TaxRates,Tables!Z116,Tables!AA116) -> 0.4 | AD73: 0 | AE73: 0 | AF73: 0 | AH73: 0 | AI73: 0 | AJ73: =CHOOSE(TaxRates,Tables!Z116,Tables!AA116) -> 0.4 | AK73: 0 | AL73: 0 | AM73: 0 | AO73: =IF(C73>=RetAge,0,IF(AP73<MIN($AP$13:AP72),MAX($AO$13:AO72)+1,0)) -> 0 | AP73: 0 | AQ73: 0 | AR73: =CHOOSE(TaxRates,Tables!Z116,Tables!AA116) -> 0.4 | AS73: 0 | AT73: 0 | AU73: 0 | AW73: =IF(C73>=RetAge,0,IF(AX73<MIN($AX$13:AX72),MAX($AW$13:AW72)+1,0)) -> 0 | AX73: 0 | AY73: =CHOOSE(TaxRates,Tables!Z116,Tables!AA116) -> 0.4 | AZ73: 0 | BA73: 0 | BB73: 0 | BC73: 0 | BF73: 0 | BG73: 0 | BH73: =CHOOSE(TaxRates,Tables!Z116,Tables!AA116) -> 0.4 | BI73: 0 | BJ73: 0 | BK73: 0 | BM73: 0 | BN73: =CHOOSE(TaxRates,Tables!Z116,Tables!AA116) -> 0.4 | BO73: 0 | BP73: 0 | BQ73: 0 | BR73: 0 | BT73: 0 | BU73: =CHOOSE(TaxRates,Tables!Z116,Tables!AA116) -> 0.4 | BV73: 0 | BW73: 0 | BX73: 0 | BY73: 0 | CA73: 0 | CB73: 0.025 | CC73: 0 | CD73: 0 | CF73: 0 | CG73: 0 | CH73: 0 | CI73: 0 | CK73: ='Illustration Modelling'!K76 -> 105 | CL73: ='Illustration Modelling'!M76 -> 0 | CM73: ='Illustration Modelling'!O76 -> 0 | CN73: ='Illustration Modelling'!P76 -> 0 | CP73: 0 | CQ73: 0 | CR73: 0 | CT73: 0 | CU73: 0 | CV73: 0 | CX73: 0 | CY73: 0 | CZ73: 0
A74: 62 | B74: 2076 | C74: 106 | E74: 0 | F74: 0 | G74: 0 | I74: =IF($C74>=RetAge,0,VLOOKUP($B74,Tables!$A$10:$T$126,18,FALSE)) -> 0 | J74: =IF($C74>=RetAge,0,IF(C74<CatchupAge,0,VLOOKUP($B74,Tables!$A$10:$T$126,20,FALSE))) -> 0 | K74: 0 | L74: 0 | M74: =IF($C74>=RetAge,0,VLOOKUP($B74,Tables!$A$10:$T$126,16,FALSE)) -> 0 | N74: 0 | O74: =IF($C74>=RetAge,0,VLOOKUP($B74,Tables!$A$10:$T$126,18,FALSE)) -> 0 | P74: 0 | R74: 0 | S74: 0 | T74: 0 | U74: 0 | V74: 0 | W74: 0 | X74: 0 | Y74: 0 | AA74: 0 | AB74: 0 | AC74: =CHOOSE(TaxRates,Tables!Z117,Tables!AA117) -> 0.4 | AD74: 0 | AE74: 0 | AF74: 0 | AH74: 0 | AI74: 0 | AJ74: =CHOOSE(TaxRates,Tables!Z117,Tables!AA117) -> 0.4 | AK74: 0 | AL74: 0 | AM74: 0 | AO74: =IF(C74>=RetAge,0,IF(AP74<MIN($AP$13:AP73),MAX($AO$13:AO73)+1,0)) -> 0 | AP74: 0 | AQ74: 0 | AR74: =CHOOSE(TaxRates,Tables!Z117,Tables!AA117) -> 0.4 | AS74: 0 | AT74: 0 | AU74: 0 | AW74: =IF(C74>=RetAge,0,IF(AX74<MIN($AX$13:AX73),MAX($AW$13:AW73)+1,0)) -> 0 | AX74: 0 | AY74: =CHOOSE(TaxRates,Tables!Z117,Tables!AA117) -> 0.4 | AZ74: 0 | BA74: 0 | BB74: 0 | BC74: 0 | BF74: 0 | BG74: 0 | BH74: =CHOOSE(TaxRates,Tables!Z117,Tables!AA117) -> 0.4 | BI74: 0 | BJ74: 0 | BK74: 0 | BM74: 0 | BN74: =CHOOSE(TaxRates,Tables!Z117,Tables!AA117) -> 0.4 | BO74: 0 | BP74: 0 | BQ74: 0 | BR74: 0 | BT74: 0 | BU74: =CHOOSE(TaxRates,Tables!Z117,Tables!AA117) -> 0.4 | BV74: 0 | BW74: 0 | BX74: 0 | BY74: 0 | CA74: 0 | CB74: 0.025 | CC74: 0 | CD74: 0 | CF74: 0 | CG74: 0 | CH74: 0 | CI74: 0 | CK74: ='Illustration Modelling'!K77 -> 106 | CL74: ='Illustration Modelling'!M77 -> 0 | CM74: ='Illustration Modelling'!O77 -> 0 | CN74: ='Illustration Modelling'!P77 -> 0 | CP74: 0 | CQ74: 0 | CR74: 0 | CT74: 0 | CU74: 0 | CV74: 0 | CX74: 0 | CY74: 0 | CZ74: 0
A75: 63 | B75: 2077 | C75: 107 | E75: 0 | F75: 0 | G75: 0 | I75: =IF($C75>=RetAge,0,VLOOKUP($B75,Tables!$A$10:$T$126,18,FALSE)) -> 0 | J75: =IF($C75>=RetAge,0,IF(C75<CatchupAge,0,VLOOKUP($B75,Tables!$A$10:$T$126,20,FALSE))) -> 0 | K75: 0 | L75: 0 | M75: =IF($C75>=RetAge,0,VLOOKUP($B75,Tables!$A$10:$T$126,16,FALSE)) -> 0 | N75: 0 | O75: =IF($C75>=RetAge,0,VLOOKUP($B75,Tables!$A$10:$T$126,18,FALSE)) -> 0 | P75: 0 | R75: 0 | S75: 0 | T75: 0 | U75: 0 | V75: 0 | W75: 0 | X75: 0 | Y75: 0 | AA75: 0 | AB75: 0 | AC75: =CHOOSE(TaxRates,Tables!Z118,Tables!AA118) -> 0.4 | AD75: 0 | AE75: 0 | AF75: 0 | AH75: 0 | AI75: 0 | AJ75: =CHOOSE(TaxRates,Tables!Z118,Tables!AA118) -> 0.4 | AK75: 0 | AL75: 0 | AM75: 0 | AO75: =IF(C75>=RetAge,0,IF(AP75<MIN($AP$13:AP74),MAX($AO$13:AO74)+1,0)) -> 0 | AP75: 0 | AQ75: 0 | AR75: =CHOOSE(TaxRates,Tables!Z118,Tables!AA118) -> 0.4 | AS75: 0 | AT75: 0 | AU75: 0 | AW75: =IF(C75>=RetAge,0,IF(AX75<MIN($AX$13:AX74),MAX($AW$13:AW74)+1,0)) -> 0 | AX75: 0 | AY75: =CHOOSE(TaxRates,Tables!Z118,Tables!AA118) -> 0.4 | AZ75: 0 | BA75: 0 | BB75: 0 | BC75: 0 | BF75: 0 | BG75: 0 | BH75: =CHOOSE(TaxRates,Tables!Z118,Tables!AA118) -> 0.4 | BI75: 0 | BJ75: 0 | BK75: 0 | BM75: 0 | BN75: =CHOOSE(TaxRates,Tables!Z118,Tables!AA118) -> 0.4 | BO75: 0 | BP75: 0 | BQ75: 0 | BR75: 0 | BT75: 0 | BU75: =CHOOSE(TaxRates,Tables!Z118,Tables!AA118) -> 0.4 | BV75: 0 | BW75: 0 | BX75: 0 | BY75: 0 | CA75: 0 | CB75: 0.025 | CC75: 0 | CD75: 0 | CF75: 0 | CG75: 0 | CH75: 0 | CI75: 0 | CK75: ='Illustration Modelling'!K78 -> 107 | CL75: ='Illustration Modelling'!M78 -> 0 | CM75: ='Illustration Modelling'!O78 -> 0 | CN75: ='Illustration Modelling'!P78 -> 0 | CP75: 0 | CQ75: 0 | CR75: 0 | CT75: 0 | CU75: 0 | CV75: 0 | CX75: 0 | CY75: 0 | CZ75: 0
A76: 64 | B76: 2078 | C76: 108 | E76: 0 | F76: 0 | G76: 0 | I76: =IF($C76>=RetAge,0,VLOOKUP($B76,Tables!$A$10:$T$126,18,FALSE)) -> 0 | J76: =IF($C76>=RetAge,0,IF(C76<CatchupAge,0,VLOOKUP($B76,Tables!$A$10:$T$126,20,FALSE))) -> 0 | K76: 0 | L76: 0 | M76: =IF($C76>=RetAge,0,VLOOKUP($B76,Tables!$A$10:$T$126,16,FALSE)) -> 0 | N76: 0 | O76: =IF($C76>=RetAge,0,VLOOKUP($B76,Tables!$A$10:$T$126,18,FALSE)) -> 0 | P76: 0 | R76: 0 | S76: 0 | T76: 0 | U76: 0 | V76: 0 | W76: 0 | X76: 0 | Y76: 0 | AA76: 0 | AB76: 0 | AC76: =CHOOSE(TaxRates,Tables!Z119,Tables!AA119) -> 0.4 | AD76: 0 | AE76: 0 | AF76: 0 | AH76: 0 | AI76: 0 | AJ76: =CHOOSE(TaxRates,Tables!Z119,Tables!AA119) -> 0.4 | AK76: 0 | AL76: 0 | AM76: 0 | AO76: =IF(C76>=RetAge,0,IF(AP76<MIN($AP$13:AP75),MAX($AO$13:AO75)+1,0)) -> 0 | AP76: 0 | AQ76: 0 | AR76: =CHOOSE(TaxRates,Tables!Z119,Tables!AA119) -> 0.4 | AS76: 0 | AT76: 0 | AU76: 0 | AW76: =IF(C76>=RetAge,0,IF(AX76<MIN($AX$13:AX75),MAX($AW$13:AW75)+1,0)) -> 0 | AX76: 0 | AY76: =CHOOSE(TaxRates,Tables!Z119,Tables!AA119) -> 0.4 | AZ76: 0 | BA76: 0 | BB76: 0 | BC76: 0 | BF76: 0 | BG76: 0 | BH76: =CHOOSE(TaxRates,Tables!Z119,Tables!AA119) -> 0.4 | BI76: 0 | BJ76: 0 | BK76: 0 | BM76: 0 | BN76: =CHOOSE(TaxRates,Tables!Z119,Tables!AA119) -> 0.4 | BO76: 0 | BP76: 0 | BQ76: 0 | BR76: 0 | BT76: 0 | BU76: =CHOOSE(TaxRates,Tables!Z119,Tables!AA119) -> 0.4 | BV76: 0 | BW76: 0 | BX76: 0 | BY76: 0 | CA76: 0 | CB76: 0.025 | CC76: 0 | CD76: 0 | CF76: 0 | CG76: 0 | CH76: 0 | CI76: 0 | CK76: ='Illustration Modelling'!K79 -> 108 | CL76: ='Illustration Modelling'!M79 -> 0 | CM76: ='Illustration Modelling'!O79 -> 0 | CN76: ='Illustration Modelling'!P79 -> 0 | CP76: 0 | CQ76: 0 | CR76: 0 | CT76: 0 | CU76: 0 | CV76: 0 | CX76: 0 | CY76: 0 | CZ76: 0
A77: 65 | B77: 2079 | C77: 109 | E77: 0 | F77: 0 | G77: =IF(CompDefinition=1,E77,E77+F77) -> 0 | I77: =IF($C77>=RetAge,0,VLOOKUP($B77,Tables!$A$10:$T$126,18,FALSE)) -> 0 | J77: =IF($C77>=RetAge,0,IF(C77<CatchupAge,0,VLOOKUP($B77,Tables!$A$10:$T$126,20,FALSE))) -> 0 | K77: =IF($C77>=RetAge,0,(I77+J77)*MachtingERCont) -> 0 | L77: 0 | M77: =IF($C77>=RetAge,0,VLOOKUP($B77,Tables!$A$10:$T$126,16,FALSE)) -> 0 | N77: 0 | O77: =IF($C77>=RetAge,0,VLOOKUP($B77,Tables!$A$10:$T$126,18,FALSE)) -> 0 | P77: 0 | R77: =IF($C77>=RetAge,0,IF(TargetMethod1=1,TargetContribPercent*G77,IF(TargetMethod2=1,TargetContribDollarAmt,0))) -> 0 | S77: 0 | T77: 0 | U77: =IF($C77>=RetAge,0,(S77+T77)*MachtingERCont) -> 0 | V77: 0 | W77: 0 | X77: 0 | Y77: 0 | AA77: =IF(TargetMethod3=1,I77+J77,S77+T77) -> 0 | AB77: =IF($C77<RetAge,0,IF($C77<RetAge+RetDistYrs,AnnRet403b,0)) -> 0 | AC77: =CHOOSE(TaxRates,Tables!Z120,Tables!AA120) -> 0.4 | AD77: 0 | AE77: 0 | AF77: 0 | AH77: =IF(TargetMethod3=1,K77,U77) -> 0 | AI77: =IF($C77<RetAge,0,IF($C77<RetAge+RetDistYrs,AnnRet403bERMatch,0)) -> 0 | AJ77: =CHOOSE(TaxRates,Tables!Z120,Tables!AA120) -> 0.4 | AK77: 0 | AL77: 0 | AM77: 0 | AO77: =IF(C77>=RetAge,0,IF(AP77<MIN($AP$13:AP76),MAX($AO$13:AO76)+1,0)) -> 0 | AP77: =IF(TargetMethod3=1,O77,W77) -> 0 | AQ77: =IF($C77<RetAge,0,IF($C77<RetAge+RetDistYrs,AnnRet457b,0)) -> 0 | AR77: =CHOOSE(TaxRates,Tables!Z120,Tables!AA120) -> 0.4 | AS77: 0 | AT77: 0 | AU77: 0 | AW77: =IF(C77>=RetAge,0,IF(AX77<MIN($AX$13:AX76),MAX($AW$13:AW76)+1,0)) -> 0 | AX77: =IF(TargetMethod3=1,0,Y77) -> 0 | AY77: =CHOOSE(TaxRates,Tables!Z120,Tables!AA120) -> 0.4 | AZ77: 0 | BA77: =IF($C77<RetAge,0,IF($C77<RetAge+RetDistYrs,AnnRetATSavingsAT,0)) -> 0 | BB77: 0 | BC77: 0 | BF77: =IF($C77>=RetAge,0,Redirected457b) -> 0 | BG77: =IF($C77<RetAge,0,IF($C77<RetAge+RetDistYrs,AnnRetRedirected457b,0)) -> 0 | BH77: =CHOOSE(TaxRates,Tables!Z120,Tables!AA120) -> 0.4 | BI77: 0 | BJ77: 0 | BK77: 0 | BM77: =IF($C77>=RetAge,0,RedirectedAT) -> 0 | BN77: =CHOOSE(TaxRates,Tables!Z120,Tables!AA120) -> 0.4 | BO77: 0 | BP77: =IF($C77<RetAge,0,IF($C77<RetAge+RetDistYrs,AnnRetRedirectedATSavingsAT,0)) -> 0 | BQ77: 0 | BR77: 0 | BT77: =IF($C77>=RetAge,0,RedirectedContribs) -> 0 | BU77: =CHOOSE(TaxRates,Tables!Z120,Tables!AA120) -> 0.4 | BV77: 0 | BW77: 0 | BX77: 0 | BY77: 0 | CA77: 0 | CB77: 0.025 | CC77: 0 | CD77: 0 | CF77: =IF(C77=RetAge,$CL$4,0) -> 0 | CG77: =IF(CL77>0,CL77-CF77,0)+IF($C77=Death_Age,CN77,0) -> 0 | CH77: =IF(C77<Death_Age,CM77-CA77,0) -> 0 | CI77: =IF(C77<Death_Age,CN77-CA77,0) -> 0 | CK77: ='Illustration Modelling'!K80 -> 109 | CL77: ='Illustration Modelling'!M80 -> 0 | CM77: ='Illustration Modelling'!O80 -> 0 | CN77: ='Illustration Modelling'!P80 -> 0 | CP77: 0 | CQ77: 0 | CR77: 0 | CT77: 0 | CU77: =Corp_Tax_Rate -> 0 | CV77: 0 | CX77: 0 | CY77: 0 | CZ77: 0
A78: =A77+1 -> 66 | B78: 2080 | C78: 110 | E78: =IF($C78>=RetAge,0,E77*(1+CompGrowthRate)) -> 0 | F78: =IF($C78>=RetAge,0,F77*(1+CompGrowthRate)) -> 0 | G78: 0 | I78: =IF($C78>=RetAge,0,VLOOKUP($B78,Tables!$A$10:$T$126,18,FALSE)) -> 0 | J78: =IF($C78>=RetAge,0,IF(C78<CatchupAge,0,VLOOKUP($B78,Tables!$A$10:$T$126,20,FALSE))) -> 0 | K78: 0 | L78: =SUM(I78:K78) -> 0 | M78: =IF($C78>=RetAge,0,VLOOKUP($B78,Tables!$A$10:$T$126,16,FALSE)) -> 0 | N78: =MIN(L78:M78) -> 0 | O78: =IF($C78>=RetAge,0,VLOOKUP($B78,Tables!$A$10:$T$126,18,FALSE)) -> 0 | P78: =N78+O78 -> 0 | R78: 0 | S78: =MIN($R78,I78) -> 0 | T78: =MIN($R78-S78,J78) -> 0 | U78: 0 | V78: =SUM(S78:U78) -> 0 | W78: =MIN(R78-S78-T78,O78) -> 0 | X78: =V78+W78 -> 0 | Y78: =MAX(0,R78-S78-T78-W78) -> 0 | AA78: 0 | AB78: 0 | AC78: =CHOOSE(TaxRates,Tables!Z121,Tables!AA121) -> 0.4 | AD78: =AB78*(1-AC78) -> 0 | AE78: =(AA78+AB78+AF77)*AcctBalGrowth -> 0 | AF78: 0 | AH78: 0 | AI78: 0 | AJ78: =CHOOSE(TaxRates,Tables!Z121,Tables!AA121) -> 0.4 | AK78: =AI78*(1-AJ78) -> 0 | AL78: =(AH78+AI78+AM77)*AcctBalGrowth -> 0 | AM78: 0 | AO78: =IF(C78>=RetAge,0,IF(AP78<MIN($AP$13:AP77),MAX($AO$13:AO77)+1,0)) -> 0 | AP78: 0 | AQ78: 0 | AR78: =CHOOSE(TaxRates,Tables!Z121,Tables!AA121) -> 0.4 | AS78: =AQ78*(1-AR78) -> 0 | AT78: =(AP78+AQ78+AU77)*AcctBalGrowth -> 0 | AU78: 0 | AW78: =IF(C78>=RetAge,0,IF(AX78<MIN($AX$13:AX77),MAX($AW$13:AW77)+1,0)) -> 0 | AX78: 0 | AY78: =CHOOSE(TaxRates,Tables!Z121,Tables!AA121) -> 0.4 | AZ78: =AX78*(1-AY78) -> 0 | BA78: 0 | BB78: =(AZ78+BA78+BC77)*AcctBalGrowth*(1-EEBlendedTaxRate) -> 0 | BC78: 0 | BF78: 0 | BG78: 0 | BH78: =CHOOSE(TaxRates,Tables!Z121,Tables!AA121) -> 0.4 | BI78: =BG78*(1-BH78) -> 0 | BJ78: =(BF78+BG78+BK77)*AcctBalGrowth -> 0 | BK78: 0 | BM78: 0 | BN78: =CHOOSE(TaxRates,Tables!Z121,Tables!AA121) -> 0.4 | BO78: =BM78*(1-BN78) -> 0 | BP78: 0 | BQ78: =(BO78+BP78+BR77)*AcctBalGrowth*(1-EEBlendedTaxRate) -> 0 | BR78: 0 | BT78: 0 | BU78: =CHOOSE(TaxRates,Tables!Z121,Tables!AA121) -> 0.4 | BV78: =-BT78*BU78 -> 0 | BW78: =BT78+BV78 -> 0 | BX78: =-BV78 -> 0 | BY78: =BW78+BX78 -> 0 | CA78: 0 | CB78: 0.025 | CC78: =CB78*CA78 -> 0 | CD78: =CC78*-BU78 -> 0 | CF78: 0 | CG78: 0 | CH78: 0 | CI78: 0 | CK78: ='Illustration Modelling'!K81 -> 110 | CL78: ='Illustration Modelling'!M81 -> 0 | CM78: ='Illustration Modelling'!O81 -> 0 | CN78: ='Illustration Modelling'!P81 -> 0 | CP78: =-BX78 -> 0 | CQ78: =CF78 -> 0 | CR78: =CP78+CQ78 -> 0 | CT78: =G78 -> 0 | CU78: 0 | CV78: =CT78*(1-CU78) -> 0 | CX78: =-(BI78+BP78) -> 0 | CY78: =CG78 -> 0 | CZ78: =CY78-CX78 -> 0
A79: 67 | B79: 2081 | C79: 111 | E79: 0 | F79: 0 | G79: 0 | I79: =IF($C79>=RetAge,0,VLOOKUP($B79,Tables!$A$10:$T$126,18,FALSE)) -> 0 | J79: =IF($C79>=RetAge,0,IF(C79<CatchupAge,0,VLOOKUP($B79,Tables!$A$10:$T$126,20,FALSE))) -> 0 | K79: 0 | L79: 0 | M79: =IF($C79>=RetAge,0,VLOOKUP($B79,Tables!$A$10:$T$126,16,FALSE)) -> 0 | N79: 0 | O79: =IF($C79>=RetAge,0,VLOOKUP($B79,Tables!$A$10:$T$126,18,FALSE)) -> 0 | P79: 0 | R79: 0 | S79: 0 | T79: 0 | U79: 0 | V79: 0 | W79: 0 | X79: 0 | Y79: 0 | AA79: 0 | AB79: 0 | AC79: =CHOOSE(TaxRates,Tables!Z122,Tables!AA122) -> 0.4 | AD79: 0 | AE79: 0 | AF79: =AA79+AB79+AE79+AF78 -> 0 | AH79: 0 | AI79: 0 | AJ79: =CHOOSE(TaxRates,Tables!Z122,Tables!AA122) -> 0.4 | AK79: 0 | AL79: 0 | AM79: =AH79+AI79+AL79+AM78 -> 0 | AO79: =IF(C79>=RetAge,0,IF(AP79<MIN($AP$13:AP78),MAX($AO$13:AO78)+1,0)) -> 0 | AP79: 0 | AQ79: 0 | AR79: =CHOOSE(TaxRates,Tables!Z122,Tables!AA122) -> 0.4 | AS79: 0 | AT79: 0 | AU79: =AP79+AQ79+AT79+AU78 -> 0 | AW79: =IF(C79>=RetAge,0,IF(AX79<MIN($AX$13:AX78),MAX($AW$13:AW78)+1,0)) -> 0 | AX79: 0 | AY79: =CHOOSE(TaxRates,Tables!Z122,Tables!AA122) -> 0.4 | AZ79: 0 | BA79: 0 | BB79: 0 | BC79: =AZ79+BA79+BB79+BC78 -> 0 | BF79: 0 | BG79: 0 | BH79: =CHOOSE(TaxRates,Tables!Z122,Tables!AA122) -> 0.4 | BI79: 0 | BJ79: 0 | BK79: =BF79+BG79+BJ79+BK78 -> 0 | BM79: 0 | BN79: =CHOOSE(TaxRates,Tables!Z122,Tables!AA122) -> 0.4 | BO79: 0 | BP79: 0 | BQ79: 0 | BR79: =BO79+BP79+BQ79+BR78 -> 0 | BT79: 0 | BU79: =CHOOSE(TaxRates,Tables!Z122,Tables!AA122) -> 0.4 | BV79: 0 | BW79: 0 | BX79: 0 | BY79: 0 | CA79: =CA78+BX79-CF79 -> 0 | CB79: =MIN(0.025,CB78+0.01) -> 0.025 | CC79: 0 | CD79: 0 | CF79: 0 | CG79: 0 | CH79: 0 | CI79: 0 | CK79: ='Illustration Modelling'!K82 -> 111 | CL79: ='Illustration Modelling'!M82 -> 0 | CM79: ='Illustration Modelling'!O82 -> 0 | CN79: ='Illustration Modelling'!P82 -> 0 | CP79: 0 | CQ79: 0 | CR79: 0 | CT79: 0 | CU79: 0 | CV79: 0 | CX79: 0 | CY79: 0 | CZ79: 0
A80: 68 | B80: 2082 | C80: 112 | E80: 0 | F80: 0 | G80: 0 | I80: =IF($C80>=RetAge,0,VLOOKUP($B80,Tables!$A$10:$T$126,18,FALSE)) -> 0 | J80: =IF($C80>=RetAge,0,IF(C80<CatchupAge,0,VLOOKUP($B80,Tables!$A$10:$T$126,20,FALSE))) -> 0 | K80: 0 | L80: 0 | M80: =IF($C80>=RetAge,0,VLOOKUP($B80,Tables!$A$10:$T$126,16,FALSE)) -> 0 | N80: 0 | O80: =IF($C80>=RetAge,0,VLOOKUP($B80,Tables!$A$10:$T$126,18,FALSE)) -> 0 | P80: 0 | R80: 0 | S80: 0 | T80: 0 | U80: 0 | V80: 0 | W80: 0 | X80: 0 | Y80: 0 | AA80: 0 | AB80: 0 | AC80: =CHOOSE(TaxRates,Tables!Z123,Tables!AA123) -> 0.4 | AD80: 0 | AE80: 0 | AF80: 0 | AH80: 0 | AI80: 0 | AJ80: =CHOOSE(TaxRates,Tables!Z123,Tables!AA123) -> 0.4 | AK80: 0 | AL80: 0 | AM80: 0 | AO80: =IF(C80>=RetAge,0,IF(AP80<MIN($AP$13:AP79),MAX($AO$13:AO79)+1,0)) -> 0 | AP80: 0 | AQ80: 0 | AR80: =CHOOSE(TaxRates,Tables!Z123,Tables!AA123) -> 0.4 | AS80: 0 | AT80: 0 | AU80: 0 | AW80: =IF(C80>=RetAge,0,IF(AX80<MIN($AX$13:AX79),MAX($AW$13:AW79)+1,0)) -> 0 | AX80: 0 | AY80: =CHOOSE(TaxRates,Tables!Z123,Tables!AA123) -> 0.4 | AZ80: 0 | BA80: 0 | BB80: 0 | BC80: 0 | BF80: 0 | BG80: 0 | BH80: =CHOOSE(TaxRates,Tables!Z123,Tables!AA123) -> 0.4 | BI80: 0 | BJ80: 0 | BK80: 0 | BM80: 0 | BN80: =CHOOSE(TaxRates,Tables!Z123,Tables!AA123) -> 0.4 | BO80: 0 | BP80: 0 | BQ80: 0 | BR80: 0 | BT80: 0 | BU80: =CHOOSE(TaxRates,Tables!Z123,Tables!AA123) -> 0.4 | BV80: 0 | BW80: 0 | BX80: 0 | BY80: 0 | CA80: 0 | CB80: 0.025 | CC80: 0 | CD80: 0 | CF80: 0 | CG80: 0 | CH80: 0 | CI80: 0 | CK80: ='Illustration Modelling'!K83 -> 112 | CL80: ='Illustration Modelling'!M83 -> 0 | CM80: ='Illustration Modelling'!O83 -> 0 | CN80: ='Illustration Modelling'!P83 -> 0 | CP80: 0 | CQ80: 0 | CR80: 0 | CT80: 0 | CU80: 0 | CV80: 0 | CX80: 0 | CY80: 0 | CZ80: 0
A81: 69 | B81: 2083 | C81: 113 | E81: 0 | F81: 0 | G81: 0 | I81: =IF($C81>=RetAge,0,VLOOKUP($B81,Tables!$A$10:$T$126,18,FALSE)) -> 0 | J81: =IF($C81>=RetAge,0,IF(C81<CatchupAge,0,VLOOKUP($B81,Tables!$A$10:$T$126,20,FALSE))) -> 0 | K81: 0 | L81: 0 | M81: =IF($C81>=RetAge,0,VLOOKUP($B81,Tables!$A$10:$T$126,16,FALSE)) -> 0 | N81: 0 | O81: =IF($C81>=RetAge,0,VLOOKUP($B81,Tables!$A$10:$T$126,18,FALSE)) -> 0 | P81: 0 | R81: 0 | S81: 0 | T81: 0 | U81: 0 | V81: 0 | W81: 0 | X81: 0 | Y81: 0 | AA81: 0 | AB81: 0 | AC81: =CHOOSE(TaxRates,Tables!Z124,Tables!AA124) -> 0.4 | AD81: 0 | AE81: 0 | AF81: 0 | AH81: 0 | AI81: 0 | AJ81: =CHOOSE(TaxRates,Tables!Z124,Tables!AA124) -> 0.4 | AK81: 0 | AL81: 0 | AM81: 0 | AO81: =IF(C81>=RetAge,0,IF(AP81<MIN($AP$13:AP80),MAX($AO$13:AO80)+1,0)) -> 0 | AP81: 0 | AQ81: 0 | AR81: =CHOOSE(TaxRates,Tables!Z124,Tables!AA124) -> 0.4 | AS81: 0 | AT81: 0 | AU81: 0 | AW81: =IF(C81>=RetAge,0,IF(AX81<MIN($AX$13:AX80),MAX($AW$13:AW80)+1,0)) -> 0 | AX81: 0 | AY81: =CHOOSE(TaxRates,Tables!Z124,Tables!AA124) -> 0.4 | AZ81: 0 | BA81: 0 | BB81: 0 | BC81: 0 | BF81: 0 | BG81: 0 | BH81: =CHOOSE(TaxRates,Tables!Z124,Tables!AA124) -> 0.4 | BI81: 0 | BJ81: 0 | BK81: 0 | BM81: 0 | BN81: =CHOOSE(TaxRates,Tables!Z124,Tables!AA124) -> 0.4 | BO81: 0 | BP81: 0 | BQ81: 0 | BR81: 0 | BT81: 0 | BU81: =CHOOSE(TaxRates,Tables!Z124,Tables!AA124) -> 0.4 | BV81: 0 | BW81: 0 | BX81: 0 | BY81: 0 | CA81: 0 | CB81: 0.025 | CC81: 0 | CD81: 0 | CF81: 0 | CG81: 0 | CH81: 0 | CI81: 0 | CK81: ='Illustration Modelling'!K84 -> 113 | CL81: ='Illustration Modelling'!M84 -> 0 | CM81: ='Illustration Modelling'!O84 -> 0 | CN81: ='Illustration Modelling'!P84 -> 0 | CP81: 0 | CQ81: 0 | CR81: 0 | CT81: 0 | CU81: 0 | CV81: 0 | CX81: 0 | CY81: 0 | CZ81: 0
A82: 70 | B82: 2084 | C82: 114 | E82: 0 | F82: 0 | G82: 0 | I82: =IF($C82>=RetAge,0,VLOOKUP($B82,Tables!$A$10:$T$126,18,FALSE)) -> 0 | J82: =IF($C82>=RetAge,0,IF(C82<CatchupAge,0,VLOOKUP($B82,Tables!$A$10:$T$126,20,FALSE))) -> 0 | K82: 0 | L82: 0 | M82: =IF($C82>=RetAge,0,VLOOKUP($B82,Tables!$A$10:$T$126,16,FALSE)) -> 0 | N82: 0 | O82: =IF($C82>=RetAge,0,VLOOKUP($B82,Tables!$A$10:$T$126,18,FALSE)) -> 0 | P82: 0 | R82: 0 | S82: 0 | T82: 0 | U82: 0 | V82: 0 | W82: 0 | X82: 0 | Y82: 0 | AA82: 0 | AB82: 0 | AC82: =CHOOSE(TaxRates,Tables!Z125,Tables!AA125) -> 0.4 | AD82: 0 | AE82: 0 | AF82: 0 | AH82: 0 | AI82: 0 | AJ82: =CHOOSE(TaxRates,Tables!Z125,Tables!AA125) -> 0.4 | AK82: 0 | AL82: 0 | AM82: 0 | AO82: =IF(C82>=RetAge,0,IF(AP82<MIN($AP$13:AP81),MAX($AO$13:AO81)+1,0)) -> 0 | AP82: 0 | AQ82: 0 | AR82: =CHOOSE(TaxRates,Tables!Z125,Tables!AA125) -> 0.4 | AS82: 0 | AT82: 0 | AU82: 0 | AW82: =IF(C82>=RetAge,0,IF(AX82<MIN($AX$13:AX81),MAX($AW$13:AW81)+1,0)) -> 0 | AX82: 0 | AY82: =CHOOSE(TaxRates,Tables!Z125,Tables!AA125) -> 0.4 | AZ82: 0 | BA82: 0 | BB82: 0 | BC82: 0 | BF82: 0 | BG82: 0 | BH82: =CHOOSE(TaxRates,Tables!Z125,Tables!AA125) -> 0.4 | BI82: 0 | BJ82: 0 | BK82: 0 | BM82: 0 | BN82: =CHOOSE(TaxRates,Tables!Z125,Tables!AA125) -> 0.4 | BO82: 0 | BP82: 0 | BQ82: 0 | BR82: 0 | BT82: 0 | BU82: =CHOOSE(TaxRates,Tables!Z125,Tables!AA125) -> 0.4 | BV82: 0 | BW82: 0 | BX82: 0 | BY82: 0 | CA82: 0 | CB82: 0.025 | CC82: 0 | CD82: 0 | CF82: 0 | CG82: 0 | CH82: 0 | CI82: 0 | CK82: ='Illustration Modelling'!K85 -> 114 | CL82: ='Illustration Modelling'!M85 -> 0 | CM82: ='Illustration Modelling'!O85 -> 0 | CN82: ='Illustration Modelling'!P85 -> 0 | CP82: 0 | CQ82: 0 | CR82: 0 | CT82: 0 | CU82: 0 | CV82: 0 | CX82: 0 | CY82: 0 | CZ82: 0
A83: 71 | B83: 2085 | C83: 115 | E83: 0 | F83: 0 | G83: 0 | I83: =IF($C83>=RetAge,0,VLOOKUP($B83,Tables!$A$10:$T$126,18,FALSE)) -> 0 | J83: =IF($C83>=RetAge,0,IF(C83<CatchupAge,0,VLOOKUP($B83,Tables!$A$10:$T$126,20,FALSE))) -> 0 | K83: 0 | L83: 0 | M83: =IF($C83>=RetAge,0,VLOOKUP($B83,Tables!$A$10:$T$126,16,FALSE)) -> 0 | N83: 0 | O83: =IF($C83>=RetAge,0,VLOOKUP($B83,Tables!$A$10:$T$126,18,FALSE)) -> 0 | P83: 0 | R83: 0 | S83: 0 | T83: 0 | U83: 0 | V83: 0 | W83: 0 | X83: 0 | Y83: 0 | AA83: 0 | AB83: 0 | AC83: =CHOOSE(TaxRates,Tables!Z126,Tables!AA126) -> 0.4 | AD83: 0 | AE83: 0 | AF83: 0 | AH83: 0 | AI83: 0 | AJ83: =CHOOSE(TaxRates,Tables!Z126,Tables!AA126) -> 0.4 | AK83: 0 | AL83: 0 | AM83: 0 | AO83: =IF(C83>=RetAge,0,IF(AP83<MIN($AP$13:AP82),MAX($AO$13:AO82)+1,0)) -> 0 | AP83: 0 | AQ83: 0 | AR83: =CHOOSE(TaxRates,Tables!Z126,Tables!AA126) -> 0.4 | AS83: 0 | AT83: 0 | AU83: 0 | AW83: =IF(C83>=RetAge,0,IF(AX83<MIN($AX$13:AX82),MAX($AW$13:AW82)+1,0)) -> 0 | AX83: 0 | AY83: =CHOOSE(TaxRates,Tables!Z126,Tables!AA126) -> 0.4 | AZ83: 0 | BA83: 0 | BB83: 0 | BC83: 0 | BF83: 0 | BG83: 0 | BH83: =CHOOSE(TaxRates,Tables!Z126,Tables!AA126) -> 0.4 | BI83: 0 | BJ83: 0 | BK83: 0 | BM83: 0 | BN83: =CHOOSE(TaxRates,Tables!Z126,Tables!AA126) -> 0.4 | BO83: 0 | BP83: 0 | BQ83: 0 | BR83: 0 | BT83: 0 | BU83: =CHOOSE(TaxRates,Tables!Z126,Tables!AA126) -> 0.4 | BV83: 0 | BW83: 0 | BX83: 0 | BY83: 0 | CA83: 0 | CB83: 0.025 | CC83: 0 | CD83: 0 | CF83: 0 | CG83: 0 | CH83: 0 | CI83: 0 | CK83: ='Illustration Modelling'!K86 -> 0 | CL83: ='Illustration Modelling'!M86 -> 0 | CM83: ='Illustration Modelling'!O86 -> 0 | CN83: ='Illustration Modelling'!P86 -> 0 | CP83: 0 | CQ83: 0 | CR83: 0 | CT83: 0 | CU83: 0 | CV83: 0 | CX83: 0 | CY83: 0 | CZ83: 0
A84: 72 | B84: 2086 | C84: 116 | E84: 0 | F84: 0 | G84: 0 | I84: =IF($C84>=RetAge,0,VLOOKUP($B84,Tables!$A$10:$T$126,18,FALSE)) -> 0 | J84: =IF($C84>=RetAge,0,IF(C84<CatchupAge,0,VLOOKUP($B84,Tables!$A$10:$T$126,20,FALSE))) -> 0 | K84: 0 | L84: 0 | M84: =IF($C84>=RetAge,0,VLOOKUP($B84,Tables!$A$10:$T$126,16,FALSE)) -> 0 | N84: 0 | O84: =IF($C84>=RetAge,0,VLOOKUP($B84,Tables!$A$10:$T$126,18,FALSE)) -> 0 | P84: 0 | R84: 0 | S84: 0 | T84: 0 | U84: 0 | V84: 0 | W84: 0 | X84: 0 | Y84: 0 | AA84: 0 | AB84: 0 | AC84: =CHOOSE(TaxRates,Tables!Z127,Tables!AA127) -> 0.4 | AD84: 0 | AE84: 0 | AF84: 0 | AH84: 0 | AI84: 0 | AJ84: =CHOOSE(TaxRates,Tables!Z127,Tables!AA127) -> 0.4 | AK84: 0 | AL84: 0 | AM84: 0 | AO84: =IF(C84>=RetAge,0,IF(AP84<MIN($AP$13:AP83),MAX($AO$13:AO83)+1,0)) -> 0 | AP84: 0 | AQ84: 0 | AR84: =CHOOSE(TaxRates,Tables!Z127,Tables!AA127) -> 0.4 | AS84: 0 | AT84: 0 | AU84: 0 | AW84: =IF(C84>=RetAge,0,IF(AX84<MIN($AX$13:AX83),MAX($AW$13:AW83)+1,0)) -> 0 | AX84: 0 | AY84: =CHOOSE(TaxRates,Tables!Z127,Tables!AA127) -> 0.4 | AZ84: 0 | BA84: 0 | BB84: 0 | BC84: 0 | BF84: 0 | BG84: 0 | BH84: =CHOOSE(TaxRates,Tables!Z127,Tables!AA127) -> 0.4 | BI84: 0 | BJ84: 0 | BK84: 0 | BM84: 0 | BN84: =CHOOSE(TaxRates,Tables!Z127,Tables!AA127) -> 0.4 | BO84: 0 | BP84: 0 | BQ84: 0 | BR84: 0 | BT84: 0 | BU84: =CHOOSE(TaxRates,Tables!Z127,Tables!AA127) -> 0.4 | BV84: 0 | BW84: 0 | BX84: 0 | BY84: 0 | CA84: 0 | CB84: 0.025 | CC84: 0 | CD84: 0 | CF84: 0 | CG84: 0 | CH84: 0 | CI84: 0 | CK84: ='Illustration Modelling'!K87 -> 0 | CL84: ='Illustration Modelling'!M87 -> 0 | CM84: ='Illustration Modelling'!O87 -> 0 | CN84: ='Illustration Modelling'!P87 -> 0 | CP84: 0 | CQ84: 0 | CR84: 0 | CT84: 0 | CU84: 0 | CV84: 0 | CX84: 0 | CY84: 0 | CZ84: 0
A85: 73 | B85: 2087 | C85: 117 | E85: 0 | F85: 0 | G85: 0 | I85: =IF($C85>=RetAge,0,VLOOKUP($B85,Tables!$A$10:$T$126,18,FALSE)) -> 0 | J85: =IF($C85>=RetAge,0,IF(C85<CatchupAge,0,VLOOKUP($B85,Tables!$A$10:$T$126,20,FALSE))) -> 0 | K85: 0 | L85: 0 | M85: =IF($C85>=RetAge,0,VLOOKUP($B85,Tables!$A$10:$T$126,16,FALSE)) -> 0 | N85: 0 | O85: =IF($C85>=RetAge,0,VLOOKUP($B85,Tables!$A$10:$T$126,18,FALSE)) -> 0 | P85: 0 | R85: 0 | S85: 0 | T85: 0 | U85: 0 | V85: 0 | W85: 0 | X85: 0 | Y85: 0 | AA85: 0 | AB85: 0 | AC85: =CHOOSE(TaxRates,Tables!Z128,Tables!AA128) -> 0.4 | AD85: 0 | AE85: 0 | AF85: 0 | AH85: 0 | AI85: 0 | AJ85: =CHOOSE(TaxRates,Tables!Z128,Tables!AA128) -> 0.4 | AK85: 0 | AL85: 0 | AM85: 0 | AO85: =IF(C85>=RetAge,0,IF(AP85<MIN($AP$13:AP84),MAX($AO$13:AO84)+1,0)) -> 0 | AP85: 0 | AQ85: 0 | AR85: =CHOOSE(TaxRates,Tables!Z128,Tables!AA128) -> 0.4 | AS85: 0 | AT85: 0 | AU85: 0 | AW85: =IF(C85>=RetAge,0,IF(AX85<MIN($AX$13:AX84),MAX($AW$13:AW84)+1,0)) -> 0 | AX85: 0 | AY85: =CHOOSE(TaxRates,Tables!Z128,Tables!AA128) -> 0.4 | AZ85: 0 | BA85: 0 | BB85: 0 | BC85: 0 | BF85: 0 | BG85: 0 | BH85: =CHOOSE(TaxRates,Tables!Z128,Tables!AA128) -> 0.4 | BI85: 0 | BJ85: 0 | BK85: 0 | BM85: 0 | BN85: =CHOOSE(TaxRates,Tables!Z128,Tables!AA128) -> 0.4 | BO85: 0 | BP85: 0 | BQ85: 0 | BR85: 0 | BT85: 0 | BU85: =CHOOSE(TaxRates,Tables!Z128,Tables!AA128) -> 0.4 | BV85: 0 | BW85: 0 | BX85: 0 | BY85: 0 | CA85: 0 | CB85: 0.025 | CC85: 0 | CD85: 0 | CF85: 0 | CG85: 0 | CH85: 0 | CI85: 0 | CK85: ='Illustration Modelling'!K88 -> 0 | CL85: ='Illustration Modelling'!M88 -> 0 | CM85: ='Illustration Modelling'!O88 -> 0 | CN85: ='Illustration Modelling'!P88 -> 0 | CP85: 0 | CQ85: 0 | CR85: 0 | CT85: 0 | CU85: 0 | CV85: 0 | CX85: 0 | CY85: 0 | CZ85: 0
A86: 74 | B86: 2088 | C86: 118 | E86: 0 | F86: 0 | G86: 0 | I86: =IF($C86>=RetAge,0,VLOOKUP($B86,Tables!$A$10:$T$126,18,FALSE)) -> 0 | J86: =IF($C86>=RetAge,0,IF(C86<CatchupAge,0,VLOOKUP($B86,Tables!$A$10:$T$126,20,FALSE))) -> 0 | K86: 0 | L86: 0 | M86: =IF($C86>=RetAge,0,VLOOKUP($B86,Tables!$A$10:$T$126,16,FALSE)) -> 0 | N86: 0 | O86: =IF($C86>=RetAge,0,VLOOKUP($B86,Tables!$A$10:$T$126,18,FALSE)) -> 0 | P86: 0 | R86: 0 | S86: 0 | T86: 0 | U86: 0 | V86: 0 | W86: 0 | X86: 0 | Y86: 0 | AA86: 0 | AB86: 0 | AC86: =CHOOSE(TaxRates,Tables!Z129,Tables!AA129) -> 0.4 | AD86: 0 | AE86: 0 | AF86: 0 | AH86: 0 | AI86: 0 | AJ86: =CHOOSE(TaxRates,Tables!Z129,Tables!AA129) -> 0.4 | AK86: 0 | AL86: 0 | AM86: 0 | AO86: =IF(C86>=RetAge,0,IF(AP86<MIN($AP$13:AP85),MAX($AO$13:AO85)+1,0)) -> 0 | AP86: 0 | AQ86: 0 | AR86: =CHOOSE(TaxRates,Tables!Z129,Tables!AA129) -> 0.4 | AS86: 0 | AT86: 0 | AU86: 0 | AW86: =IF(C86>=RetAge,0,IF(AX86<MIN($AX$13:AX85),MAX($AW$13:AW85)+1,0)) -> 0 | AX86: 0 | AY86: =CHOOSE(TaxRates,Tables!Z129,Tables!AA129) -> 0.4 | AZ86: 0 | BA86: 0 | BB86: 0 | BC86: 0 | BF86: 0 | BG86: 0 | BH86: =CHOOSE(TaxRates,Tables!Z129,Tables!AA129) -> 0.4 | BI86: 0 | BJ86: 0 | BK86: 0 | BM86: 0 | BN86: =CHOOSE(TaxRates,Tables!Z129,Tables!AA129) -> 0.4 | BO86: 0 | BP86: 0 | BQ86: 0 | BR86: 0 | BT86: 0 | BU86: =CHOOSE(TaxRates,Tables!Z129,Tables!AA129) -> 0.4 | BV86: 0 | BW86: 0 | BX86: 0 | BY86: 0 | CA86: 0 | CB86: 0.025 | CC86: 0 | CD86: 0 | CF86: 0 | CG86: 0 | CH86: 0 | CI86: 0 | CK86: ='Illustration Modelling'!K89 -> 0 | CL86: ='Illustration Modelling'!M89 -> 0 | CM86: ='Illustration Modelling'!O89 -> 0 | CN86: ='Illustration Modelling'!P89 -> 0 | CP86: 0 | CQ86: 0 | CR86: 0 | CT86: 0 | CU86: 0 | CV86: 0 | CX86: 0 | CY86: 0 | CZ86: 0
A87: 75 | B87: 2089 | C87: 119 | E87: 0 | F87: 0 | G87: 0 | I87: =IF($C87>=RetAge,0,VLOOKUP($B87,Tables!$A$10:$T$126,18,FALSE)) -> 0 | J87: =IF($C87>=RetAge,0,IF(C87<CatchupAge,0,VLOOKUP($B87,Tables!$A$10:$T$126,20,FALSE))) -> 0 | K87: 0 | L87: 0 | M87: =IF($C87>=RetAge,0,VLOOKUP($B87,Tables!$A$10:$T$126,16,FALSE)) -> 0 | N87: 0 | O87: =IF($C87>=RetAge,0,VLOOKUP($B87,Tables!$A$10:$T$126,18,FALSE)) -> 0 | P87: 0 | R87: 0 | S87: 0 | T87: 0 | U87: 0 | V87: 0 | W87: 0 | X87: 0 | Y87: 0 | AA87: 0 | AB87: 0 | AC87: =CHOOSE(TaxRates,Tables!Z130,Tables!AA130) -> 0.4 | AD87: 0 | AE87: 0 | AF87: 0 | AH87: 0 | AI87: 0 | AJ87: =CHOOSE(TaxRates,Tables!Z130,Tables!AA130) -> 0.4 | AK87: 0 | AL87: 0 | AM87: 0 | AO87: =IF(C87>=RetAge,0,IF(AP87<MIN($AP$13:AP86),MAX($AO$13:AO86)+1,0)) -> 0 | AP87: 0 | AQ87: 0 | AR87: =CHOOSE(TaxRates,Tables!Z130,Tables!AA130) -> 0.4 | AS87: 0 | AT87: 0 | AU87: 0 | AW87: =IF(C87>=RetAge,0,IF(AX87<MIN($AX$13:AX86),MAX($AW$13:AW86)+1,0)) -> 0 | AX87: 0 | AY87: =CHOOSE(TaxRates,Tables!Z130,Tables!AA130) -> 0.4 | AZ87: 0 | BA87: 0 | BB87: 0 | BC87: 0 | BF87: 0 | BG87: 0 | BH87: =CHOOSE(TaxRates,Tables!Z130,Tables!AA130) -> 0.4 | BI87: 0 | BJ87: 0 | BK87: 0 | BM87: 0 | BN87: =CHOOSE(TaxRates,Tables!Z130,Tables!AA130) -> 0.4 | BO87: 0 | BP87: 0 | BQ87: 0 | BR87: 0 | BT87: 0 | BU87: =CHOOSE(TaxRates,Tables!Z130,Tables!AA130) -> 0.4 | BV87: 0 | BW87: 0 | BX87: 0 | BY87: 0 | CA87: 0 | CB87: 0.025 | CC87: 0 | CD87: 0 | CF87: 0 | CG87: 0 | CH87: 0 | CI87: 0 | CK87: ='Illustration Modelling'!K90 -> 0 | CL87: ='Illustration Modelling'!M90 -> 0 | CM87: ='Illustration Modelling'!O90 -> 0 | CN87: ='Illustration Modelling'!P90 -> 0 | CP87: 0 | CQ87: 0 | CR87: 0 | CT87: 0 | CU87: 0 | CV87: 0 | CX87: 0 | CY87: 0 | CZ87: 0
A88: 76 | B88: 2090 | C88: 120 | E88: 0 | F88: 0 | G88: 0 | I88: =IF($C88>=RetAge,0,VLOOKUP($B88,Tables!$A$10:$T$126,18,FALSE)) -> 0 | J88: =IF($C88>=RetAge,0,IF(C88<CatchupAge,0,VLOOKUP($B88,Tables!$A$10:$T$126,20,FALSE))) -> 0 | K88: 0 | L88: 0 | M88: =IF($C88>=RetAge,0,VLOOKUP($B88,Tables!$A$10:$T$126,16,FALSE)) -> 0 | N88: 0 | O88: =IF($C88>=RetAge,0,VLOOKUP($B88,Tables!$A$10:$T$126,18,FALSE)) -> 0 | P88: 0 | R88: 0 | S88: 0 | T88: 0 | U88: 0 | V88: 0 | W88: 0 | X88: 0 | Y88: 0 | AA88: 0 | AB88: 0 | AC88: =CHOOSE(TaxRates,Tables!Z131,Tables!AA131) -> 0.4 | AD88: 0 | AE88: 0 | AF88: 0 | AH88: 0 | AI88: 0 | AJ88: =CHOOSE(TaxRates,Tables!Z131,Tables!AA131) -> 0.4 | AK88: 0 | AL88: 0 | AM88: 0 | AO88: =IF(C88>=RetAge,0,IF(AP88<MIN($AP$13:AP87),MAX($AO$13:AO87)+1,0)) -> 0 | AP88: 0 | AQ88: 0 | AR88: =CHOOSE(TaxRates,Tables!Z131,Tables!AA131) -> 0.4 | AS88: 0 | AT88: 0 | AU88: 0 | AW88: =IF(C88>=RetAge,0,IF(AX88<MIN($AX$13:AX87),MAX($AW$13:AW87)+1,0)) -> 0 | AX88: 0 | AY88: =CHOOSE(TaxRates,Tables!Z131,Tables!AA131) -> 0.4 | AZ88: 0 | BA88: 0 | BB88: 0 | BC88: 0 | BF88: 0 | BG88: 0 | BH88: =CHOOSE(TaxRates,Tables!Z131,Tables!AA131) -> 0.4 | BI88: 0 | BJ88: 0 | BK88: 0 | BM88: 0 | BN88: =CHOOSE(TaxRates,Tables!Z131,Tables!AA131) -> 0.4 | BO88: 0 | BP88: 0 | BQ88: 0 | BR88: 0 | BT88: 0 | BU88: =CHOOSE(TaxRates,Tables!Z131,Tables!AA131) -> 0.4 | BV88: 0 | BW88: 0 | BX88: 0 | BY88: 0 | CA88: 0 | CB88: 0.025 | CC88: 0 | CD88: 0 | CF88: 0 | CG88: 0 | CH88: 0 | CI88: 0 | CK88: ='Illustration Modelling'!K91 -> 0 | CL88: ='Illustration Modelling'!M91 -> 0 | CM88: ='Illustration Modelling'!O91 -> 0 | CN88: ='Illustration Modelling'!P91 -> 0 | CP88: 0 | CQ88: 0 | CR88: 0 | CT88: 0 | CU88: 0 | CV88: 0 | CX88: 0 | CY88: 0 | CZ88: 0

Sheet Illustration Detail 7% (hidden)
A1: A30 P 60 10 Wdwl 60 | B1: A30 P 60 10SDWdwl 60 | C1: A30 P 60 20 Wdwl 60 | D1: A30 P 60 20SDWdwl 60 | E1: A30 P 65 10 Wdwl 65 | F1: A30 P 65 10SDWdwl 65 | G1: A30 P 65 20 Wdwl 65 | H1: A30 P 65 20SDWdwl 65 | I1: A30 P 70 10 Wdwl 70 | J1: A30 P 70 10SDWdwl 70 | K1: A30 P 70 20 Wdwl 70 | L1: A30 P 70 20SDWdwl 70 | M1: A31 P 60 10 Wdwl 60 | N1: A31 P 60 10SDWdwl 60 | O1: A31 P 60 20 Wdwl 60 | P1: A31 P 60 20SDWdwl 60 | Q1: A31 P 65 10 Wdwl 65 | R1: A31 P 65 10SDWdwl 65 | S1: A31 P 65 20 Wdwl 65 | T1: A31 P 65 20SDWdwl 65 | U1: A31 P 70 10 Wdwl 70 | V1: A31 P 70 10SDWdwl 70 | W1: A31 P 70 20 Wdwl 70 | X1: A31 P 70 20SDWdwl 70 | Y1: A32 P 60 10 Wdwl 60 | Z1: A32 P 60 10SDWdwl 60 | AA1: A32 P 60 20 Wdwl 60 | AB1: A32 P 60 20SDWdwl 60 | AC1: A32 P 65 10 Wdwl 65 | AD1: A32 P 65 10SDWdwl 65 | AE1: A32 P 65 20 Wdwl 65 | AF1: A32 P 65 20SDWdwl 65 | AG1: A32 P 70 10 Wdwl 70 | AH1: A32 P 70 10SDWdwl 70 | AI1: A32 P 70 20 Wdwl 70 | AJ1: A32 P 70 20SDWdwl 70 | AK1: A33 P 60 10 Wdwl 60 | AL1: A33 P 60 10SDWdwl 60 | AM1: A33 P 60 20 Wdwl 60 | AN1: A33 P 60 20SDWdwl 60 | AO1: A33 P 65 10 Wdwl 65 | AP1: A33 P 65 10SDWdwl 65 | AQ1: A33 P 65 20 Wdwl 65 | AR1: A33 P 65 20SDWdwl 65 | AS1: A33 P 70 10 Wdwl 70 | AT1: A33 P 70 10SDWdwl 70 | AU1: A33 P 70 20 Wdwl 70 | AV1: A33 P 70 20SDWdwl 70 | AW1: A34 P 60 10 Wdwl 60 | AX1: A34 P 60 10SDWdwl 60 | AY1: A34 P 60 20 Wdwl 60 | AZ1: A34 P 60 20SDWdwl 60 | BA1: A34 P 65 10 Wdwl 65 | BB1: A34 P 65 10SDWdwl 65 | BC1: A34 P 65 20 Wdwl 65 | BD1: A34 P 65 20SDWdwl 65 | BE1: A34 P 70 10 Wdwl 70 | BF1: A34 P 70 10SDWdwl 70 | BG1: A34 P 70 20 Wdwl 70 | BH1: A34 P 70 20SDWdwl 70 | BI1: A35 P 60 10 Wdwl 60 | BJ1: A35 P 60 10SDWdwl 60 | BK1: A35 P 60 20 Wdwl 60 | BL1: A35 P 60 20SDWdwl 60 | BM1: A35 P 65 10 Wdwl 65 | BN1: A35 P 65 10SDWdwl 65 | BO1: A35 P 65 20 Wdwl 65 | BP1: A35 P 65 20SDWdwl 65 | BQ1: A35 P 70 10 Wdwl 70 | BR1: A35 P 70 10SDWdwl 70 | BS1: A35 P 70 20 Wdwl 70 | BT1: A35 P 70 20SDWdwl 70 | BU1: A36 P 60 10 Wdwl 60 | BV1: A36 P 60 10SDWdwl 60 | BW1: A36 P 60 20 Wdwl 60 | BX1: A36 P 60 20SDWdwl 60 | BY1: A36 P 65 10 Wdwl 65 | BZ1: A36 P 65 10SDWdwl 65 | CA1: A36 P 65 20 Wdwl 65 | CB1: A36 P 65 20SDWdwl 65 | CC1: A36 P 70 10 Wdwl 70 | CD1: A36 P 70 10SDWdwl 70 | CE1: A36 P 70 20 Wdwl 70 | CF1: A36 P 70 20SDWdwl 70 | CG1: A37 P 60 10 Wdwl 60 | CH1: A37 P 60 10SDWdwl 60 | CI1: A37 P 60 20 Wdwl 60 | CJ1: A37 P 60 20SDWdwl 60 | CK1: A37 P 65 10 Wdwl 65 | CL1: A37 P 65 10SDWdwl 65 | CM1: A37 P 65 20 Wdwl 65 | CN1: A37 P 65 20SDWdwl 65 | CO1: A37 P 70 10 Wdwl 70 | CP1: A37 P 70 10SDWdwl 70 | CQ1: A37 P 70 20 Wdwl 70 | CR1: A37 P 70 20SDWdwl 70 | CS1: A38 P 60 10 Wdwl 60 | CT1: A38 P 60 10SDWdwl 60 | CU1: A38 P 60 20 Wdwl 60 | CV1: A38 P 60 20SDWdwl 60 | CW1: A38 P 65 10 Wdwl 65 | CX1: A38 P 65 10SDWdwl 65 | CY1: A38 P 65 20 Wdwl 65 | CZ1: A38 P 65 20SDWdwl 65 | DA1: A38 P 70 10 Wdwl 70 | DB1: A38 P 70 10SDWdwl 70 | DC1: A38 P 70 20 Wdwl 70 | DD1: A38 P 70 20SDWdwl 70 | DE1: A39 P 60 10 Wdwl 60 | DF1: A39 P 60 10SDWdwl 60 | DG1: A39 P 60 20 Wdwl 60 | DH1: A39 P 60 20SDWdwl 60 | DI1: A39 P 65 10 Wdwl 65 | DJ1: A39 P 65 10SDWdwl 65 | DK1: A39 P 65 20 Wdwl 65 | DL1: A39 P 65 20SDWdwl 65 | DM1: A39 P 70 10 Wdwl 70 | DN1: A39 P 70 10SDWdwl 70 | DO1: A39 P 70 20 Wdwl 70 | DP1: A39 P 70 20SDWdwl 70 | DQ1: A40 P 60 10 Wdwl 60 | DR1: A40 P 60 10SDWdwl 60 | DS1: A40 P 60 20 Wdwl 60 | DT1: A40 P 60 20SDWdwl 60 | DU1: A40 P 65 10 Wdwl 65 | DV1: A40 P 65 10SDWdwl 65 | DW1: A40 P 65 20 Wdwl 65 | DX1: A40 P 65 20SDWdwl 65 | DY1: A40 P 70 10 Wdwl 70 | DZ1: A40 P 70 10SDWdwl 70 | EA1: A40 P 70 20 Wdwl 70 | EB1: A40 P 70 20SDWdwl 70 | EC1: A41 P 60 10 Wdwl 60 | ED1: A41 P 60 10SDWdwl 60 | EE1: A41 P 60 20 Wdwl 60 | EF1: A41 P 60 20SDWdwl 60 | EG1: A41 P 65 10 Wdwl 65 | EH1: A41 P 65 10SDWdwl 65 | EI1: A41 P 65 20 Wdwl 65 | EJ1: A41 P 65 20SDWdwl 65 | EK1: A41 P 70 10 Wdwl 70 | EL1: A41 P 70 10SDWdwl 70 | EM1: A41 P 70 20 Wdwl 70 | EN1: A41 P 70 20SDWdwl 70 | EO1: A42 P 60 10 Wdwl 60 | EP1: A42 P 60 10SDWdwl 60 | EQ1: A42 P 60 20 Wdwl 60 | ER1: A42 P 60 20SDWdwl 60 | ES1: A42 P 65 10 Wdwl 65 | ET1: A42 P 65 10SDWdwl 65 | EU1: A42 P 65 20 Wdwl 65 | EV1: A42 P 65 20SDWdwl 65 | EW1: A42 P 70 10 Wdwl 70 | EX1: A42 P 70 10SDWdwl 70 | EY1: A42 P 70 20 Wdwl 70 | EZ1: A42 P 70 20SDWdwl 70 | FA1: A43 P 60 10 Wdwl 60 | FB1: A43 P 60 10SDWdwl 60 | FC1: A43 P 60 20 Wdwl 60 | FD1: A43 P 60 20SDWdwl 60 | FE1: A43 P 65 10 Wdwl 65 | FF1: A43 P 65 10SDWdwl 65 | FG1: A43 P 65 20 Wdwl 65 | FH1: A43 P 65 20SDWdwl 65 | FI1: A43 P 70 10 Wdwl 70 | FJ1: A43 P 70 10SDWdwl 70 | FK1: A43 P 70 20 Wdwl 70 | FL1: A43 P 70 20SDWdwl 70 | FM1: A44 P 60 10 Wdwl 60 | FN1: A44 P 60 10SDWdwl 60 | FO1: A44 P 60 20 Wdwl 60 | FP1: A44 P 60 20SDWdwl 60 | FQ1: A44 P 65 10 Wdwl 65 | FR1: A44 P 65 10SDWdwl 65 | FS1: A44 P 65 20 Wdwl 65 | FT1: A44 P 65 20SDWdwl 65 | FU1: A44 P 70 10 Wdwl 70 | FV1: A44 P 70 10SDWdwl 70 | FW1: A44 P 70 20 Wdwl 70 | FX1: A44 P 70 20SDWdwl 70 | FY1: A45 P 60 10 Wdwl 60 | FZ1: A45 P 60 10SDWdwl 60 | GA1: A45 P 60 20 Wdwl 60 | GB1: A45 P 60 20SDWdwl 60 | GC1: A45 P 65 10 Wdwl 65 | GD1: A45 P 65 10SDWdwl 65 | GE1: A45 P 65 20 Wdwl 65 | GF1: A45 P 65 20SDWdwl 65 | GG1: A45 P 70 10 Wdwl 70 | GH1: A45 P 70 10SDWdwl 70 | GI1: A45 P 70 20 Wdwl 70 | GJ1: A45 P 70 20SDWdwl 70 | GK1: A46 P 60 10 Wdwl 60 | GL1: A46 P 60 10SDWdwl 60 | GM1: A46 P 60 20 Wdwl 60 | GN1: A46 P 60 20SDWdwl 60 | GO1: A46 P 65 10 Wdwl 65 | GP1: A46 P 65 10SDWdwl 65 | GQ1: A46 P 65 20 Wdwl 65 | GR1: A46 P 65 20SDWdwl 65 | GS1: A46 P 70 10 Wdwl 70 | GT1: A46 P 70 10SDWdwl 70 | GU1: A46 P 70 20 Wdwl 70 | GV1: A46 P 70 20SDWdwl 70 | GW1: A47 P 60 10 Wdwl 60 | GX1: A47 P 60 10SDWdwl 60 | GY1: A47 P 60 20 Wdwl 60 | GZ1: A47 P 60 20SDWdwl 60 | HA1: A47 P 65 10 Wdwl 65 | HB1: A47 P 65 10SDWdwl 65 | HC1: A47 P 65 20 Wdwl 65 | HD1: A47 P 65 20SDWdwl 65 | HE1: A47 P 70 10 Wdwl 70 | HF1: A47 P 70 10SDWdwl 70 | HG1: A47 P 70 20 Wdwl 70 | HH1: A47 P 70 20SDWdwl 70 | HI1: A48 P 60 10 Wdwl 60 | HJ1: A48 P 60 10SDWdwl 60 | HK1: A48 P 60 20 Wdwl 60 | HL1: A48 P 60 20SDWdwl 60 | HM1: A48 P 65 10 Wdwl 65 | HN1: A48 P 65 10SDWdwl 65 | HO1: A48 P 65 20 Wdwl 65 | HP1: A48 P 65 20SDWdwl 65 | HQ1: A48 P 70 10 Wdwl 70 | HR1: A48 P 70 10SDWdwl 70 | HS1: A48 P 70 20 Wdwl 70 | HT1: A48 P 70 20SDWdwl 70 | HU1: A49 P 60 10 Wdwl 60 | HV1: A49 P 60 10SDWdwl 60 | HW1: A49 P 60 20 Wdwl 60 | HX1: A49 P 60 20SDWdwl 60 | HY1: A49 P 65 10 Wdwl 65 | HZ1: A49 P 65 10SDWdwl 65 | IA1: A49 P 65 20 Wdwl 65 | IB1: A49 P 65 20SDWdwl 65 | IC1: A49 P 70 10 Wdwl 70 | ID1: A49 P 70 10SDWdwl 70 | IE1: A49 P 70 20 Wdwl 70 | IF1: A49 P 70 20SDWdwl 70 | IG1: A50 P 60 10 Wdwl 60 | IH1: A50 P 60 10SDWdwl 60 | II1: A50 P 60 20 Wdwl 60 | IJ1: A50 P 60 20SDWdwl 60 | IK1: A50 P 65 10 Wdwl 65 | IL1: A50 P 65 10SDWdwl 65 | IM1: A50 P 65 20 Wdwl 65 | IN1: A50 P 65 20SDWdwl 65 | IO1: A50 P 70 10 Wdwl 70 | IP1: A50 P 70 10SDWdwl 70 | IQ1: A50 P 70 20 Wdwl 70 | IR1: A50 P 70 20SDWdwl 70 | IS1: A51 P 60 10 Wdwl 60 | IT1: A51 P 60 10SDWdwl 60 | IU1: A51 P 60 20 Wdwl 60 | IV1: A51 P 60 20SDWdwl 60 | IW1: A51 P 65 10 Wdwl 65 | IX1: A51 P 65 10SDWdwl 65 | IY1: A51 P 65 20 Wdwl 65 | IZ1: A51 P 65 20SDWdwl 65 | JA1: A51 P 70 10 Wdwl 70 | JB1: A51 P 70 10SDWdwl 70 | JC1: A51 P 70 20 Wdwl 70 | JD1: A51 P 70 20SDWdwl 70 | JE1: A52 P 60 10 Wdwl 60 | JF1: A52 P 60 10SDWdwl 60 | JG1: A52 P 60 20 Wdwl 60 | JH1: A52 P 60 20SDWdwl 60 | JI1: A52 P 65 10 Wdwl 65 | JJ1: A52 P 65 10SDWdwl 65 | JK1: A52 P 65 20 Wdwl 65 | JL1: A52 P 65 20SDWdwl 65 | JM1: A52 P 70 10 Wdwl 70 | JN1: A52 P 70 10SDWdwl 70 | JO1: A52 P 70 20 Wdwl 70 | JP1: A52 P 70 20SDWdwl 70 | JQ1: A53 P 60 10 Wdwl 60 | JR1: A53 P 60 10SDWdwl 60 | JS1: A53 P 60 20 Wdwl 60 | JT1: A53 P 60 20SDWdwl 60 | JU1: A53 P 65 10 Wdwl 65 | JV1: A53 P 65 10SDWdwl 65 | JW1: A53 P 65 20 Wdwl 65 | JX1: A53 P 65 20SDWdwl 65 | JY1: A53 P 70 10 Wdwl 70 | JZ1: A53 P 70 10SDWdwl 70 | KA1: A53 P 70 20 Wdwl 70 | KB1: A53 P 70 20SDWdwl 70 | KC1: A54 P 60 10 Wdwl 60 | KD1: A54 P 60 10SDWdwl 60 | KE1: A54 P 60 20 Wdwl 60 | KF1: A54 P 60 20SDWdwl 60 | KG1: A54 P 65 10 Wdwl 65 | KH1: A54 P 65 10SDWdwl 65 | KI1: A54 P 65 20 Wdwl 65 | KJ1: A54 P 65 20SDWdwl 65 | KK1: A54 P 70 10 Wdwl 70 | KL1: A54 P 70 10SDWdwl 70 | KM1: A54 P 70 20 Wdwl 70 | KN1: A54 P 70 20SDWdwl 70 | KO1: A55 P 60 10 Wdwl 60 | KP1: A55 P 60 10SDWdwl 60 | KQ1: A55 P 60 20 Wdwl 60 | KR1: A55 P 60 20SDWdwl 60 | KS1: A55 P 65 10 Wdwl 65 | KT1: A55 P 65 10SDWdwl 65 | KU1: A55 P 65 20 Wdwl 65 | KV1: A55 P 65 20SDWdwl 65 | KW1: A55 P 70 10 Wdwl 70 | KX1: A55 P 70 10SDWdwl 70 | KY1: A55 P 70 20 Wdwl 70 | KZ1: A55 P 70 20SDWdwl 70
A3: Attained | B3: Attained | C3: Attained | D3: Attained | E3: Attained | F3: Attained | G3: Attained | H3: Attained | I3: Attained | J3: Attained | K3: Attained | L3: Attained | M3: Attained | N3: Attained | O3: Attained | P3: Attained | Q3: Attained | R3: Attained | S3: Attained | T3: Attained | U3: Attained | V3: Attained | W3: Attained | X3: Attained | Y3: Attained | Z3: Attained | AA3: Attained | AB3: Attained | AC3: Attained | AD3: Attained | AE3: Attained | AF3: Attained | AG3: Attained | AH3: Attained | AI3: Attained | AJ3: Attained | AK3: Attained | AL3: Attained | AM3: Attained | AN3: Attained | AO3: Attained | AP3: Attained | AQ3: Attained | AR3: Attained | AS3: Attained | AT3: Attained | AU3: Attained | AV3: Attained | AW3: Attained | AX3: Attained | AY3: Attained | AZ3: Attained | BA3: Attained | BB3: Attained | BC3: Attained | BD3: Attained | BE3: Attained | BF3: Attained | BG3: Attained | BH3: Attained | BI3: Attained | BJ3: Attained | BK3: Attained | BL3: Attained | BM3: Attained | BN3: Attained | BO3: Attained | BP3: Attained | BQ3: Attained | BR3: Attained | BS3: Attained | BT3: Attained | BU3: Attained | BV3: Attained | BW3: Attained | BX3: Attained | BY3: Attained | BZ3: Attained | CA3: Attained | CB3: Attained | CC3: Attained | CD3: Attained | CE3: Attained | CF3: Attained | CG3: Attained | CH3: Attained | CI3: Attained | CJ3: Attained | CK3: Attained | CL3: Attained | CM3: Attained | CN3: Attained | CO3: Attained | CP3: Attained | CQ3: Attained | CR3: Attained | CS3: Attained | CT3: Attained | CU3: Attained | CV3: Attained | CW3: Attained | CX3: Attained | CY3: Attained | CZ3: Attained | DA3: Attained | DB3: Attained | DC3: Attained | DD3: Attained | DE3: Attained | DF3: Attained | DG3: Attained | DH3: Attained | DI3: Attained | DJ3: Attained | DK3: Attained | DL3: Attained | DM3: Attained | DN3: Attained | DO3: Attained | DP3: Attained | DQ3: Attained | DR3: Attained | DS3: Attained | DT3: Attained | DU3: Attained | DV3: Attained | DW3: Attained | DX3: Attained | DY3: Attained | DZ3: Attained | EA3: Attained | EB3: Attained | EC3: Attained | ED3: Attained | EE3: Attained | EF3: Attained | EG3: Attained | EH3: Attained | EI3: Attained | EJ3: Attained | EK3: Attained | EL3: Attained | EM3: Attained | EN3: Attained | EO3: Attained | EP3: Attained | EQ3: Attained | ER3: Attained | ES3: Attained | ET3: Attained | EU3: Attained | EV3: Attained | EW3: Attained | EX3: Attained | EY3: Attained | EZ3: Attained | FA3: Attained | FB3: Attained | FC3: Attained | FD3: Attained | FE3: Attained | FF3: Attained | FG3: Attained | FH3: Attained | FI3: Attained | FJ3: Attained | FK3: Attained | FL3: Attained | FM3: Attained | FN3: Attained | FO3: Attained | FP3: Attained | FQ3: Attained | FR3: Attained | FS3: Attained | FT3: Attained | FU3: Attained | FV3: Attained | FW3: Attained | FX3: Attained | FY3: Attained | FZ3: Attained | GA3: Attained | GB3: Attained | GC3: Attained | GD3: Attained | GE3: Attained | GF3: Attained | GG3: Attained | GH3: Attained | GI3: Attained | GJ3: Attained | GK3: Attained | GL3: Attained | GM3: Attained | GN3: Attained | GO3: Attained | GP3: Attained | GQ3: Attained | GR3: Attained | GS3: Attained | GT3: Attained | GU3: Attained | GV3: Attained | GW3: Attained | GX3: Attained | GY3: Attained | GZ3: Attained | HA3: Attained | HB3: Attained | HC3: Attained | HD3: Attained | HE3: Attained | HF3: Attained | HG3: Attained | HH3: Attained | HI3: Attained | HJ3: Attained | HK3: Attained | HL3: Attained | HM3: Attained | HN3: Attained | HO3: Attained | HP3: Attained | HQ3: Attained | HR3: Attained | HS3: Attained | HT3: Attained | HU3: Attained | HV3: Attained | HW3: Attained | HX3: Attained | HY3: Attained | HZ3: Attained | IA3: Attained | IB3: Attained | IC3: Attained | ID3: Attained | IE3: Attained | IF3: Attained | IG3: Attained | IH3: Attained | II3: Attained | IJ3: Attained | IK3: Attained | IL3: Attained | IM3: Attained | IN3: Attained | IO3: Attained | IP3: Attained | IQ3: Attained | IR3: Attained | IS3: Attained | IT3: Attained | IU3: Attained | IV3: Attained | IW3: Attained | IX3: Attained | IY3: Attained | IZ3: Attained | JA3: Attained | JB3: Attained | JC3: Attained | JD3: Attained | JE3: Attained | JF3: Attained | JG3: Attained | JH3: Attained | JI3: Attained | JJ3: Attained | JK3: Attained | JL3: Attained | JM3: Attained | JN3: Attained | JO3: Attained | JP3: Attained | JQ3: Attained | JR3: Attained | JS3: Attained | JT3: Attained | JU3: Attained | JV3: Attained | JW3: Attained | JX3: Attained | JY3: Attained | JZ3: Attained | KA3: Attained | KB3: Attained | KC3: Attained | KD3: Attained | KE3: Attained | KF3: Attained | KG3: Attained | KH3: Attained | KI3: Attained | KJ3: Attained | KK3: Attained | KL3: Attained | KM3: Attained | KN3: Attained | KO3: Attained | KP3: Attained | KQ3: Attained | KR3: Attained | KS3: Attained | KT3: Attained | KU3: Attained | KV3: Attained | KW3: Attained | KX3: Attained | KY3: Attained | KZ3: Attained
A4: Age | B4: Age | C4: Age | D4: Age | E4: Age | F4: Age | G4: Age | H4: Age | I4: Age | J4: Age | K4: Age | L4: Age | M4: Age | N4: Age | O4: Age | P4: Age | Q4: Age | R4: Age | S4: Age | T4: Age | U4: Age | V4: Age | W4: Age | X4: Age | Y4: Age | Z4: Age | AA4: Age | AB4: Age | AC4: Age | AD4: Age | AE4: Age | AF4: Age | AG4: Age | AH4: Age | AI4: Age | AJ4: Age | AK4: Age | AL4: Age | AM4: Age | AN4: Age | AO4: Age | AP4: Age | AQ4: Age | AR4: Age | AS4: Age | AT4: Age | AU4: Age | AV4: Age | AW4: Age | AX4: Age | AY4: Age | AZ4: Age | BA4: Age | BB4: Age | BC4: Age | BD4: Age | BE4: Age | BF4: Age | BG4: Age | BH4: Age | BI4: Age | BJ4: Age | BK4: Age | BL4: Age | BM4: Age | BN4: Age | BO4: Age | BP4: Age | BQ4: Age | BR4: Age | BS4: Age | BT4: Age | BU4: Age | BV4: Age | BW4: Age | BX4: Age | BY4: Age | BZ4: Age | CA4: Age | CB4: Age | CC4: Age | CD4: Age | CE4: Age | CF4: Age | CG4: Age | CH4: Age | CI4: Age | CJ4: Age | CK4: Age | CL4: Age | CM4: Age | CN4: Age | CO4: Age | CP4: Age | CQ4: Age | CR4: Age | CS4: Age | CT4: Age | CU4: Age | CV4: Age | CW4: Age | CX4: Age | CY4: Age | CZ4: Age | DA4: Age | DB4: Age | DC4: Age | DD4: Age | DE4: Age | DF4: Age | DG4: Age | DH4: Age | DI4: Age | DJ4: Age | DK4: Age | DL4: Age | DM4: Age | DN4: Age | DO4: Age | DP4: Age | DQ4: Age | DR4: Age | DS4: Age | DT4: Age | DU4: Age | DV4: Age | DW4: Age | DX4: Age | DY4: Age | DZ4: Age | EA4: Age | EB4: Age | EC4: Age | ED4: Age | EE4: Age | EF4: Age | EG4: Age | EH4: Age | EI4: Age | EJ4: Age | EK4: Age | EL4: Age | EM4: Age | EN4: Age | EO4: Age | EP4: Age | EQ4: Age | ER4: Age | ES4: Age | ET4: Age | EU4: Age | EV4: Age | EW4: Age | EX4: Age | EY4: Age | EZ4: Age | FA4: Age | FB4: Age | FC4: Age | FD4: Age | FE4: Age | FF4: Age | FG4: Age | FH4: Age | FI4: Age | FJ4: Age | FK4: Age | FL4: Age | FM4: Age | FN4: Age | FO4: Age | FP4: Age | FQ4: Age | FR4: Age | FS4: Age | FT4: Age | FU4: Age | FV4: Age | FW4: Age | FX4: Age | FY4: Age | FZ4: Age | GA4: Age | GB4: Age | GC4: Age | GD4: Age | GE4: Age | GF4: Age | GG4: Age | GH4: Age | GI4: Age | GJ4: Age | GK4: Age | GL4: Age | GM4: Age | GN4: Age | GO4: Age | GP4: Age | GQ4: Age | GR4: Age | GS4: Age | GT4: Age | GU4: Age | GV4: Age | GW4: Age | GX4: Age | GY4: Age | GZ4: Age | HA4: Age | HB4: Age | HC4: Age | HD4: Age | HE4: Age | HF4: Age | HG4: Age | HH4: Age | HI4: Age | HJ4: Age | HK4: Age | HL4: Age | HM4: Age | HN4: Age | HO4: Age | HP4: Age | HQ4: Age | HR4: Age | HS4: Age | HT4: Age | HU4: Age | HV4: Age | HW4: Age | HX4: Age | HY4: Age | HZ4: Age | IA4: Age | IB4: Age | IC4: Age | ID4: Age | IE4: Age | IF4: Age | IG4: Age | IH4: Age | II4: Age | IJ4: Age | IK4: Age | IL4: Age | IM4: Age | IN4: Age | IO4: Age | IP4: Age | IQ4: Age | IR4: Age | IS4: Age | IT4: Age | IU4: Age | IV4: Age | IW4: Age | IX4: Age | IY4: Age | IZ4: Age | JA4: Age | JB4: Age | JC4: Age | JD4: Age | JE4: Age | JF4: Age | JG4: Age | JH4: Age | JI4: Age | JJ4: Age | JK4: Age | JL4: Age | JM4: Age | JN4: Age | JO4: Age | JP4: Age | JQ4: Age | JR4: Age | JS4: Age | JT4: Age | JU4: Age | JV4: Age | JW4: Age | JX4: Age | JY4: Age | JZ4: Age | KA4: Age | KB4: Age | KC4: Age | KD4: Age | KE4: Age | KF4: Age | KG4: Age | KH4: Age | KI4: Age | KJ4: Age | KK4: Age | KL4: Age | KM4: Age | KN4: Age | KO4: Age | KP4: Age | KQ4: Age | KR4: Age | KS4: Age | KT4: Age | KU4: Age | KV4: Age | KW4: Age | KX4: Age | KY4: Age | KZ4: Age
A5: 30 | B5: 30 | C5: 30 | D5: 30 | E5: 30 | F5: 30 | G5: 30 | H5: 30 | I5: 30 | J5: 30 | K5: 30 | L5: 30 | M5: 31 | N5: 31 | O5: 31 | P5: 31 | Q5: 31 | R5: 31 | S5: 31 | T5: 31 | U5: 31 | V5: 31 | W5: 31 | X5: 31 | Y5: 32 | Z5: 32 | AA5: 32 | AB5: 32 | AC5: 32 | AD5: 32 | AE5: 32 | AF5: 32 | AG5: 32 | AH5: 32 | AI5: 32 | AJ5: 32 | AK5: 33 | AL5: 33 | AM5: 33 | AN5: 33 | AO5: 33 | AP5: 33 | AQ5: 33 | AR5: 33 | AS5: 33 | AT5: 33 | AU5: 33 | AV5: 33 | AW5: 34 | AX5: 34 | AY5: 34 | AZ5: 34 | BA5: 34 | BB5: 34 | BC5: 34 | BD5: 34 | BE5: 34 | BF5: 34 | BG5: 34 | BH5: 34 | BI5: 35 | BJ5: 35 | BK5: 35 | BL5: 35 | BM5: 35 | BN5: 35 | BO5: 35 | BP5: 35 | BQ5: 35 | BR5: 35 | BS5: 35 | BT5: 35 | BU5: 36 | BV5: 36 | BW5: 36 | BX5: 36 | BY5: 36 | BZ5: 36 | CA5: 36 | CB5: 36 | CC5: 36 | CD5: 36 | CE5: 36 | CF5: 36 | CG5: 37 | CH5: 37 | CI5: 37 | CJ5: 37 | CK5: 37 | CL5: 37 | CM5: 37 | CN5: 37 | CO5: 37 | CP5: 37 | CQ5: 37 | CR5: 37 | CS5: 38 | CT5: 38 | CU5: 38 | CV5: 38 | CW5: 38 | CX5: 38 | CY5: 38 | CZ5: 38 | DA5: 38 | DB5: 38 | DC5: 38 | DD5: 38 | DE5: 39 | DF5: 39 | DG5: 39 | DH5: 39 | DI5: 39 | DJ5: 39 | DK5: 39 | DL5: 39 | DM5: 39 | DN5: 39 | DO5: 39 | DP5: 39 | DQ5: 40 | DR5: 40 | DS5: 40 | DT5: 40 | DU5: 40 | DV5: 40 | DW5: 40 | DX5: 40 | DY5: 40 | DZ5: 40 | EA5: 40 | EB5: 40 | EC5: 41 | ED5: 41 | EE5: 41 | EF5: 41 | EG5: 41 | EH5: 41 | EI5: 41 | EJ5: 41 | EK5: 41 | EL5: 41 | EM5: 41 | EN5: 41 | EO5: 42 | EP5: 42 | EQ5: 42 | ER5: 42 | ES5: 42 | ET5: 42 | EU5: 42 | EV5: 42 | EW5: 42 | EX5: 42 | EY5: 42 | EZ5: 42 | FA5: 43 | FB5: 43 | FC5: 43 | FD5: 43 | FE5: 43 | FF5: 43 | FG5: 43 | FH5: 43 | FI5: 43 | FJ5: 43 | FK5: 43 | FL5: 43 | FM5: 44 | FN5: 44 | FO5: 44 | FP5: 44 | FQ5: 44 | FR5: 44 | FS5: 44 | FT5: 44 | FU5: 44 | FV5: 44 | FW5: 44 | FX5: 44 | FY5: 45 | FZ5: 45 | GA5: 45 | GB5: 45 | GC5: 45 | GD5: 45 | GE5: 45 | GF5: 45 | GG5: 45 | GH5: 45 | GI5: 45 | GJ5: 45 | GK5: 46 | GL5: 46 | GM5: 46 | GN5: 46 | GO5: 46 | GP5: 46 | GQ5: 46 | GR5: 46 | GS5: 46 | GT5: 46 | GU5: 46 | GV5: 46 | GW5: 47 | GX5: 47 | GY5: 47 | GZ5: 47 | HA5: 47 | HB5: 47 | HC5: 47 | HD5: 47 | HE5: 47 | HF5: 47 | HG5: 47 | HH5: 47 | HI5: 48 | HJ5: 48 | HK5: 48 | HL5: 48 | HM5: 48 | HN5: 48 | HO5: 48 | HP5: 48 | HQ5: 48 | HR5: 48 | HS5: 48 | HT5: 48 | HU5: 49 | HV5: 49 | HW5: 49 | HX5: 49 | HY5: 49 | HZ5: 49 | IA5: 49 | IB5: 49 | IC5: 49 | ID5: 49 | IE5: 49 | IF5: 49 | IG5: 50 | IH5: 50 | II5: 50 | IJ5: 50 | IK5: 50 | IL5: 50 | IM5: 50 | IN5: 50 | IO5: 50 | IP5: 50 | IQ5: 50 | IR5: 50 | IS5: 51 | IT5: 51 | IU5: 51 | IV5: 51 | IW5: 51 | IX5: 51 | IY5: 51 | IZ5: 51 | JA5: 51 | JB5: 51 | JC5: 51 | JD5: 51 | JE5: 52 | JF5: 52 | JG5: 52 | JH5: 52 | JI5: 52 | JJ5: 52 | JK5: 52 | JL5: 52 | JM5: 52 | JN5: 52 | JO5: 52 | JP5: 52 | JQ5: 53 | JR5: 53 | JS5: 53 | JT5: 53 | JU5: 53 | JV5: 53 | JW5: 53 | JX5: 53 | JY5: 53 | JZ5: 53 | KA5: 53 | KB5: 53 | KC5: 54 | KD5: 54 | KE5: 54 | KF5: 54 | KG5: 54 | KH5: 54 | KI5: 54 | KJ5: 54 | KK5: 54 | KL5: 54 | KM5: 54 | KN5: 54 | KO5: 55 | KP5: 55 | KQ5: 55 | KR5: 55 | KS5: 55 | KT5: 55 | KU5: 55 | KV5: 55 | KW5: 55 | KX5: 55 | KY5: 55 | KZ5: 55
A6: 31 | B6: 31 | C6: 31 | D6: 31 | E6: 31 | F6: 31 | G6: 31 | H6: 31 | I6: 31 | J6: 31 | K6: 31 | L6: 31 | M6: 32 | N6: 32 | O6: 32 | P6: 32 | Q6: 32 | R6: 32 | S6: 32 | T6: 32 | U6: 32 | V6: 32 | W6: 32 | X6: 32 | Y6: 33 | Z6: 33 | AA6: 33 | AB6: 33 | AC6: 33 | AD6: 33 | AE6: 33 | AF6: 33 | AG6: 33 | AH6: 33 | AI6: 33 | AJ6: 33 | AK6: 34 | AL6: 34 | AM6: 34 | AN6: 34 | AO6: 34 | AP6: 34 | AQ6: 34 | AR6: 34 | AS6: 34 | AT6: 34 | AU6: 34 | AV6: 34 | AW6: 35 | AX6: 35 | AY6: 35 | AZ6: 35 | BA6: 35 | BB6: 35 | BC6: 35 | BD6: 35 | BE6: 35 | BF6: 35 | BG6: 35 | BH6: 35 | BI6: 36 | BJ6: 36 | BK6: 36 | BL6: 36 | BM6: 36 | BN6: 36 | BO6: 36 | BP6: 36 | BQ6: 36 | BR6: 36 | BS6: 36 | BT6: 36 | BU6: 37 | BV6: 37 | BW6: 37 | BX6: 37 | BY6: 37 | BZ6: 37 | CA6: 37 | CB6: 37 | CC6: 37 | CD6: 37 | CE6: 37 | CF6: 37 | CG6: 38 | CH6: 38 | CI6: 38 | CJ6: 38 | CK6: 38 | CL6: 38 | CM6: 38 | CN6: 38 | CO6: 38 | CP6: 38 | CQ6: 38 | CR6: 38 | CS6: 39 | CT6: 39 | CU6: 39 | CV6: 39 | CW6: 39 | CX6: 39 | CY6: 39 | CZ6: 39 | DA6: 39 | DB6: 39 | DC6: 39 | DD6: 39 | DE6: 40 | DF6: 40 | DG6: 40 | DH6: 40 | DI6: 40 | DJ6: 40 | DK6: 40 | DL6: 40 | DM6: 40 | DN6: 40 | DO6: 40 | DP6: 40 | DQ6: 41 | DR6: 41 | DS6: 41 | DT6: 41 | DU6: 41 | DV6: 41 | DW6: 41 | DX6: 41 | DY6: 41 | DZ6: 41 | EA6: 41 | EB6: 41 | EC6: 42 | ED6: 42 | EE6: 42 | EF6: 42 | EG6: 42 | EH6: 42 | EI6: 42 | EJ6: 42 | EK6: 42 | EL6: 42 | EM6: 42 | EN6: 42 | EO6: 43 | EP6: 43 | EQ6: 43 | ER6: 43 | ES6: 43 | ET6: 43 | EU6: 43 | EV6: 43 | EW6: 43 | EX6: 43 | EY6: 43 | EZ6: 43 | FA6: 44 | FB6: 44 | FC6: 44 | FD6: 44 | FE6: 44 | FF6: 44 | FG6: 44 | FH6: 44 | FI6: 44 | FJ6: 44 | FK6: 44 | FL6: 44 | FM6: 45 | FN6: 45 | FO6: 45 | FP6: 45 | FQ6: 45 | FR6: 45 | FS6: 45 | FT6: 45 | FU6: 45 | FV6: 45 | FW6: 45 | FX6: 45 | FY6: 46 | FZ6: 46 | GA6: 46 | GB6: 46 | GC6: 46 | GD6: 46 | GE6: 46 | GF6: 46 | GG6: 46 | GH6: 46 | GI6: 46 | GJ6: 46 | GK6: 47 | GL6: 47 | GM6: 47 | GN6: 47 | GO6: 47 | GP6: 47 | GQ6: 47 | GR6: 47 | GS6: 47 | GT6: 47 | GU6: 47 | GV6: 47 | GW6: 48 | GX6: 48 | GY6: 48 | GZ6: 48 | HA6: 48 | HB6: 48 | HC6: 48 | HD6: 48 | HE6: 48 | HF6: 48 | HG6: 48 | HH6: 48 | HI6: 49 | HJ6: 49 | HK6: 49 | HL6: 49 | HM6: 49 | HN6: 49 | HO6: 49 | HP6: 49 | HQ6: 49 | HR6: 49 | HS6: 49 | HT6: 49 | HU6: 50 | HV6: 50 | HW6: 50 | HX6: 50 | HY6: 50 | HZ6: 50 | IA6: 50 | IB6: 50 | IC6: 50 | ID6: 50 | IE6: 50 | IF6: 50 | IG6: 51 | IH6: 51 | II6: 51 | IJ6: 51 | IK6: 51 | IL6: 51 | IM6: 51 | IN6: 51 | IO6: 51 | IP6: 51 | IQ6: 51 | IR6: 51 | IS6: 52 | IT6: 52 | IU6: 52 | IV6: 52 | IW6: 52 | IX6: 52 | IY6: 52 | IZ6: 52 | JA6: 52 | JB6: 52 | JC6: 52 | JD6: 52 | JE6: 53 | JF6: 53 | JG6: 53 | JH6: 53 | JI6: 53 | JJ6: 53 | JK6: 53 | JL6: 53 | JM6: 53 | JN6: 53 | JO6: 53 | JP6: 53 | JQ6: 54 | JR6: 54 | JS6: 54 | JT6: 54 | JU6: 54 | JV6: 54 | JW6: 54 | JX6: 54 | JY6: 54 | JZ6: 54 | KA6: 54 | KB6: 54 | KC6: 55 | KD6: 55 | KE6: 55 | KF6: 55 | KG6: 55 | KH6: 55 | KI6: 55 | KJ6: 55 | KK6: 55 | KL6: 55 | KM6: 55 | KN6: 55 | KO6: 56 | KP6: 56 | KQ6: 56 | KR6: 56 | KS6: 56 | KT6: 56 | KU6: 56 | KV6: 56 | KW6: 56 | KX6: 56 | KY6: 56 | KZ6: 56
A7: 32 | B7: 32 | C7: 32 | D7: 32 | E7: 32 | F7: 32 | G7: 32 | H7: 32 | I7: 32 | J7: 32 | K7: 32 | L7: 32 | M7: 33 | N7: 33 | O7: 33 | P7: 33 | Q7: 33 | R7: 33 | S7: 33 | T7: 33 | U7: 33 | V7: 33 | W7: 33 | X7: 33 | Y7: 34 | Z7: 34 | AA7: 34 | AB7: 34 | AC7: 34 | AD7: 34 | AE7: 34 | AF7: 34 | AG7: 34 | AH7: 34 | AI7: 34 | AJ7: 34 | AK7: 35 | AL7: 35 | AM7: 35 | AN7: 35 | AO7: 35 | AP7: 35 | AQ7: 35 | AR7: 35 | AS7: 35 | AT7: 35 | AU7: 35 | AV7: 35 | AW7: 36 | AX7: 36 | AY7: 36 | AZ7: 36 | BA7: 36 | BB7: 36 | BC7: 36 | BD7: 36 | BE7: 36 | BF7: 36 | BG7: 36 | BH7: 36 | BI7: 37 | BJ7: 37 | BK7: 37 | BL7: 37 | BM7: 37 | BN7: 37 | BO7: 37 | BP7: 37 | BQ7: 37 | BR7: 37 | BS7: 37 | BT7: 37 | BU7: 38 | BV7: 38 | BW7: 38 | BX7: 38 | BY7: 38 | BZ7: 38 | CA7: 38 | CB7: 38 | CC7: 38 | CD7: 38 | CE7: 38 | CF7: 38 | CG7: 39 | CH7: 39 | CI7: 39 | CJ7: 39 | CK7: 39 | CL7: 39 | CM7: 39 | CN7: 39 | CO7: 39 | CP7: 39 | CQ7: 39 | CR7: 39 | CS7: 40 | CT7: 40 | CU7: 40 | CV7: 40 | CW7: 40 | CX7: 40 | CY7: 40 | CZ7: 40 | DA7: 40 | DB7: 40 | DC7: 40 | DD7: 40 | DE7: 41 | DF7: 41 | DG7: 41 | DH7: 41 | DI7: 41 | DJ7: 41 | DK7: 41 | DL7: 41 | DM7: 41 | DN7: 41 | DO7: 41 | DP7: 41 | DQ7: 42 | DR7: 42 | DS7: 42 | DT7: 42 | DU7: 42 | DV7: 42 | DW7: 42 | DX7: 42 | DY7: 42 | DZ7: 42 | EA7: 42 | EB7: 42 | EC7: 43 | ED7: 43 | EE7: 43 | EF7: 43 | EG7: 43 | EH7: 43 | EI7: 43 | EJ7: 43 | EK7: 43 | EL7: 43 | EM7: 43 | EN7: 43 | EO7: 44 | EP7: 44 | EQ7: 44 | ER7: 44 | ES7: 44 | ET7: 44 | EU7: 44 | EV7: 44 | EW7: 44 | EX7: 44 | EY7: 44 | EZ7: 44 | FA7: 45 | FB7: 45 | FC7: 45 | FD7: 45 | FE7: 45 | FF7: 45 | FG7: 45 | FH7: 45 | FI7: 45 | FJ7: 45 | FK7: 45 | FL7: 45 | FM7: 46 | FN7: 46 | FO7: 46 | FP7: 46 | FQ7: 46 | FR7: 46 | FS7: 46 | FT7: 46 | FU7: 46 | FV7: 46 | FW7: 46 | FX7: 46 | FY7: 47 | FZ7: 47 | GA7: 47 | GB7: 47 | GC7: 47 | GD7: 47 | GE7: 47 | GF7: 47 | GG7: 47 | GH7: 47 | GI7: 47 | GJ7: 47 | GK7: 48 | GL7: 48 | GM7: 48 | GN7: 48 | GO7: 48 | GP7: 48 | GQ7: 48 | GR7: 48 | GS7: 48 | GT7: 48 | GU7: 48 | GV7: 48 | GW7: 49 | GX7: 49 | GY7: 49 | GZ7: 49 | HA7: 49 | HB7: 49 | HC7: 49 | HD7: 49 | HE7: 49 | HF7: 49 | HG7: 49 | HH7: 49 | HI7: 50 | HJ7: 50 | HK7: 50 | HL7: 50 | HM7: 50 | HN7: 50 | HO7: 50 | HP7: 50 | HQ7: 50 | HR7: 50 | HS7: 50 | HT7: 50 | HU7: 51 | HV7: 51 | HW7: 51 | HX7: 51 | HY7: 51 | HZ7: 51 | IA7: 51 | IB7: 51 | IC7: 51 | ID7: 51 | IE7: 51 | IF7: 51 | IG7: 52 | IH7: 52 | II7: 52 | IJ7: 52 | IK7: 52 | IL7: 52 | IM7: 52 | IN7: 52 | IO7: 52 | IP7: 52 | IQ7: 52 | IR7: 52 | IS7: 53 | IT7: 53 | IU7: 53 | IV7: 53 | IW7: 53 | IX7: 53 | IY7: 53 | IZ7: 53 | JA7: 53 | JB7: 53 | JC7: 53 | JD7: 53 | JE7: 54 | JF7: 54 | JG7: 54 | JH7: 54 | JI7: 54 | JJ7: 54 | JK7: 54 | JL7: 54 | JM7: 54 | JN7: 54 | JO7: 54 | JP7: 54 | JQ7: 55 | JR7: 55 | JS7: 55 | JT7: 55 | JU7: 55 | JV7: 55 | JW7: 55 | JX7: 55 | JY7: 55 | JZ7: 55 | KA7: 55 | KB7: 55 | KC7: 56 | KD7: 56 | KE7: 56 | KF7: 56 | KG7: 56 | KH7: 56 | KI7: 56 | KJ7: 56 | KK7: 56 | KL7: 56 | KM7: 56 | KN7: 56 | KO7: 57 | KP7: 57 | KQ7: 57 | KR7: 57 | KS7: 57 | KT7: 57 | KU7: 57 | KV7: 57 | KW7: 57 | KX7: 57 | KY7: 57 | KZ7: 57
A8: 33 | B8: 33 | C8: 33 | D8: 33 | E8: 33 | F8: 33 | G8: 33 | H8: 33 | I8: 33 | J8: 33 | K8: 33 | L8: 33 | M8: 34 | N8: 34 | O8: 34 | P8: 34 | Q8: 34 | R8: 34 | S8: 34 | T8: 34 | U8: 34 | V8: 34 | W8: 34 | X8: 34 | Y8: 35 | Z8: 35 | AA8: 35 | AB8: 35 | AC8: 35 | AD8: 35 | AE8: 35 | AF8: 35 | AG8: 35 | AH8: 35 | AI8: 35 | AJ8: 35 | AK8: 36 | AL8: 36 | AM8: 36 | AN8: 36 | AO8: 36 | AP8: 36 | AQ8: 36 | AR8: 36 | AS8: 36 | AT8: 36 | AU8: 36 | AV8: 36 | AW8: 37 | AX8: 37 | AY8: 37 | AZ8: 37 | BA8: 37 | BB8: 37 | BC8: 37 | BD8: 37 | BE8: 37 | BF8: 37 | BG8: 37 | BH8: 37 | BI8: 38 | BJ8: 38 | BK8: 38 | BL8: 38 | BM8: 38 | BN8: 38 | BO8: 38 | BP8: 38 | BQ8: 38 | BR8: 38 | BS8: 38 | BT8: 38 | BU8: 39 | BV8: 39 | BW8: 39 | BX8: 39 | BY8: 39 | BZ8: 39 | CA8: 39 | CB8: 39 | CC8: 39 | CD8: 39 | CE8: 39 | CF8: 39 | CG8: 40 | CH8: 40 | CI8: 40 | CJ8: 40 | CK8: 40 | CL8: 40 | CM8: 40 | CN8: 40 | CO8: 40 | CP8: 40 | CQ8: 40 | CR8: 40 | CS8: 41 | CT8: 41 | CU8: 41 | CV8: 41 | CW8: 41 | CX8: 41 | CY8: 41 | CZ8: 41 | DA8: 41 | DB8: 41 | DC8: 41 | DD8: 41 | DE8: 42 | DF8: 42 | DG8: 42 | DH8: 42 | DI8: 42 | DJ8: 42 | DK8: 42 | DL8: 42 | DM8: 42 | DN8: 42 | DO8: 42 | DP8: 42 | DQ8: 43 | DR8: 43 | DS8: 43 | DT8: 43 | DU8: 43 | DV8: 43 | DW8: 43 | DX8: 43 | DY8: 43 | DZ8: 43 | EA8: 43 | EB8: 43 | EC8: 44 | ED8: 44 | EE8: 44 | EF8: 44 | EG8: 44 | EH8: 44 | EI8: 44 | EJ8: 44 | EK8: 44 | EL8: 44 | EM8: 44 | EN8: 44 | EO8: 45 | EP8: 45 | EQ8: 45 | ER8: 45 | ES8: 45 | ET8: 45 | EU8: 45 | EV8: 45 | EW8: 45 | EX8: 45 | EY8: 45 | EZ8: 45 | FA8: 46 | FB8: 46 | FC8: 46 | FD8: 46 | FE8: 46 | FF8: 46 | FG8: 46 | FH8: 46 | FI8: 46 | FJ8: 46 | FK8: 46 | FL8: 46 | FM8: 47 | FN8: 47 | FO8: 47 | FP8: 47 | FQ8: 47 | FR8: 47 | FS8: 47 | FT8: 47 | FU8: 47 | FV8: 47 | FW8: 47 | FX8: 47 | FY8: 48 | FZ8: 48 | GA8: 48 | GB8: 48 | GC8: 48 | GD8: 48 | GE8: 48 | GF8: 48 | GG8: 48 | GH8: 48 | GI8: 48 | GJ8: 48 | GK8: 49 | GL8: 49 | GM8: 49 | GN8: 49 | GO8: 49 | GP8: 49 | GQ8: 49 | GR8: 49 | GS8: 49 | GT8: 49 | GU8: 49 | GV8: 49 | GW8: 50 | GX8: 50 | GY8: 50 | GZ8: 50 | HA8: 50 | HB8: 50 | HC8: 50 | HD8: 50 | HE8: 50 | HF8: 50 | HG8: 50 | HH8: 50 | HI8: 51 | HJ8: 51 | HK8: 51 | HL8: 51 | HM8: 51 | HN8: 51 | HO8: 51 | HP8: 51 | HQ8: 51 | HR8: 51 | HS8: 51 | HT8: 51 | HU8: 52 | HV8: 52 | HW8: 52 | HX8: 52 | HY8: 52 | HZ8: 52 | IA8: 52 | IB8: 52 | IC8: 52 | ID8: 52 | IE8: 52 | IF8: 52 | IG8: 53 | IH8: 53 | II8: 53 | IJ8: 53 | IK8: 53 | IL8: 53 | IM8: 53 | IN8: 53 | IO8: 53 | IP8: 53 | IQ8: 53 | IR8: 53 | IS8: 54 | IT8: 54 | IU8: 54 | IV8: 54 | IW8: 54 | IX8: 54 | IY8: 54 | IZ8: 54 | JA8: 54 | JB8: 54 | JC8: 54 | JD8: 54 | JE8: 55 | JF8: 55 | JG8: 55 | JH8: 55 | JI8: 55 | JJ8: 55 | JK8: 55 | JL8: 55 | JM8: 55 | JN8: 55 | JO8: 55 | JP8: 55 | JQ8: 56 | JR8: 56 | JS8: 56 | JT8: 56 | JU8: 56 | JV8: 56 | JW8: 56 | JX8: 56 | JY8: 56 | JZ8: 56 | KA8: 56 | KB8: 56 | KC8: 57 | KD8: 57 | KE8: 57 | KF8: 57 | KG8: 57 | KH8: 57 | KI8: 57 | KJ8: 57 | KK8: 57 | KL8: 57 | KM8: 57 | KN8: 57 | KO8: 58 | KP8: 58 | KQ8: 58 | KR8: 58 | KS8: 58 | KT8: 58 | KU8: 58 | KV8: 58 | KW8: 58 | KX8: 58 | KY8: 58 | KZ8: 58
A9: 34 | B9: 34 | C9: 34 | D9: 34 | E9: 34 | F9: 34 | G9: 34 | H9: 34 | I9: 34 | J9: 34 | K9: 34 | L9: 34 | M9: 35 | N9: 35 | O9: 35 | P9: 35 | Q9: 35 | R9: 35 | S9: 35 | T9: 35 | U9: 35 | V9: 35 | W9: 35 | X9: 35 | Y9: 36 | Z9: 36 | AA9: 36 | AB9: 36 | AC9: 36 | AD9: 36 | AE9: 36 | AF9: 36 | AG9: 36 | AH9: 36 | AI9: 36 | AJ9: 36 | AK9: 37 | AL9: 37 | AM9: 37 | AN9: 37 | AO9: 37 | AP9: 37 | AQ9: 37 | AR9: 37 | AS9: 37 | AT9: 37 | AU9: 37 | AV9: 37 | AW9: 38 | AX9: 38 | AY9: 38 | AZ9: 38 | BA9: 38 | BB9: 38 | BC9: 38 | BD9: 38 | BE9: 38 | BF9: 38 | BG9: 38 | BH9: 38 | BI9: 39 | BJ9: 39 | BK9: 39 | BL9: 39 | BM9: 39 | BN9: 39 | BO9: 39 | BP9: 39 | BQ9: 39 | BR9: 39 | BS9: 39 | BT9: 39 | BU9: 40 | BV9: 40 | BW9: 40 | BX9: 40 | BY9: 40 | BZ9: 40 | CA9: 40 | CB9: 40 | CC9: 40 | CD9: 40 | CE9: 40 | CF9: 40 | CG9: 41 | CH9: 41 | CI9: 41 | CJ9: 41 | CK9: 41 | CL9: 41 | CM9: 41 | CN9: 41 | CO9: 41 | CP9: 41 | CQ9: 41 | CR9: 41 | CS9: 42 | CT9: 42 | CU9: 42 | CV9: 42 | CW9: 42 | CX9: 42 | CY9: 42 | CZ9: 42 | DA9: 42 | DB9: 42 | DC9: 42 | DD9: 42 | DE9: 43 | DF9: 43 | DG9: 43 | DH9: 43 | DI9: 43 | DJ9: 43 | DK9: 43 | DL9: 43 | DM9: 43 | DN9: 43 | DO9: 43 | DP9: 43 | DQ9: 44 | DR9: 44 | DS9: 44 | DT9: 44 | DU9: 44 | DV9: 44 | DW9: 44 | DX9: 44 | DY9: 44 | DZ9: 44 | EA9: 44 | EB9: 44 | EC9: 45 | ED9: 45 | EE9: 45 | EF9: 45 | EG9: 45 | EH9: 45 | EI9: 45 | EJ9: 45 | EK9: 45 | EL9: 45 | EM9: 45 | EN9: 45 | EO9: 46 | EP9: 46 | EQ9: 46 | ER9: 46 | ES9: 46 | ET9: 46 | EU9: 46 | EV9: 46 | EW9: 46 | EX9: 46 | EY9: 46 | EZ9: 46 | FA9: 47 | FB9: 47 | FC9: 47 | FD9: 47 | FE9: 47 | FF9: 47 | FG9: 47 | FH9: 47 | FI9: 47 | FJ9: 47 | FK9: 47 | FL9: 47 | FM9: 48 | FN9: 48 | FO9: 48 | FP9: 48 | FQ9: 48 | FR9: 48 | FS9: 48 | FT9: 48 | FU9: 48 | FV9: 48 | FW9: 48 | FX9: 48 | FY9: 49 | FZ9: 49 | GA9: 49 | GB9: 49 | GC9: 49 | GD9: 49 | GE9: 49 | GF9: 49 | GG9: 49 | GH9: 49 | GI9: 49 | GJ9: 49 | GK9: 50 | GL9: 50 | GM9: 50 | GN9: 50 | GO9: 50 | GP9: 50 | GQ9: 50 | GR9: 50 | GS9: 50 | GT9: 50 | GU9: 50 | GV9: 50 | GW9: 51 | GX9: 51 | GY9: 51 | GZ9: 51 | HA9: 51 | HB9: 51 | HC9: 51 | HD9: 51 | HE9: 51 | HF9: 51 | HG9: 51 | HH9: 51 | HI9: 52 | HJ9: 52 | HK9: 52 | HL9: 52 | HM9: 52 | HN9: 52 | HO9: 52 | HP9: 52 | HQ9: 52 | HR9: 52 | HS9: 52 | HT9: 52 | HU9: 53 | HV9: 53 | HW9: 53 | HX9: 53 | HY9: 53 | HZ9: 53 | IA9: 53 | IB9: 53 | IC9: 53 | ID9: 53 | IE9: 53 | IF9: 53 | IG9: 54 | IH9: 54 | II9: 54 | IJ9: 54 | IK9: 54 | IL9: 54 | IM9: 54 | IN9: 54 | IO9: 54 | IP9: 54 | IQ9: 54 | IR9: 54 | IS9: 55 | IT9: 55 | IU9: 55 | IV9: 55 | IW9: 55 | IX9: 55 | IY9: 55 | IZ9: 55 | JA9: 55 | JB9: 55 | JC9: 55 | JD9: 55 | JE9: 56 | JF9: 56 | JG9: 56 | JH9: 56 | JI9: 56 | JJ9: 56 | JK9: 56 | JL9: 56 | JM9: 56 | JN9: 56 | JO9: 56 | JP9: 56 | JQ9: 57 | JR9: 57 | JS9: 57 | JT9: 57 | JU9: 57 | JV9: 57 | JW9: 57 | JX9: 57 | JY9: 57 | JZ9: 57 | KA9: 57 | KB9: 57 | KC9: 58 | KD9: 58 | KE9: 58 | KF9: 58 | KG9: 58 | KH9: 58 | KI9: 58 | KJ9: 58 | KK9: 58 | KL9: 58 | KM9: 58 | KN9: 58 | KO9: 59 | KP9: 59 | KQ9: 59 | KR9: 59 | KS9: 59 | KT9: 59 | KU9: 59 | KV9: 59 | KW9: 59 | KX9: 59 | KY9: 59 | KZ9: 59
A10: 35 | B10: 35 | C10: 35 | D10: 35 | E10: 35 | F10: 35 | G10: 35 | H10: 35 | I10: 35 | J10: 35 | K10: 35 | L10: 35 | M10: 36 | N10: 36 | O10: 36 | P10: 36 | Q10: 36 | R10: 36 | S10: 36 | T10: 36 | U10: 36 | V10: 36 | W10: 36 | X10: 36 | Y10: 37 | Z10: 37 | AA10: 37 | AB10: 37 | AC10: 37 | AD10: 37 | AE10: 37 | AF10: 37 | AG10: 37 | AH10: 37 | AI10: 37 | AJ10: 37 | AK10: 38 | AL10: 38 | AM10: 38 | AN10: 38 | AO10: 38 | AP10: 38 | AQ10: 38 | AR10: 38 | AS10: 38 | AT10: 38 | AU10: 38 | AV10: 38 | AW10: 39 | AX10: 39 | AY10: 39 | AZ10: 39 | BA10: 39 | BB10: 39 | BC10: 39 | BD10: 39 | BE10: 39 | BF10: 39 | BG10: 39 | BH10: 39 | BI10: 40 | BJ10: 40 | BK10: 40 | BL10: 40 | BM10: 40 | BN10: 40 | BO10: 40 | BP10: 40 | BQ10: 40 | BR10: 40 | BS10: 40 | BT10: 40 | BU10: 41 | BV10: 41 | BW10: 41 | BX10: 41 | BY10: 41 | BZ10: 41 | CA10: 41 | CB10: 41 | CC10: 41 | CD10: 41 | CE10: 41 | CF10: 41 | CG10: 42 | CH10: 42 | CI10: 42 | CJ10: 42 | CK10: 42 | CL10: 42 | CM10: 42 | CN10: 42 | CO10: 42 | CP10: 42 | CQ10: 42 | CR10: 42 | CS10: 43 | CT10: 43 | CU10: 43 | CV10: 43 | CW10: 43 | CX10: 43 | CY10: 43 | CZ10: 43 | DA10: 43 | DB10: 43 | DC10: 43 | DD10: 43 | DE10: 44 | DF10: 44 | DG10: 44 | DH10: 44 | DI10: 44 | DJ10: 44 | DK10: 44 | DL10: 44 | DM10: 44 | DN10: 44 | DO10: 44 | DP10: 44 | DQ10: 45 | DR10: 45 | DS10: 45 | DT10: 45 | DU10: 45 | DV10: 45 | DW10: 45 | DX10: 45 | DY10: 45 | DZ10: 45 | EA10: 45 | EB10: 45 | EC10: 46 | ED10: 46 | EE10: 46 | EF10: 46 | EG10: 46 | EH10: 46 | EI10: 46 | EJ10: 46 | EK10: 46 | EL10: 46 | EM10: 46 | EN10: 46 | EO10: 47 | EP10: 47 | EQ10: 47 | ER10: 47 | ES10: 47 | ET10: 47 | EU10: 47 | EV10: 47 | EW10: 47 | EX10: 47 | EY10: 47 | EZ10: 47 | FA10: 48 | FB10: 48 | FC10: 48 | FD10: 48 | FE10: 48 | FF10: 48 | FG10: 48 | FH10: 48 | FI10: 48 | FJ10: 48 | FK10: 48 | FL10: 48 | FM10: 49 | FN10: 49 | FO10: 49 | FP10: 49 | FQ10: 49 | FR10: 49 | FS10: 49 | FT10: 49 | FU10: 49 | FV10: 49 | FW10: 49 | FX10: 49 | FY10: 50 | FZ10: 50 | GA10: 50 | GB10: 50 | GC10: 50 | GD10: 50 | GE10: 50 | GF10: 50 | GG10: 50 | GH10: 50 | GI10: 50 | GJ10: 50 | GK10: 51 | GL10: 51 | GM10: 51 | GN10: 51 | GO10: 51 | GP10: 51 | GQ10: 51 | GR10: 51 | GS10: 51 | GT10: 51 | GU10: 51 | GV10: 51 | GW10: 52 | GX10: 52 | GY10: 52 | GZ10: 52 | HA10: 52 | HB10: 52 | HC10: 52 | HD10: 52 | HE10: 52 | HF10: 52 | HG10: 52 | HH10: 52 | HI10: 53 | HJ10: 53 | HK10: 53 | HL10: 53 | HM10: 53 | HN10: 53 | HO10: 53 | HP10: 53 | HQ10: 53 | HR10: 53 | HS10: 53 | HT10: 53 | HU10: 54 | HV10: 54 | HW10: 54 | HX10: 54 | HY10: 54 | HZ10: 54 | IA10: 54 | IB10: 54 | IC10: 54 | ID10: 54 | IE10: 54 | IF10: 54 | IG10: 55 | IH10: 55 | II10: 55 | IJ10: 55 | IK10: 55 | IL10: 55 | IM10: 55 | IN10: 55 | IO10: 55 | IP10: 55 | IQ10: 55 | IR10: 55 | IS10: 56 | IT10: 56 | IU10: 56 | IV10: 56 | IW10: 56 | IX10: 56 | IY10: 56 | IZ10: 56 | JA10: 56 | JB10: 56 | JC10: 56 | JD10: 56 | JE10: 57 | JF10: 57 | JG10: 57 | JH10: 57 | JI10: 57 | JJ10: 57 | JK10: 57 | JL10: 57 | JM10: 57 | JN10: 57 | JO10: 57 | JP10: 57 | JQ10: 58 | JR10: 58 | JS10: 58 | JT10: 58 | JU10: 58 | JV10: 58 | JW10: 58 | JX10: 58 | JY10: 58 | JZ10: 58 | KA10: 58 | KB10: 58 | KC10: 59 | KD10: 59 | KE10: 59 | KF10: 59 | KG10: 59 | KH10: 59 | KI10: 59 | KJ10: 59 | KK10: 59 | KL10: 59 | KM10: 59 | KN10: 59 | KO10: 60 | KP10: 60 | KQ10: 60 | KR10: 60 | KS10: 60 | KT10: 60 | KU10: 60 | KV10: 60 | KW10: 60 | KX10: 60 | KY10: 60 | KZ10: 60
A11: 36 | B11: 36 | C11: 36 | D11: 36 | E11: 36 | F11: 36 | G11: 36 | H11: 36 | I11: 36 | J11: 36 | K11: 36 | L11: 36 | M11: 37 | N11: 37 | O11: 37 | P11: 37 | Q11: 37 | R11: 37 | S11: 37 | T11: 37 | U11: 37 | V11: 37 | W11: 37 | X11: 37 | Y11: 38 | Z11: 38 | AA11: 38 | AB11: 38 | AC11: 38 | AD11: 38 | AE11: 38 | AF11: 38 | AG11: 38 | AH11: 38 | AI11: 38 | AJ11: 38 | AK11: 39 | AL11: 39 | AM11: 39 | AN11: 39 | AO11: 39 | AP11: 39 | AQ11: 39 | AR11: 39 | AS11: 39 | AT11: 39 | AU11: 39 | AV11: 39 | AW11: 40 | AX11: 40 | AY11: 40 | AZ11: 40 | BA11: 40 | BB11: 40 | BC11: 40 | BD11: 40 | BE11: 40 | BF11: 40 | BG11: 40 | BH11: 40 | BI11: 41 | BJ11: 41 | BK11: 41 | BL11: 41 | BM11: 41 | BN11: 41 | BO11: 41 | BP11: 41 | BQ11: 41 | BR11: 41 | BS11: 41 | BT11: 41 | BU11: 42 | BV11: 42 | BW11: 42 | BX11: 42 | BY11: 42 | BZ11: 42 | CA11: 42 | CB11: 42 | CC11: 42 | CD11: 42 | CE11: 42 | CF11: 42 | CG11: 43 | CH11: 43 | CI11: 43 | CJ11: 43 | CK11: 43 | CL11: 43 | CM11: 43 | CN11: 43 | CO11: 43 | CP11: 43 | CQ11: 43 | CR11: 43 | CS11: 44 | CT11: 44 | CU11: 44 | CV11: 44 | CW11: 44 | CX11: 44 | CY11: 44 | CZ11: 44 | DA11: 44 | DB11: 44 | DC11: 44 | DD11: 44 | DE11: 45 | DF11: 45 | DG11: 45 | DH11: 45 | DI11: 45 | DJ11: 45 | DK11: 45 | DL11: 45 | DM11: 45 | DN11: 45 | DO11: 45 | DP11: 45 | DQ11: 46 | DR11: 46 | DS11: 46 | DT11: 46 | DU11: 46 | DV11: 46 | DW11: 46 | DX11: 46 | DY11: 46 | DZ11: 46 | EA11: 46 | EB11: 46 | EC11: 47 | ED11: 47 | EE11: 47 | EF11: 47 | EG11: 47 | EH11: 47 | EI11: 47 | EJ11: 47 | EK11: 47 | EL11: 47 | EM11: 47 | EN11: 47 | EO11: 48 | EP11: 48 | EQ11: 48 | ER11: 48 | ES11: 48 | ET11: 48 | EU11: 48 | EV11: 48 | EW11: 48 | EX11: 48 | EY11: 48 | EZ11: 48 | FA11: 49 | FB11: 49 | FC11: 49 | FD11: 49 | FE11: 49 | FF11: 49 | FG11: 49 | FH11: 49 | FI11: 49 | FJ11: 49 | FK11: 49 | FL11: 49 | FM11: 50 | FN11: 50 | FO11: 50 | FP11: 50 | FQ11: 50 | FR11: 50 | FS11: 50 | FT11: 50 | FU11: 50 | FV11: 50 | FW11: 50 | FX11: 50 | FY11: 51 | FZ11: 51 | GA11: 51 | GB11: 51 | GC11: 51 | GD11: 51 | GE11: 51 | GF11: 51 | GG11: 51 | GH11: 51 | GI11: 51 | GJ11: 51 | GK11: 52 | GL11: 52 | GM11: 52 | GN11: 52 | GO11: 52 | GP11: 52 | GQ11: 52 | GR11: 52 | GS11: 52 | GT11: 52 | GU11: 52 | GV11: 52 | GW11: 53 | GX11: 53 | GY11: 53 | GZ11: 53 | HA11: 53 | HB11: 53 | HC11: 53 | HD11: 53 | HE11: 53 | HF11: 53 | HG11: 53 | HH11: 53 | HI11: 54 | HJ11: 54 | HK11: 54 | HL11: 54 | HM11: 54 | HN11: 54 | HO11: 54 | HP11: 54 | HQ11: 54 | HR11: 54 | HS11: 54 | HT11: 54 | HU11: 55 | HV11: 55 | HW11: 55 | HX11: 55 | HY11: 55 | HZ11: 55 | IA11: 55 | IB11: 55 | IC11: 55 | ID11: 55 | IE11: 55 | IF11: 55 | IG11: 56 | IH11: 56 | II11: 56 | IJ11: 56 | IK11: 56 | IL11: 56 | IM11: 56 | IN11: 56 | IO11: 56 | IP11: 56 | IQ11: 56 | IR11: 56 | IS11: 57 | IT11: 57 | IU11: 57 | IV11: 57 | IW11: 57 | IX11: 57 | IY11: 57 | IZ11: 57 | JA11: 57 | JB11: 57 | JC11: 57 | JD11: 57 | JE11: 58 | JF11: 58 | JG11: 58 | JH11: 58 | JI11: 58 | JJ11: 58 | JK11: 58 | JL11: 58 | JM11: 58 | JN11: 58 | JO11: 58 | JP11: 58 | JQ11: 59 | JR11: 59 | JS11: 59 | JT11: 59 | JU11: 59 | JV11: 59 | JW11: 59 | JX11: 59 | JY11: 59 | JZ11: 59 | KA11: 59 | KB11: 59 | KC11: 60 | KD11: 60 | KE11: 60 | KF11: 60 | KG11: 60 | KH11: 60 | KI11: 60 | KJ11: 60 | KK11: 60 | KL11: 60 | KM11: 60 | KN11: 60 | KO11: 61 | KP11: 61 | KQ11: 61 | KR11: 61 | KS11: 61 | KT11: 61 | KU11: 61 | KV11: 61 | KW11: 61 | KX11: 61 | KY11: 61 | KZ11: 61
A12: 37 | B12: 37 | C12: 37 | D12: 37 | E12: 37 | F12: 37 | G12: 37 | H12: 37 | I12: 37 | J12: 37 | K12: 37 | L12: 37 | M12: 38 | N12: 38 | O12: 38 | P12: 38 | Q12: 38 | R12: 38 | S12: 38 | T12: 38 | U12: 38 | V12: 38 | W12: 38 | X12: 38 | Y12: 39 | Z12: 39 | AA12: 39 | AB12: 39 | AC12: 39 | AD12: 39 | AE12: 39 | AF12: 39 | AG12: 39 | AH12: 39 | AI12: 39 | AJ12: 39 | AK12: 40 | AL12: 40 | AM12: 40 | AN12: 40 | AO12: 40 | AP12: 40 | AQ12: 40 | AR12: 40 | AS12: 40 | AT12: 40 | AU12: 40 | AV12: 40 | AW12: 41 | AX12: 41 | AY12: 41 | AZ12: 41 | BA12: 41 | BB12: 41 | BC12: 41 | BD12: 41 | BE12: 41 | BF12: 41 | BG12: 41 | BH12: 41 | BI12: 42 | BJ12: 42 | BK12: 42 | BL12: 42 | BM12: 42 | BN12: 42 | BO12: 42 | BP12: 42 | BQ12: 42 | BR12: 42 | BS12: 42 | BT12: 42 | BU12: 43 | BV12: 43 | BW12: 43 | BX12: 43 | BY12: 43 | BZ12: 43 | CA12: 43 | CB12: 43 | CC12: 43 | CD12: 43 | CE12: 43 | CF12: 43 | CG12: 44 | CH12: 44 | CI12: 44 | CJ12: 44 | CK12: 44 | CL12: 44 | CM12: 44 | CN12: 44 | CO12: 44 | CP12: 44 | CQ12: 44 | CR12: 44 | CS12: 45 | CT12: 45 | CU12: 45 | CV12: 45 | CW12: 45 | CX12: 45 | CY12: 45 | CZ12: 45 | DA12: 45 | DB12: 45 | DC12: 45 | DD12: 45 | DE12: 46 | DF12: 46 | DG12: 46 | DH12: 46 | DI12: 46 | DJ12: 46 | DK12: 46 | DL12: 46 | DM12: 46 | DN12: 46 | DO12: 46 | DP12: 46 | DQ12: 47 | DR12: 47 | DS12: 47 | DT12: 47 | DU12: 47 | DV12: 47 | DW12: 47 | DX12: 47 | DY12: 47 | DZ12: 47 | EA12: 47 | EB12: 47 | EC12: 48 | ED12: 48 | EE12: 48 | EF12: 48 | EG12: 48 | EH12: 48 | EI12: 48 | EJ12: 48 | EK12: 48 | EL12: 48 | EM12: 48 | EN12: 48 | EO12: 49 | EP12: 49 | EQ12: 49 | ER12: 49 | ES12: 49 | ET12: 49 | EU12: 49 | EV12: 49 | EW12: 49 | EX12: 49 | EY12: 49 | EZ12: 49 | FA12: 50 | FB12: 50 | FC12: 50 | FD12: 50 | FE12: 50 | FF12: 50 | FG12: 50 | FH12: 50 | FI12: 50 | FJ12: 50 | FK12: 50 | FL12: 50 | FM12: 51 | FN12: 51 | FO12: 51 | FP12: 51 | FQ12: 51 | FR12: 51 | FS12: 51 | FT12: 51 | FU12: 51 | FV12: 51 | FW12: 51 | FX12: 51 | FY12: 52 | FZ12: 52 | GA12: 52 | GB12: 52 | GC12: 52 | GD12: 52 | GE12: 52 | GF12: 52 | GG12: 52 | GH12: 52 | GI12: 52 | GJ12: 52 | GK12: 53 | GL12: 53 | GM12: 53 | GN12: 53 | GO12: 53 | GP12: 53 | GQ12: 53 | GR12: 53 | GS12: 53 | GT12: 53 | GU12: 53 | GV12: 53 | GW12: 54 | GX12: 54 | GY12: 54 | GZ12: 54 | HA12: 54 | HB12: 54 | HC12: 54 | HD12: 54 | HE12: 54 | HF12: 54 | HG12: 54 | HH12: 54 | HI12: 55 | HJ12: 55 | HK12: 55 | HL12: 55 | HM12: 55 | HN12: 55 | HO12: 55 | HP12: 55 | HQ12: 55 | HR12: 55 | HS12: 55 | HT12: 55 | HU12: 56 | HV12: 56 | HW12: 56 | HX12: 56 | HY12: 56 | HZ12: 56 | IA12: 56 | IB12: 56 | IC12: 56 | ID12: 56 | IE12: 56 | IF12: 56 | IG12: 57 | IH12: 57 | II12: 57 | IJ12: 57 | IK12: 57 | IL12: 57 | IM12: 57 | IN12: 57 | IO12: 57 | IP12: 57 | IQ12: 57 | IR12: 57 | IS12: 58 | IT12: 58 | IU12: 58 | IV12: 58 | IW12: 58 | IX12: 58 | IY12: 58 | IZ12: 58 | JA12: 58 | JB12: 58 | JC12: 58 | JD12: 58 | JE12: 59 | JF12: 59 | JG12: 59 | JH12: 59 | JI12: 59 | JJ12: 59 | JK12: 59 | JL12: 59 | JM12: 59 | JN12: 59 | JO12: 59 | JP12: 59 | JQ12: 60 | JR12: 60 | JS12: 60 | JT12: 60 | JU12: 60 | JV12: 60 | JW12: 60 | JX12: 60 | JY12: 60 | JZ12: 60 | KA12: 60 | KB12: 60 | KC12: 61 | KD12: 61 | KE12: 61 | KF12: 61 | KG12: 61 | KH12: 61 | KI12: 61 | KJ12: 61 | KK12: 61 | KL12: 61 | KM12: 61 | KN12: 61 | KO12: 62 | KP12: 62 | KQ12: 62 | KR12: 62 | KS12: 62 | KT12: 62 | KU12: 62 | KV12: 62 | KW12: 62 | KX12: 62 | KY12: 62 | KZ12: 62
A13: 38 | B13: 38 | C13: 38 | D13: 38 | E13: 38 | F13: 38 | G13: 38 | H13: 38 | I13: 38 | J13: 38 | K13: 38 | L13: 38 | M13: 39 | N13: 39 | O13: 39 | P13: 39 | Q13: 39 | R13: 39 | S13: 39 | T13: 39 | U13: 39 | V13: 39 | W13: 39 | X13: 39 | Y13: 40 | Z13: 40 | AA13: 40 | AB13: 40 | AC13: 40 | AD13: 40 | AE13: 40 | AF13: 40 | AG13: 40 | AH13: 40 | AI13: 40 | AJ13: 40 | AK13: 41 | AL13: 41 | AM13: 41 | AN13: 41 | AO13: 41 | AP13: 41 | AQ13: 41 | AR13: 41 | AS13: 41 | AT13: 41 | AU13: 41 | AV13: 41 | AW13: 42 | AX13: 42 | AY13: 42 | AZ13: 42 | BA13: 42 | BB13: 42 | BC13: 42 | BD13: 42 | BE13: 42 | BF13: 42 | BG13: 42 | BH13: 42 | BI13: 43 | BJ13: 43 | BK13: 43 | BL13: 43 | BM13: 43 | BN13: 43 | BO13: 43 | BP13: 43 | BQ13: 43 | BR13: 43 | BS13: 43 | BT13: 43 | BU13: 44 | BV13: 44 | BW13: 44 | BX13: 44 | BY13: 44 | BZ13: 44 | CA13: 44 | CB13: 44 | CC13: 44 | CD13: 44 | CE13: 44 | CF13: 44 | CG13: 45 | CH13: 45 | CI13: 45 | CJ13: 45 | CK13: 45 | CL13: 45 | CM13: 45 | CN13: 45 | CO13: 45 | CP13: 45 | CQ13: 45 | CR13: 45 | CS13: 46 | CT13: 46 | CU13: 46 | CV13: 46 | CW13: 46 | CX13: 46 | CY13: 46 | CZ13: 46 | DA13: 46 | DB13: 46 | DC13: 46 | DD13: 46 | DE13: 47 | DF13: 47 | DG13: 47 | DH13: 47 | DI13: 47 | DJ13: 47 | DK13: 47 | DL13: 47 | DM13: 47 | DN13: 47 | DO13: 47 | DP13: 47 | DQ13: 48 | DR13: 48 | DS13: 48 | DT13: 48 | DU13: 48 | DV13: 48 | DW13: 48 | DX13: 48 | DY13: 48 | DZ13: 48 | EA13: 48 | EB13: 48 | EC13: 49 | ED13: 49 | EE13: 49 | EF13: 49 | EG13: 49 | EH13: 49 | EI13: 49 | EJ13: 49 | EK13: 49 | EL13: 49 | EM13: 49 | EN13: 49 | EO13: 50 | EP13: 50 | EQ13: 50 | ER13: 50 | ES13: 50 | ET13: 50 | EU13: 50 | EV13: 50 | EW13: 50 | EX13: 50 | EY13: 50 | EZ13: 50 | FA13: 51 | FB13: 51 | FC13: 51 | FD13: 51 | FE13: 51 | FF13: 51 | FG13: 51 | FH13: 51 | FI13: 51 | FJ13: 51 | FK13: 51 | FL13: 51 | FM13: 52 | FN13: 52 | FO13: 52 | FP13: 52 | FQ13: 52 | FR13: 52 | FS13: 52 | FT13: 52 | FU13: 52 | FV13: 52 | FW13: 52 | FX13: 52 | FY13: 53 | FZ13: 53 | GA13: 53 | GB13: 53 | GC13: 53 | GD13: 53 | GE13: 53 | GF13: 53 | GG13: 53 | GH13: 53 | GI13: 53 | GJ13: 53 | GK13: 54 | GL13: 54 | GM13: 54 | GN13: 54 | GO13: 54 | GP13: 54 | GQ13: 54 | GR13: 54 | GS13: 54 | GT13: 54 | GU13: 54 | GV13: 54 | GW13: 55 | GX13: 55 | GY13: 55 | GZ13: 55 | HA13: 55 | HB13: 55 | HC13: 55 | HD13: 55 | HE13: 55 | HF13: 55 | HG13: 55 | HH13: 55 | HI13: 56 | HJ13: 56 | HK13: 56 | HL13: 56 | HM13: 56 | HN13: 56 | HO13: 56 | HP13: 56 | HQ13: 56 | HR13: 56 | HS13: 56 | HT13: 56 | HU13: 57 | HV13: 57 | HW13: 57 | HX13: 57 | HY13: 57 | HZ13: 57 | IA13: 57 | IB13: 57 | IC13: 57 | ID13: 57 | IE13: 57 | IF13: 57 | IG13: 58 | IH13: 58 | II13: 58 | IJ13: 58 | IK13: 58 | IL13: 58 | IM13: 58 | IN13: 58 | IO13: 58 | IP13: 58 | IQ13: 58 | IR13: 58 | IS13: 59 | IT13: 59 | IU13: 59 | IV13: 59 | IW13: 59 | IX13: 59 | IY13: 59 | IZ13: 59 | JA13: 59 | JB13: 59 | JC13: 59 | JD13: 59 | JE13: 60 | JF13: 60 | JG13: 60 | JH13: 60 | JI13: 60 | JJ13: 60 | JK13: 60 | JL13: 60 | JM13: 60 | JN13: 60 | JO13: 60 | JP13: 60 | JQ13: 61 | JR13: 61 | JS13: 61 | JT13: 61 | JU13: 61 | JV13: 61 | JW13: 61 | JX13: 61 | JY13: 61 | JZ13: 61 | KA13: 61 | KB13: 61 | KC13: 62 | KD13: 62 | KE13: 62 | KF13: 62 | KG13: 62 | KH13: 62 | KI13: 62 | KJ13: 62 | KK13: 62 | KL13: 62 | KM13: 62 | KN13: 62 | KO13: 63 | KP13: 63 | KQ13: 63 | KR13: 63 | KS13: 63 | KT13: 63 | KU13: 63 | KV13: 63 | KW13: 63 | KX13: 63 | KY13: 63 | KZ13: 63
A14: 39 | B14: 39 | C14: 39 | D14: 39 | E14: 39 | F14: 39 | G14: 39 | H14: 39 | I14: 39 | J14: 39 | K14: 39 | L14: 39 | M14: 40 | N14: 40 | O14: 40 | P14: 40 | Q14: 40 | R14: 40 | S14: 40 | T14: 40 | U14: 40 | V14: 40 | W14: 40 | X14: 40 | Y14: 41 | Z14: 41 | AA14: 41 | AB14: 41 | AC14: 41 | AD14: 41 | AE14: 41 | AF14: 41 | AG14: 41 | AH14: 41 | AI14: 41 | AJ14: 41 | AK14: 42 | AL14: 42 | AM14: 42 | AN14: 42 | AO14: 42 | AP14: 42 | AQ14: 42 | AR14: 42 | AS14: 42 | AT14: 42 | AU14: 42 | AV14: 42 | AW14: 43 | AX14: 43 | AY14: 43 | AZ14: 43 | BA14: 43 | BB14: 43 | BC14: 43 | BD14: 43 | BE14: 43 | BF14: 43 | BG14: 43 | BH14: 43 | BI14: 44 | BJ14: 44 | BK14: 44 | BL14: 44 | BM14: 44 | BN14: 44 | BO14: 44 | BP14: 44 | BQ14: 44 | BR14: 44 | BS14: 44 | BT14: 44 | BU14: 45 | BV14: 45 | BW14: 45 | BX14: 45 | BY14: 45 | BZ14: 45 | CA14: 45 | CB14: 45 | CC14: 45 | CD14: 45 | CE14: 45 | CF14: 45 | CG14: 46 | CH14: 46 | CI14: 46 | CJ14: 46 | CK14: 46 | CL14: 46 | CM14: 46 | CN14: 46 | CO14: 46 | CP14: 46 | CQ14: 46 | CR14: 46 | CS14: 47 | CT14: 47 | CU14: 47 | CV14: 47 | CW14: 47 | CX14: 47 | CY14: 47 | CZ14: 47 | DA14: 47 | DB14: 47 | DC14: 47 | DD14: 47 | DE14: 48 | DF14: 48 | DG14: 48 | DH14: 48 | DI14: 48 | DJ14: 48 | DK14: 48 | DL14: 48 | DM14: 48 | DN14: 48 | DO14: 48 | DP14: 48 | DQ14: 49 | DR14: 49 | DS14: 49 | DT14: 49 | DU14: 49 | DV14: 49 | DW14: 49 | DX14: 49 | DY14: 49 | DZ14: 49 | EA14: 49 | EB14: 49 | EC14: 50 | ED14: 50 | EE14: 50 | EF14: 50 | EG14: 50 | EH14: 50 | EI14: 50 | EJ14: 50 | EK14: 50 | EL14: 50 | EM14: 50 | EN14: 50 | EO14: 51 | EP14: 51 | EQ14: 51 | ER14: 51 | ES14: 51 | ET14: 51 | EU14: 51 | EV14: 51 | EW14: 51 | EX14: 51 | EY14: 51 | EZ14: 51 | FA14: 52 | FB14: 52 | FC14: 52 | FD14: 52 | FE14: 52 | FF14: 52 | FG14: 52 | FH14: 52 | FI14: 52 | FJ14: 52 | FK14: 52 | FL14: 52 | FM14: 53 | FN14: 53 | FO14: 53 | FP14: 53 | FQ14: 53 | FR14: 53 | FS14: 53 | FT14: 53 | FU14: 53 | FV14: 53 | FW14: 53 | FX14: 53 | FY14: 54 | FZ14: 54 | GA14: 54 | GB14: 54 | GC14: 54 | GD14: 54 | GE14: 54 | GF14: 54 | GG14: 54 | GH14: 54 | GI14: 54 | GJ14: 54 | GK14: 55 | GL14: 55 | GM14: 55 | GN14: 55 | GO14: 55 | GP14: 55 | GQ14: 55 | GR14: 55 | GS14: 55 | GT14: 55 | GU14: 55 | GV14: 55 | GW14: 56 | GX14: 56 | GY14: 56 | GZ14: 56 | HA14: 56 | HB14: 56 | HC14: 56 | HD14: 56 | HE14: 56 | HF14: 56 | HG14: 56 | HH14: 56 | HI14: 57 | HJ14: 57 | HK14: 57 | HL14: 57 | HM14: 57 | HN14: 57 | HO14: 57 | HP14: 57 | HQ14: 57 | HR14: 57 | HS14: 57 | HT14: 57 | HU14: 58 | HV14: 58 | HW14: 58 | HX14: 58 | HY14: 58 | HZ14: 58 | IA14: 58 | IB14: 58 | IC14: 58 | ID14: 58 | IE14: 58 | IF14: 58 | IG14: 59 | IH14: 59 | II14: 59 | IJ14: 59 | IK14: 59 | IL14: 59 | IM14: 59 | IN14: 59 | IO14: 59 | IP14: 59 | IQ14: 59 | IR14: 59 | IS14: 60 | IT14: 60 | IU14: 60 | IV14: 60 | IW14: 60 | IX14: 60 | IY14: 60 | IZ14: 60 | JA14: 60 | JB14: 60 | JC14: 60 | JD14: 60 | JE14: 61 | JF14: 61 | JG14: 61 | JH14: 61 | JI14: 61 | JJ14: 61 | JK14: 61 | JL14: 61 | JM14: 61 | JN14: 61 | JO14: 61 | JP14: 61 | JQ14: 62 | JR14: 62 | JS14: 62 | JT14: 62 | JU14: 62 | JV14: 62 | JW14: 62 | JX14: 62 | JY14: 62 | JZ14: 62 | KA14: 62 | KB14: 62 | KC14: 63 | KD14: 63 | KE14: 63 | KF14: 63 | KG14: 63 | KH14: 63 | KI14: 63 | KJ14: 63 | KK14: 63 | KL14: 63 | KM14: 63 | KN14: 63 | KO14: 64 | KP14: 64 | KQ14: 64 | KR14: 64 | KS14: 64 | KT14: 64 | KU14: 64 | KV14: 64 | KW14: 64 | KX14: 64 | KY14: 64 | KZ14: 64
A15: 40 | B15: 40 | C15: 40 | D15: 40 | E15: 40 | F15: 40 | G15: 40 | H15: 40 | I15: 40 | J15: 40 | K15: 40 | L15: 40 | M15: 41 | N15: 41 | O15: 41 | P15: 41 | Q15: 41 | R15: 41 | S15: 41 | T15: 41 | U15: 41 | V15: 41 | W15: 41 | X15: 41 | Y15: 42 | Z15: 42 | AA15: 42 | AB15: 42 | AC15: 42 | AD15: 42 | AE15: 42 | AF15: 42 | AG15: 42 | AH15: 42 | AI15: 42 | AJ15: 42 | AK15: 43 | AL15: 43 | AM15: 43 | AN15: 43 | AO15: 43 | AP15: 43 | AQ15: 43 | AR15: 43 | AS15: 43 | AT15: 43 | AU15: 43 | AV15: 43 | AW15: 44 | AX15: 44 | AY15: 44 | AZ15: 44 | BA15: 44 | BB15: 44 | BC15: 44 | BD15: 44 | BE15: 44 | BF15: 44 | BG15: 44 | BH15: 44 | BI15: 45 | BJ15: 45 | BK15: 45 | BL15: 45 | BM15: 45 | BN15: 45 | BO15: 45 | BP15: 45 | BQ15: 45 | BR15: 45 | BS15: 45 | BT15: 45 | BU15: 46 | BV15: 46 | BW15: 46 | BX15: 46 | BY15: 46 | BZ15: 46 | CA15: 46 | CB15: 46 | CC15: 46 | CD15: 46 | CE15: 46 | CF15: 46 | CG15: 47 | CH15: 47 | CI15: 47 | CJ15: 47 | CK15: 47 | CL15: 47 | CM15: 47 | CN15: 47 | CO15: 47 | CP15: 47 | CQ15: 47 | CR15: 47 | CS15: 48 | CT15: 48 | CU15: 48 | CV15: 48 | CW15: 48 | CX15: 48 | CY15: 48 | CZ15: 48 | DA15: 48 | DB15: 48 | DC15: 48 | DD15: 48 | DE15: 49 | DF15: 49 | DG15: 49 | DH15: 49 | DI15: 49 | DJ15: 49 | DK15: 49 | DL15: 49 | DM15: 49 | DN15: 49 | DO15: 49 | DP15: 49 | DQ15: 50 | DR15: 50 | DS15: 50 | DT15: 50 | DU15: 50 | DV15: 50 | DW15: 50 | DX15: 50 | DY15: 50 | DZ15: 50 | EA15: 50 | EB15: 50 | EC15: 51 | ED15: 51 | EE15: 51 | EF15: 51 | EG15: 51 | EH15: 51 | EI15: 51 | EJ15: 51 | EK15: 51 | EL15: 51 | EM15: 51 | EN15: 51 | EO15: 52 | EP15: 52 | EQ15: 52 | ER15: 52 | ES15: 52 | ET15: 52 | EU15: 52 | EV15: 52 | EW15: 52 | EX15: 52 | EY15: 52 | EZ15: 52 | FA15: 53 | FB15: 53 | FC15: 53 | FD15: 53 | FE15: 53 | FF15: 53 | FG15: 53 | FH15: 53 | FI15: 53 | FJ15: 53 | FK15: 53 | FL15: 53 | FM15: 54 | FN15: 54 | FO15: 54 | FP15: 54 | FQ15: 54 | FR15: 54 | FS15: 54 | FT15: 54 | FU15: 54 | FV15: 54 | FW15: 54 | FX15: 54 | FY15: 55 | FZ15: 55 | GA15: 55 | GB15: 55 | GC15: 55 | GD15: 55 | GE15: 55 | GF15: 55 | GG15: 55 | GH15: 55 | GI15: 55 | GJ15: 55 | GK15: 56 | GL15: 56 | GM15: 56 | GN15: 56 | GO15: 56 | GP15: 56 | GQ15: 56 | GR15: 56 | GS15: 56 | GT15: 56 | GU15: 56 | GV15: 56 | GW15: 57 | GX15: 57 | GY15: 57 | GZ15: 57 | HA15: 57 | HB15: 57 | HC15: 57 | HD15: 57 | HE15: 57 | HF15: 57 | HG15: 57 | HH15: 57 | HI15: 58 | HJ15: 58 | HK15: 58 | HL15: 58 | HM15: 58 | HN15: 58 | HO15: 58 | HP15: 58 | HQ15: 58 | HR15: 58 | HS15: 58 | HT15: 58 | HU15: 59 | HV15: 59 | HW15: 59 | HX15: 59 | HY15: 59 | HZ15: 59 | IA15: 59 | IB15: 59 | IC15: 59 | ID15: 59 | IE15: 59 | IF15: 59 | IG15: 60 | IH15: 60 | II15: 60 | IJ15: 60 | IK15: 60 | IL15: 60 | IM15: 60 | IN15: 60 | IO15: 60 | IP15: 60 | IQ15: 60 | IR15: 60 | IS15: 61 | IT15: 61 | IU15: 61 | IV15: 61 | IW15: 61 | IX15: 61 | IY15: 61 | IZ15: 61 | JA15: 61 | JB15: 61 | JC15: 61 | JD15: 61 | JE15: 62 | JF15: 62 | JG15: 62 | JH15: 62 | JI15: 62 | JJ15: 62 | JK15: 62 | JL15: 62 | JM15: 62 | JN15: 62 | JO15: 62 | JP15: 62 | JQ15: 63 | JR15: 63 | JS15: 63 | JT15: 63 | JU15: 63 | JV15: 63 | JW15: 63 | JX15: 63 | JY15: 63 | JZ15: 63 | KA15: 63 | KB15: 63 | KC15: 64 | KD15: 64 | KE15: 64 | KF15: 64 | KG15: 64 | KH15: 64 | KI15: 64 | KJ15: 64 | KK15: 64 | KL15: 64 | KM15: 64 | KN15: 64 | KO15: 65 | KP15: 65 | KQ15: 65 | KR15: 65 | KS15: 65 | KT15: 65 | KU15: 65 | KV15: 65 | KW15: 65 | KX15: 65 | KY15: 65 | KZ15: 65
A16: 41 | B16: 41 | C16: 41 | D16: 41 | E16: 41 | F16: 41 | G16: 41 | H16: 41 | I16: 41 | J16: 41 | K16: 41 | L16: 41 | M16: 42 | N16: 42 | O16: 42 | P16: 42 | Q16: 42 | R16: 42 | S16: 42 | T16: 42 | U16: 42 | V16: 42 | W16: 42 | X16: 42 | Y16: 43 | Z16: 43 | AA16: 43 | AB16: 43 | AC16: 43 | AD16: 43 | AE16: 43 | AF16: 43 | AG16: 43 | AH16: 43 | AI16: 43 | AJ16: 43 | AK16: 44 | AL16: 44 | AM16: 44 | AN16: 44 | AO16: 44 | AP16: 44 | AQ16: 44 | AR16: 44 | AS16: 44 | AT16: 44 | AU16: 44 | AV16: 44 | AW16: 45 | AX16: 45 | AY16: 45 | AZ16: 45 | BA16: 45 | BB16: 45 | BC16: 45 | BD16: 45 | BE16: 45 | BF16: 45 | BG16: 45 | BH16: 45 | BI16: 46 | BJ16: 46 | BK16: 46 | BL16: 46 | BM16: 46 | BN16: 46 | BO16: 46 | BP16: 46 | BQ16: 46 | BR16: 46 | BS16: 46 | BT16: 46 | BU16: 47 | BV16: 47 | BW16: 47 | BX16: 47 | BY16: 47 | BZ16: 47 | CA16: 47 | CB16: 47 | CC16: 47 | CD16: 47 | CE16: 47 | CF16: 47 | CG16: 48 | CH16: 48 | CI16: 48 | CJ16: 48 | CK16: 48 | CL16: 48 | CM16: 48 | CN16: 48 | CO16: 48 | CP16: 48 | CQ16: 48 | CR16: 48 | CS16: 49 | CT16: 49 | CU16: 49 | CV16: 49 | CW16: 49 | CX16: 49 | CY16: 49 | CZ16: 49 | DA16: 49 | DB16: 49 | DC16: 49 | DD16: 49 | DE16: 50 | DF16: 50 | DG16: 50 | DH16: 50 | DI16: 50 | DJ16: 50 | DK16: 50 | DL16: 50 | DM16: 50 | DN16: 50 | DO16: 50 | DP16: 50 | DQ16: 51 | DR16: 51 | DS16: 51 | DT16: 51 | DU16: 51 | DV16: 51 | DW16: 51 | DX16: 51 | DY16: 51 | DZ16: 51 | EA16: 51 | EB16: 51 | EC16: 52 | ED16: 52 | EE16: 52 | EF16: 52 | EG16: 52 | EH16: 52 | EI16: 52 | EJ16: 52 | EK16: 52 | EL16: 52 | EM16: 52 | EN16: 52 | EO16: 53 | EP16: 53 | EQ16: 53 | ER16: 53 | ES16: 53 | ET16: 53 | EU16: 53 | EV16: 53 | EW16: 53 | EX16: 53 | EY16: 53 | EZ16: 53 | FA16: 54 | FB16: 54 | FC16: 54 | FD16: 54 | FE16: 54 | FF16: 54 | FG16: 54 | FH16: 54 | FI16: 54 | FJ16: 54 | FK16: 54 | FL16: 54 | FM16: 55 | FN16: 55 | FO16: 55 | FP16: 55 | FQ16: 55 | FR16: 55 | FS16: 55 | FT16: 55 | FU16: 55 | FV16: 55 | FW16: 55 | FX16: 55 | FY16: 56 | FZ16: 56 | GA16: 56 | GB16: 56 | GC16: 56 | GD16: 56 | GE16: 56 | GF16: 56 | GG16: 56 | GH16: 56 | GI16: 56 | GJ16: 56 | GK16: 57 | GL16: 57 | GM16: 57 | GN16: 57 | GO16: 57 | GP16: 57 | GQ16: 57 | GR16: 57 | GS16: 57 | GT16: 57 | GU16: 57 | GV16: 57 | GW16: 58 | GX16: 58 | GY16: 58 | GZ16: 58 | HA16: 58 | HB16: 58 | HC16: 58 | HD16: 58 | HE16: 58 | HF16: 58 | HG16: 58 | HH16: 58 | HI16: 59 | HJ16: 59 | HK16: 59 | HL16: 59 | HM16: 59 | HN16: 59 | HO16: 59 | HP16: 59 | HQ16: 59 | HR16: 59 | HS16: 59 | HT16: 59 | HU16: 60 | HV16: 60 | HW16: 60 | HX16: 60 | HY16: 60 | HZ16: 60 | IA16: 60 | IB16: 60 | IC16: 60 | ID16: 60 | IE16: 60 | IF16: 60 | IG16: 61 | IH16: 61 | II16: 61 | IJ16: 61 | IK16: 61 | IL16: 61 | IM16: 61 | IN16: 61 | IO16: 61 | IP16: 61 | IQ16: 61 | IR16: 61 | IS16: 62 | IT16: 62 | IU16: 62 | IV16: 62 | IW16: 62 | IX16: 62 | IY16: 62 | IZ16: 62 | JA16: 62 | JB16: 62 | JC16: 62 | JD16: 62 | JE16: 63 | JF16: 63 | JG16: 63 | JH16: 63 | JI16: 63 | JJ16: 63 | JK16: 63 | JL16: 63 | JM16: 63 | JN16: 63 | JO16: 63 | JP16: 63 | JQ16: 64 | JR16: 64 | JS16: 64 | JT16: 64 | JU16: 64 | JV16: 64 | JW16: 64 | JX16: 64 | JY16: 64 | JZ16: 64 | KA16: 64 | KB16: 64 | KC16: 65 | KD16: 65 | KE16: 65 | KF16: 65 | KG16: 65 | KH16: 65 | KI16: 65 | KJ16: 65 | KK16: 65 | KL16: 65 | KM16: 65 | KN16: 65 | KO16: 66 | KP16: 66 | KQ16: 66 | KR16: 66 | KS16: 66 | KT16: 66 | KU16: 66 | KV16: 66 | KW16: 66 | KX16: 66 | KY16: 66 | KZ16: 66
A17: 42 | B17: 42 | C17: 42 | D17: 42 | E17: 42 | F17: 42 | G17: 42 | H17: 42 | I17: 42 | J17: 42 | K17: 42 | L17: 42 | M17: 43 | N17: 43 | O17: 43 | P17: 43 | Q17: 43 | R17: 43 | S17: 43 | T17: 43 | U17: 43 | V17: 43 | W17: 43 | X17: 43 | Y17: 44 | Z17: 44 | AA17: 44 | AB17: 44 | AC17: 44 | AD17: 44 | AE17: 44 | AF17: 44 | AG17: 44 | AH17: 44 | AI17: 44 | AJ17: 44 | AK17: 45 | AL17: 45 | AM17: 45 | AN17: 45 | AO17: 45 | AP17: 45 | AQ17: 45 | AR17: 45 | AS17: 45 | AT17: 45 | AU17: 45 | AV17: 45 | AW17: 46 | AX17: 46 | AY17: 46 | AZ17: 46 | BA17: 46 | BB17: 46 | BC17: 46 | BD17: 46 | BE17: 46 | BF17: 46 | BG17: 46 | BH17: 46 | BI17: 47 | BJ17: 47 | BK17: 47 | BL17: 47 | BM17: 47 | BN17: 47 | BO17: 47 | BP17: 47 | BQ17: 47 | BR17: 47 | BS17: 47 | BT17: 47 | BU17: 48 | BV17: 48 | BW17: 48 | BX17: 48 | BY17: 48 | BZ17: 48 | CA17: 48 | CB17: 48 | CC17: 48 | CD17: 48 | CE17: 48 | CF17: 48 | CG17: 49 | CH17: 49 | CI17: 49 | CJ17: 49 | CK17: 49 | CL17: 49 | CM17: 49 | CN17: 49 | CO17: 49 | CP17: 49 | CQ17: 49 | CR17: 49 | CS17: 50 | CT17: 50 | CU17: 50 | CV17: 50 | CW17: 50 | CX17: 50 | CY17: 50 | CZ17: 50 | DA17: 50 | DB17: 50 | DC17: 50 | DD17: 50 | DE17: 51 | DF17: 51 | DG17: 51 | DH17: 51 | DI17: 51 | DJ17: 51 | DK17: 51 | DL17: 51 | DM17: 51 | DN17: 51 | DO17: 51 | DP17: 51 | DQ17: 52 | DR17: 52 | DS17: 52 | DT17: 52 | DU17: 52 | DV17: 52 | DW17: 52 | DX17: 52 | DY17: 52 | DZ17: 52 | EA17: 52 | EB17: 52 | EC17: 53 | ED17: 53 | EE17: 53 | EF17: 53 | EG17: 53 | EH17: 53 | EI17: 53 | EJ17: 53 | EK17: 53 | EL17: 53 | EM17: 53 | EN17: 53 | EO17: 54 | EP17: 54 | EQ17: 54 | ER17: 54 | ES17: 54 | ET17: 54 | EU17: 54 | EV17: 54 | EW17: 54 | EX17: 54 | EY17: 54 | EZ17: 54 | FA17: 55 | FB17: 55 | FC17: 55 | FD17: 55 | FE17: 55 | FF17: 55 | FG17: 55 | FH17: 55 | FI17: 55 | FJ17: 55 | FK17: 55 | FL17: 55 | FM17: 56 | FN17: 56 | FO17: 56 | FP17: 56 | FQ17: 56 | FR17: 56 | FS17: 56 | FT17: 56 | FU17: 56 | FV17: 56 | FW17: 56 | FX17: 56 | FY17: 57 | FZ17: 57 | GA17: 57 | GB17: 57 | GC17: 57 | GD17: 57 | GE17: 57 | GF17: 57 | GG17: 57 | GH17: 57 | GI17: 57 | GJ17: 57 | GK17: 58 | GL17: 58 | GM17: 58 | GN17: 58 | GO17: 58 | GP17: 58 | GQ17: 58 | GR17: 58 | GS17: 58 | GT17: 58 | GU17: 58 | GV17: 58 | GW17: 59 | GX17: 59 | GY17: 59 | GZ17: 59 | HA17: 59 | HB17: 59 | HC17: 59 | HD17: 59 | HE17: 59 | HF17: 59 | HG17: 59 | HH17: 59 | HI17: 60 | HJ17: 60 | HK17: 60 | HL17: 60 | HM17: 60 | HN17: 60 | HO17: 60 | HP17: 60 | HQ17: 60 | HR17: 60 | HS17: 60 | HT17: 60 | HU17: 61 | HV17: 61 | HW17: 61 | HX17: 61 | HY17: 61 | HZ17: 61 | IA17: 61 | IB17: 61 | IC17: 61 | ID17: 61 | IE17: 61 | IF17: 61 | IG17: 62 | IH17: 62 | II17: 62 | IJ17: 62 | IK17: 62 | IL17: 62 | IM17: 62 | IN17: 62 | IO17: 62 | IP17: 62 | IQ17: 62 | IR17: 62 | IS17: 63 | IT17: 63 | IU17: 63 | IV17: 63 | IW17: 63 | IX17: 63 | IY17: 63 | IZ17: 63 | JA17: 63 | JB17: 63 | JC17: 63 | JD17: 63 | JE17: 64 | JF17: 64 | JG17: 64 | JH17: 64 | JI17: 64 | JJ17: 64 | JK17: 64 | JL17: 64 | JM17: 64 | JN17: 64 | JO17: 64 | JP17: 64 | JQ17: 65 | JR17: 65 | JS17: 65 | JT17: 65 | JU17: 65 | JV17: 65 | JW17: 65 | JX17: 65 | JY17: 65 | JZ17: 65 | KA17: 65 | KB17: 65 | KC17: 66 | KD17: 66 | KE17: 66 | KF17: 66 | KG17: 66 | KH17: 66 | KI17: 66 | KJ17: 66 | KK17: 66 | KL17: 66 | KM17: 66 | KN17: 66 | KO17: 67 | KP17: 67 | KQ17: 67 | KR17: 67 | KS17: 67 | KT17: 67 | KU17: 67 | KV17: 67 | KW17: 67 | KX17: 67 | KY17: 67 | KZ17: 67
A18: 43 | B18: 43 | C18: 43 | D18: 43 | E18: 43 | F18: 43 | G18: 43 | H18: 43 | I18: 43 | J18: 43 | K18: 43 | L18: 43 | M18: 44 | N18: 44 | O18: 44 | P18: 44 | Q18: 44 | R18: 44 | S18: 44 | T18: 44 | U18: 44 | V18: 44 | W18: 44 | X18: 44 | Y18: 45 | Z18: 45 | AA18: 45 | AB18: 45 | AC18: 45 | AD18: 45 | AE18: 45 | AF18: 45 | AG18: 45 | AH18: 45 | AI18: 45 | AJ18: 45 | AK18: 46 | AL18: 46 | AM18: 46 | AN18: 46 | AO18: 46 | AP18: 46 | AQ18: 46 | AR18: 46 | AS18: 46 | AT18: 46 | AU18: 46 | AV18: 46 | AW18: 47 | AX18: 47 | AY18: 47 | AZ18: 47 | BA18: 47 | BB18: 47 | BC18: 47 | BD18: 47 | BE18: 47 | BF18: 47 | BG18: 47 | BH18: 47 | BI18: 48 | BJ18: 48 | BK18: 48 | BL18: 48 | BM18: 48 | BN18: 48 | BO18: 48 | BP18: 48 | BQ18: 48 | BR18: 48 | BS18: 48 | BT18: 48 | BU18: 49 | BV18: 49 | BW18: 49 | BX18: 49 | BY18: 49 | BZ18: 49 | CA18: 49 | CB18: 49 | CC18: 49 | CD18: 49 | CE18: 49 | CF18: 49 | CG18: 50 | CH18: 50 | CI18: 50 | CJ18: 50 | CK18: 50 | CL18: 50 | CM18: 50 | CN18: 50 | CO18: 50 | CP18: 50 | CQ18: 50 | CR18: 50 | CS18: 51 | CT18: 51 | CU18: 51 | CV18: 51 | CW18: 51 | CX18: 51 | CY18: 51 | CZ18: 51 | DA18: 51 | DB18: 51 | DC18: 51 | DD18: 51 | DE18: 52 | DF18: 52 | DG18: 52 | DH18: 52 | DI18: 52 | DJ18: 52 | DK18: 52 | DL18: 52 | DM18: 52 | DN18: 52 | DO18: 52 | DP18: 52 | DQ18: 53 | DR18: 53 | DS18: 53 | DT18: 53 | DU18: 53 | DV18: 53 | DW18: 53 | DX18: 53 | DY18: 53 | DZ18: 53 | EA18: 53 | EB18: 53 | EC18: 54 | ED18: 54 | EE18: 54 | EF18: 54 | EG18: 54 | EH18: 54 | EI18: 54 | EJ18: 54 | EK18: 54 | EL18: 54 | EM18: 54 | EN18: 54 | EO18: 55 | EP18: 55 | EQ18: 55 | ER18: 55 | ES18: 55 | ET18: 55 | EU18: 55 | EV18: 55 | EW18: 55 | EX18: 55 | EY18: 55 | EZ18: 55 | FA18: 56 | FB18: 56 | FC18: 56 | FD18: 56 | FE18: 56 | FF18: 56 | FG18: 56 | FH18: 56 | FI18: 56 | FJ18: 56 | FK18: 56 | FL18: 56 | FM18: 57 | FN18: 57 | FO18: 57 | FP18: 57 | FQ18: 57 | FR18: 57 | FS18: 57 | FT18: 57 | FU18: 57 | FV18: 57 | FW18: 57 | FX18: 57 | FY18: 58 | FZ18: 58 | GA18: 58 | GB18: 58 | GC18: 58 | GD18: 58 | GE18: 58 | GF18: 58 | GG18: 58 | GH18: 58 | GI18: 58 | GJ18: 58 | GK18: 59 | GL18: 59 | GM18: 59 | GN18: 59 | GO18: 59 | GP18: 59 | GQ18: 59 | GR18: 59 | GS18: 59 | GT18: 59 | GU18: 59 | GV18: 59 | GW18: 60 | GX18: 60 | GY18: 60 | GZ18: 60 | HA18: 60 | HB18: 60 | HC18: 60 | HD18: 60 | HE18: 60 | HF18: 60 | HG18: 60 | HH18: 60 | HI18: 61 | HJ18: 61 | HK18: 61 | HL18: 61 | HM18: 61 | HN18: 61 | HO18: 61 | HP18: 61 | HQ18: 61 | HR18: 61 | HS18: 61 | HT18: 61 | HU18: 62 | HV18: 62 | HW18: 62 | HX18: 62 | HY18: 62 | HZ18: 62 | IA18: 62 | IB18: 62 | IC18: 62 | ID18: 62 | IE18: 62 | IF18: 62 | IG18: 63 | IH18: 63 | II18: 63 | IJ18: 63 | IK18: 63 | IL18: 63 | IM18: 63 | IN18: 63 | IO18: 63 | IP18: 63 | IQ18: 63 | IR18: 63 | IS18: 64 | IT18: 64 | IU18: 64 | IV18: 64 | IW18: 64 | IX18: 64 | IY18: 64 | IZ18: 64 | JA18: 64 | JB18: 64 | JC18: 64 | JD18: 64 | JE18: 65 | JF18: 65 | JG18: 65 | JH18: 65 | JI18: 65 | JJ18: 65 | JK18: 65 | JL18: 65 | JM18: 65 | JN18: 65 | JO18: 65 | JP18: 65 | JQ18: 66 | JR18: 66 | JS18: 66 | JT18: 66 | JU18: 66 | JV18: 66 | JW18: 66 | JX18: 66 | JY18: 66 | JZ18: 66 | KA18: 66 | KB18: 66 | KC18: 67 | KD18: 67 | KE18: 67 | KF18: 67 | KG18: 67 | KH18: 67 | KI18: 67 | KJ18: 67 | KK18: 67 | KL18: 67 | KM18: 67 | KN18: 67 | KO18: 68 | KP18: 68 | KQ18: 68 | KR18: 68 | KS18: 68 | KT18: 68 | KU18: 68 | KV18: 68 | KW18: 68 | KX18: 68 | KY18: 68 | KZ18: 68
A19: 44 | B19: 44 | C19: 44 | D19: 44 | E19: 44 | F19: 44 | G19: 44 | H19: 44 | I19: 44 | J19: 44 | K19: 44 | L19: 44 | M19: 45 | N19: 45 | O19: 45 | P19: 45 | Q19: 45 | R19: 45 | S19: 45 | T19: 45 | U19: 45 | V19: 45 | W19: 45 | X19: 45 | Y19: 46 | Z19: 46 | AA19: 46 | AB19: 46 | AC19: 46 | AD19: 46 | AE19: 46 | AF19: 46 | AG19: 46 | AH19: 46 | AI19: 46 | AJ19: 46 | AK19: 47 | AL19: 47 | AM19: 47 | AN19: 47 | AO19: 47 | AP19: 47 | AQ19: 47 | AR19: 47 | AS19: 47 | AT19: 47 | AU19: 47 | AV19: 47 | AW19: 48 | AX19: 48 | AY19: 48 | AZ19: 48 | BA19: 48 | BB19: 48 | BC19: 48 | BD19: 48 | BE19: 48 | BF19: 48 | BG19: 48 | BH19: 48 | BI19: 49 | BJ19: 49 | BK19: 49 | BL19: 49 | BM19: 49 | BN19: 49 | BO19: 49 | BP19: 49 | BQ19: 49 | BR19: 49 | BS19: 49 | BT19: 49 | BU19: 50 | BV19: 50 | BW19: 50 | BX19: 50 | BY19: 50 | BZ19: 50 | CA19: 50 | CB19: 50 | CC19: 50 | CD19: 50 | CE19: 50 | CF19: 50 | CG19: 51 | CH19: 51 | CI19: 51 | CJ19: 51 | CK19: 51 | CL19: 51 | CM19: 51 | CN19: 51 | CO19: 51 | CP19: 51 | CQ19: 51 | CR19: 51 | CS19: 52 | CT19: 52 | CU19: 52 | CV19: 52 | CW19: 52 | CX19: 52 | CY19: 52 | CZ19: 52 | DA19: 52 | DB19: 52 | DC19: 52 | DD19: 52 | DE19: 53 | DF19: 53 | DG19: 53 | DH19: 53 | DI19: 53 | DJ19: 53 | DK19: 53 | DL19: 53 | DM19: 53 | DN19: 53 | DO19: 53 | DP19: 53 | DQ19: 54 | DR19: 54 | DS19: 54 | DT19: 54 | DU19: 54 | DV19: 54 | DW19: 54 | DX19: 54 | DY19: 54 | DZ19: 54 | EA19: 54 | EB19: 54 | EC19: 55 | ED19: 55 | EE19: 55 | EF19: 55 | EG19: 55 | EH19: 55 | EI19: 55 | EJ19: 55 | EK19: 55 | EL19: 55 | EM19: 55 | EN19: 55 | EO19: 56 | EP19: 56 | EQ19: 56 | ER19: 56 | ES19: 56 | ET19: 56 | EU19: 56 | EV19: 56 | EW19: 56 | EX19: 56 | EY19: 56 | EZ19: 56 | FA19: 57 | FB19: 57 | FC19: 57 | FD19: 57 | FE19: 57 | FF19: 57 | FG19: 57 | FH19: 57 | FI19: 57 | FJ19: 57 | FK19: 57 | FL19: 57 | FM19: 58 | FN19: 58 | FO19: 58 | FP19: 58 | FQ19: 58 | FR19: 58 | FS19: 58 | FT19: 58 | FU19: 58 | FV19: 58 | FW19: 58 | FX19: 58 | FY19: 59 | FZ19: 59 | GA19: 59 | GB19: 59 | GC19: 59 | GD19: 59 | GE19: 59 | GF19: 59 | GG19: 59 | GH19: 59 | GI19: 59 | GJ19: 59 | GK19: 60 | GL19: 60 | GM19: 60 | GN19: 60 | GO19: 60 | GP19: 60 | GQ19: 60 | GR19: 60 | GS19: 60 | GT19: 60 | GU19: 60 | GV19: 60 | GW19: 61 | GX19: 61 | GY19: 61 | GZ19: 61 | HA19: 61 | HB19: 61 | HC19: 61 | HD19: 61 | HE19: 61 | HF19: 61 | HG19: 61 | HH19: 61 | HI19: 62 | HJ19: 62 | HK19: 62 | HL19: 62 | HM19: 62 | HN19: 62 | HO19: 62 | HP19: 62 | HQ19: 62 | HR19: 62 | HS19: 62 | HT19: 62 | HU19: 63 | HV19: 63 | HW19: 63 | HX19: 63 | HY19: 63 | HZ19: 63 | IA19: 63 | IB19: 63 | IC19: 63 | ID19: 63 | IE19: 63 | IF19: 63 | IG19: 64 | IH19: 64 | II19: 64 | IJ19: 64 | IK19: 64 | IL19: 64 | IM19: 64 | IN19: 64 | IO19: 64 | IP19: 64 | IQ19: 64 | IR19: 64 | IS19: 65 | IT19: 65 | IU19: 65 | IV19: 65 | IW19: 65 | IX19: 65 | IY19: 65 | IZ19: 65 | JA19: 65 | JB19: 65 | JC19: 65 | JD19: 65 | JE19: 66 | JF19: 66 | JG19: 66 | JH19: 66 | JI19: 66 | JJ19: 66 | JK19: 66 | JL19: 66 | JM19: 66 | JN19: 66 | JO19: 66 | JP19: 66 | JQ19: 67 | JR19: 67 | JS19: 67 | JT19: 67 | JU19: 67 | JV19: 67 | JW19: 67 | JX19: 67 | JY19: 67 | JZ19: 67 | KA19: 67 | KB19: 67 | KC19: 68 | KD19: 68 | KE19: 68 | KF19: 68 | KG19: 68 | KH19: 68 | KI19: 68 | KJ19: 68 | KK19: 68 | KL19: 68 | KM19: 68 | KN19: 68 | KO19: 69 | KP19: 69 | KQ19: 69 | KR19: 69 | KS19: 69 | KT19: 69 | KU19: 69 | KV19: 69 | KW19: 69 | KX19: 69 | KY19: 69 | KZ19: 69
A20: 45 | B20: 45 | C20: 45 | D20: 45 | E20: 45 | F20: 45 | G20: 45 | H20: 45 | I20: 45 | J20: 45 | K20: 45 | L20: 45 | M20: 46 | N20: 46 | O20: 46 | P20: 46 | Q20: 46 | R20: 46 | S20: 46 | T20: 46 | U20: 46 | V20: 46 | W20: 46 | X20: 46 | Y20: 47 | Z20: 47 | AA20: 47 | AB20: 47 | AC20: 47 | AD20: 47 | AE20: 47 | AF20: 47 | AG20: 47 | AH20: 47 | AI20: 47 | AJ20: 47 | AK20: 48 | AL20: 48 | AM20: 48 | AN20: 48 | AO20: 48 | AP20: 48 | AQ20: 48 | AR20: 48 | AS20: 48 | AT20: 48 | AU20: 48 | AV20: 48 | AW20: 49 | AX20: 49 | AY20: 49 | AZ20: 49 | BA20: 49 | BB20: 49 | BC20: 49 | BD20: 49 | BE20: 49 | BF20: 49 | BG20: 49 | BH20: 49 | BI20: 50 | BJ20: 50 | BK20: 50 | BL20: 50 | BM20: 50 | BN20: 50 | BO20: 50 | BP20: 50 | BQ20: 50 | BR20: 50 | BS20: 50 | BT20: 50 | BU20: 51 | BV20: 51 | BW20: 51 | BX20: 51 | BY20: 51 | BZ20: 51 | CA20: 51 | CB20: 51 | CC20: 51 | CD20: 51 | CE20: 51 | CF20: 51 | CG20: 52 | CH20: 52 | CI20: 52 | CJ20: 52 | CK20: 52 | CL20: 52 | CM20: 52 | CN20: 52 | CO20: 52 | CP20: 52 | CQ20: 52 | CR20: 52 | CS20: 53 | CT20: 53 | CU20: 53 | CV20: 53 | CW20: 53 | CX20: 53 | CY20: 53 | CZ20: 53 | DA20: 53 | DB20: 53 | DC20: 53 | DD20: 53 | DE20: 54 | DF20: 54 | DG20: 54 | DH20: 54 | DI20: 54 | DJ20: 54 | DK20: 54 | DL20: 54 | DM20: 54 | DN20: 54 | DO20: 54 | DP20: 54 | DQ20: 55 | DR20: 55 | DS20: 55 | DT20: 55 | DU20: 55 | DV20: 55 | DW20: 55 | DX20: 55 | DY20: 55 | DZ20: 55 | EA20: 55 | EB20: 55 | EC20: 56 | ED20: 56 | EE20: 56 | EF20: 56 | EG20: 56 | EH20: 56 | EI20: 56 | EJ20: 56 | EK20: 56 | EL20: 56 | EM20: 56 | EN20: 56 | EO20: 57 | EP20: 57 | EQ20: 57 | ER20: 57 | ES20: 57 | ET20: 57 | EU20: 57 | EV20: 57 | EW20: 57 | EX20: 57 | EY20: 57 | EZ20: 57 | FA20: 58 | FB20: 58 | FC20: 58 | FD20: 58 | FE20: 58 | FF20: 58 | FG20: 58 | FH20: 58 | FI20: 58 | FJ20: 58 | FK20: 58 | FL20: 58 | FM20: 59 | FN20: 59 | FO20: 59 | FP20: 59 | FQ20: 59 | FR20: 59 | FS20: 59 | FT20: 59 | FU20: 59 | FV20: 59 | FW20: 59 | FX20: 59 | FY20: 60 | FZ20: 60 | GA20: 60 | GB20: 60 | GC20: 60 | GD20: 60 | GE20: 60 | GF20: 60 | GG20: 60 | GH20: 60 | GI20: 60 | GJ20: 60 | GK20: 61 | GL20: 61 | GM20: 61 | GN20: 61 | GO20: 61 | GP20: 61 | GQ20: 61 | GR20: 61 | GS20: 61 | GT20: 61 | GU20: 61 | GV20: 61 | GW20: 62 | GX20: 62 | GY20: 62 | GZ20: 62 | HA20: 62 | HB20: 62 | HC20: 62 | HD20: 62 | HE20: 62 | HF20: 62 | HG20: 62 | HH20: 62 | HI20: 63 | HJ20: 63 | HK20: 63 | HL20: 63 | HM20: 63 | HN20: 63 | HO20: 63 | HP20: 63 | HQ20: 63 | HR20: 63 | HS20: 63 | HT20: 63 | HU20: 64 | HV20: 64 | HW20: 64 | HX20: 64 | HY20: 64 | HZ20: 64 | IA20: 64 | IB20: 64 | IC20: 64 | ID20: 64 | IE20: 64 | IF20: 64 | IG20: 65 | IH20: 65 | II20: 65 | IJ20: 65 | IK20: 65 | IL20: 65 | IM20: 65 | IN20: 65 | IO20: 65 | IP20: 65 | IQ20: 65 | IR20: 65 | IS20: 66 | IT20: 66 | IU20: 66 | IV20: 66 | IW20: 66 | IX20: 66 | IY20: 66 | IZ20: 66 | JA20: 66 | JB20: 66 | JC20: 66 | JD20: 66 | JE20: 67 | JF20: 67 | JG20: 67 | JH20: 67 | JI20: 67 | JJ20: 67 | JK20: 67 | JL20: 67 | JM20: 67 | JN20: 67 | JO20: 67 | JP20: 67 | JQ20: 68 | JR20: 68 | JS20: 68 | JT20: 68 | JU20: 68 | JV20: 68 | JW20: 68 | JX20: 68 | JY20: 68 | JZ20: 68 | KA20: 68 | KB20: 68 | KC20: 69 | KD20: 69 | KE20: 69 | KF20: 69 | KG20: 69 | KH20: 69 | KI20: 69 | KJ20: 69 | KK20: 69 | KL20: 69 | KM20: 69 | KN20: 69 | KO20: 70 | KP20: 70 | KQ20: 70 | KR20: 70 | KS20: 70 | KT20: 70 | KU20: 70 | KV20: 70 | KW20: 70 | KX20: 70 | KY20: 70 | KZ20: 70
A21: 46 | B21: 46 | C21: 46 | D21: 46 | E21: 46 | F21: 46 | G21: 46 | H21: 46 | I21: 46 | J21: 46 | K21: 46 | L21: 46 | M21: 47 | N21: 47 | O21: 47 | P21: 47 | Q21: 47 | R21: 47 | S21: 47 | T21: 47 | U21: 47 | V21: 47 | W21: 47 | X21: 47 | Y21: 48 | Z21: 48 | AA21: 48 | AB21: 48 | AC21: 48 | AD21: 48 | AE21: 48 | AF21: 48 | AG21: 48 | AH21: 48 | AI21: 48 | AJ21: 48 | AK21: 49 | AL21: 49 | AM21: 49 | AN21: 49 | AO21: 49 | AP21: 49 | AQ21: 49 | AR21: 49 | AS21: 49 | AT21: 49 | AU21: 49 | AV21: 49 | AW21: 50 | AX21: 50 | AY21: 50 | AZ21: 50 | BA21: 50 | BB21: 50 | BC21: 50 | BD21: 50 | BE21: 50 | BF21: 50 | BG21: 50 | BH21: 50 | BI21: 51 | BJ21: 51 | BK21: 51 | BL21: 51 | BM21: 51 | BN21: 51 | BO21: 51 | BP21: 51 | BQ21: 51 | BR21: 51 | BS21: 51 | BT21: 51 | BU21: 52 | BV21: 52 | BW21: 52 | BX21: 52 | BY21: 52 | BZ21: 52 | CA21: 52 | CB21: 52 | CC21: 52 | CD21: 52 | CE21: 52 | CF21: 52 | CG21: 53 | CH21: 53 | CI21: 53 | CJ21: 53 | CK21: 53 | CL21: 53 | CM21: 53 | CN21: 53 | CO21: 53 | CP21: 53 | CQ21: 53 | CR21: 53 | CS21: 54 | CT21: 54 | CU21: 54 | CV21: 54 | CW21: 54 | CX21: 54 | CY21: 54 | CZ21: 54 | DA21: 54 | DB21: 54 | DC21: 54 | DD21: 54 | DE21: 55 | DF21: 55 | DG21: 55 | DH21: 55 | DI21: 55 | DJ21: 55 | DK21: 55 | DL21: 55 | DM21: 55 | DN21: 55 | DO21: 55 | DP21: 55 | DQ21: 56 | DR21: 56 | DS21: 56 | DT21: 56 | DU21: 56 | DV21: 56 | DW21: 56 | DX21: 56 | DY21: 56 | DZ21: 56 | EA21: 56 | EB21: 56 | EC21: 57 | ED21: 57 | EE21: 57 | EF21: 57 | EG21: 57 | EH21: 57 | EI21: 57 | EJ21: 57 | EK21: 57 | EL21: 57 | EM21: 57 | EN21: 57 | EO21: 58 | EP21: 58 | EQ21: 58 | ER21: 58 | ES21: 58 | ET21: 58 | EU21: 58 | EV21: 58 | EW21: 58 | EX21: 58 | EY21: 58 | EZ21: 58 | FA21: 59 | FB21: 59 | FC21: 59 | FD21: 59 | FE21: 59 | FF21: 59 | FG21: 59 | FH21: 59 | FI21: 59 | FJ21: 59 | FK21: 59 | FL21: 59 | FM21: 60 | FN21: 60 | FO21: 60 | FP21: 60 | FQ21: 60 | FR21: 60 | FS21: 60 | FT21: 60 | FU21: 60 | FV21: 60 | FW21: 60 | FX21: 60 | FY21: 61 | FZ21: 61 | GA21: 61 | GB21: 61 | GC21: 61 | GD21: 61 | GE21: 61 | GF21: 61 | GG21: 61 | GH21: 61 | GI21: 61 | GJ21: 61 | GK21: 62 | GL21: 62 | GM21: 62 | GN21: 62 | GO21: 62 | GP21: 62 | GQ21: 62 | GR21: 62 | GS21: 62 | GT21: 62 | GU21: 62 | GV21: 62 | GW21: 63 | GX21: 63 | GY21: 63 | GZ21: 63 | HA21: 63 | HB21: 63 | HC21: 63 | HD21: 63 | HE21: 63 | HF21: 63 | HG21: 63 | HH21: 63 | HI21: 64 | HJ21: 64 | HK21: 64 | HL21: 64 | HM21: 64 | HN21: 64 | HO21: 64 | HP21: 64 | HQ21: 64 | HR21: 64 | HS21: 64 | HT21: 64 | HU21: 65 | HV21: 65 | HW21: 65 | HX21: 65 | HY21: 65 | HZ21: 65 | IA21: 65 | IB21: 65 | IC21: 65 | ID21: 65 | IE21: 65 | IF21: 65 | IG21: 66 | IH21: 66 | II21: 66 | IJ21: 66 | IK21: 66 | IL21: 66 | IM21: 66 | IN21: 66 | IO21: 66 | IP21: 66 | IQ21: 66 | IR21: 66 | IS21: 67 | IT21: 67 | IU21: 67 | IV21: 67 | IW21: 67 | IX21: 67 | IY21: 67 | IZ21: 67 | JA21: 67 | JB21: 67 | JC21: 67 | JD21: 67 | JE21: 68 | JF21: 68 | JG21: 68 | JH21: 68 | JI21: 68 | JJ21: 68 | JK21: 68 | JL21: 68 | JM21: 68 | JN21: 68 | JO21: 68 | JP21: 68 | JQ21: 69 | JR21: 69 | JS21: 69 | JT21: 69 | JU21: 69 | JV21: 69 | JW21: 69 | JX21: 69 | JY21: 69 | JZ21: 69 | KA21: 69 | KB21: 69 | KC21: 70 | KD21: 70 | KE21: 70 | KF21: 70 | KG21: 70 | KH21: 70 | KI21: 70 | KJ21: 70 | KK21: 70 | KL21: 70 | KM21: 70 | KN21: 70 | KO21: 71 | KP21: 71 | KQ21: 71 | KR21: 71 | KS21: 71 | KT21: 71 | KU21: 71 | KV21: 71 | KW21: 71 | KX21: 71 | KY21: 71 | KZ21: 71
A22: 47 | B22: 47 | C22: 47 | D22: 47 | E22: 47 | F22: 47 | G22: 47 | H22: 47 | I22: 47 | J22: 47 | K22: 47 | L22: 47 | M22: 48 | N22: 48 | O22: 48 | P22: 48 | Q22: 48 | R22: 48 | S22: 48 | T22: 48 | U22: 48 | V22: 48 | W22: 48 | X22: 48 | Y22: 49 | Z22: 49 | AA22: 49 | AB22: 49 | AC22: 49 | AD22: 49 | AE22: 49 | AF22: 49 | AG22: 49 | AH22: 49 | AI22: 49 | AJ22: 49 | AK22: 50 | AL22: 50 | AM22: 50 | AN22: 50 | AO22: 50 | AP22: 50 | AQ22: 50 | AR22: 50 | AS22: 50 | AT22: 50 | AU22: 50 | AV22: 50 | AW22: 51 | AX22: 51 | AY22: 51 | AZ22: 51 | BA22: 51 | BB22: 51 | BC22: 51 | BD22: 51 | BE22: 51 | BF22: 51 | BG22: 51 | BH22: 51 | BI22: 52 | BJ22: 52 | BK22: 52 | BL22: 52 | BM22: 52 | BN22: 52 | BO22: 52 | BP22: 52 | BQ22: 52 | BR22: 52 | BS22: 52 | BT22: 52 | BU22: 53 | BV22: 53 | BW22: 53 | BX22: 53 | BY22: 53 | BZ22: 53 | CA22: 53 | CB22: 53 | CC22: 53 | CD22: 53 | CE22: 53 | CF22: 53 | CG22: 54 | CH22: 54 | CI22: 54 | CJ22: 54 | CK22: 54 | CL22: 54 | CM22: 54 | CN22: 54 | CO22: 54 | CP22: 54 | CQ22: 54 | CR22: 54 | CS22: 55 | CT22: 55 | CU22: 55 | CV22: 55 | CW22: 55 | CX22: 55 | CY22: 55 | CZ22: 55 | DA22: 55 | DB22: 55 | DC22: 55 | DD22: 55 | DE22: 56 | DF22: 56 | DG22: 56 | DH22: 56 | DI22: 56 | DJ22: 56 | DK22: 56 | DL22: 56 | DM22: 56 | DN22: 56 | DO22: 56 | DP22: 56 | DQ22: 57 | DR22: 57 | DS22: 57 | DT22: 57 | DU22: 57 | DV22: 57 | DW22: 57 | DX22: 57 | DY22: 57 | DZ22: 57 | EA22: 57 | EB22: 57 | EC22: 58 | ED22: 58 | EE22: 58 | EF22: 58 | EG22: 58 | EH22: 58 | EI22: 58 | EJ22: 58 | EK22: 58 | EL22: 58 | EM22: 58 | EN22: 58 | EO22: 59 | EP22: 59 | EQ22: 59 | ER22: 59 | ES22: 59 | ET22: 59 | EU22: 59 | EV22: 59 | EW22: 59 | EX22: 59 | EY22: 59 | EZ22: 59 | FA22: 60 | FB22: 60 | FC22: 60 | FD22: 60 | FE22: 60 | FF22: 60 | FG22: 60 | FH22: 60 | FI22: 60 | FJ22: 60 | FK22: 60 | FL22: 60 | FM22: 61 | FN22: 61 | FO22: 61 | FP22: 61 | FQ22: 61 | FR22: 61 | FS22: 61 | FT22: 61 | FU22: 61 | FV22: 61 | FW22: 61 | FX22: 61 | FY22: 62 | FZ22: 62 | GA22: 62 | GB22: 62 | GC22: 62 | GD22: 62 | GE22: 62 | GF22: 62 | GG22: 62 | GH22: 62 | GI22: 62 | GJ22: 62 | GK22: 63 | GL22: 63 | GM22: 63 | GN22: 63 | GO22: 63 | GP22: 63 | GQ22: 63 | GR22: 63 | GS22: 63 | GT22: 63 | GU22: 63 | GV22: 63 | GW22: 64 | GX22: 64 | GY22: 64 | GZ22: 64 | HA22: 64 | HB22: 64 | HC22: 64 | HD22: 64 | HE22: 64 | HF22: 64 | HG22: 64 | HH22: 64 | HI22: 65 | HJ22: 65 | HK22: 65 | HL22: 65 | HM22: 65 | HN22: 65 | HO22: 65 | HP22: 65 | HQ22: 65 | HR22: 65 | HS22: 65 | HT22: 65 | HU22: 66 | HV22: 66 | HW22: 66 | HX22: 66 | HY22: 66 | HZ22: 66 | IA22: 66 | IB22: 66 | IC22: 66 | ID22: 66 | IE22: 66 | IF22: 66 | IG22: 67 | IH22: 67 | II22: 67 | IJ22: 67 | IK22: 67 | IL22: 67 | IM22: 67 | IN22: 67 | IO22: 67 | IP22: 67 | IQ22: 67 | IR22: 67 | IS22: 68 | IT22: 68 | IU22: 68 | IV22: 68 | IW22: 68 | IX22: 68 | IY22: 68 | IZ22: 68 | JA22: 68 | JB22: 68 | JC22: 68 | JD22: 68 | JE22: 69 | JF22: 69 | JG22: 69 | JH22: 69 | JI22: 69 | JJ22: 69 | JK22: 69 | JL22: 69 | JM22: 69 | JN22: 69 | JO22: 69 | JP22: 69 | JQ22: 70 | JR22: 70 | JS22: 70 | JT22: 70 | JU22: 70 | JV22: 70 | JW22: 70 | JX22: 70 | JY22: 70 | JZ22: 70 | KA22: 70 | KB22: 70 | KC22: 71 | KD22: 71 | KE22: 71 | KF22: 71 | KG22: 71 | KH22: 71 | KI22: 71 | KJ22: 71 | KK22: 71 | KL22: 71 | KM22: 71 | KN22: 71 | KO22: 72 | KP22: 72 | KQ22: 72 | KR22: 72 | KS22: 72 | KT22: 72 | KU22: 72 | KV22: 72 | KW22: 72 | KX22: 72 | KY22: 72 | KZ22: 72
A23: 48 | B23: 48 | C23: 48 | D23: 48 | E23: 48 | F23: 48 | G23: 48 | H23: 48 | I23: 48 | J23: 48 | K23: 48 | L23: 48 | M23: 49 | N23: 49 | O23: 49 | P23: 49 | Q23: 49 | R23: 49 | S23: 49 | T23: 49 | U23: 49 | V23: 49 | W23: 49 | X23: 49 | Y23: 50 | Z23: 50 | AA23: 50 | AB23: 50 | AC23: 50 | AD23: 50 | AE23: 50 | AF23: 50 | AG23: 50 | AH23: 50 | AI23: 50 | AJ23: 50 | AK23: 51 | AL23: 51 | AM23: 51 | AN23: 51 | AO23: 51 | AP23: 51 | AQ23: 51 | AR23: 51 | AS23: 51 | AT23: 51 | AU23: 51 | AV23: 51 | AW23: 52 | AX23: 52 | AY23: 52 | AZ23: 52 | BA23: 52 | BB23: 52 | BC23: 52 | BD23: 52 | BE23: 52 | BF23: 52 | BG23: 52 | BH23: 52 | BI23: 53 | BJ23: 53 | BK23: 53 | BL23: 53 | BM23: 53 | BN23: 53 | BO23: 53 | BP23: 53 | BQ23: 53 | BR23: 53 | BS23: 53 | BT23: 53 | BU23: 54 | BV23: 54 | BW23: 54 | BX23: 54 | BY23: 54 | BZ23: 54 | CA23: 54 | CB23: 54 | CC23: 54 | CD23: 54 | CE23: 54 | CF23: 54 | CG23: 55 | CH23: 55 | CI23: 55 | CJ23: 55 | CK23: 55 | CL23: 55 | CM23: 55 | CN23: 55 | CO23: 55 | CP23: 55 | CQ23: 55 | CR23: 55 | CS23: 56 | CT23: 56 | CU23: 56 | CV23: 56 | CW23: 56 | CX23: 56 | CY23: 56 | CZ23: 56 | DA23: 56 | DB23: 56 | DC23: 56 | DD23: 56 | DE23: 57 | DF23: 57 | DG23: 57 | DH23: 57 | DI23: 57 | DJ23: 57 | DK23: 57 | DL23: 57 | DM23: 57 | DN23: 57 | DO23: 57 | DP23: 57 | DQ23: 58 | DR23: 58 | DS23: 58 | DT23: 58 | DU23: 58 | DV23: 58 | DW23: 58 | DX23: 58 | DY23: 58 | DZ23: 58 | EA23: 58 | EB23: 58 | EC23: 59 | ED23: 59 | EE23: 59 | EF23: 59 | EG23: 59 | EH23: 59 | EI23: 59 | EJ23: 59 | EK23: 59 | EL23: 59 | EM23: 59 | EN23: 59 | EO23: 60 | EP23: 60 | EQ23: 60 | ER23: 60 | ES23: 60 | ET23: 60 | EU23: 60 | EV23: 60 | EW23: 60 | EX23: 60 | EY23: 60 | EZ23: 60 | FA23: 61 | FB23: 61 | FC23: 61 | FD23: 61 | FE23: 61 | FF23: 61 | FG23: 61 | FH23: 61 | FI23: 61 | FJ23: 61 | FK23: 61 | FL23: 61 | FM23: 62 | FN23: 62 | FO23: 62 | FP23: 62 | FQ23: 62 | FR23: 62 | FS23: 62 | FT23: 62 | FU23: 62 | FV23: 62 | FW23: 62 | FX23: 62 | FY23: 63 | FZ23: 63 | GA23: 63 | GB23: 63 | GC23: 63 | GD23: 63 | GE23: 63 | GF23: 63 | GG23: 63 | GH23: 63 | GI23: 63 | GJ23: 63 | GK23: 64 | GL23: 64 | GM23: 64 | GN23: 64 | GO23: 64 | GP23: 64 | GQ23: 64 | GR23: 64 | GS23: 64 | GT23: 64 | GU23: 64 | GV23: 64 | GW23: 65 | GX23: 65 | GY23: 65 | GZ23: 65 | HA23: 65 | HB23: 65 | HC23: 65 | HD23: 65 | HE23: 65 | HF23: 65 | HG23: 65 | HH23: 65 | HI23: 66 | HJ23: 66 | HK23: 66 | HL23: 66 | HM23: 66 | HN23: 66 | HO23: 66 | HP23: 66 | HQ23: 66 | HR23: 66 | HS23: 66 | HT23: 66 | HU23: 67 | HV23: 67 | HW23: 67 | HX23: 67 | HY23: 67 | HZ23: 67 | IA23: 67 | IB23: 67 | IC23: 67 | ID23: 67 | IE23: 67 | IF23: 67 | IG23: 68 | IH23: 68 | II23: 68 | IJ23: 68 | IK23: 68 | IL23: 68 | IM23: 68 | IN23: 68 | IO23: 68 | IP23: 68 | IQ23: 68 | IR23: 68 | IS23: 69 | IT23: 69 | IU23: 69 | IV23: 69 | IW23: 69 | IX23: 69 | IY23: 69 | IZ23: 69 | JA23: 69 | JB23: 69 | JC23: 69 | JD23: 69 | JE23: 70 | JF23: 70 | JG23: 70 | JH23: 70 | JI23: 70 | JJ23: 70 | JK23: 70 | JL23: 70 | JM23: 70 | JN23: 70 | JO23: 70 | JP23: 70 | JQ23: 71 | JR23: 71 | JS23: 71 | JT23: 71 | JU23: 71 | JV23: 71 | JW23: 71 | JX23: 71 | JY23: 71 | JZ23: 71 | KA23: 71 | KB23: 71 | KC23: 72 | KD23: 72 | KE23: 72 | KF23: 72 | KG23: 72 | KH23: 72 | KI23: 72 | KJ23: 72 | KK23: 72 | KL23: 72 | KM23: 72 | KN23: 72 | KO23: 73 | KP23: 73 | KQ23: 73 | KR23: 73 | KS23: 73 | KT23: 73 | KU23: 73 | KV23: 73 | KW23: 73 | KX23: 73 | KY23: 73 | KZ23: 73
A24: 49 | B24: 49 | C24: 49 | D24: 49 | E24: 49 | F24: 49 | G24: 49 | H24: 49 | I24: 49 | J24: 49 | K24: 49 | L24: 49 | M24: 50 | N24: 50 | O24: 50 | P24: 50 | Q24: 50 | R24: 50 | S24: 50 | T24: 50 | U24: 50 | V24: 50 | W24: 50 | X24: 50 | Y24: 51 | Z24: 51 | AA24: 51 | AB24: 51 | AC24: 51 | AD24: 51 | AE24: 51 | AF24: 51 | AG24: 51 | AH24: 51 | AI24: 51 | AJ24: 51 | AK24: 52 | AL24: 52 | AM24: 52 | AN24: 52 | AO24: 52 | AP24: 52 | AQ24: 52 | AR24: 52 | AS24: 52 | AT24: 52 | AU24: 52 | AV24: 52 | AW24: 53 | AX24: 53 | AY24: 53 | AZ24: 53 | BA24: 53 | BB24: 53 | BC24: 53 | BD24: 53 | BE24: 53 | BF24: 53 | BG24: 53 | BH24: 53 | BI24: 54 | BJ24: 54 | BK24: 54 | BL24: 54 | BM24: 54 | BN24: 54 | BO24: 54 | BP24: 54 | BQ24: 54 | BR24: 54 | BS24: 54 | BT24: 54 | BU24: 55 | BV24: 55 | BW24: 55 | BX24: 55 | BY24: 55 | BZ24: 55 | CA24: 55 | CB24: 55 | CC24: 55 | CD24: 55 | CE24: 55 | CF24: 55 | CG24: 56 | CH24: 56 | CI24: 56 | CJ24: 56 | CK24: 56 | CL24: 56 | CM24: 56 | CN24: 56 | CO24: 56 | CP24: 56 | CQ24: 56 | CR24: 56 | CS24: 57 | CT24: 57 | CU24: 57 | CV24: 57 | CW24: 57 | CX24: 57 | CY24: 57 | CZ24: 57 | DA24: 57 | DB24: 57 | DC24: 57 | DD24: 57 | DE24: 58 | DF24: 58 | DG24: 58 | DH24: 58 | DI24: 58 | DJ24: 58 | DK24: 58 | DL24: 58 | DM24: 58 | DN24: 58 | DO24: 58 | DP24: 58 | DQ24: 59 | DR24: 59 | DS24: 59 | DT24: 59 | DU24: 59 | DV24: 59 | DW24: 59 | DX24: 59 | DY24: 59 | DZ24: 59 | EA24: 59 | EB24: 59 | EC24: 60 | ED24: 60 | EE24: 60 | EF24: 60 | EG24: 60 | EH24: 60 | EI24: 60 | EJ24: 60 | EK24: 60 | EL24: 60 | EM24: 60 | EN24: 60 | EO24: 61 | EP24: 61 | EQ24: 61 | ER24: 61 | ES24: 61 | ET24: 61 | EU24: 61 | EV24: 61 | EW24: 61 | EX24: 61 | EY24: 61 | EZ24: 61 | FA24: 62 | FB24: 62 | FC24: 62 | FD24: 62 | FE24: 62 | FF24: 62 | FG24: 62 | FH24: 62 | FI24: 62 | FJ24: 62 | FK24: 62 | FL24: 62 | FM24: 63 | FN24: 63 | FO24: 63 | FP24: 63 | FQ24: 63 | FR24: 63 | FS24: 63 | FT24: 63 | FU24: 63 | FV24: 63 | FW24: 63 | FX24: 63 | FY24: 64 | FZ24: 64 | GA24: 64 | GB24: 64 | GC24: 64 | GD24: 64 | GE24: 64 | GF24: 64 | GG24: 64 | GH24: 64 | GI24: 64 | GJ24: 64 | GK24: 65 | GL24: 65 | GM24: 65 | GN24: 65 | GO24: 65 | GP24: 65 | GQ24: 65 | GR24: 65 | GS24: 65 | GT24: 65 | GU24: 65 | GV24: 65 | GW24: 66 | GX24: 66 | GY24: 66 | GZ24: 66 | HA24: 66 | HB24: 66 | HC24: 66 | HD24: 66 | HE24: 66 | HF24: 66 | HG24: 66 | HH24: 66 | HI24: 67 | HJ24: 67 | HK24: 67 | HL24: 67 | HM24: 67 | HN24: 67 | HO24: 67 | HP24: 67 | HQ24: 67 | HR24: 67 | HS24: 67 | HT24: 67 | HU24: 68 | HV24: 68 | HW24: 68 | HX24: 68 | HY24: 68 | HZ24: 68 | IA24: 68 | IB24: 68 | IC24: 68 | ID24: 68 | IE24: 68 | IF24: 68 | IG24: 69 | IH24: 69 | II24: 69 | IJ24: 69 | IK24: 69 | IL24: 69 | IM24: 69 | IN24: 69 | IO24: 69 | IP24: 69 | IQ24: 69 | IR24: 69 | IS24: 70 | IT24: 70 | IU24: 70 | IV24: 70 | IW24: 70 | IX24: 70 | IY24: 70 | IZ24: 70 | JA24: 70 | JB24: 70 | JC24: 70 | JD24: 70 | JE24: 71 | JF24: 71 | JG24: 71 | JH24: 71 | JI24: 71 | JJ24: 71 | JK24: 71 | JL24: 71 | JM24: 71 | JN24: 71 | JO24: 71 | JP24: 71 | JQ24: 72 | JR24: 72 | JS24: 72 | JT24: 72 | JU24: 72 | JV24: 72 | JW24: 72 | JX24: 72 | JY24: 72 | JZ24: 72 | KA24: 72 | KB24: 72 | KC24: 73 | KD24: 73 | KE24: 73 | KF24: 73 | KG24: 73 | KH24: 73 | KI24: 73 | KJ24: 73 | KK24: 73 | KL24: 73 | KM24: 73 | KN24: 73 | KO24: 74 | KP24: 74 | KQ24: 74 | KR24: 74 | KS24: 74 | KT24: 74 | KU24: 74 | KV24: 74 | KW24: 74 | KX24: 74 | KY24: 74 | KZ24: 74
A25: 50 | B25: 50 | C25: 50 | D25: 50 | E25: 50 | F25: 50 | G25: 50 | H25: 50 | I25: 50 | J25: 50 | K25: 50 | L25: 50 | M25: 51 | N25: 51 | O25: 51 | P25: 51 | Q25: 51 | R25: 51 | S25: 51 | T25: 51 | U25: 51 | V25: 51 | W25: 51 | X25: 51 | Y25: 52 | Z25: 52 | AA25: 52 | AB25: 52 | AC25: 52 | AD25: 52 | AE25: 52 | AF25: 52 | AG25: 52 | AH25: 52 | AI25: 52 | AJ25: 52 | AK25: 53 | AL25: 53 | AM25: 53 | AN25: 53 | AO25: 53 | AP25: 53 | AQ25: 53 | AR25: 53 | AS25: 53 | AT25: 53 | AU25: 53 | AV25: 53 | AW25: 54 | AX25: 54 | AY25: 54 | AZ25: 54 | BA25: 54 | BB25: 54 | BC25: 54 | BD25: 54 | BE25: 54 | BF25: 54 | BG25: 54 | BH25: 54 | BI25: 55 | BJ25: 55 | BK25: 55 | BL25: 55 | BM25: 55 | BN25: 55 | BO25: 55 | BP25: 55 | BQ25: 55 | BR25: 55 | BS25: 55 | BT25: 55 | BU25: 56 | BV25: 56 | BW25: 56 | BX25: 56 | BY25: 56 | BZ25: 56 | CA25: 56 | CB25: 56 | CC25: 56 | CD25: 56 | CE25: 56 | CF25: 56 | CG25: 57 | CH25: 57 | CI25: 57 | CJ25: 57 | CK25: 57 | CL25: 57 | CM25: 57 | CN25: 57 | CO25: 57 | CP25: 57 | CQ25: 57 | CR25: 57 | CS25: 58 | CT25: 58 | CU25: 58 | CV25: 58 | CW25: 58 | CX25: 58 | CY25: 58 | CZ25: 58 | DA25: 58 | DB25: 58 | DC25: 58 | DD25: 58 | DE25: 59 | DF25: 59 | DG25: 59 | DH25: 59 | DI25: 59 | DJ25: 59 | DK25: 59 | DL25: 59 | DM25: 59 | DN25: 59 | DO25: 59 | DP25: 59 | DQ25: 60 | DR25: 60 | DS25: 60 | DT25: 60 | DU25: 60 | DV25: 60 | DW25: 60 | DX25: 60 | DY25: 60 | DZ25: 60 | EA25: 60 | EB25: 60 | EC25: 61 | ED25: 61 | EE25: 61 | EF25: 61 | EG25: 61 | EH25: 61 | EI25: 61 | EJ25: 61 | EK25: 61 | EL25: 61 | EM25: 61 | EN25: 61 | EO25: 62 | EP25: 62 | EQ25: 62 | ER25: 62 | ES25: 62 | ET25: 62 | EU25: 62 | EV25: 62 | EW25: 62 | EX25: 62 | EY25: 62 | EZ25: 62 | FA25: 63 | FB25: 63 | FC25: 63 | FD25: 63 | FE25: 63 | FF25: 63 | FG25: 63 | FH25: 63 | FI25: 63 | FJ25: 63 | FK25: 63 | FL25: 63 | FM25: 64 | FN25: 64 | FO25: 64 | FP25: 64 | FQ25: 64 | FR25: 64 | FS25: 64 | FT25: 64 | FU25: 64 | FV25: 64 | FW25: 64 | FX25: 64 | FY25: 65 | FZ25: 65 | GA25: 65 | GB25: 65 | GC25: 65 | GD25: 65 | GE25: 65 | GF25: 65 | GG25: 65 | GH25: 65 | GI25: 65 | GJ25: 65 | GK25: 66 | GL25: 66 | GM25: 66 | GN25: 66 | GO25: 66 | GP25: 66 | GQ25: 66 | GR25: 66 | GS25: 66 | GT25: 66 | GU25: 66 | GV25: 66 | GW25: 67 | GX25: 67 | GY25: 67 | GZ25: 67 | HA25: 67 | HB25: 67 | HC25: 67 | HD25: 67 | HE25: 67 | HF25: 67 | HG25: 67 | HH25: 67 | HI25: 68 | HJ25: 68 | HK25: 68 | HL25: 68 | HM25: 68 | HN25: 68 | HO25: 68 | HP25: 68 | HQ25: 68 | HR25: 68 | HS25: 68 | HT25: 68 | HU25: 69 | HV25: 69 | HW25: 69 | HX25: 69 | HY25: 69 | HZ25: 69 | IA25: 69 | IB25: 69 | IC25: 69 | ID25: 69 | IE25: 69 | IF25: 69 | IG25: 70 | IH25: 70 | II25: 70 | IJ25: 70 | IK25: 70 | IL25: 70 | IM25: 70 | IN25: 70 | IO25: 70 | IP25: 70 | IQ25: 70 | IR25: 70 | IS25: 71 | IT25: 71 | IU25: 71 | IV25: 71 | IW25: 71 | IX25: 71 | IY25: 71 | IZ25: 71 | JA25: 71 | JB25: 71 | JC25: 71 | JD25: 71 | JE25: 72 | JF25: 72 | JG25: 72 | JH25: 72 | JI25: 72 | JJ25: 72 | JK25: 72 | JL25: 72 | JM25: 72 | JN25: 72 | JO25: 72 | JP25: 72 | JQ25: 73 | JR25: 73 | JS25: 73 | JT25: 73 | JU25: 73 | JV25: 73 | JW25: 73 | JX25: 73 | JY25: 73 | JZ25: 73 | KA25: 73 | KB25: 73 | KC25: 74 | KD25: 74 | KE25: 74 | KF25: 74 | KG25: 74 | KH25: 74 | KI25: 74 | KJ25: 74 | KK25: 74 | KL25: 74 | KM25: 74 | KN25: 74 | KO25: 75 | KP25: 75 | KQ25: 75 | KR25: 75 | KS25: 75 | KT25: 75 | KU25: 75 | KV25: 75 | KW25: 75 | KX25: 75 | KY25: 75 | KZ25: 75
A26: 51 | B26: 51 | C26: 51 | D26: 51 | E26: 51 | F26: 51 | G26: 51 | H26: 51 | I26: 51 | J26: 51 | K26: 51 | L26: 51 | M26: 52 | N26: 52 | O26: 52 | P26: 52 | Q26: 52 | R26: 52 | S26: 52 | T26: 52 | U26: 52 | V26: 52 | W26: 52 | X26: 52 | Y26: 53 | Z26: 53 | AA26: 53 | AB26: 53 | AC26: 53 | AD26: 53 | AE26: 53 | AF26: 53 | AG26: 53 | AH26: 53 | AI26: 53 | AJ26: 53 | AK26: 54 | AL26: 54 | AM26: 54 | AN26: 54 | AO26: 54 | AP26: 54 | AQ26: 54 | AR26: 54 | AS26: 54 | AT26: 54 | AU26: 54 | AV26: 54 | AW26: 55 | AX26: 55 | AY26: 55 | AZ26: 55 | BA26: 55 | BB26: 55 | BC26: 55 | BD26: 55 | BE26: 55 | BF26: 55 | BG26: 55 | BH26: 55 | BI26: 56 | BJ26: 56 | BK26: 56 | BL26: 56 | BM26: 56 | BN26: 56 | BO26: 56 | BP26: 56 | BQ26: 56 | BR26: 56 | BS26: 56 | BT26: 56 | BU26: 57 | BV26: 57 | BW26: 57 | BX26: 57 | BY26: 57 | BZ26: 57 | CA26: 57 | CB26: 57 | CC26: 57 | CD26: 57 | CE26: 57 | CF26: 57 | CG26: 58 | CH26: 58 | CI26: 58 | CJ26: 58 | CK26: 58 | CL26: 58 | CM26: 58 | CN26: 58 | CO26: 58 | CP26: 58 | CQ26: 58 | CR26: 58 | CS26: 59 | CT26: 59 | CU26: 59 | CV26: 59 | CW26: 59 | CX26: 59 | CY26: 59 | CZ26: 59 | DA26: 59 | DB26: 59 | DC26: 59 | DD26: 59 | DE26: 60 | DF26: 60 | DG26: 60 | DH26: 60 | DI26: 60 | DJ26: 60 | DK26: 60 | DL26: 60 | DM26: 60 | DN26: 60 | DO26: 60 | DP26: 60 | DQ26: 61 | DR26: 61 | DS26: 61 | DT26: 61 | DU26: 61 | DV26: 61 | DW26: 61 | DX26: 61 | DY26: 61 | DZ26: 61 | EA26: 61 | EB26: 61 | EC26: 62 | ED26: 62 | EE26: 62 | EF26: 62 | EG26: 62 | EH26: 62 | EI26: 62 | EJ26: 62 | EK26: 62 | EL26: 62 | EM26: 62 | EN26: 62 | EO26: 63 | EP26: 63 | EQ26: 63 | ER26: 63 | ES26: 63 | ET26: 63 | EU26: 63 | EV26: 63 | EW26: 63 | EX26: 63 | EY26: 63 | EZ26: 63 | FA26: 64 | FB26: 64 | FC26: 64 | FD26: 64 | FE26: 64 | FF26: 64 | FG26: 64 | FH26: 64 | FI26: 64 | FJ26: 64 | FK26: 64 | FL26: 64 | FM26: 65 | FN26: 65 | FO26: 65 | FP26: 65 | FQ26: 65 | FR26: 65 | FS26: 65 | FT26: 65 | FU26: 65 | FV26: 65 | FW26: 65 | FX26: 65 | FY26: 66 | FZ26: 66 | GA26: 66 | GB26: 66 | GC26: 66 | GD26: 66 | GE26: 66 | GF26: 66 | GG26: 66 | GH26: 66 | GI26: 66 | GJ26: 66 | GK26: 67 | GL26: 67 | GM26: 67 | GN26: 67 | GO26: 67 | GP26: 67 | GQ26: 67 | GR26: 67 | GS26: 67 | GT26: 67 | GU26: 67 | GV26: 67 | GW26: 68 | GX26: 68 | GY26: 68 | GZ26: 68 | HA26: 68 | HB26: 68 | HC26: 68 | HD26: 68 | HE26: 68 | HF26: 68 | HG26: 68 | HH26: 68 | HI26: 69 | HJ26: 69 | HK26: 69 | HL26: 69 | HM26: 69 | HN26: 69 | HO26: 69 | HP26: 69 | HQ26: 69 | HR26: 69 | HS26: 69 | HT26: 69 | HU26: 70 | HV26: 70 | HW26: 70 | HX26: 70 | HY26: 70 | HZ26: 70 | IA26: 70 | IB26: 70 | IC26: 70 | ID26: 70 | IE26: 70 | IF26: 70 | IG26: 71 | IH26: 71 | II26: 71 | IJ26: 71 | IK26: 71 | IL26: 71 | IM26: 71 | IN26: 71 | IO26: 71 | IP26: 71 | IQ26: 71 | IR26: 71 | IS26: 72 | IT26: 72 | IU26: 72 | IV26: 72 | IW26: 72 | IX26: 72 | IY26: 72 | IZ26: 72 | JA26: 72 | JB26: 72 | JC26: 72 | JD26: 72 | JE26: 73 | JF26: 73 | JG26: 73 | JH26: 73 | JI26: 73 | JJ26: 73 | JK26: 73 | JL26: 73 | JM26: 73 | JN26: 73 | JO26: 73 | JP26: 73 | JQ26: 74 | JR26: 74 | JS26: 74 | JT26: 74 | JU26: 74 | JV26: 74 | JW26: 74 | JX26: 74 | JY26: 74 | JZ26: 74 | KA26: 74 | KB26: 74 | KC26: 75 | KD26: 75 | KE26: 75 | KF26: 75 | KG26: 75 | KH26: 75 | KI26: 75 | KJ26: 75 | KK26: 75 | KL26: 75 | KM26: 75 | KN26: 75 | KO26: 76 | KP26: 76 | KQ26: 76 | KR26: 76 | KS26: 76 | KT26: 76 | KU26: 76 | KV26: 76 | KW26: 76 | KX26: 76 | KY26: 76 | KZ26: 76
A27: 52 | B27: 52 | C27: 52 | D27: 52 | E27: 52 | F27: 52 | G27: 52 | H27: 52 | I27: 52 | J27: 52 | K27: 52 | L27: 52 | M27: 53 | N27: 53 | O27: 53 | P27: 53 | Q27: 53 | R27: 53 | S27: 53 | T27: 53 | U27: 53 | V27: 53 | W27: 53 | X27: 53 | Y27: 54 | Z27: 54 | AA27: 54 | AB27: 54 | AC27: 54 | AD27: 54 | AE27: 54 | AF27: 54 | AG27: 54 | AH27: 54 | AI27: 54 | AJ27: 54 | AK27: 55 | AL27: 55 | AM27: 55 | AN27: 55 | AO27: 55 | AP27: 55 | AQ27: 55 | AR27: 55 | AS27: 55 | AT27: 55 | AU27: 55 | AV27: 55 | AW27: 56 | AX27: 56 | AY27: 56 | AZ27: 56 | BA27: 56 | BB27: 56 | BC27: 56 | BD27: 56 | BE27: 56 | BF27: 56 | BG27: 56 | BH27: 56 | BI27: 57 | BJ27: 57 | BK27: 57 | BL27: 57 | BM27: 57 | BN27: 57 | BO27: 57 | BP27: 57 | BQ27: 57 | BR27: 57 | BS27: 57 | BT27: 57 | BU27: 58 | BV27: 58 | BW27: 58 | BX27: 58 | BY27: 58 | BZ27: 58 | CA27: 58 | CB27: 58 | CC27: 58 | CD27: 58 | CE27: 58 | CF27: 58 | CG27: 59 | CH27: 59 | CI27: 59 | CJ27: 59 | CK27: 59 | CL27: 59 | CM27: 59 | CN27: 59 | CO27: 59 | CP27: 59 | CQ27: 59 | CR27: 59 | CS27: 60 | CT27: 60 | CU27: 60 | CV27: 60 | CW27: 60 | CX27: 60 | CY27: 60 | CZ27: 60 | DA27: 60 | DB27: 60 | DC27: 60 | DD27: 60 | DE27: 61 | DF27: 61 | DG27: 61 | DH27: 61 | DI27: 61 | DJ27: 61 | DK27: 61 | DL27: 61 | DM27: 61 | DN27: 61 | DO27: 61 | DP27: 61 | DQ27: 62 | DR27: 62 | DS27: 62 | DT27: 62 | DU27: 62 | DV27: 62 | DW27: 62 | DX27: 62 | DY27: 62 | DZ27: 62 | EA27: 62 | EB27: 62 | EC27: 63 | ED27: 63 | EE27: 63 | EF27: 63 | EG27: 63 | EH27: 63 | EI27: 63 | EJ27: 63 | EK27: 63 | EL27: 63 | EM27: 63 | EN27: 63 | EO27: 64 | EP27: 64 | EQ27: 64 | ER27: 64 | ES27: 64 | ET27: 64 | EU27: 64 | EV27: 64 | EW27: 64 | EX27: 64 | EY27: 64 | EZ27: 64 | FA27: 65 | FB27: 65 | FC27: 65 | FD27: 65 | FE27: 65 | FF27: 65 | FG27: 65 | FH27: 65 | FI27: 65 | FJ27: 65 | FK27: 65 | FL27: 65 | FM27: 66 | FN27: 66 | FO27: 66 | FP27: 66 | FQ27: 66 | FR27: 66 | FS27: 66 | FT27: 66 | FU27: 66 | FV27: 66 | FW27: 66 | FX27: 66 | FY27: 67 | FZ27: 67 | GA27: 67 | GB27: 67 | GC27: 67 | GD27: 67 | GE27: 67 | GF27: 67 | GG27: 67 | GH27: 67 | GI27: 67 | GJ27: 67 | GK27: 68 | GL27: 68 | GM27: 68 | GN27: 68 | GO27: 68 | GP27: 68 | GQ27: 68 | GR27: 68 | GS27: 68 | GT27: 68 | GU27: 68 | GV27: 68 | GW27: 69 | GX27: 69 | GY27: 69 | GZ27: 69 | HA27: 69 | HB27: 69 | HC27: 69 | HD27: 69 | HE27: 69 | HF27: 69 | HG27: 69 | HH27: 69 | HI27: 70 | HJ27: 70 | HK27: 70 | HL27: 70 | HM27: 70 | HN27: 70 | HO27: 70 | HP27: 70 | HQ27: 70 | HR27: 70 | HS27: 70 | HT27: 70 | HU27: 71 | HV27: 71 | HW27: 71 | HX27: 71 | HY27: 71 | HZ27: 71 | IA27: 71 | IB27: 71 | IC27: 71 | ID27: 71 | IE27: 71 | IF27: 71 | IG27: 72 | IH27: 72 | II27: 72 | IJ27: 72 | IK27: 72 | IL27: 72 | IM27: 72 | IN27: 72 | IO27: 72 | IP27: 72 | IQ27: 72 | IR27: 72 | IS27: 73 | IT27: 73 | IU27: 73 | IV27: 73 | IW27: 73 | IX27: 73 | IY27: 73 | IZ27: 73 | JA27: 73 | JB27: 73 | JC27: 73 | JD27: 73 | JE27: 74 | JF27: 74 | JG27: 74 | JH27: 74 | JI27: 74 | JJ27: 74 | JK27: 74 | JL27: 74 | JM27: 74 | JN27: 74 | JO27: 74 | JP27: 74 | JQ27: 75 | JR27: 75 | JS27: 75 | JT27: 75 | JU27: 75 | JV27: 75 | JW27: 75 | JX27: 75 | JY27: 75 | JZ27: 75 | KA27: 75 | KB27: 75 | KC27: 76 | KD27: 76 | KE27: 76 | KF27: 76 | KG27: 76 | KH27: 76 | KI27: 76 | KJ27: 76 | KK27: 76 | KL27: 76 | KM27: 76 | KN27: 76 | KO27: 77 | KP27: 77 | KQ27: 77 | KR27: 77 | KS27: 77 | KT27: 77 | KU27: 77 | KV27: 77 | KW27: 77 | KX27: 77 | KY27: 77 | KZ27: 77
A28: 53 | B28: 53 | C28: 53 | D28: 53 | E28: 53 | F28: 53 | G28: 53 | H28: 53 | I28: 53 | J28: 53 | K28: 53 | L28: 53 | M28: 54 | N28: 54 | O28: 54 | P28: 54 | Q28: 54 | R28: 54 | S28: 54 | T28: 54 | U28: 54 | V28: 54 | W28: 54 | X28: 54 | Y28: 55 | Z28: 55 | AA28: 55 | AB28: 55 | AC28: 55 | AD28: 55 | AE28: 55 | AF28: 55 | AG28: 55 | AH28: 55 | AI28: 55 | AJ28: 55 | AK28: 56 | AL28: 56 | AM28: 56 | AN28: 56 | AO28: 56 | AP28: 56 | AQ28: 56 | AR28: 56 | AS28: 56 | AT28: 56 | AU28: 56 | AV28: 56 | AW28: 57 | AX28: 57 | AY28: 57 | AZ28: 57 | BA28: 57 | BB28: 57 | BC28: 57 | BD28: 57 | BE28: 57 | BF28: 57 | BG28: 57 | BH28: 57 | BI28: 58 | BJ28: 58 | BK28: 58 | BL28: 58 | BM28: 58 | BN28: 58 | BO28: 58 | BP28: 58 | BQ28: 58 | BR28: 58 | BS28: 58 | BT28: 58 | BU28: 59 | BV28: 59 | BW28: 59 | BX28: 59 | BY28: 59 | BZ28: 59 | CA28: 59 | CB28: 59 | CC28: 59 | CD28: 59 | CE28: 59 | CF28: 59 | CG28: 60 | CH28: 60 | CI28: 60 | CJ28: 60 | CK28: 60 | CL28: 60 | CM28: 60 | CN28: 60 | CO28: 60 | CP28: 60 | CQ28: 60 | CR28: 60 | CS28: 61 | CT28: 61 | CU28: 61 | CV28: 61 | CW28: 61 | CX28: 61 | CY28: 61 | CZ28: 61 | DA28: 61 | DB28: 61 | DC28: 61 | DD28: 61 | DE28: 62 | DF28: 62 | DG28: 62 | DH28: 62 | DI28: 62 | DJ28: 62 | DK28: 62 | DL28: 62 | DM28: 62 | DN28: 62 | DO28: 62 | DP28: 62 | DQ28: 63 | DR28: 63 | DS28: 63 | DT28: 63 | DU28: 63 | DV28: 63 | DW28: 63 | DX28: 63 | DY28: 63 | DZ28: 63 | EA28: 63 | EB28: 63 | EC28: 64 | ED28: 64 | EE28: 64 | EF28: 64 | EG28: 64 | EH28: 64 | EI28: 64 | EJ28: 64 | EK28: 64 | EL28: 64 | EM28: 64 | EN28: 64 | EO28: 65 | EP28: 65 | EQ28: 65 | ER28: 65 | ES28: 65 | ET28: 65 | EU28: 65 | EV28: 65 | EW28: 65 | EX28: 65 | EY28: 65 | EZ28: 65 | FA28: 66 | FB28: 66 | FC28: 66 | FD28: 66 | FE28: 66 | FF28: 66 | FG28: 66 | FH28: 66 | FI28: 66 | FJ28: 66 | FK28: 66 | FL28: 66 | FM28: 67 | FN28: 67 | FO28: 67 | FP28: 67 | FQ28: 67 | FR28: 67 | FS28: 67 | FT28: 67 | FU28: 67 | FV28: 67 | FW28: 67 | FX28: 67 | FY28: 68 | FZ28: 68 | GA28: 68 | GB28: 68 | GC28: 68 | GD28: 68 | GE28: 68 | GF28: 68 | GG28: 68 | GH28: 68 | GI28: 68 | GJ28: 68 | GK28: 69 | GL28: 69 | GM28: 69 | GN28: 69 | GO28: 69 | GP28: 69 | GQ28: 69 | GR28: 69 | GS28: 69 | GT28: 69 | GU28: 69 | GV28: 69 | GW28: 70 | GX28: 70 | GY28: 70 | GZ28: 70 | HA28: 70 | HB28: 70 | HC28: 70 | HD28: 70 | HE28: 70 | HF28: 70 | HG28: 70 | HH28: 70 | HI28: 71 | HJ28: 71 | HK28: 71 | HL28: 71 | HM28: 71 | HN28: 71 | HO28: 71 | HP28: 71 | HQ28: 71 | HR28: 71 | HS28: 71 | HT28: 71 | HU28: 72 | HV28: 72 | HW28: 72 | HX28: 72 | HY28: 72 | HZ28: 72 | IA28: 72 | IB28: 72 | IC28: 72 | ID28: 72 | IE28: 72 | IF28: 72 | IG28: 73 | IH28: 73 | II28: 73 | IJ28: 73 | IK28: 73 | IL28: 73 | IM28: 73 | IN28: 73 | IO28: 73 | IP28: 73 | IQ28: 73 | IR28: 73 | IS28: 74 | IT28: 74 | IU28: 74 | IV28: 74 | IW28: 74 | IX28: 74 | IY28: 74 | IZ28: 74 | JA28: 74 | JB28: 74 | JC28: 74 | JD28: 74 | JE28: 75 | JF28: 75 | JG28: 75 | JH28: 75 | JI28: 75 | JJ28: 75 | JK28: 75 | JL28: 75 | JM28: 75 | JN28: 75 | JO28: 75 | JP28: 75 | JQ28: 76 | JR28: 76 | JS28: 76 | JT28: 76 | JU28: 76 | JV28: 76 | JW28: 76 | JX28: 76 | JY28: 76 | JZ28: 76 | KA28: 76 | KB28: 76 | KC28: 77 | KD28: 77 | KE28: 77 | KF28: 77 | KG28: 77 | KH28: 77 | KI28: 77 | KJ28: 77 | KK28: 77 | KL28: 77 | KM28: 77 | KN28: 77 | KO28: 78 | KP28: 78 | KQ28: 78 | KR28: 78 | KS28: 78 | KT28: 78 | KU28: 78 | KV28: 78 | KW28: 78 | KX28: 78 | KY28: 78 | KZ28: 78
A29: 54 | B29: 54 | C29: 54 | D29: 54 | E29: 54 | F29: 54 | G29: 54 | H29: 54 | I29: 54 | J29: 54 | K29: 54 | L29: 54 | M29: 55 | N29: 55 | O29: 55 | P29: 55 | Q29: 55 | R29: 55 | S29: 55 | T29: 55 | U29: 55 | V29: 55 | W29: 55 | X29: 55 | Y29: 56 | Z29: 56 | AA29: 56 | AB29: 56 | AC29: 56 | AD29: 56 | AE29: 56 | AF29: 56 | AG29: 56 | AH29: 56 | AI29: 56 | AJ29: 56 | AK29: 57 | AL29: 57 | AM29: 57 | AN29: 57 | AO29: 57 | AP29: 57 | AQ29: 57 | AR29: 57 | AS29: 57 | AT29: 57 | AU29: 57 | AV29: 57 | AW29: 58 | AX29: 58 | AY29: 58 | AZ29: 58 | BA29: 58 | BB29: 58 | BC29: 58 | BD29: 58 | BE29: 58 | BF29: 58 | BG29: 58 | BH29: 58 | BI29: 59 | BJ29: 59 | BK29: 59 | BL29: 59 | BM29: 59 | BN29: 59 | BO29: 59 | BP29: 59 | BQ29: 59 | BR29: 59 | BS29: 59 | BT29: 59 | BU29: 60 | BV29: 60 | BW29: 60 | BX29: 60 | BY29: 60 | BZ29: 60 | CA29: 60 | CB29: 60 | CC29: 60 | CD29: 60 | CE29: 60 | CF29: 60 | CG29: 61 | CH29: 61 | CI29: 61 | CJ29: 61 | CK29: 61 | CL29: 61 | CM29: 61 | CN29: 61 | CO29: 61 | CP29: 61 | CQ29: 61 | CR29: 61 | CS29: 62 | CT29: 62 | CU29: 62 | CV29: 62 | CW29: 62 | CX29: 62 | CY29: 62 | CZ29: 62 | DA29: 62 | DB29: 62 | DC29: 62 | DD29: 62 | DE29: 63 | DF29: 63 | DG29: 63 | DH29: 63 | DI29: 63 | DJ29: 63 | DK29: 63 | DL29: 63 | DM29: 63 | DN29: 63 | DO29: 63 | DP29: 63 | DQ29: 64 | DR29: 64 | DS29: 64 | DT29: 64 | DU29: 64 | DV29: 64 | DW29: 64 | DX29: 64 | DY29: 64 | DZ29: 64 | EA29: 64 | EB29: 64 | EC29: 65 | ED29: 65 | EE29: 65 | EF29: 65 | EG29: 65 | EH29: 65 | EI29: 65 | EJ29: 65 | EK29: 65 | EL29: 65 | EM29: 65 | EN29: 65 | EO29: 66 | EP29: 66 | EQ29: 66 | ER29: 66 | ES29: 66 | ET29: 66 | EU29: 66 | EV29: 66 | EW29: 66 | EX29: 66 | EY29: 66 | EZ29: 66 | FA29: 67 | FB29: 67 | FC29: 67 | FD29: 67 | FE29: 67 | FF29: 67 | FG29: 67 | FH29: 67 | FI29: 67 | FJ29: 67 | FK29: 67 | FL29: 67 | FM29: 68 | FN29: 68 | FO29: 68 | FP29: 68 | FQ29: 68 | FR29: 68 | FS29: 68 | FT29: 68 | FU29: 68 | FV29: 68 | FW29: 68 | FX29: 68 | FY29: 69 | FZ29: 69 | GA29: 69 | GB29: 69 | GC29: 69 | GD29: 69 | GE29: 69 | GF29: 69 | GG29: 69 | GH29: 69 | GI29: 69 | GJ29: 69 | GK29: 70 | GL29: 70 | GM29: 70 | GN29: 70 | GO29: 70 | GP29: 70 | GQ29: 70 | GR29: 70 | GS29: 70 | GT29: 70 | GU29: 70 | GV29: 70 | GW29: 71 | GX29: 71 | GY29: 71 | GZ29: 71 | HA29: 71 | HB29: 71 | HC29: 71 | HD29: 71 | HE29: 71 | HF29: 71 | HG29: 71 | HH29: 71 | HI29: 72 | HJ29: 72 | HK29: 72 | HL29: 72 | HM29: 72 | HN29: 72 | HO29: 72 | HP29: 72 | HQ29: 72 | HR29: 72 | HS29: 72 | HT29: 72 | HU29: 73 | HV29: 73 | HW29: 73 | HX29: 73 | HY29: 73 | HZ29: 73 | IA29: 73 | IB29: 73 | IC29: 73 | ID29: 73 | IE29: 73 | IF29: 73 | IG29: 74 | IH29: 74 | II29: 74 | IJ29: 74 | IK29: 74 | IL29: 74 | IM29: 74 | IN29: 74 | IO29: 74 | IP29: 74 | IQ29: 74 | IR29: 74 | IS29: 75 | IT29: 75 | IU29: 75 | IV29: 75 | IW29: 75 | IX29: 75 | IY29: 75 | IZ29: 75 | JA29: 75 | JB29: 75 | JC29: 75 | JD29: 75 | JE29: 76 | JF29: 76 | JG29: 76 | JH29: 76 | JI29: 76 | JJ29: 76 | JK29: 76 | JL29: 76 | JM29: 76 | JN29: 76 | JO29: 76 | JP29: 76 | JQ29: 77 | JR29: 77 | JS29: 77 | JT29: 77 | JU29: 77 | JV29: 77 | JW29: 77 | JX29: 77 | JY29: 77 | JZ29: 77 | KA29: 77 | KB29: 77 | KC29: 78 | KD29: 78 | KE29: 78 | KF29: 78 | KG29: 78 | KH29: 78 | KI29: 78 | KJ29: 78 | KK29: 78 | KL29: 78 | KM29: 78 | KN29: 78 | KO29: 79 | KP29: 79 | KQ29: 79 | KR29: 79 | KS29: 79 | KT29: 79 | KU29: 79 | KV29: 79 | KW29: 79 | KX29: 79 | KY29: 79 | KZ29: 79
A30: 55 | B30: 55 | C30: 55 | D30: 55 | E30: 55 | F30: 55 | G30: 55 | H30: 55 | I30: 55 | J30: 55 | K30: 55 | L30: 55 | M30: 56 | N30: 56 | O30: 56 | P30: 56 | Q30: 56 | R30: 56 | S30: 56 | T30: 56 | U30: 56 | V30: 56 | W30: 56 | X30: 56 | Y30: 57 | Z30: 57 | AA30: 57 | AB30: 57 | AC30: 57 | AD30: 57 | AE30: 57 | AF30: 57 | AG30: 57 | AH30: 57 | AI30: 57 | AJ30: 57 | AK30: 58 | AL30: 58 | AM30: 58 | AN30: 58 | AO30: 58 | AP30: 58 | AQ30: 58 | AR30: 58 | AS30: 58 | AT30: 58 | AU30: 58 | AV30: 58 | AW30: 59 | AX30: 59 | AY30: 59 | AZ30: 59 | BA30: 59 | BB30: 59 | BC30: 59 | BD30: 59 | BE30: 59 | BF30: 59 | BG30: 59 | BH30: 59 | BI30: 60 | BJ30: 60 | BK30: 60 | BL30: 60 | BM30: 60 | BN30: 60 | BO30: 60 | BP30: 60 | BQ30: 60 | BR30: 60 | BS30: 60 | BT30: 60 | BU30: 61 | BV30: 61 | BW30: 61 | BX30: 61 | BY30: 61 | BZ30: 61 | CA30: 61 | CB30: 61 | CC30: 61 | CD30: 61 | CE30: 61 | CF30: 61 | CG30: 62 | CH30: 62 | CI30: 62 | CJ30: 62 | CK30: 62 | CL30: 62 | CM30: 62 | CN30: 62 | CO30: 62 | CP30: 62 | CQ30: 62 | CR30: 62 | CS30: 63 | CT30: 63 | CU30: 63 | CV30: 63 | CW30: 63 | CX30: 63 | CY30: 63 | CZ30: 63 | DA30: 63 | DB30: 63 | DC30: 63 | DD30: 63 | DE30: 64 | DF30: 64 | DG30: 64 | DH30: 64 | DI30: 64 | DJ30: 64 | DK30: 64 | DL30: 64 | DM30: 64 | DN30: 64 | DO30: 64 | DP30: 64 | DQ30: 65 | DR30: 65 | DS30: 65 | DT30: 65 | DU30: 65 | DV30: 65 | DW30: 65 | DX30: 65 | DY30: 65 | DZ30: 65 | EA30: 65 | EB30: 65 | EC30: 66 | ED30: 66 | EE30: 66 | EF30: 66 | EG30: 66 | EH30: 66 | EI30: 66 | EJ30: 66 | EK30: 66 | EL30: 66 | EM30: 66 | EN30: 66 | EO30: 67 | EP30: 67 | EQ30: 67 | ER30: 67 | ES30: 67 | ET30: 67 | EU30: 67 | EV30: 67 | EW30: 67 | EX30: 67 | EY30: 67 | EZ30: 67 | FA30: 68 | FB30: 68 | FC30: 68 | FD30: 68 | FE30: 68 | FF30: 68 | FG30: 68 | FH30: 68 | FI30: 68 | FJ30: 68 | FK30: 68 | FL30: 68 | FM30: 69 | FN30: 69 | FO30: 69 | FP30: 69 | FQ30: 69 | FR30: 69 | FS30: 69 | FT30: 69 | FU30: 69 | FV30: 69 | FW30: 69 | FX30: 69 | FY30: 70 | FZ30: 70 | GA30: 70 | GB30: 70 | GC30: 70 | GD30: 70 | GE30: 70 | GF30: 70 | GG30: 70 | GH30: 70 | GI30: 70 | GJ30: 70 | GK30: 71 | GL30: 71 | GM30: 71 | GN30: 71 | GO30: 71 | GP30: 71 | GQ30: 71 | GR30: 71 | GS30: 71 | GT30: 71 | GU30: 71 | GV30: 71 | GW30: 72 | GX30: 72 | GY30: 72 | GZ30: 72 | HA30: 72 | HB30: 72 | HC30: 72 | HD30: 72 | HE30: 72 | HF30: 72 | HG30: 72 | HH30: 72 | HI30: 73 | HJ30: 73 | HK30: 73 | HL30: 73 | HM30: 73 | HN30: 73 | HO30: 73 | HP30: 73 | HQ30: 73 | HR30: 73 | HS30: 73 | HT30: 73 | HU30: 74 | HV30: 74 | HW30: 74 | HX30: 74 | HY30: 74 | HZ30: 74 | IA30: 74 | IB30: 74 | IC30: 74 | ID30: 74 | IE30: 74 | IF30: 74 | IG30: 75 | IH30: 75 | II30: 75 | IJ30: 75 | IK30: 75 | IL30: 75 | IM30: 75 | IN30: 75 | IO30: 75 | IP30: 75 | IQ30: 75 | IR30: 75 | IS30: 76 | IT30: 76 | IU30: 76 | IV30: 76 | IW30: 76 | IX30: 76 | IY30: 76 | IZ30: 76 | JA30: 76 | JB30: 76 | JC30: 76 | JD30: 76 | JE30: 77 | JF30: 77 | JG30: 77 | JH30: 77 | JI30: 77 | JJ30: 77 | JK30: 77 | JL30: 77 | JM30: 77 | JN30: 77 | JO30: 77 | JP30: 77 | JQ30: 78 | JR30: 78 | JS30: 78 | JT30: 78 | JU30: 78 | JV30: 78 | JW30: 78 | JX30: 78 | JY30: 78 | JZ30: 78 | KA30: 78 | KB30: 78 | KC30: 79 | KD30: 79 | KE30: 79 | KF30: 79 | KG30: 79 | KH30: 79 | KI30: 79 | KJ30: 79 | KK30: 79 | KL30: 79 | KM30: 79 | KN30: 79 | KO30: 80 | KP30: 80 | KQ30: 80 | KR30: 80 | KS30: 80 | KT30: 80 | KU30: 80 | KV30: 80 | KW30: 80 | KX30: 80 | KY30: 80 | KZ30: 80
A31: 56 | B31: 56 | C31: 56 | D31: 56 | E31: 56 | F31: 56 | G31: 56 | H31: 56 | I31: 56 | J31: 56 | K31: 56 | L31: 56 | M31: 57 | N31: 57 | O31: 57 | P31: 57 | Q31: 57 | R31: 57 | S31: 57 | T31: 57 | U31: 57 | V31: 57 | W31: 57 | X31: 57 | Y31: 58 | Z31: 58 | AA31: 58 | AB31: 58 | AC31: 58 | AD31: 58 | AE31: 58 | AF31: 58 | AG31: 58 | AH31: 58 | AI31: 58 | AJ31: 58 | AK31: 59 | AL31: 59 | AM31: 59 | AN31: 59 | AO31: 59 | AP31: 59 | AQ31: 59 | AR31: 59 | AS31: 59 | AT31: 59 | AU31: 59 | AV31: 59 | AW31: 60 | AX31: 60 | AY31: 60 | AZ31: 60 | BA31: 60 | BB31: 60 | BC31: 60 | BD31: 60 | BE31: 60 | BF31: 60 | BG31: 60 | BH31: 60 | BI31: 61 | BJ31: 61 | BK31: 61 | BL31: 61 | BM31: 61 | BN31: 61 | BO31: 61 | BP31: 61 | BQ31: 61 | BR31: 61 | BS31: 61 | BT31: 61 | BU31: 62 | BV31: 62 | BW31: 62 | BX31: 62 | BY31: 62 | BZ31: 62 | CA31: 62 | CB31: 62 | CC31: 62 | CD31: 62 | CE31: 62 | CF31: 62 | CG31: 63 | CH31: 63 | CI31: 63 | CJ31: 63 | CK31: 63 | CL31: 63 | CM31: 63 | CN31: 63 | CO31: 63 | CP31: 63 | CQ31: 63 | CR31: 63 | CS31: 64 | CT31: 64 | CU31: 64 | CV31: 64 | CW31: 64 | CX31: 64 | CY31: 64 | CZ31: 64 | DA31: 64 | DB31: 64 | DC31: 64 | DD31: 64 | DE31: 65 | DF31: 65 | DG31: 65 | DH31: 65 | DI31: 65 | DJ31: 65 | DK31: 65 | DL31: 65 | DM31: 65 | DN31: 65 | DO31: 65 | DP31: 65 | DQ31: 66 | DR31: 66 | DS31: 66 | DT31: 66 | DU31: 66 | DV31: 66 | DW31: 66 | DX31: 66 | DY31: 66 | DZ31: 66 | EA31: 66 | EB31: 66 | EC31: 67 | ED31: 67 | EE31: 67 | EF31: 67 | EG31: 67 | EH31: 67 | EI31: 67 | EJ31: 67 | EK31: 67 | EL31: 67 | EM31: 67 | EN31: 67 | EO31: 68 | EP31: 68 | EQ31: 68 | ER31: 68 | ES31: 68 | ET31: 68 | EU31: 68 | EV31: 68 | EW31: 68 | EX31: 68 | EY31: 68 | EZ31: 68 | FA31: 69 | FB31: 69 | FC31: 69 | FD31: 69 | FE31: 69 | FF31: 69 | FG31: 69 | FH31: 69 | FI31: 69 | FJ31: 69 | FK31: 69 | FL31: 69 | FM31: 70 | FN31: 70 | FO31: 70 | FP31: 70 | FQ31: 70 | FR31: 70 | FS31: 70 | FT31: 70 | FU31: 70 | FV31: 70 | FW31: 70 | FX31: 70 | FY31: 71 | FZ31: 71 | GA31: 71 | GB31: 71 | GC31: 71 | GD31: 71 | GE31: 71 | GF31: 71 | GG31: 71 | GH31: 71 | GI31: 71 | GJ31: 71 | GK31: 72 | GL31: 72 | GM31: 72 | GN31: 72 | GO31: 72 | GP31: 72 | GQ31: 72 | GR31: 72 | GS31: 72 | GT31: 72 | GU31: 72 | GV31: 72 | GW31: 73 | GX31: 73 | GY31: 73 | GZ31: 73 | HA31: 73 | HB31: 73 | HC31: 73 | HD31: 73 | HE31: 73 | HF31: 73 | HG31: 73 | HH31: 73 | HI31: 74 | HJ31: 74 | HK31: 74 | HL31: 74 | HM31: 74 | HN31: 74 | HO31: 74 | HP31: 74 | HQ31: 74 | HR31: 74 | HS31: 74 | HT31: 74 | HU31: 75 | HV31: 75 | HW31: 75 | HX31: 75 | HY31: 75 | HZ31: 75 | IA31: 75 | IB31: 75 | IC31: 75 | ID31: 75 | IE31: 75 | IF31: 75 | IG31: 76 | IH31: 76 | II31: 76 | IJ31: 76 | IK31: 76 | IL31: 76 | IM31: 76 | IN31: 76 | IO31: 76 | IP31: 76 | IQ31: 76 | IR31: 76 | IS31: 77 | IT31: 77 | IU31: 77 | IV31: 77 | IW31: 77 | IX31: 77 | IY31: 77 | IZ31: 77 | JA31: 77 | JB31: 77 | JC31: 77 | JD31: 77 | JE31: 78 | JF31: 78 | JG31: 78 | JH31: 78 | JI31: 78 | JJ31: 78 | JK31: 78 | JL31: 78 | JM31: 78 | JN31: 78 | JO31: 78 | JP31: 78 | JQ31: 79 | JR31: 79 | JS31: 79 | JT31: 79 | JU31: 79 | JV31: 79 | JW31: 79 | JX31: 79 | JY31: 79 | JZ31: 79 | KA31: 79 | KB31: 79 | KC31: 80 | KD31: 80 | KE31: 80 | KF31: 80 | KG31: 80 | KH31: 80 | KI31: 80 | KJ31: 80 | KK31: 80 | KL31: 80 | KM31: 80 | KN31: 80 | KO31: 81 | KP31: 81 | KQ31: 81 | KR31: 81 | KS31: 81 | KT31: 81 | KU31: 81 | KV31: 81 | KW31: 81 | KX31: 81 | KY31: 81 | KZ31: 81
A32: 57 | B32: 57 | C32: 57 | D32: 57 | E32: 57 | F32: 57 | G32: 57 | H32: 57 | I32: 57 | J32: 57 | K32: 57 | L32: 57 | M32: 58 | N32: 58 | O32: 58 | P32: 58 | Q32: 58 | R32: 58 | S32: 58 | T32: 58 | U32: 58 | V32: 58 | W32: 58 | X32: 58 | Y32: 59 | Z32: 59 | AA32: 59 | AB32: 59 | AC32: 59 | AD32: 59 | AE32: 59 | AF32: 59 | AG32: 59 | AH32: 59 | AI32: 59 | AJ32: 59 | AK32: 60 | AL32: 60 | AM32: 60 | AN32: 60 | AO32: 60 | AP32: 60 | AQ32: 60 | AR32: 60 | AS32: 60 | AT32: 60 | AU32: 60 | AV32: 60 | AW32: 61 | AX32: 61 | AY32: 61 | AZ32: 61 | BA32: 61 | BB32: 61 | BC32: 61 | BD32: 61 | BE32: 61 | BF32: 61 | BG32: 61 | BH32: 61 | BI32: 62 | BJ32: 62 | BK32: 62 | BL32: 62 | BM32: 62 | BN32: 62 | BO32: 62 | BP32: 62 | BQ32: 62 | BR32: 62 | BS32: 62 | BT32: 62 | BU32: 63 | BV32: 63 | BW32: 63 | BX32: 63 | BY32: 63 | BZ32: 63 | CA32: 63 | CB32: 63 | CC32: 63 | CD32: 63 | CE32: 63 | CF32: 63 | CG32: 64 | CH32: 64 | CI32: 64 | CJ32: 64 | CK32: 64 | CL32: 64 | CM32: 64 | CN32: 64 | CO32: 64 | CP32: 64 | CQ32: 64 | CR32: 64 | CS32: 65 | CT32: 65 | CU32: 65 | CV32: 65 | CW32: 65 | CX32: 65 | CY32: 65 | CZ32: 65 | DA32: 65 | DB32: 65 | DC32: 65 | DD32: 65 | DE32: 66 | DF32: 66 | DG32: 66 | DH32: 66 | DI32: 66 | DJ32: 66 | DK32: 66 | DL32: 66 | DM32: 66 | DN32: 66 | DO32: 66 | DP32: 66 | DQ32: 67 | DR32: 67 | DS32: 67 | DT32: 67 | DU32: 67 | DV32: 67 | DW32: 67 | DX32: 67 | DY32: 67 | DZ32: 67 | EA32: 67 | EB32: 67 | EC32: 68 | ED32: 68 | EE32: 68 | EF32: 68 | EG32: 68 | EH32: 68 | EI32: 68 | EJ32: 68 | EK32: 68 | EL32: 68 | EM32: 68 | EN32: 68 | EO32: 69 | EP32: 69 | EQ32: 69 | ER32: 69 | ES32: 69 | ET32: 69 | EU32: 69 | EV32: 69 | EW32: 69 | EX32: 69 | EY32: 69 | EZ32: 69 | FA32: 70 | FB32: 70 | FC32: 70 | FD32: 70 | FE32: 70 | FF32: 70 | FG32: 70 | FH32: 70 | FI32: 70 | FJ32: 70 | FK32: 70 | FL32: 70 | FM32: 71 | FN32: 71 | FO32: 71 | FP32: 71 | FQ32: 71 | FR32: 71 | FS32: 71 | FT32: 71 | FU32: 71 | FV32: 71 | FW32: 71 | FX32: 71 | FY32: 72 | FZ32: 72 | GA32: 72 | GB32: 72 | GC32: 72 | GD32: 72 | GE32: 72 | GF32: 72 | GG32: 72 | GH32: 72 | GI32: 72 | GJ32: 72 | GK32: 73 | GL32: 73 | GM32: 73 | GN32: 73 | GO32: 73 | GP32: 73 | GQ32: 73 | GR32: 73 | GS32: 73 | GT32: 73 | GU32: 73 | GV32: 73 | GW32: 74 | GX32: 74 | GY32: 74 | GZ32: 74 | HA32: 74 | HB32: 74 | HC32: 74 | HD32: 74 | HE32: 74 | HF32: 74 | HG32: 74 | HH32: 74 | HI32: 75 | HJ32: 75 | HK32: 75 | HL32: 75 | HM32: 75 | HN32: 75 | HO32: 75 | HP32: 75 | HQ32: 75 | HR32: 75 | HS32: 75 | HT32: 75 | HU32: 76 | HV32: 76 | HW32: 76 | HX32: 76 | HY32: 76 | HZ32: 76 | IA32: 76 | IB32: 76 | IC32: 76 | ID32: 76 | IE32: 76 | IF32: 76 | IG32: 77 | IH32: 77 | II32: 77 | IJ32: 77 | IK32: 77 | IL32: 77 | IM32: 77 | IN32: 77 | IO32: 77 | IP32: 77 | IQ32: 77 | IR32: 77 | IS32: 78 | IT32: 78 | IU32: 78 | IV32: 78 | IW32: 78 | IX32: 78 | IY32: 78 | IZ32: 78 | JA32: 78 | JB32: 78 | JC32: 78 | JD32: 78 | JE32: 79 | JF32: 79 | JG32: 79 | JH32: 79 | JI32: 79 | JJ32: 79 | JK32: 79 | JL32: 79 | JM32: 79 | JN32: 79 | JO32: 79 | JP32: 79 | JQ32: 80 | JR32: 80 | JS32: 80 | JT32: 80 | JU32: 80 | JV32: 80 | JW32: 80 | JX32: 80 | JY32: 80 | JZ32: 80 | KA32: 80 | KB32: 80 | KC32: 81 | KD32: 81 | KE32: 81 | KF32: 81 | KG32: 81 | KH32: 81 | KI32: 81 | KJ32: 81 | KK32: 81 | KL32: 81 | KM32: 81 | KN32: 81 | KO32: 82 | KP32: 82 | KQ32: 82 | KR32: 82 | KS32: 82 | KT32: 82 | KU32: 82 | KV32: 82 | KW32: 82 | KX32: 82 | KY32: 82 | KZ32: 82
A33: 58 | B33: 58 | C33: 58 | D33: 58 | E33: 58 | F33: 58 | G33: 58 | H33: 58 | I33: 58 | J33: 58 | K33: 58 | L33: 58 | M33: 59 | N33: 59 | O33: 59 | P33: 59 | Q33: 59 | R33: 59 | S33: 59 | T33: 59 | U33: 59 | V33: 59 | W33: 59 | X33: 59 | Y33: 60 | Z33: 60 | AA33: 60 | AB33: 60 | AC33: 60 | AD33: 60 | AE33: 60 | AF33: 60 | AG33: 60 | AH33: 60 | AI33: 60 | AJ33: 60 | AK33: 61 | AL33: 61 | AM33: 61 | AN33: 61 | AO33: 61 | AP33: 61 | AQ33: 61 | AR33: 61 | AS33: 61 | AT33: 61 | AU33: 61 | AV33: 61 | AW33: 62 | AX33: 62 | AY33: 62 | AZ33: 62 | BA33: 62 | BB33: 62 | BC33: 62 | BD33: 62 | BE33: 62 | BF33: 62 | BG33: 62 | BH33: 62 | BI33: 63 | BJ33: 63 | BK33: 63 | BL33: 63 | BM33: 63 | BN33: 63 | BO33: 63 | BP33: 63 | BQ33: 63 | BR33: 63 | BS33: 63 | BT33: 63 | BU33: 64 | BV33: 64 | BW33: 64 | BX33: 64 | BY33: 64 | BZ33: 64 | CA33: 64 | CB33: 64 | CC33: 64 | CD33: 64 | CE33: 64 | CF33: 64 | CG33: 65 | CH33: 65 | CI33: 65 | CJ33: 65 | CK33: 65 | CL33: 65 | CM33: 65 | CN33: 65 | CO33: 65 | CP33: 65 | CQ33: 65 | CR33: 65 | CS33: 66 | CT33: 66 | CU33: 66 | CV33: 66 | CW33: 66 | CX33: 66 | CY33: 66 | CZ33: 66 | DA33: 66 | DB33: 66 | DC33: 66 | DD33: 66 | DE33: 67 | DF33: 67 | DG33: 67 | DH33: 67 | DI33: 67 | DJ33: 67 | DK33: 67 | DL33: 67 | DM33: 67 | DN33: 67 | DO33: 67 | DP33: 67 | DQ33: 68 | DR33: 68 | DS33: 68 | DT33: 68 | DU33: 68 | DV33: 68 | DW33: 68 | DX33: 68 | DY33: 68 | DZ33: 68 | EA33: 68 | EB33: 68 | EC33: 69 | ED33: 69 | EE33: 69 | EF33: 69 | EG33: 69 | EH33: 69 | EI33: 69 | EJ33: 69 | EK33: 69 | EL33: 69 | EM33: 69 | EN33: 69 | EO33: 70 | EP33: 70 | EQ33: 70 | ER33: 70 | ES33: 70 | ET33: 70 | EU33: 70 | EV33: 70 | EW33: 70 | EX33: 70 | EY33: 70 | EZ33: 70 | FA33: 71 | FB33: 71 | FC33: 71 | FD33: 71 | FE33: 71 | FF33: 71 | FG33: 71 | FH33: 71 | FI33: 71 | FJ33: 71 | FK33: 71 | FL33: 71 | FM33: 72 | FN33: 72 | FO33: 72 | FP33: 72 | FQ33: 72 | FR33: 72 | FS33: 72 | FT33: 72 | FU33: 72 | FV33: 72 | FW33: 72 | FX33: 72 | FY33: 73 | FZ33: 73 | GA33: 73 | GB33: 73 | GC33: 73 | GD33: 73 | GE33: 73 | GF33: 73 | GG33: 73 | GH33: 73 | GI33: 73 | GJ33: 73 | GK33: 74 | GL33: 74 | GM33: 74 | GN33: 74 | GO33: 74 | GP33: 74 | GQ33: 74 | GR33: 74 | GS33: 74 | GT33: 74 | GU33: 74 | GV33: 74 | GW33: 75 | GX33: 75 | GY33: 75 | GZ33: 75 | HA33: 75 | HB33: 75 | HC33: 75 | HD33: 75 | HE33: 75 | HF33: 75 | HG33: 75 | HH33: 75 | HI33: 76 | HJ33: 76 | HK33: 76 | HL33: 76 | HM33: 76 | HN33: 76 | HO33: 76 | HP33: 76 | HQ33: 76 | HR33: 76 | HS33: 76 | HT33: 76 | HU33: 77 | HV33: 77 | HW33: 77 | HX33: 77 | HY33: 77 | HZ33: 77 | IA33: 77 | IB33: 77 | IC33: 77 | ID33: 77 | IE33: 77 | IF33: 77 | IG33: 78 | IH33: 78 | II33: 78 | IJ33: 78 | IK33: 78 | IL33: 78 | IM33: 78 | IN33: 78 | IO33: 78 | IP33: 78 | IQ33: 78 | IR33: 78 | IS33: 79 | IT33: 79 | IU33: 79 | IV33: 79 | IW33: 79 | IX33: 79 | IY33: 79 | IZ33: 79 | JA33: 79 | JB33: 79 | JC33: 79 | JD33: 79 | JE33: 80 | JF33: 80 | JG33: 80 | JH33: 80 | JI33: 80 | JJ33: 80 | JK33: 80 | JL33: 80 | JM33: 80 | JN33: 80 | JO33: 80 | JP33: 80 | JQ33: 81 | JR33: 81 | JS33: 81 | JT33: 81 | JU33: 81 | JV33: 81 | JW33: 81 | JX33: 81 | JY33: 81 | JZ33: 81 | KA33: 81 | KB33: 81 | KC33: 82 | KD33: 82 | KE33: 82 | KF33: 82 | KG33: 82 | KH33: 82 | KI33: 82 | KJ33: 82 | KK33: 82 | KL33: 82 | KM33: 82 | KN33: 82 | KO33: 83 | KP33: 83 | KQ33: 83 | KR33: 83 | KS33: 83 | KT33: 83 | KU33: 83 | KV33: 83 | KW33: 83 | KX33: 83 | KY33: 83 | KZ33: 83
A34: 59 | B34: 59 | C34: 59 | D34: 59 | E34: 59 | F34: 59 | G34: 59 | H34: 59 | I34: 59 | J34: 59 | K34: 59 | L34: 59 | M34: 60 | N34: 60 | O34: 60 | P34: 60 | Q34: 60 | R34: 60 | S34: 60 | T34: 60 | U34: 60 | V34: 60 | W34: 60 | X34: 60 | Y34: 61 | Z34: 61 | AA34: 61 | AB34: 61 | AC34: 61 | AD34: 61 | AE34: 61 | AF34: 61 | AG34: 61 | AH34: 61 | AI34: 61 | AJ34: 61 | AK34: 62 | AL34: 62 | AM34: 62 | AN34: 62 | AO34: 62 | AP34: 62 | AQ34: 62 | AR34: 62 | AS34: 62 | AT34: 62 | AU34: 62 | AV34: 62 | AW34: 63 | AX34: 63 | AY34: 63 | AZ34: 63 | BA34: 63 | BB34: 63 | BC34: 63 | BD34: 63 | BE34: 63 | BF34: 63 | BG34: 63 | BH34: 63 | BI34: 64 | BJ34: 64 | BK34: 64 | BL34: 64 | BM34: 64 | BN34: 64 | BO34: 64 | BP34: 64 | BQ34: 64 | BR34: 64 | BS34: 64 | BT34: 64 | BU34: 65 | BV34: 65 | BW34: 65 | BX34: 65 | BY34: 65 | BZ34: 65 | CA34: 65 | CB34: 65 | CC34: 65 | CD34: 65 | CE34: 65 | CF34: 65 | CG34: 66 | CH34: 66 | CI34: 66 | CJ34: 66 | CK34: 66 | CL34: 66 | CM34: 66 | CN34: 66 | CO34: 66 | CP34: 66 | CQ34: 66 | CR34: 66 | CS34: 67 | CT34: 67 | CU34: 67 | CV34: 67 | CW34: 67 | CX34: 67 | CY34: 67 | CZ34: 67 | DA34: 67 | DB34: 67 | DC34: 67 | DD34: 67 | DE34: 68 | DF34: 68 | DG34: 68 | DH34: 68 | DI34: 68 | DJ34: 68 | DK34: 68 | DL34: 68 | DM34: 68 | DN34: 68 | DO34: 68 | DP34: 68 | DQ34: 69 | DR34: 69 | DS34: 69 | DT34: 69 | DU34: 69 | DV34: 69 | DW34: 69 | DX34: 69 | DY34: 69 | DZ34: 69 | EA34: 69 | EB34: 69 | EC34: 70 | ED34: 70 | EE34: 70 | EF34: 70 | EG34: 70 | EH34: 70 | EI34: 70 | EJ34: 70 | EK34: 70 | EL34: 70 | EM34: 70 | EN34: 70 | EO34: 71 | EP34: 71 | EQ34: 71 | ER34: 71 | ES34: 71 | ET34: 71 | EU34: 71 | EV34: 71 | EW34: 71 | EX34: 71 | EY34: 71 | EZ34: 71 | FA34: 72 | FB34: 72 | FC34: 72 | FD34: 72 | FE34: 72 | FF34: 72 | FG34: 72 | FH34: 72 | FI34: 72 | FJ34: 72 | FK34: 72 | FL34: 72 | FM34: 73 | FN34: 73 | FO34: 73 | FP34: 73 | FQ34: 73 | FR34: 73 | FS34: 73 | FT34: 73 | FU34: 73 | FV34: 73 | FW34: 73 | FX34: 73 | FY34: 74 | FZ34: 74 | GA34: 74 | GB34: 74 | GC34: 74 | GD34: 74 | GE34: 74 | GF34: 74 | GG34: 74 | GH34: 74 | GI34: 74 | GJ34: 74 | GK34: 75 | GL34: 75 | GM34: 75 | GN34: 75 | GO34: 75 | GP34: 75 | GQ34: 75 | GR34: 75 | GS34: 75 | GT34: 75 | GU34: 75 | GV34: 75 | GW34: 76 | GX34: 76 | GY34: 76 | GZ34: 76 | HA34: 76 | HB34: 76 | HC34: 76 | HD34: 76 | HE34: 76 | HF34: 76 | HG34: 76 | HH34: 76 | HI34: 77 | HJ34: 77 | HK34: 77 | HL34: 77 | HM34: 77 | HN34: 77 | HO34: 77 | HP34: 77 | HQ34: 77 | HR34: 77 | HS34: 77 | HT34: 77 | HU34: 78 | HV34: 78 | HW34: 78 | HX34: 78 | HY34: 78 | HZ34: 78 | IA34: 78 | IB34: 78 | IC34: 78 | ID34: 78 | IE34: 78 | IF34: 78 | IG34: 79 | IH34: 79 | II34: 79 | IJ34: 79 | IK34: 79 | IL34: 79 | IM34: 79 | IN34: 79 | IO34: 79 | IP34: 79 | IQ34: 79 | IR34: 79 | IS34: 80 | IT34: 80 | IU34: 80 | IV34: 80 | IW34: 80 | IX34: 80 | IY34: 80 | IZ34: 80 | JA34: 80 | JB34: 80 | JC34: 80 | JD34: 80 | JE34: 81 | JF34: 81 | JG34: 81 | JH34: 81 | JI34: 81 | JJ34: 81 | JK34: 81 | JL34: 81 | JM34: 81 | JN34: 81 | JO34: 81 | JP34: 81 | JQ34: 82 | JR34: 82 | JS34: 82 | JT34: 82 | JU34: 82 | JV34: 82 | JW34: 82 | JX34: 82 | JY34: 82 | JZ34: 82 | KA34: 82 | KB34: 82 | KC34: 83 | KD34: 83 | KE34: 83 | KF34: 83 | KG34: 83 | KH34: 83 | KI34: 83 | KJ34: 83 | KK34: 83 | KL34: 83 | KM34: 83 | KN34: 83 | KO34: 84 | KP34: 84 | KQ34: 84 | KR34: 84 | KS34: 84 | KT34: 84 | KU34: 84 | KV34: 84 | KW34: 84 | KX34: 84 | KY34: 84 | KZ34: 84
A35: 60 | B35: 60 | C35: 60 | D35: 60 | E35: 60 | F35: 60 | G35: 60 | H35: 60 | I35: 60 | J35: 60 | K35: 60 | L35: 60 | M35: 61 | N35: 61 | O35: 61 | P35: 61 | Q35: 61 | R35: 61 | S35: 61 | T35: 61 | U35: 61 | V35: 61 | W35: 61 | X35: 61 | Y35: 62 | Z35: 62 | AA35: 62 | AB35: 62 | AC35: 62 | AD35: 62 | AE35: 62 | AF35: 62 | AG35: 62 | AH35: 62 | AI35: 62 | AJ35: 62 | AK35: 63 | AL35: 63 | AM35: 63 | AN35: 63 | AO35: 63 | AP35: 63 | AQ35: 63 | AR35: 63 | AS35: 63 | AT35: 63 | AU35: 63 | AV35: 63 | AW35: 64 | AX35: 64 | AY35: 64 | AZ35: 64 | BA35: 64 | BB35: 64 | BC35: 64 | BD35: 64 | BE35: 64 | BF35: 64 | BG35: 64 | BH35: 64 | BI35: 65 | BJ35: 65 | BK35: 65 | BL35: 65 | BM35: 65 | BN35: 65 | BO35: 65 | BP35: 65 | BQ35: 65 | BR35: 65 | BS35: 65 | BT35: 65 | BU35: 66 | BV35: 66 | BW35: 66 | BX35: 66 | BY35: 66 | BZ35: 66 | CA35: 66 | CB35: 66 | CC35: 66 | CD35: 66 | CE35: 66 | CF35: 66 | CG35: 67 | CH35: 67 | CI35: 67 | CJ35: 67 | CK35: 67 | CL35: 67 | CM35: 67 | CN35: 67 | CO35: 67 | CP35: 67 | CQ35: 67 | CR35: 67 | CS35: 68 | CT35: 68 | CU35: 68 | CV35: 68 | CW35: 68 | CX35: 68 | CY35: 68 | CZ35: 68 | DA35: 68 | DB35: 68 | DC35: 68 | DD35: 68 | DE35: 69 | DF35: 69 | DG35: 69 | DH35: 69 | DI35: 69 | DJ35: 69 | DK35: 69 | DL35: 69 | DM35: 69 | DN35: 69 | DO35: 69 | DP35: 69 | DQ35: 70 | DR35: 70 | DS35: 70 | DT35: 70 | DU35: 70 | DV35: 70 | DW35: 70 | DX35: 70 | DY35: 70 | DZ35: 70 | EA35: 70 | EB35: 70 | EC35: 71 | ED35: 71 | EE35: 71 | EF35: 71 | EG35: 71 | EH35: 71 | EI35: 71 | EJ35: 71 | EK35: 71 | EL35: 71 | EM35: 71 | EN35: 71 | EO35: 72 | EP35: 72 | EQ35: 72 | ER35: 72 | ES35: 72 | ET35: 72 | EU35: 72 | EV35: 72 | EW35: 72 | EX35: 72 | EY35: 72 | EZ35: 72 | FA35: 73 | FB35: 73 | FC35: 73 | FD35: 73 | FE35: 73 | FF35: 73 | FG35: 73 | FH35: 73 | FI35: 73 | FJ35: 73 | FK35: 73 | FL35: 73 | FM35: 74 | FN35: 74 | FO35: 74 | FP35: 74 | FQ35: 74 | FR35: 74 | FS35: 74 | FT35: 74 | FU35: 74 | FV35: 74 | FW35: 74 | FX35: 74 | FY35: 75 | FZ35: 75 | GA35: 75 | GB35: 75 | GC35: 75 | GD35: 75 | GE35: 75 | GF35: 75 | GG35: 75 | GH35: 75 | GI35: 75 | GJ35: 75 | GK35: 76 | GL35: 76 | GM35: 76 | GN35: 76 | GO35: 76 | GP35: 76 | GQ35: 76 | GR35: 76 | GS35: 76 | GT35: 76 | GU35: 76 | GV35: 76 | GW35: 77 | GX35: 77 | GY35: 77 | GZ35: 77 | HA35: 77 | HB35: 77 | HC35: 77 | HD35: 77 | HE35: 77 | HF35: 77 | HG35: 77 | HH35: 77 | HI35: 78 | HJ35: 78 | HK35: 78 | HL35: 78 | HM35: 78 | HN35: 78 | HO35: 78 | HP35: 78 | HQ35: 78 | HR35: 78 | HS35: 78 | HT35: 78 | HU35: 79 | HV35: 79 | HW35: 79 | HX35: 79 | HY35: 79 | HZ35: 79 | IA35: 79 | IB35: 79 | IC35: 79 | ID35: 79 | IE35: 79 | IF35: 79 | IG35: 80 | IH35: 80 | II35: 80 | IJ35: 80 | IK35: 80 | IL35: 80 | IM35: 80 | IN35: 80 | IO35: 80 | IP35: 80 | IQ35: 80 | IR35: 80 | IS35: 81 | IT35: 81 | IU35: 81 | IV35: 81 | IW35: 81 | IX35: 81 | IY35: 81 | IZ35: 81 | JA35: 81 | JB35: 81 | JC35: 81 | JD35: 81 | JE35: 82 | JF35: 82 | JG35: 82 | JH35: 82 | JI35: 82 | JJ35: 82 | JK35: 82 | JL35: 82 | JM35: 82 | JN35: 82 | JO35: 82 | JP35: 82 | JQ35: 83 | JR35: 83 | JS35: 83 | JT35: 83 | JU35: 83 | JV35: 83 | JW35: 83 | JX35: 83 | JY35: 83 | JZ35: 83 | KA35: 83 | KB35: 83 | KC35: 84 | KD35: 84 | KE35: 84 | KF35: 84 | KG35: 84 | KH35: 84 | KI35: 84 | KJ35: 84 | KK35: 84 | KL35: 84 | KM35: 84 | KN35: 84 | KO35: 85 | KP35: 85 | KQ35: 85 | KR35: 85 | KS35: 85 | KT35: 85 | KU35: 85 | KV35: 85 | KW35: 85 | KX35: 85 | KY35: 85 | KZ35: 85
A36: 61 | B36: 61 | C36: 61 | D36: 61 | E36: 61 | F36: 61 | G36: 61 | H36: 61 | I36: 61 | J36: 61 | K36: 61 | L36: 61 | M36: 62 | N36: 62 | O36: 62 | P36: 62 | Q36: 62 | R36: 62 | S36: 62 | T36: 62 | U36: 62 | V36: 62 | W36: 62 | X36: 62 | Y36: 63 | Z36: 63 | AA36: 63 | AB36: 63 | AC36: 63 | AD36: 63 | AE36: 63 | AF36: 63 | AG36: 63 | AH36: 63 | AI36: 63 | AJ36: 63 | AK36: 64 | AL36: 64 | AM36: 64 | AN36: 64 | AO36: 64 | AP36: 64 | AQ36: 64 | AR36: 64 | AS36: 64 | AT36: 64 | AU36: 64 | AV36: 64 | AW36: 65 | AX36: 65 | AY36: 65 | AZ36: 65 | BA36: 65 | BB36: 65 | BC36: 65 | BD36: 65 | BE36: 65 | BF36: 65 | BG36: 65 | BH36: 65 | BI36: 66 | BJ36: 66 | BK36: 66 | BL36: 66 | BM36: 66 | BN36: 66 | BO36: 66 | BP36: 66 | BQ36: 66 | BR36: 66 | BS36: 66 | BT36: 66 | BU36: 67 | BV36: 67 | BW36: 67 | BX36: 67 | BY36: 67 | BZ36: 67 | CA36: 67 | CB36: 67 | CC36: 67 | CD36: 67 | CE36: 67 | CF36: 67 | CG36: 68 | CH36: 68 | CI36: 68 | CJ36: 68 | CK36: 68 | CL36: 68 | CM36: 68 | CN36: 68 | CO36: 68 | CP36: 68 | CQ36: 68 | CR36: 68 | CS36: 69 | CT36: 69 | CU36: 69 | CV36: 69 | CW36: 69 | CX36: 69 | CY36: 69 | CZ36: 69 | DA36: 69 | DB36: 69 | DC36: 69 | DD36: 69 | DE36: 70 | DF36: 70 | DG36: 70 | DH36: 70 | DI36: 70 | DJ36: 70 | DK36: 70 | DL36: 70 | DM36: 70 | DN36: 70 | DO36: 70 | DP36: 70 | DQ36: 71 | DR36: 71 | DS36: 71 | DT36: 71 | DU36: 71 | DV36: 71 | DW36: 71 | DX36: 71 | DY36: 71 | DZ36: 71 | EA36: 71 | EB36: 71 | EC36: 72 | ED36: 72 | EE36: 72 | EF36: 72 | EG36: 72 | EH36: 72 | EI36: 72 | EJ36: 72 | EK36: 72 | EL36: 72 | EM36: 72 | EN36: 72 | EO36: 73 | EP36: 73 | EQ36: 73 | ER36: 73 | ES36: 73 | ET36: 73 | EU36: 73 | EV36: 73 | EW36: 73 | EX36: 73 | EY36: 73 | EZ36: 73 | FA36: 74 | FB36: 74 | FC36: 74 | FD36: 74 | FE36: 74 | FF36: 74 | FG36: 74 | FH36: 74 | FI36: 74 | FJ36: 74 | FK36: 74 | FL36: 74 | FM36: 75 | FN36: 75 | FO36: 75 | FP36: 75 | FQ36: 75 | FR36: 75 | FS36: 75 | FT36: 75 | FU36: 75 | FV36: 75 | FW36: 75 | FX36: 75 | FY36: 76 | FZ36: 76 | GA36: 76 | GB36: 76 | GC36: 76 | GD36: 76 | GE36: 76 | GF36: 76 | GG36: 76 | GH36: 76 | GI36: 76 | GJ36: 76 | GK36: 77 | GL36: 77 | GM36: 77 | GN36: 77 | GO36: 77 | GP36: 77 | GQ36: 77 | GR36: 77 | GS36: 77 | GT36: 77 | GU36: 77 | GV36: 77 | GW36: 78 | GX36: 78 | GY36: 78 | GZ36: 78 | HA36: 78 | HB36: 78 | HC36: 78 | HD36: 78 | HE36: 78 | HF36: 78 | HG36: 78 | HH36: 78 | HI36: 79 | HJ36: 79 | HK36: 79 | HL36: 79 | HM36: 79 | HN36: 79 | HO36: 79 | HP36: 79 | HQ36: 79 | HR36: 79 | HS36: 79 | HT36: 79 | HU36: 80 | HV36: 80 | HW36: 80 | HX36: 80 | HY36: 80 | HZ36: 80 | IA36: 80 | IB36: 80 | IC36: 80 | ID36: 80 | IE36: 80 | IF36: 80 | IG36: 81 | IH36: 81 | II36: 81 | IJ36: 81 | IK36: 81 | IL36: 81 | IM36: 81 | IN36: 81 | IO36: 81 | IP36: 81 | IQ36: 81 | IR36: 81 | IS36: 82 | IT36: 82 | IU36: 82 | IV36: 82 | IW36: 82 | IX36: 82 | IY36: 82 | IZ36: 82 | JA36: 82 | JB36: 82 | JC36: 82 | JD36: 82 | JE36: 83 | JF36: 83 | JG36: 83 | JH36: 83 | JI36: 83 | JJ36: 83 | JK36: 83 | JL36: 83 | JM36: 83 | JN36: 83 | JO36: 83 | JP36: 83 | JQ36: 84 | JR36: 84 | JS36: 84 | JT36: 84 | JU36: 84 | JV36: 84 | JW36: 84 | JX36: 84 | JY36: 84 | JZ36: 84 | KA36: 84 | KB36: 84 | KC36: 85 | KD36: 85 | KE36: 85 | KF36: 85 | KG36: 85 | KH36: 85 | KI36: 85 | KJ36: 85 | KK36: 85 | KL36: 85 | KM36: 85 | KN36: 85 | KO36: 86 | KP36: 86 | KQ36: 86 | KR36: 86 | KS36: 86 | KT36: 86 | KU36: 86 | KV36: 86 | KW36: 86 | KX36: 86 | KY36: 86 | KZ36: 86
A37: 62 | B37: 62 | C37: 62 | D37: 62 | E37: 62 | F37: 62 | G37: 62 | H37: 62 | I37: 62 | J37: 62 | K37: 62 | L37: 62 | M37: 63 | N37: 63 | O37: 63 | P37: 63 | Q37: 63 | R37: 63 | S37: 63 | T37: 63 | U37: 63 | V37: 63 | W37: 63 | X37: 63 | Y37: 64 | Z37: 64 | AA37: 64 | AB37: 64 | AC37: 64 | AD37: 64 | AE37: 64 | AF37: 64 | AG37: 64 | AH37: 64 | AI37: 64 | AJ37: 64 | AK37: 65 | AL37: 65 | AM37: 65 | AN37: 65 | AO37: 65 | AP37: 65 | AQ37: 65 | AR37: 65 | AS37: 65 | AT37: 65 | AU37: 65 | AV37: 65 | AW37: 66 | AX37: 66 | AY37: 66 | AZ37: 66 | BA37: 66 | BB37: 66 | BC37: 66 | BD37: 66 | BE37: 66 | BF37: 66 | BG37: 66 | BH37: 66 | BI37: 67 | BJ37: 67 | BK37: 67 | BL37: 67 | BM37: 67 | BN37: 67 | BO37: 67 | BP37: 67 | BQ37: 67 | BR37: 67 | BS37: 67 | BT37: 67 | BU37: 68 | BV37: 68 | BW37: 68 | BX37: 68 | BY37: 68 | BZ37: 68 | CA37: 68 | CB37: 68 | CC37: 68 | CD37: 68 | CE37: 68 | CF37: 68 | CG37: 69 | CH37: 69 | CI37: 69 | CJ37: 69 | CK37: 69 | CL37: 69 | CM37: 69 | CN37: 69 | CO37: 69 | CP37: 69 | CQ37: 69 | CR37: 69 | CS37: 70 | CT37: 70 | CU37: 70 | CV37: 70 | CW37: 70 | CX37: 70 | CY37: 70 | CZ37: 70 | DA37: 70 | DB37: 70 | DC37: 70 | DD37: 70 | DE37: 71 | DF37: 71 | DG37: 71 | DH37: 71 | DI37: 71 | DJ37: 71 | DK37: 71 | DL37: 71 | DM37: 71 | DN37: 71 | DO37: 71 | DP37: 71 | DQ37: 72 | DR37: 72 | DS37: 72 | DT37: 72 | DU37: 72 | DV37: 72 | DW37: 72 | DX37: 72 | DY37: 72 | DZ37: 72 | EA37: 72 | EB37: 72 | EC37: 73 | ED37: 73 | EE37: 73 | EF37: 73 | EG37: 73 | EH37: 73 | EI37: 73 | EJ37: 73 | EK37: 73 | EL37: 73 | EM37: 73 | EN37: 73 | EO37: 74 | EP37: 74 | EQ37: 74 | ER37: 74 | ES37: 74 | ET37: 74 | EU37: 74 | EV37: 74 | EW37: 74 | EX37: 74 | EY37: 74 | EZ37: 74 | FA37: 75 | FB37: 75 | FC37: 75 | FD37: 75 | FE37: 75 | FF37: 75 | FG37: 75 | FH37: 75 | FI37: 75 | FJ37: 75 | FK37: 75 | FL37: 75 | FM37: 76 | FN37: 76 | FO37: 76 | FP37: 76 | FQ37: 76 | FR37: 76 | FS37: 76 | FT37: 76 | FU37: 76 | FV37: 76 | FW37: 76 | FX37: 76 | FY37: 77 | FZ37: 77 | GA37: 77 | GB37: 77 | GC37: 77 | GD37: 77 | GE37: 77 | GF37: 77 | GG37: 77 | GH37: 77 | GI37: 77 | GJ37: 77 | GK37: 78 | GL37: 78 | GM37: 78 | GN37: 78 | GO37: 78 | GP37: 78 | GQ37: 78 | GR37: 78 | GS37: 78 | GT37: 78 | GU37: 78 | GV37: 78 | GW37: 79 | GX37: 79 | GY37: 79 | GZ37: 79 | HA37: 79 | HB37: 79 | HC37: 79 | HD37: 79 | HE37: 79 | HF37: 79 | HG37: 79 | HH37: 79 | HI37: 80 | HJ37: 80 | HK37: 80 | HL37: 80 | HM37: 80 | HN37: 80 | HO37: 80 | HP37: 80 | HQ37: 80 | HR37: 80 | HS37: 80 | HT37: 80 | HU37: 81 | HV37: 81 | HW37: 81 | HX37: 81 | HY37: 81 | HZ37: 81 | IA37: 81 | IB37: 81 | IC37: 81 | ID37: 81 | IE37: 81 | IF37: 81 | IG37: 82 | IH37: 82 | II37: 82 | IJ37: 82 | IK37: 82 | IL37: 82 | IM37: 82 | IN37: 82 | IO37: 82 | IP37: 82 | IQ37: 82 | IR37: 82 | IS37: 83 | IT37: 83 | IU37: 83 | IV37: 83 | IW37: 83 | IX37: 83 | IY37: 83 | IZ37: 83 | JA37: 83 | JB37: 83 | JC37: 83 | JD37: 83 | JE37: 84 | JF37: 84 | JG37: 84 | JH37: 84 | JI37: 84 | JJ37: 84 | JK37: 84 | JL37: 84 | JM37: 84 | JN37: 84 | JO37: 84 | JP37: 84 | JQ37: 85 | JR37: 85 | JS37: 85 | JT37: 85 | JU37: 85 | JV37: 85 | JW37: 85 | JX37: 85 | JY37: 85 | JZ37: 85 | KA37: 85 | KB37: 85 | KC37: 86 | KD37: 86 | KE37: 86 | KF37: 86 | KG37: 86 | KH37: 86 | KI37: 86 | KJ37: 86 | KK37: 86 | KL37: 86 | KM37: 86 | KN37: 86 | KO37: 87 | KP37: 87 | KQ37: 87 | KR37: 87 | KS37: 87 | KT37: 87 | KU37: 87 | KV37: 87 | KW37: 87 | KX37: 87 | KY37: 87 | KZ37: 87
A38: 63 | B38: 63 | C38: 63 | D38: 63 | E38: 63 | F38: 63 | G38: 63 | H38: 63 | I38: 63 | J38: 63 | K38: 63 | L38: 63 | M38: 64 | N38: 64 | O38: 64 | P38: 64 | Q38: 64 | R38: 64 | S38: 64 | T38: 64 | U38: 64 | V38: 64 | W38: 64 | X38: 64 | Y38: 65 | Z38: 65 | AA38: 65 | AB38: 65 | AC38: 65 | AD38: 65 | AE38: 65 | AF38: 65 | AG38: 65 | AH38: 65 | AI38: 65 | AJ38: 65 | AK38: 66 | AL38: 66 | AM38: 66 | AN38: 66 | AO38: 66 | AP38: 66 | AQ38: 66 | AR38: 66 | AS38: 66 | AT38: 66 | AU38: 66 | AV38: 66 | AW38: 67 | AX38: 67 | AY38: 67 | AZ38: 67 | BA38: 67 | BB38: 67 | BC38: 67 | BD38: 67 | BE38: 67 | BF38: 67 | BG38: 67 | BH38: 67 | BI38: 68 | BJ38: 68 | BK38: 68 | BL38: 68 | BM38: 68 | BN38: 68 | BO38: 68 | BP38: 68 | BQ38: 68 | BR38: 68 | BS38: 68 | BT38: 68 | BU38: 69 | BV38: 69 | BW38: 69 | BX38: 69 | BY38: 69 | BZ38: 69 | CA38: 69 | CB38: 69 | CC38: 69 | CD38: 69 | CE38: 69 | CF38: 69 | CG38: 70 | CH38: 70 | CI38: 70 | CJ38: 70 | CK38: 70 | CL38: 70 | CM38: 70 | CN38: 70 | CO38: 70 | CP38: 70 | CQ38: 70 | CR38: 70 | CS38: 71 | CT38: 71 | CU38: 71 | CV38: 71 | CW38: 71 | CX38: 71 | CY38: 71 | CZ38: 71 | DA38: 71 | DB38: 71 | DC38: 71 | DD38: 71 | DE38: 72 | DF38: 72 | DG38: 72 | DH38: 72 | DI38: 72 | DJ38: 72 | DK38: 72 | DL38: 72 | DM38: 72 | DN38: 72 | DO38: 72 | DP38: 72 | DQ38: 73 | DR38: 73 | DS38: 73 | DT38: 73 | DU38: 73 | DV38: 73 | DW38: 73 | DX38: 73 | DY38: 73 | DZ38: 73 | EA38: 73 | EB38: 73 | EC38: 74 | ED38: 74 | EE38: 74 | EF38: 74 | EG38: 74 | EH38: 74 | EI38: 74 | EJ38: 74 | EK38: 74 | EL38: 74 | EM38: 74 | EN38: 74 | EO38: 75 | EP38: 75 | EQ38: 75 | ER38: 75 | ES38: 75 | ET38: 75 | EU38: 75 | EV38: 75 | EW38: 75 | EX38: 75 | EY38: 75 | EZ38: 75 | FA38: 76 | FB38: 76 | FC38: 76 | FD38: 76 | FE38: 76 | FF38: 76 | FG38: 76 | FH38: 76 | FI38: 76 | FJ38: 76 | FK38: 76 | FL38: 76 | FM38: 77 | FN38: 77 | FO38: 77 | FP38: 77 | FQ38: 77 | FR38: 77 | FS38: 77 | FT38: 77 | FU38: 77 | FV38: 77 | FW38: 77 | FX38: 77 | FY38: 78 | FZ38: 78 | GA38: 78 | GB38: 78 | GC38: 78 | GD38: 78 | GE38: 78 | GF38: 78 | GG38: 78 | GH38: 78 | GI38: 78 | GJ38: 78 | GK38: 79 | GL38: 79 | GM38: 79 | GN38: 79 | GO38: 79 | GP38: 79 | GQ38: 79 | GR38: 79 | GS38: 79 | GT38: 79 | GU38: 79 | GV38: 79 | GW38: 80 | GX38: 80 | GY38: 80 | GZ38: 80 | HA38: 80 | HB38: 80 | HC38: 80 | HD38: 80 | HE38: 80 | HF38: 80 | HG38: 80 | HH38: 80 | HI38: 81 | HJ38: 81 | HK38: 81 | HL38: 81 | HM38: 81 | HN38: 81 | HO38: 81 | HP38: 81 | HQ38: 81 | HR38: 81 | HS38: 81 | HT38: 81 | HU38: 82 | HV38: 82 | HW38: 82 | HX38: 82 | HY38: 82 | HZ38: 82 | IA38: 82 | IB38: 82 | IC38: 82 | ID38: 82 | IE38: 82 | IF38: 82 | IG38: 83 | IH38: 83 | II38: 83 | IJ38: 83 | IK38: 83 | IL38: 83 | IM38: 83 | IN38: 83 | IO38: 83 | IP38: 83 | IQ38: 83 | IR38: 83 | IS38: 84 | IT38: 84 | IU38: 84 | IV38: 84 | IW38: 84 | IX38: 84 | IY38: 84 | IZ38: 84 | JA38: 84 | JB38: 84 | JC38: 84 | JD38: 84 | JE38: 85 | JF38: 85 | JG38: 85 | JH38: 85 | JI38: 85 | JJ38: 85 | JK38: 85 | JL38: 85 | JM38: 85 | JN38: 85 | JO38: 85 | JP38: 85 | JQ38: 86 | JR38: 86 | JS38: 86 | JT38: 86 | JU38: 86 | JV38: 86 | JW38: 86 | JX38: 86 | JY38: 86 | JZ38: 86 | KA38: 86 | KB38: 86 | KC38: 87 | KD38: 87 | KE38: 87 | KF38: 87 | KG38: 87 | KH38: 87 | KI38: 87 | KJ38: 87 | KK38: 87 | KL38: 87 | KM38: 87 | KN38: 87 | KO38: 88 | KP38: 88 | KQ38: 88 | KR38: 88 | KS38: 88 | KT38: 88 | KU38: 88 | KV38: 88 | KW38: 88 | KX38: 88 | KY38: 88 | KZ38: 88
A39: 64 | B39: 64 | C39: 64 | D39: 64 | E39: 64 | F39: 64 | G39: 64 | H39: 64 | I39: 64 | J39: 64 | K39: 64 | L39: 64 | M39: 65 | N39: 65 | O39: 65 | P39: 65 | Q39: 65 | R39: 65 | S39: 65 | T39: 65 | U39: 65 | V39: 65 | W39: 65 | X39: 65 | Y39: 66 | Z39: 66 | AA39: 66 | AB39: 66 | AC39: 66 | AD39: 66 | AE39: 66 | AF39: 66 | AG39: 66 | AH39: 66 | AI39: 66 | AJ39: 66 | AK39: 67 | AL39: 67 | AM39: 67 | AN39: 67 | AO39: 67 | AP39: 67 | AQ39: 67 | AR39: 67 | AS39: 67 | AT39: 67 | AU39: 67 | AV39: 67 | AW39: 68 | AX39: 68 | AY39: 68 | AZ39: 68 | BA39: 68 | BB39: 68 | BC39: 68 | BD39: 68 | BE39: 68 | BF39: 68 | BG39: 68 | BH39: 68 | BI39: 69 | BJ39: 69 | BK39: 69 | BL39: 69 | BM39: 69 | BN39: 69 | BO39: 69 | BP39: 69 | BQ39: 69 | BR39: 69 | BS39: 69 | BT39: 69 | BU39: 70 | BV39: 70 | BW39: 70 | BX39: 70 | BY39: 70 | BZ39: 70 | CA39: 70 | CB39: 70 | CC39: 70 | CD39: 70 | CE39: 70 | CF39: 70 | CG39: 71 | CH39: 71 | CI39: 71 | CJ39: 71 | CK39: 71 | CL39: 71 | CM39: 71 | CN39: 71 | CO39: 71 | CP39: 71 | CQ39: 71 | CR39: 71 | CS39: 72 | CT39: 72 | CU39: 72 | CV39: 72 | CW39: 72 | CX39: 72 | CY39: 72 | CZ39: 72 | DA39: 72 | DB39: 72 | DC39: 72 | DD39: 72 | DE39: 73 | DF39: 73 | DG39: 73 | DH39: 73 | DI39: 73 | DJ39: 73 | DK39: 73 | DL39: 73 | DM39: 73 | DN39: 73 | DO39: 73 | DP39: 73 | DQ39: 74 | DR39: 74 | DS39: 74 | DT39: 74 | DU39: 74 | DV39: 74 | DW39: 74 | DX39: 74 | DY39: 74 | DZ39: 74 | EA39: 74 | EB39: 74 | EC39: 75 | ED39: 75 | EE39: 75 | EF39: 75 | EG39: 75 | EH39: 75 | EI39: 75 | EJ39: 75 | EK39: 75 | EL39: 75 | EM39: 75 | EN39: 75 | EO39: 76 | EP39: 76 | EQ39: 76 | ER39: 76 | ES39: 76 | ET39: 76 | EU39: 76 | EV39: 76 | EW39: 76 | EX39: 76 | EY39: 76 | EZ39: 76 | FA39: 77 | FB39: 77 | FC39: 77 | FD39: 77 | FE39: 77 | FF39: 77 | FG39: 77 | FH39: 77 | FI39: 77 | FJ39: 77 | FK39: 77 | FL39: 77 | FM39: 78 | FN39: 78 | FO39: 78 | FP39: 78 | FQ39: 78 | FR39: 78 | FS39: 78 | FT39: 78 | FU39: 78 | FV39: 78 | FW39: 78 | FX39: 78 | FY39: 79 | FZ39: 79 | GA39: 79 | GB39: 79 | GC39: 79 | GD39: 79 | GE39: 79 | GF39: 79 | GG39: 79 | GH39: 79 | GI39: 79 | GJ39: 79 | GK39: 80 | GL39: 80 | GM39: 80 | GN39: 80 | GO39: 80 | GP39: 80 | GQ39: 80 | GR39: 80 | GS39: 80 | GT39: 80 | GU39: 80 | GV39: 80 | GW39: 81 | GX39: 81 | GY39: 81 | GZ39: 81 | HA39: 81 | HB39: 81 | HC39: 81 | HD39: 81 | HE39: 81 | HF39: 81 | HG39: 81 | HH39: 81 | HI39: 82 | HJ39: 82 | HK39: 82 | HL39: 82 | HM39: 82 | HN39: 82 | HO39: 82 | HP39: 82 | HQ39: 82 | HR39: 82 | HS39: 82 | HT39: 82 | HU39: 83 | HV39: 83 | HW39: 83 | HX39: 83 | HY39: 83 | HZ39: 83 | IA39: 83 | IB39: 83 | IC39: 83 | ID39: 83 | IE39: 83 | IF39: 83 | IG39: 84 | IH39: 84 | II39: 84 | IJ39: 84 | IK39: 84 | IL39: 84 | IM39: 84 | IN39: 84 | IO39: 84 | IP39: 84 | IQ39: 84 | IR39: 84 | IS39: 85 | IT39: 85 | IU39: 85 | IV39: 85 | IW39: 85 | IX39: 85 | IY39: 85 | IZ39: 85 | JA39: 85 | JB39: 85 | JC39: 85 | JD39: 85 | JE39: 86 | JF39: 86 | JG39: 86 | JH39: 86 | JI39: 86 | JJ39: 86 | JK39: 86 | JL39: 86 | JM39: 86 | JN39: 86 | JO39: 86 | JP39: 86 | JQ39: 87 | JR39: 87 | JS39: 87 | JT39: 87 | JU39: 87 | JV39: 87 | JW39: 87 | JX39: 87 | JY39: 87 | JZ39: 87 | KA39: 87 | KB39: 87 | KC39: 88 | KD39: 88 | KE39: 88 | KF39: 88 | KG39: 88 | KH39: 88 | KI39: 88 | KJ39: 88 | KK39: 88 | KL39: 88 | KM39: 88 | KN39: 88 | KO39: 89 | KP39: 89 | KQ39: 89 | KR39: 89 | KS39: 89 | KT39: 89 | KU39: 89 | KV39: 89 | KW39: 89 | KX39: 89 | KY39: 89 | KZ39: 89
A40: 65 | B40: 65 | C40: 65 | D40: 65 | E40: 65 | F40: 65 | G40: 65 | H40: 65 | I40: 65 | J40: 65 | K40: 65 | L40: 65 | M40: 66 | N40: 66 | O40: 66 | P40: 66 | Q40: 66 | R40: 66 | S40: 66 | T40: 66 | U40: 66 | V40: 66 | W40: 66 | X40: 66 | Y40: 67 | Z40: 67 | AA40: 67 | AB40: 67 | AC40: 67 | AD40: 67 | AE40: 67 | AF40: 67 | AG40: 67 | AH40: 67 | AI40: 67 | AJ40: 67 | AK40: 68 | AL40: 68 | AM40: 68 | AN40: 68 | AO40: 68 | AP40: 68 | AQ40: 68 | AR40: 68 | AS40: 68 | AT40: 68 | AU40: 68 | AV40: 68 | AW40: 69 | AX40: 69 | AY40: 69 | AZ40: 69 | BA40: 69 | BB40: 69 | BC40: 69 | BD40: 69 | BE40: 69 | BF40: 69 | BG40: 69 | BH40: 69 | BI40: 70 | BJ40: 70 | BK40: 70 | BL40: 70 | BM40: 70 | BN40: 70 | BO40: 70 | BP40: 70 | BQ40: 70 | BR40: 70 | BS40: 70 | BT40: 70 | BU40: 71 | BV40: 71 | BW40: 71 | BX40: 71 | BY40: 71 | BZ40: 71 | CA40: 71 | CB40: 71 | CC40: 71 | CD40: 71 | CE40: 71 | CF40: 71 | CG40: 72 | CH40: 72 | CI40: 72 | CJ40: 72 | CK40: 72 | CL40: 72 | CM40: 72 | CN40: 72 | CO40: 72 | CP40: 72 | CQ40: 72 | CR40: 72 | CS40: 73 | CT40: 73 | CU40: 73 | CV40: 73 | CW40: 73 | CX40: 73 | CY40: 73 | CZ40: 73 | DA40: 73 | DB40: 73 | DC40: 73 | DD40: 73 | DE40: 74 | DF40: 74 | DG40: 74 | DH40: 74 | DI40: 74 | DJ40: 74 | DK40: 74 | DL40: 74 | DM40: 74 | DN40: 74 | DO40: 74 | DP40: 74 | DQ40: 75 | DR40: 75 | DS40: 75 | DT40: 75 | DU40: 75 | DV40: 75 | DW40: 75 | DX40: 75 | DY40: 75 | DZ40: 75 | EA40: 75 | EB40: 75 | EC40: 76 | ED40: 76 | EE40: 76 | EF40: 76 | EG40: 76 | EH40: 76 | EI40: 76 | EJ40: 76 | EK40: 76 | EL40: 76 | EM40: 76 | EN40: 76 | EO40: 77 | EP40: 77 | EQ40: 77 | ER40: 77 | ES40: 77 | ET40: 77 | EU40: 77 | EV40: 77 | EW40: 77 | EX40: 77 | EY40: 77 | EZ40: 77 | FA40: 78 | FB40: 78 | FC40: 78 | FD40: 78 | FE40: 78 | FF40: 78 | FG40: 78 | FH40: 78 | FI40: 78 | FJ40: 78 | FK40: 78 | FL40: 78 | FM40: 79 | FN40: 79 | FO40: 79 | FP40: 79 | FQ40: 79 | FR40: 79 | FS40: 79 | FT40: 79 | FU40: 79 | FV40: 79 | FW40: 79 | FX40: 79 | FY40: 80 | FZ40: 80 | GA40: 80 | GB40: 80 | GC40: 80 | GD40: 80 | GE40: 80 | GF40: 80 | GG40: 80 | GH40: 80 | GI40: 80 | GJ40: 80 | GK40: 81 | GL40: 81 | GM40: 81 | GN40: 81 | GO40: 81 | GP40: 81 | GQ40: 81 | GR40: 81 | GS40: 81 | GT40: 81 | GU40: 81 | GV40: 81 | GW40: 82 | GX40: 82 | GY40: 82 | GZ40: 82 | HA40: 82 | HB40: 82 | HC40: 82 | HD40: 82 | HE40: 82 | HF40: 82 | HG40: 82 | HH40: 82 | HI40: 83 | HJ40: 83 | HK40: 83 | HL40: 83 | HM40: 83 | HN40: 83 | HO40: 83 | HP40: 83 | HQ40: 83 | HR40: 83 | HS40: 83 | HT40: 83 | HU40: 84 | HV40: 84 | HW40: 84 | HX40: 84 | HY40: 84 | HZ40: 84 | IA40: 84 | IB40: 84 | IC40: 84 | ID40: 84 | IE40: 84 | IF40: 84 | IG40: 85 | IH40: 85 | II40: 85 | IJ40: 85 | IK40: 85 | IL40: 85 | IM40: 85 | IN40: 85 | IO40: 85 | IP40: 85 | IQ40: 85 | IR40: 85 | IS40: 86 | IT40: 86 | IU40: 86 | IV40: 86 | IW40: 86 | IX40: 86 | IY40: 86 | IZ40: 86 | JA40: 86 | JB40: 86 | JC40: 86 | JD40: 86 | JE40: 87 | JF40: 87 | JG40: 87 | JH40: 87 | JI40: 87 | JJ40: 87 | JK40: 87 | JL40: 87 | JM40: 87 | JN40: 87 | JO40: 87 | JP40: 87 | JQ40: 88 | JR40: 88 | JS40: 88 | JT40: 88 | JU40: 88 | JV40: 88 | JW40: 88 | JX40: 88 | JY40: 88 | JZ40: 88 | KA40: 88 | KB40: 88 | KC40: 89 | KD40: 89 | KE40: 89 | KF40: 89 | KG40: 89 | KH40: 89 | KI40: 89 | KJ40: 89 | KK40: 89 | KL40: 89 | KM40: 89 | KN40: 89 | KO40: 90 | KP40: 90 | KQ40: 90 | KR40: 90 | KS40: 90 | KT40: 90 | KU40: 90 | KV40: 90 | KW40: 90 | KX40: 90 | KY40: 90 | KZ40: 90
